Workbook

Sheet START

Sheet Instructions
D2: 2020
X4: Yes
X5: No
W7: Type of Entities Range:
X8: Parent Municipality
X9: Consolidated Information
W17: MTREF Range: | X17: 2008
X18: 2009
X19: 2010
X20: 2011
X21: 2012
X22: 2013
X23: 2014
X24: 2015
X25: 2016
X26: 2017
X27: 2018
X28: 2019
X29: 2020
X30: 2021
X31: 2022
W33: MTREF Linked: | X33: 13
W34: MTREF: | X34: =INDEX(X17:X31,X33,1) -> 2020
W36: Fin Year: | X36: =MTREF&"/"&RIGHT(MTREF,2)+1 -> 2020/21

Sheet Template names (hidden)
A1: Common sheet headings
A2: Head1 | B2: =HLOOKUP(MTREF,Headings,2) -> 2018/19 | C2: Prior year -1
A3: Head1A | B3: =HLOOKUP(MTREF,Headings,3) -> 2017/18 | C3: Prior year -2
A4: Head1B | B4: =HLOOKUP(MTREF,Headings,4) -> 2016/17 | C4: Prior year -3
A5: Head2 | B5: =HLOOKUP(MTREF,Headings,5) -> Current Year 2019/20 | C5: Year in which budget is being prepared
A6: Head2A | B6: =HLOOKUP(MTREF,Headings,6) -> 2019/20 | C6: Year in which budget is being prepared
A7: Head3 | B7: =HLOOKUP(MTREF,Headings,7) -> 2020/21 Medium Term Revenue & Expenditure Framework | C7: MTREF name
A8: Head4 | B8: LTFS | C8: Long term financial strategy
A9: Head5 | B9: Audited Outcome
A10: Head5A | B10: Outcome
A11: Head5B | B11: Pre-audit outcome
A12: Head6 | B12: Original Budget
A13: Head7 | B13: Adjusted Budget
A14: Head8 | B14: Full Year Forecast
A15: Head9 | B15: =HLOOKUP(MTREF,Headings,8) -> Budget Year 2020/21 | C15: 1st year of MTREF | D15: Year1
A16: Head10 | B16: =HLOOKUP(MTREF,Headings,9) -> Budget Year +1 2021/22 | C16: 2nd year of MTREF | D16: Year2
A17: Head11 | B17: =HLOOKUP(MTREF,Headings,10) -> Budget Year +2 2022/23 | C17: 3rd year of MTREF | D17: Year3
A18: Head12 | B18: =HLOOKUP(MTREF,Headings,11) -> Forecast 2023/24 | C18: 1st yr of long term forecast | D18: Year4
A19: Head13 | B19: =HLOOKUP(MTREF,Headings,12) -> Forecast 2024/25 | C19: Next yr of long term forecast | D19: Year5
A20: Head14 | B20: =HLOOKUP(MTREF,Headings,13) -> Forecast 2025/26 | C20: Next yr of long term forecast | D20: Year6
A21: Head15 | B21: =HLOOKUP(MTREF,Headings,14) -> Forecast 2026/27 | C21: Next yr of long term forecast | D21: Year7
A22: Head16 | B22: =HLOOKUP(MTREF,Headings,15) -> Forecast 2027/28 | C22: Next yr of long term forecast | D22: Year8
A23: Head17 | B23: =HLOOKUP(MTREF,Headings,16) -> Forecast 2028/29 | C23: Next yr of long term forecast | D23: Year9
A24: Head18 | B24: =HLOOKUP(MTREF,Headings,17) -> Forecast 2029/30 | C24: Next yr of long term forecast | D24: Year10
A25: Head19 | B25: =HLOOKUP(MTREF,Headings,18) -> Forecast 2030/31 | C25: Next yr of long term forecast | D25: Year11
A26: Head20 | B26: =HLOOKUP(MTREF,Headings,19) -> Forecast 2031/32 | C26: Next yr of long term forecast | D26: Year12
A27: Head21 | B27: =HLOOKUP(MTREF,Headings,20) -> Forecast 2032/33 | C27: Next yr of long term forecast | D27: Year13
A28: Head22 | B28: =HLOOKUP(MTREF,Headings,21) -> Forecast 2033/34 | C28: Next yr of long term forecast | D28: Year14
A29: Head23 | B29: =HLOOKUP(MTREF,Headings,22) -> Forecast 2034/35 | C29: Next yr of long term forecast | D29: Year15
A30: Head24 | B30: Description
A31: Head25
A32: Head26 | B32: Vote Description
A33: Head27 | B33: Ref
A34: Head27a | B34: References
A35: Head28 | B35: Surplus/(Deficit) for the year | D35: Result
A36: Head29 | B36: =HLOOKUP(MTREF,Headings,23) -> Annual target 2020/21
A37: Head30 | B37: =HLOOKUP(MTREF,Headings,24) -> Revised target 2020/21
A38: Head31 | B38: Quarter ended 30 September
A39: Head32 | B39: Quarter ended 31 December
A40: Head33 | B40: Quarter ended 31 March
A41: Head34 | B41: Quarter ended 30 June
A42: Head35 | B42: Variance explanation
A43: Head36 | B43: YTD Actual 31 Dec
A44: Head37 | B44: YTD Budget 31 Dec
A45: Head38 | B45: Monthly actual
A46: Head39 | B46: YTD actual
A47: Head40 | B47: YTD budget
A48: Head41 | B48: YTD variance
A49: Head42 | B49: Surplus/ (Deficit) for the yr/period
A50: Head43 | B50: =Head3&" Summary" -> 2020/21 Medium Term Revenue & Expenditure Framework Summary
A51: Head44 | B51: 2001 Census
A52: Head45 | B52: 2011 Census
A53: Head46 | B53: - Adjustments Budget - January 2007
A54: Head47 | B54: Previous target year to complete
A55: Head48 | B55: Present value
A56: Head49
A57: Head50 | B57: Other Adjusts.
A58: Head51 | B58: Accum. Funds
A59: Head52 | B59: Multi-year capital
A60: Head53 | B60: Unfore. Unavoid.
A61: Head54 | B61: Prior Adjusted
A62: Head55 | B62: Nat. or Prov. Govt
A63: Head56 | B63: Total Adjusts.
A64: SFPerf1 | B64: Budgeted Financial Performance
A65: SFPerf2 | B65: Forecast Financial Performance
A66: SFPos1 | B66: Budgeted Financial Position
A67: SFPos2 | B67: Forecast Financial Position
A68: Cash1 | B68: Budget Cash Flow
A69: Cash2 | B69: Forecast Cash Flow
A70: RandM | B70: Expenditure includes repairs & maintenance of R'000
A71: Depart1 | B71: Department 1 - | D71: DEP1
A72: Depart2 | B72: Department 2 - | D72: DEP2
A73: Depart3 | B73: Department 3 - | D73: DEP3
A74: Depart4 | B74: Department 4 - | D74: DEP4
A75: Depart5 | B75: Department 5 - | D75: DEP5
A76: Depart6 | B76: Department 6 - | D76: DEP6
A77: Depart7 | B77: Department 7 - | D77: DEP7
A78: Depart8 | B78: Department 8 - | D78: DEP8
A79: Depart9 | B79: Department 9 - | D79: DEP9
A80: Depart10 | B80: Department 10 - | D80: DEP10
A81: Depart11 | B81: Department 11 - | D81: DEP11
A82: Depart12 | B82: Department 12 - | D82: DEP12
A83: Depart13 | B83: Department 13 - | D83: DEP13
A84: Depart14 | B84: Department 14 - | D84: DEP14
A87: Base year of forecast column selection names
A88: Choose | B88: ACT
B89: APP
B90: ADJ
A92: Standard nomenclature
A93: Muni | B93: ='Lookup and lists'!B28 -> DC32 Ehlanzeni
A94: Municipal Entities | B94: 2 | C94: Type of report: | D94: 1
A95: =IF((MuniEntities=1)*(MuniType=2),"YES","NO") -> NO | B95: Does this municipality have entities (consolidated budget and entity budgets required)? YES/NO
A96: Entity 1 | B96: (Pty) Ltd Example 1 - Municipal entity - | D96: Ent1
A97: Entity 2 | B97: (Pty) Ltd Example 2 - Municipal entity - | D97: Ent2
A98: Entity 3 | B98: Municipal Entity Example 3 | D98: Ent3
A99: Budget approval tables | C99: Chart x-ref | D99: Sch/Tab/Ch | E99: Alternative for municipalities without entities | F99: Alternative for municipalities without entities
B100: =IF(Consolques="YES",E100,F100) -> Table A1 Budget Summary | D100: Table A1 | E100: =D100&"Consolidated Budget Summary" -> Table A1 Consolidated Budget Summary | F100: =D100&"Budget Summary" -> Table A1 Budget Summary
B101: Table A2 Budgeted Financial Performance (revenue and expenditure by functional classification) | C101: Charts 5, 6 | D101: Table A2 | E101: =D101&"Consolidated Budgeted Financial Performance (revenue and expenditure by functional classification)" -> Table A2 Consolidated Budgeted Financial Performance (revenue and expenditure by functional classification) | F101: =D101&"Budgeted Financial Performance (revenue and expenditure by functional classification)" -> Table A2 Budgeted Financial Performance (revenue and expenditure by functional classification)
B102: Table A3 Budgeted Financial Performance (revenue and expenditure by municipal vote) | D102: Table A3 | E102: =D102&"Consolidated Budgeted Financial Performance (revenue and expenditure by municipal vote)" -> Table A3 Consolidated Budgeted Financial Performance (revenue and expenditure by municipal vote) | F102: =D102&"Budgeted Financial Performance (revenue and expenditure by municipal vote)" -> Table A3 Budgeted Financial Performance (revenue and expenditure by municipal vote)
B103: Table A4 Budgeted Financial Performance (revenue and expenditure) | C103: Charts 1, 2, 3, 4 | D103: Table A4 | E103: =D103&"Consolidated Budgeted Financial Performance (revenue and expenditure)" -> Table A4 Consolidated Budgeted Financial Performance (revenue and expenditure) | F103: =D103&"Budgeted Financial Performance (revenue and expenditure)" -> Table A4 Budgeted Financial Performance (revenue and expenditure)
B104: Table A5 Budgeted Capital Expenditure by vote, functional classification and funding | C104: Charts 7, 8, 9, 10, 20 | D104: Table A5 | E104: =D104&"Consolidated Budgeted Capital Expenditure by vote, functional classification and funding" -> Table A5 Consolidated Budgeted Capital Expenditure by vote, functional classification and funding | F104: =D104&"Budgeted Capital Expenditure by vote, functional classification and funding" -> Table A5 Budgeted Capital Expenditure by vote, functional classification and funding
B105: Table A6 Budgeted Financial Position | D105: Table A6 | E105: =D105&"Consolidated Budgeted Financial Position" -> Table A6 Consolidated Budgeted Financial Position | F105: =D105&"Budgeted Financial Position" -> Table A6 Budgeted Financial Position
B106: Table A7 Budgeted Cash Flows | D106: Table A7 | E106: =D106&"Consolidated Budgeted Cash Flows" -> Table A7 Consolidated Budgeted Cash Flows | F106: =D106&"Budgeted Cash Flows" -> Table A7 Budgeted Cash Flows
B107: Table A8 Cash backed reserves/accumulated surplus reconciliation | D107: Table A8 | E107: =D107&"Consolidated Cash backed reserves/accumulated surplus reconciliation" -> Table A8 Consolidated Cash backed reserves/accumulated surplus reconciliation | F107: =D107&"Cash backed reserves/accumulated surplus reconciliation" -> Table A8 Cash backed reserves/accumulated surplus reconciliation
B108: Table A9 Asset Management | D108: Table A9 | E108: =D108&"Consolidated Asset Management" -> Table A9 Consolidated Asset Management | F108: =D108&"Asset Management" -> Table A9 Asset Management
B109: Table A10 Basic service delivery measurement | D109: Table A10 | E109: =D109&"Consolidated basic service delivery measurement" -> Table A10 Consolidated basic service delivery measurement | F109: =D109&"Basic service delivery measurement" -> Table A10 Basic service delivery measurement
A110: Supportinging Tables to the Budget Approval Tables | C110: =$C$99 -> Chart x-ref | D110: =$D$99 -> Sch/Tab/Ch
A111: Supporting Table SA1 | B111: =A111&" Supportinging detail to 'Budgeted Financial Performance'" -> Supporting Table SA1 Supportinging detail to 'Budgeted Financial Performance'
A112: Supporting Table SA2 | B112: =IF(Consolques="YES",E112,F112) -> Supporting Table SA2 Matrix Financial Performance Budget (revenue source/expenditure type and dept.) | E112: =A112&"Consolidated Matrix Financial Performance Budget (revenue source/expenditure type & dept.)" -> Supporting Table SA2 Consolidated Matrix Financial Performance Budget (revenue source/expenditure type & dept.) | F112: =A112&"Matrix Financial Performance Budget (revenue source/expenditure type and dept.)" -> Supporting Table SA2 Matrix Financial Performance Budget (revenue source/expenditure type and dept.)
A113: Supporting Table SA3 | B113: =A113&"Supportinging detail to 'Budgeted Financial Position'" -> Supporting Table SA3 Supportinging detail to 'Budgeted Financial Position'
A114: Supporting Table SA4 | B114: =A114&"Reconciliation of IDP strategic objectives and budget (revenue)" -> Supporting Table SA4 Reconciliation of IDP strategic objectives and budget (revenue) | C114: Chart 11
A115: Supporting Table SA5 | B115: =A115&"Reconciliation of IDP strategic objectives and budget (operating expenditure)" -> Supporting Table SA5 Reconciliation of IDP strategic objectives and budget (operating expenditure) | C115: Chart 12
A116: Supporting Table SA6 | B116: =A116&"Reconciliation of IDP strategic objectives and budget (capital expenditure)" -> Supporting Table SA6 Reconciliation of IDP strategic objectives and budget (capital expenditure) | C116: Chart 13
A117: Supporting Table SA7 | B117: =A117&" Measureable performance objectives" -> Supporting Table SA7 Measureable performance objectives
A118: Supporting Table SA8 | B118: =A118&" Performance indicators and benchmarks" -> Supporting Table SA8 Performance indicators and benchmarks | C118: Chts 15-19
A119: Supporting Table SA9 | B119: =A119&" Social, economic and demographic statistics and assumptions" -> Supporting Table SA9 Social, economic and demographic statistics and assumptions
A120: Supporting Table SA10 | B120: =A120&" Funding measurement" -> Supporting Table SA10 Funding measurement | C120: Chart 14
A121: Supporting Table SA11 | B121: =A121&" Property rates summary" -> Supporting Table SA11 Property rates summary
A122: Supporting Table SA12a | B122: =A122&" Property rates by category (current year)" -> Supporting Table SA12a Property rates by category (current year)
A123: Supporting Table SA12b | B123: =A123&" Property rates by category (budget year)" -> Supporting Table SA12b Property rates by category (budget year)
A124: Supporting Table SA13a | B124: =A124&" Service Tariffs by category" -> Supporting Table SA13a Service Tariffs by category
A125: Supporting Table SA13b | B125: =A125&" Service Tariffs by category - explanatory" -> Supporting Table SA13b Service Tariffs by category - explanatory
A126: Supporting Table SA14 | B126: =A126&" Household bills" -> Supporting Table SA14 Household bills
A127: Supporting Table SA15 | B127: =A127&" Investment particulars by type" -> Supporting Table SA15 Investment particulars by type
A128: Supporting Table SA16 | B128: =A128&" Investment particulars by maturity" -> Supporting Table SA16 Investment particulars by maturity
A129: Supporting Table SA17 | B129: =A129&" Borrowing" -> Supporting Table SA17 Borrowing
A130: Supporting Table SA18 | B130: =A130&" Transfers and grant receipts" -> Supporting Table SA18 Transfers and grant receipts
A131: Supporting Table SA19 | B131: =A131&" Expenditure on transfers and grant programme" -> Supporting Table SA19 Expenditure on transfers and grant programme
A132: Supporting Table SA20 | B132: =A132&" Reconciliation of transfers, grant receipts and unspent funds" -> Supporting Table SA20 Reconciliation of transfers, grant receipts and unspent funds
A133: Supporting Table SA21 | B133: =A133&" Transfers and grants made by the municipality" -> Supporting Table SA21 Transfers and grants made by the municipality
A134: Supporting Table SA22 | B134: =A134&" Summary councillor and staff benefits" -> Supporting Table SA22 Summary councillor and staff benefits
A135: Supporting Table SA23 | B135: =A135&" Salaries, allowances & benefits (political office bearers/councillors/senior managers)" -> Supporting Table SA23 Salaries, allowances & benefits (political office bearers/councillors/senior managers)
A136: Supporting Table SA24 | B136: =A136&" Summary of personnel numbers" -> Supporting Table SA24 Summary of personnel numbers
A137: Supporting Table SA25 | B137: =IF(Consolques="YES",E137,F137) -> Supporting Table SA25 Budgeted monthly revenue and expenditure | E137: =A137&" Consolidated budgeted monthly revenue and expenditure" -> Supporting Table SA25 Consolidated budgeted monthly revenue and expenditure | F137: =A137&" Budgeted monthly revenue and expenditure" -> Supporting Table SA25 Budgeted monthly revenue and expenditure
A138: Supporting Table SA26 | B138: Supporting Table SA26 Budgeted monthly revenue and expenditure (municipal vote) | E138: =A138&" Consolidated budgeted monthly revenue and expenditure (municipal vote)" -> Supporting Table SA26 Consolidated budgeted monthly revenue and expenditure (municipal vote) | F138: =A138&" Budgeted monthly revenue and expenditure (municipal vote)" -> Supporting Table SA26 Budgeted monthly revenue and expenditure (municipal vote)
A139: Supporting Table SA27 | B139: Supporting Table SA27 Budgeted monthly revenue and expenditure (functional classification) | E139: =A139&" Consolidated budgeted monthly revenue and expenditure (functional classification)" -> Supporting Table SA27 Consolidated budgeted monthly revenue and expenditure (functional classification) | F139: =A139&" Budgeted monthly revenue and expenditure (functional classification)" -> Supporting Table SA27 Budgeted monthly revenue and expenditure (functional classification)
A140: Supporting Table SA28 | B140: Supporting Table SA28 Budgeted monthly capital expenditure (municipal vote) | E140: =A140&" Consolidated budgeted monthly capital expenditure (municipal vote)" -> Supporting Table SA28 Consolidated budgeted monthly capital expenditure (municipal vote) | F140: =A140&" Budgeted monthly capital expenditure (municipal vote)" -> Supporting Table SA28 Budgeted monthly capital expenditure (municipal vote)
A141: Supporting Table SA29 | B141: Supporting Table SA29 Budgeted monthly capital expenditure (functional classification) | E141: =A141&" Consolidated budgeted monthly capital expenditure (functional classification)" -> Supporting Table SA29 Consolidated budgeted monthly capital expenditure (functional classification) | F141: =A141&" Budgeted monthly capital expenditure (functional classification)" -> Supporting Table SA29 Budgeted monthly capital expenditure (functional classification)
A142: Supporting Table SA30 | B142: Supporting Table SA30 Budgeted monthly cash flow | E142: =A142&" Consolidated budgeted monthly cash flow" -> Supporting Table SA30 Consolidated budgeted monthly cash flow | F142: =A142&" Budgeted monthly cash flow" -> Supporting Table SA30 Budgeted monthly cash flow
A143: Supporting Table SA31 | B143: NOT REQUIRED - municipality does not have entities | E143: =A143&" Aggregated entity budget" -> Supporting Table SA31 Aggregated entity budget | F143: NOT REQUIRED - municipality does not have entities
A144: Supporting Table SA32 | B144: =A144&" List of external mechanisms" -> Supporting Table SA32 List of external mechanisms
A145: Supporting Table SA33 | B145: =A145&" Contracts having future budgetary implications" -> Supporting Table SA33 Contracts having future budgetary implications
A146: Supporting Table SA34a | B146: =IF(Consolques="YES",E146,F146) -> Supporting Table SA34a Capital expenditure on new assets by asset class | E146: =A146&" Consolidated capital expenditure on new assets by asset class" -> Supporting Table SA34a Consolidated capital expenditure on new assets by asset class | F146: =A146&" Capital expenditure on new assets by asset class" -> Supporting Table SA34a Capital expenditure on new assets by asset class
A147: Supporting Table SA34b | B147: Supporting Table SA34b Capital expenditure on the renewal of existing assets by asset class | E147: =A147&" Consolidated capital expenditure on the renewal of existing assets by asset class" -> Supporting Table SA34b Consolidated capital expenditure on the renewal of existing assets by asset class | F147: =A147&" Capital expenditure on the renewal of existing assets by asset class" -> Supporting Table SA34b Capital expenditure on the renewal of existing assets by asset class
A148: Supporting Table SA34c | B148: Supporting Table SA34c Repairs and maintenance expenditure by asset class | E148: =A148&" Consolidated repairs and maintenance by asset class" -> Supporting Table SA34c Consolidated repairs and maintenance by asset class | F148: =A148&" Repairs and maintenance expenditure by asset class" -> Supporting Table SA34c Repairs and maintenance expenditure by asset class
A149: Supporting Table SA34d | B149: =IF(Consolques="YES",E149,F149) -> Supporting Table SA34d Depreciation by asset class | E149: =A149&" Consolidated Depreciation by asset class" -> Supporting Table SA34d Consolidated Depreciation by asset class | F149: =A149&" Depreciation by asset class" -> Supporting Table SA34d Depreciation by asset class
A150: Supporting Table SA34e | B150: =IF(Consolques="YES",E150,F150) -> Supporting Table SA34e Capital expenditure on the upgrading of existing assets by asset class | E150: =A150&" Consolidated capital expenditure on the upgrading of existing assets by asset class" -> Supporting Table SA34e Consolidated capital expenditure on the upgrading of existing assets by asset class | F150: =A150&" Capital expenditure on the upgrading of existing assets by asset class" -> Supporting Table SA34e Capital expenditure on the upgrading of existing assets by asset class
A151: Supporting Table SA35 | B151: Supporting Table SA35 Future financial implications of the capital budget | E151: =A151&" Consolidated future financial implications of the capital budget" -> Supporting Table SA35 Consolidated future financial implications of the capital budget | F151: =A151& " Future financial implications of the capital budget" -> Supporting Table SA35 Future financial implications of the capital budget
A152: Supporting Table SA36 | B152: Supporting Table SA36 Detailed capital budget | E152: =A152&" Consolidated detailed capital budget" -> Supporting Table SA36 Consolidated detailed capital budget | F152: =A152& " Detailed capital budget" -> Supporting Table SA36 Detailed capital budget
A153: Supporting Table SA37 | B153: Supporting Table SA37 Projects delayed from previous financial year/s | E153: =A153&" Consolidated projects delayed from previous financial year/s" -> Supporting Table SA37 Consolidated projects delayed from previous financial year/s | F153: =A153& " Projects delayed from previous financial year/s" -> Supporting Table SA37 Projects delayed from previous financial year/s
A154: Supporting Table SA38 | B154: =IF(Consolques="YES",E154,F154) -> Supporting Table SA38 Detailed operational projects | E154: =A154&" Consolidated detailed operational projects" -> Supporting Table SA38 Consolidated detailed operational projects | F154: =A154& " Detailed operational projects" -> Supporting Table SA38 Detailed operational projects
A156: Budget Charts | B156: Charts | C156: Cross reference
A157: Chart A1 | B157: =A157&"Revenue by Municipal Vote" -> Chart A1 Revenue by Municipal Vote
A158: Chart A2 | B158: =A158&"Expenditure by Municipal Vote" -> Chart A2 Expenditure by Municipal Vote
A159: Chart A3 | B159: =A159&"Revenue by Standard Classification" -> Chart A3 Revenue by Standard Classification | C159: A2
A160: Chart A4 | B160: =A160&"Expenditure by Standard Classification" -> Chart A4 Expenditure by Standard Classification | C160: A2
A161: Chart A5 | B161: =A161&"Revenue by Major Source (refer 'Minor' source for 'Other Revenue' allocation" -> Chart A5 Revenue by Major Source (refer 'Minor' source for 'Other Revenue' allocation | C161: A3
A162: Chart A6 | B162: =A162&"Revenue by Minor Source (Other)" -> Chart A6 Revenue by Minor Source (Other) | C162: A3
A163: Chart A7 | B163: =A163&"Expenditure by Major Type" -> Chart A7 Expenditure by Major Type | C163: A3
A164: Chart A8 | B164: =A164&"Expenditure by Minor Type (Other)" -> Chart A8 Expenditure by Minor Type (Other) | C164: A3
A165: Chart A9 | B165: =A165&"Capital Expenditure by Municipal Vote/Appropriation (Major)" -> Chart A9 Capital Expenditure by Municipal Vote/Appropriation (Major) | C165: A5
A166: Chart A10 | B166: =A166&"Capital Expenditure by Municipal Vote/Appropriation (Minor)" -> Chart A10 Capital Expenditure by Municipal Vote/Appropriation (Minor) | C166: A5
A167: Chart A11 | B167: =A166&"Capital Expenditure by Standard Classification" -> Chart A10 Capital Expenditure by Standard Classification | C167: A5
A168: Chart A12 | B168: =A168&"Capital expenditure performance trend" -> Chart A12 Capital expenditure performance trend | C168: A5
A169: Chart A13 | B169: =A169&"Capital funding by Source" -> Chart A13 Capital funding by Source | C169: A5
A170: Chart A14 | B170: =A170&"Cash flow trend" -> Chart A14 Cash flow trend | C170: A7
A171: Chart A15 | B171: =A171&"IDP Strategic Objective - Revenue" -> Chart A15 IDP Strategic Objective - Revenue | C171: Table A4
A172: Chart A16 | B172: =A172&"IDP Strategic Objective - Expenditure" -> Chart A16 IDP Strategic Objective - Expenditure | C172: Table A5
A173: Chart A17 | B173: =A173&"IDP Strategic Objective - Capital Expenditure" -> Chart A17 IDP Strategic Objective - Capital Expenditure | C173: Table A6
A174: Chart A18 | B174: =A174&"Debt (borrowing to Total Revenue)" -> Chart A18 Debt (borrowing to Total Revenue) | C174: Table A8
A175: Chart A19 | B175: =A175&"Debtors' trend analysis" -> Chart A19 Debtors' trend analysis | C175: Table A8
A176: Chart A20 | B176: =A176&"Distribution losses" -> Chart A20 Distribution losses | C176: Table A8
A177: Chart A21 | B177: =A177&"Borrowed funding of capital expenditure" -> Chart A21 Borrowed funding of capital expenditure | C177: Table A8
A178: Chart A22 | B178: =A178&"Expenditure analysis (% of Revenue)" -> Chart A22 Expenditure analysis (% of Revenue) | C178: Table A8
A179: Chart A23 | B179: =A179&"Increases in service charges" -> Chart A23 Increases in service charges | C179: Table A10

Sheet Lookup and lists (hidden)
A1: Description | B1: 2007 | C1: 2008 | D1: 2009 | E1: 2010 | F1: 2011 | G1: 2012 | H1: 2013 | I1: 2014 | J1: 2015 | K1: 2016 | L1: 2017 | M1: 2018 | N1: 2019 | O1: 2020 | Q1: Lists | Y1: Grants: | Z1: National - opex | AA1: Provincial - opex | AB1: National - capex | AC1: Provincial - capex
A2: ='Template names'!C2 -> Prior year -1 | B2: 2005/06 | C2: 2006/07 | D2: 2007/08 | E2: =E1-2&"/"&RIGHT(E1,2)-1 -> 2008/9 | F2: 2009/10 | G2: 2010/11 | H2: 2011/12 | I2: 2012/13 | J2: 2013/14 | K2: 2014/15 | L2: 2015/16 | M2: 2016/17 | N2: 2017/18 | O2: 2018/19 | Q2: Yes | R2: <1 | S2: <4 | T2: Market | U2: Land & impr. | V2: Yes | W2: Uniform | X2: Yrs | Z2: Local Government Equitable Share | AA2: Health subsidy | AB2: Municipal Infrastructure Grant (MIG) | AC2: Agriculture
A3: ='Template names'!C3 -> Prior year -2 | B3: 2004/05 | C3: 2005/06 | D3: 2006/07 | E3: =E1-3&"/"&RIGHT(E1,2)-2 -> 2007/8 | F3: 2008/9 | G3: 2009/10 | H3: 2010/11 | I3: 2011/12 | J3: 2012/13 | K3: 2013/14 | L3: 2014/15 | M3: 2015/16 | N3: 2016/17 | O3: 2017/18 | Q3: No | R3: 1 | S3: 4 | T3: Dep.Replace | U3: Land only | V3: No | W3: Variable | X3: Mths | Z3: RSC Levy Replacement | AA3: Ambulance subsidy | AB3: Public Transport and Systems | AC3: Education
A4: ='Template names'!C4 -> Prior year -3 | B4: 2003/04 | C4: 2004/05 | D4: 2005/06 | E4: =E1-4&"/"&RIGHT(E1,2)-3 -> 2006/7 | F4: 2007/8 | G4: 2008/9 | H4: 2009/10 | I4: 2010/11 | J4: 2011/12 | K4: 2012/13 | L4: 2013/14 | M4: 2014/15 | N4: 2015/16 | O4: 2016/17 | R4: 2 | S4: 5 | T4: Other | U4: Other | Z4: Finance Management | AA4: Housing | AB4: Rural Transport Services and Infrastructure | AC4: Health
A5: ='Template names'!C5 -> Year in which budget is being prepared | B5: Current Year 2006/07 | C5: Current Year 2007/08 | D5: Current Year 2008/09 | E5: ="Current Year "& E1-1&"/"&RIGHT(E1,2) -> Current Year 2009/10 | F5: Current Year 2010/11 | G5: Current Year 2011/12 | H5: Current Year 2012/13 | I5: Current Year 2013/14 | J5: Current Year 2014/15 | K5: Current Year 2015/16 | L5: Current Year 2016/17 | M5: Current Year 2017/18 | N5: Current Year 2018/19 | O5: Current Year 2019/20 | R5: 3 | S5: 6 | Z5: Municipal Systems Improvement | AA5: Sport and Recreation | AB5: Regional Bulk Infrastructure | AC5: Housing and Local Government
A6: ='Template names'!C6 -> Year in which budget is being prepared | B6: 2006/07 | C6: 2007/08 | D6: 2008/09 | E6: =E1-1&"/"&RIGHT(E1,2) -> 2009/10 | F6: 2010/11 | G6: 2011/12 | H6: 2012/13 | I6: 2013/14 | J6: 2014/15 | K6: 2015/16 | L6: 2016/17 | M6: 2017/18 | N6: 2018/19 | O6: 2019/20 | R6: 4 | S6: 6-10 | Z6: Water Services Operating Subsidy | AB6: Rural Households Infrastructure | AC6: Other Departments
A7: ='Template names'!C7 -> MTREF name | B7: 2007/08 Medium Term Revenue & Expenditure Framework | C7: 2008/09 Medium Term Revenue & Expenditure Framework | D7: 2009/10 Medium Term Revenue & Expenditure Framework | E7: =E1&"/"&RIGHT(E1,2)+1&" Medium Term Revenue & Expenditure Framework" -> 2010/11 Medium Term Revenue & Expenditure Framework | F7: 2011/12 Medium Term Revenue & Expenditure Framework | G7: 2012/13 Medium Term Revenue & Expenditure Framework | H7: 2013/14 Medium Term Revenue & Expenditure Framework | I7: 2014/15 Medium Term Revenue & Expenditure Framework | J7: 2015/16 Medium Term Revenue & Expenditure Framework | K7: 2016/17 Medium Term Revenue & Expenditure Framework | L7: 2017/18 Medium Term Revenue & Expenditure Framework | M7: 2018/19 Medium Term Revenue & Expenditure Framework | N7: 2019/20 Medium Term Revenue & Expenditure Framework | O7: 2020/21 Medium Term Revenue & Expenditure Framework | R7: 5 | S7: >10 | Z7: Energy Efficiency and Demand Management | AB7: Neighbourhood Development Partnership | AC7: Public Works, Roads, Transport
A8: ='Template names'!C15 -> 1st year of MTREF | B8: Budget Year 2007/08 | C8: Budget Year 2008/09 | D8: Budget Year 2009/10 | E8: ="Budget Year "&E1&"/"&RIGHT(E1,2)+1 -> Budget Year 2010/11 | F8: Budget Year 2011/12 | G8: Budget Year 2012/13 | H8: Budget Year 2013/14 | I8: Budget Year 2014/15 | J8: Budget Year 2015/16 | K8: Budget Year 2016/17 | L8: Budget Year 2017/18 | M8: Budget Year 2018/19 | N8: Budget Year 2019/20 | O8: Budget Year 2020/21 | R8: >5 | Z8: Integrated National Electrification Programme | AB8: 2010 FIFA World Cup Stadiums Development | AC8: Sport and Recreation
A9: ='Template names'!C16 -> 2nd year of MTREF | B9: Budget Year +1 2008/09 | C9: Budget Year +1 2009/10 | D9: Budget Year +1 2010/11 | E9: ="Budget Year +1 "&E1+1&"/"&RIGHT(E1,2)+2 -> Budget Year +1 2011/12 | F9: Budget Year +1 2012/13 | G9: Budget Year +1 2013/14 | H9: Budget Year +1 2014/15 | I9: Budget Year +1 2015/16 | J9: Budget Year +1 2016/17 | K9: Budget Year +1 2017/18 | L9: Budget Year +1 2018/19 | M9: Budget Year +1 2019/20 | N9: Budget Year +1 2020/21 | O9: Budget Year +1 2021/22 | Z9: Municipal Drought Relief
A10: ='Template names'!C17 -> 3rd year of MTREF | B10: Budget Year +2 2009/10 | C10: Budget Year +2 2010/11 | D10: Budget Year +2 2011/12 | E10: ="Budget Year +2 "&E1+2&"/"&RIGHT(E1,2)+3 -> Budget Year +2 2012/13 | F10: Budget Year +2 2013/14 | G10: Budget Year +2 2014/15 | H10: Budget Year +2 2015/16 | I10: Budget Year +2 2016/17 | J10: Budget Year +2 2017/18 | K10: Budget Year +2 2018/19 | L10: Budget Year +2 2019/20 | M10: Budget Year +2 2020/21 | N10: Budget Year +2 2021/22 | O10: Budget Year +2 2022/23 | Z10: 2010 FIFA World Cup Operating
A11: ='Template names'!C18 -> 1st yr of long term forecast | B11: Forecast 2010/11 | C11: Forecast 2011/12 | D11: Forecast 2012/13 | E11: ="Forecast "&E1+3&"/"&RIGHT(E1,2)+4 -> Forecast 2013/14 | F11: Forecast 2014/15 | G11: Forecast 2015/16 | H11: Forecast 2016/17 | I11: Forecast 2017/18 | J11: Forecast 2018/19 | K11: Forecast 2019/20 | L11: Forecast 2020/21 | M11: Forecast 2021/22 | N11: Forecast 2022/23 | O11: Forecast 2023/24 | Z11: Electricity Demand Side Management
A12: ='Template names'!C19 -> Next yr of long term forecast | B12: Forecast 2011/12 | C12: Forecast 2012/13 | D12: Forecast 2013/14 | E12: ="Forecast "&E1+4&"/"&RIGHT(E1,2)+5 -> Forecast 2014/15 | F12: Forecast 2015/16 | G12: Forecast 2016/17 | H12: Forecast 2017/18 | I12: Forecast 2018/19 | J12: Forecast 2019/20 | K12: Forecast 2020/21 | L12: Forecast 2021/22 | M12: Forecast 2022/23 | N12: Forecast 2023/24 | O12: Forecast 2024/25 | Z12: EPWP Incentive
A13: ='Template names'!C20 -> Next yr of long term forecast | B13: Forecast 2012/13 | C13: Forecast 2013/14 | D13: Forecast 2014/15 | E13: ="Forecast "&E1+5&"/"&RIGHT(E1,2)+6 -> Forecast 2015/16 | F13: Forecast 2016/17 | G13: Forecast 2017/18 | H13: Forecast 2018/19 | I13: Forecast 2019/20 | J13: Forecast 2020/21 | K13: Forecast 2021/22 | L13: Forecast 2022/23 | M13: Forecast 2023/24 | N13: Forecast 2024/25 | O13: Forecast 2025/26
A14: ='Template names'!C21 -> Next yr of long term forecast | B14: Forecast 2013/14 | C14: Forecast 2014/15 | D14: Forecast 2015/16 | E14: ="Forecast "&E1+6&"/"&RIGHT(E1,2)+7 -> Forecast 2016/17 | F14: Forecast 2017/18 | G14: Forecast 2018/19 | H14: Forecast 2019/20 | I14: Forecast 2020/21 | J14: Forecast 2021/22 | K14: Forecast 2022/23 | L14: Forecast 2023/24 | M14: Forecast 2024/25 | N14: Forecast 2025/26 | O14: Forecast 2026/27 | Z14: Asset Class | AA14: Asset sub-class old | AB14: Asset sub-class | AC14: IUDF | AD14: MTSF
A15: ='Template names'!C22 -> Next yr of long term forecast | B15: Forecast 2014/15 | C15: Forecast 2015/16 | D15: Forecast 2016/17 | E15: ="Forecast "&E1+7&"/"&RIGHT(E1,2)+8 -> Forecast 2017/18 | F15: Forecast 2018/19 | G15: Forecast 2019/20 | H15: Forecast 2020/21 | I15: Forecast 2021/22 | J15: Forecast 2022/23 | K15: Forecast 2023/24 | L15: Forecast 2024/25 | M15: Forecast 2025/26 | N15: Forecast 2026/27 | O15: Forecast 2027/28
A16: ='Template names'!C23 -> Next yr of long term forecast | B16: Forecast 2015/16 | C16: Forecast 2016/17 | D16: Forecast 2017/18 | E16: ="Forecast "&E1+8&"/"&RIGHT(E1,2)+9 -> Forecast 2018/19 | F16: Forecast 2019/20 | G16: Forecast 2020/21 | H16: Forecast 2021/22 | I16: Forecast 2022/23 | J16: Forecast 2023/24 | K16: Forecast 2024/25 | L16: Forecast 2025/26 | M16: Forecast 2026/27 | N16: Forecast 2027/28 | O16: Forecast 2028/29 | Z16: Roads Infrastructure | AA16: Roads, Pavements & Bridges | AB16: Roads | AC16: Spatial integration | AD16: Quality basic education
A17: ='Template names'!C24 -> Next yr of long term forecast | B17: Forecast 2016/17 | C17: Forecast 2017/18 | D17: Forecast 2018/19 | E17: ="Forecast "&E1+9&"/"&RIGHT(E1,2)+10 -> Forecast 2019/20 | F17: Forecast 2020/21 | G17: Forecast 2021/22 | H17: Forecast 2022/23 | I17: Forecast 2023/24 | J17: Forecast 2024/25 | K17: Forecast 2025/26 | L17: Forecast 2026/27 | M17: Forecast 2027/28 | N17: Forecast 2028/29 | O17: Forecast 2029/30 | Z17: Storm water Infrastructure | AA17: Storm water | AB17: Road Structures | AC17: Inclusion and access | AD17: A long and healthy life for all South Africans
A18: ='Template names'!C25 -> Next yr of long term forecast | B18: Forecast 2017/18 | C18: Forecast 2018/19 | D18: Forecast 2019/20 | E18: ="Forecast "&E1+10&"/"&RIGHT(E1,2)+11 -> Forecast 2020/21 | F18: Forecast 2021/22 | G18: Forecast 2022/23 | H18: Forecast 2023/24 | I18: Forecast 2024/25 | J18: Forecast 2025/26 | K18: Forecast 2026/27 | L18: Forecast 2027/28 | M18: Forecast 2028/29 | N18: Forecast 2029/30 | O18: Forecast 2030/31 | Z18: Electrical Infrastructure | AA18: Generation | AB18: Road Furniture | AC18: Growth | AD18: All people in South Africa are and feel safe
A19: ='Template names'!C26 -> Next yr of long term forecast | B19: Forecast 2018/19 | C19: Forecast 2019/20 | D19: Forecast 2020/21 | E19: ="Forecast "&E1+11&"/"&RIGHT(E1,2)+12 -> Forecast 2021/22 | F19: Forecast 2022/23 | G19: Forecast 2023/24 | H19: Forecast 2024/25 | I19: Forecast 2025/26 | J19: Forecast 2026/27 | K19: Forecast 2027/28 | L19: Forecast 2028/29 | M19: Forecast 2029/30 | N19: Forecast 2030/31 | O19: Forecast 2031/32 | Z19: Water Supply Infrastructure | AA19: Transmission & Reticulation | AB19: Capital Spares | AC19: Governance | AD19: Decent employment through inclusive growth
A20: ='Template names'!C27 -> Next yr of long term forecast | B20: Forecast 2019/20 | C20: Forecast 2020/21 | D20: Forecast 2021/22 | E20: ="Forecast "&E1+12&"/"&RIGHT(E1,2)+13 -> Forecast 2022/23 | F20: Forecast 2023/24 | G20: Forecast 2024/25 | H20: Forecast 2025/26 | I20: Forecast 2026/27 | J20: Forecast 2027/28 | K20: Forecast 2028/29 | L20: Forecast 2029/30 | M20: Forecast 2030/31 | N20: Forecast 2031/32 | O20: Forecast 2032/33 | Z20: Sanitation Infrastructure | AA20: Street Lighting | AB20: Drainage Collection | AD20: A skilled and capable workforce to support an inclusive growth path
A21: ='Template names'!C28 -> Next yr of long term forecast | B21: Forecast 2020/21 | C21: Forecast 2021/22 | D21: Forecast 2022/23 | E21: ="Forecast "&E1+13&"/"&RIGHT(E1,2)+14 -> Forecast 2023/24 | F21: Forecast 2024/25 | G21: Forecast 2025/26 | H21: Forecast 2026/27 | I21: Forecast 2027/28 | J21: Forecast 2028/29 | K21: Forecast 2029/30 | L21: Forecast 2030/31 | M21: Forecast 2031/32 | N21: Forecast 2032/33 | O21: Forecast 2033/34 | Z21: Solid Waste Infrastructure | AA21: Dams & Reservoirs | AB21: Storm water Conveyance | AD21: An efficient, competitive and responsive economic infrastructure network
A22: ='Template names'!C29 -> Next yr of long term forecast | B22: Forecast 2021/22 | C22: Forecast 2022/23 | D22: Forecast 2023/24 | E22: ="Forecast "&E1+14&"/"&RIGHT(E1,2)+15 -> Forecast 2024/25 | F22: Forecast 2025/26 | G22: Forecast 2026/27 | H22: Forecast 2027/28 | I22: Forecast 2028/29 | J22: Forecast 2029/30 | K22: Forecast 2030/31 | L22: Forecast 2031/32 | M22: Forecast 2032/33 | N22: Forecast 2033/34 | O22: Forecast 2034/35 | Z22: Rail Infrastructure | AA22: Water purification | AB22: Attenuation | AD22: Vibrant, equitable, sustainable rural communities contributing towards food security for all
A23: Adjustments Budget | B23: Annual target 2007/08 | C23: Annual target 2008/09 | D23: Annual target 2009/10 | E23: ="Annual target " & E1&"/"&RIGHT(E1,2)+1 -> Annual target 2010/11 | F23: Annual target 2011/12 | G23: Annual target 2012/13 | H23: Annual target 2013/14 | I23: Annual target 2014/15 | J23: Annual target 2015/16 | K23: Annual target 2016/17 | L23: Annual target 2017/18 | M23: Annual target 2018/19 | N23: Annual target 2019/20 | O23: Annual target 2020/21 | Z23: Coastal Infrastructure | AA23: Reticulation | AB23: Power Plants | AD23: Sustainable human settlements and improved quality of household life
A24: =A23 -> Adjustments Budget | B24: Revised target 2007/08 | C24: Revised target 2008/09 | D24: Revised target 2009/10 | E24: ="Revised target "& E1&"/"&RIGHT(E1,2)+1 -> Revised target 2010/11 | F24: Revised target 2011/12 | G24: Revised target 2012/13 | H24: Revised target 2013/14 | I24: Revised target 2014/15 | J24: Revised target 2015/16 | K24: Revised target 2016/17 | L24: Revised target 2017/18 | M24: Revised target 2018/19 | N24: Revised target 2019/20 | O24: Revised target 2020/21 | Z24: Information and Communication Infrastructure | AA24: Sewerage purification | AB24: HV Substations | AD24: Responsive, accountable, effective and efficient local government
A25: NOTE: This sheet should not be directly amended - select headings from sheet 'S' | Z25: Community Facilities | AA25: Waste Management | AB25: HV Switching Station | AD25: Protect and enhance our environmental assets and natural resources
Z26: Sport and Recreation Facilities | AA26: Transportation | AB26: HV Transmission Conductors | AD26: Create a better South Africa and contribute to a better Africa and a better world
A27: Name link | B27: 175 | Z27: Heritage assets | AA27: Gas | AB27: MV Substations | AD27: An efficient, effective and development-oriented public service
A28: Name of Muni | B28: =INDEX(B29:B307,B27,1) -> DC32 Ehlanzeni | Z28: Revenue Generating | AA28: Parks & gardens | AB28: MV Switching Stations | AD28: A comprehensive, responsive and sustainable social protection system
B29: Choose name from list | C29: Set name on 'Instructions' sheet | Z29: Non-revenue Generating | AA29: Sportsfields & stadia | AB29: MV Networks | AD29: A diverse, socially cohesive society with a common national identity
B30: BUF Buffalo City | C30: EC EASTERN CAPE | Z30: Operational Buildings | AA30: Swimming pools | AB30: LV Networks
B31: NMA Nelson Mandela Bay | C31: EC EASTERN CAPE | Z31: Housing | AA31: Community halls | AB31: Capital Spares
B32: EC101 Dr Beyers Naude | C32: EC EASTERN CAPE | Z32: Biological or Cultivated Assets | AA32: Libraries | AB32: Dams and Weirs
B33: EC102 Blue Crane Route | C33: EC EASTERN CAPE | Z33: Servitudes | AA33: Recreational facilities | AB33: Boreholes
B34: EC104 Makana | C34: EC EASTERN CAPE | Z34: Licences and Rights | AA34: Fire, safety & emergency | AB34: Reservoirs
B35: EC105 Ndlambe | C35: EC EASTERN CAPE | Z35: Computer Equipment | AA35: Security and policing | AB35: Pump Stations
B36: EC106 Sundays River Valley | C36: EC EASTERN CAPE | Z36: Furniture and Office Equipment | AA36: Buses | AB36: Water Treatment Works
B37: EC108 Kouga | C37: EC EASTERN CAPE | Z37: Machinery and Equipment | AA37: Clinics | AB37: Bulk Mains
B38: EC109 Kou-Kamma | C38: EC EASTERN CAPE | Z38: Transport Assets | AA38: Museums & Art Galleries | AB38: Distribution
B39: DC10 Sarah Baartman | C39: EC EASTERN CAPE | Z39: Land | AA39: Cemeteries | AB39: Distribution Points
B40: EC121 Mbhashe | C40: EC EASTERN CAPE | Z40: Zoo's, Marine and Non-biological Animals | AA40: Social rental housing | AB40: PRV Stations
B41: EC122 Mnquma | C41: EC EASTERN CAPE | AA41: Buildings | AB41: Capital Spares
B42: EC123 Great Kei | C42: EC EASTERN CAPE | AA42: Housing development | AB42: Pump Station
B43: EC124 Amahlathi | C43: EC EASTERN CAPE | AA43: General vehicles | AB43: Reticulation
B44: EC126 Ngqushwa | C44: EC EASTERN CAPE | AA44: Specialised vehicles - Refuse | AB44: Waste Water Treatment Works
B45: EC129 Raymond Mhlaba | C45: EC EASTERN CAPE | AA45: Specialised vehicles - Fire | AB45: Outfall Sewers
B46: DC12 Amathole | C46: EC EASTERN CAPE | AA46: Specialised vehicles - Conservancy | AB46: Toilet Facilities
B47: EC131 Inxuba Yethemba | C47: EC EASTERN CAPE | AA47: Specialised vehicles - Ambulances | AB47: Capital Spares
B48: EC135 Intsika Yethu | C48: EC EASTERN CAPE | AA48: Plant & equipment | AB48: Landfill Sites
B49: EC136 Emalahleni (Ec) | C49: EC EASTERN CAPE | AA49: Computers - hardware/equipment | AB49: Waste Transfer Stations
B50: EC137 Engcobo | C50: EC EASTERN CAPE | AA50: Furniture and other office equipment | AB50: Waste Processing Facilities
B51: EC138 Sakhisizwe | C51: EC EASTERN CAPE | AA51: Abattoirs | AB51: Waste Drop-off Points
B52: EC139 Enoch Mgijima | C52: EC EASTERN CAPE | AA52: Markets | AB52: Waste Separation Facilities
B53: DC13 Chris Hani | C53: EC EASTERN CAPE | AA53: Civic Land and Buildings | AB53: Electricity Generation Facilities
B54: EC141 Elundini | C54: EC EASTERN CAPE | AA54: Other Buildings | AB54: Capital Spares
B55: EC142 Senqu | C55: EC EASTERN CAPE | AA55: Other Land | AB55: Rail Lines
B56: EC145 Walter Sisulu | C56: EC EASTERN CAPE | AA56: Surplus Assets - (Investment or Inventory) | AB56: Rail Structures
B57: DC14 Joe Gqabi | C57: EC EASTERN CAPE | AA57: Computers - software & programming | AB57: Rail Furniture
B58: EC153 Ngquza Hills | C58: EC EASTERN CAPE | AA58: Other | AB58: Drainage Collection
B59: EC154 Port St Johns | C59: EC EASTERN CAPE | AB59: Storm water Conveyance
B60: EC155 Nyandeni | C60: EC EASTERN CAPE | Z60: SA16 - Investments | AB60: Attenuation
B61: EC156 Mhlontlo | C61: EC EASTERN CAPE | Z61: Security | AA61: Interest rate | AB61: MV Substations
B62: EC157 King Sabata Dalindyebo | C62: EC EASTERN CAPE | Z62: Yes | AA62: Fixed | AB62: LV Networks
B63: DC15 O .R. Tambo | C63: EC EASTERN CAPE | Z63: No | AA63: Variable | AB63: Capital Spares
B64: EC441 Matatiele | C64: EC EASTERN CAPE | AB64: Sand Pumps
B65: EC442 Umzimvubu | C65: EC EASTERN CAPE | AB65: Piers
B66: EC443 Mbizana | C66: EC EASTERN CAPE | Z66: SA36, SA37 - Capital projects | AB66: Revetments
B67: EC444 Ntabankulu | C67: EC EASTERN CAPE | Z67: Yes | AB67: Promenades
B68: DC44 Alfred Nzo | C68: EC EASTERN CAPE | Z68: No | AB68: Capital Spares
B69: MAN Mangaung | C69: FS FREE STATE | AB69: Data Centres
B70: FS161 Letsemeng | C70: FS FREE STATE | AB70: Core Layers
B71: FS162 Kopanong | C71: FS FREE STATE | AB71: Distribution Layers
B72: FS163 Mohokare | C72: FS FREE STATE | AB72: Capital Spares
B73: DC16 Xhariep | C73: FS FREE STATE | AB73: Halls
B74: FS181 Masilonyana | C74: FS FREE STATE | AB74: Centres
B75: FS182 Tokologo | C75: FS FREE STATE | AB75: Crèches
B76: FS183 Tswelopele | C76: FS FREE STATE | AB76: Clinics/Care Centres
B77: FS184 Matjhabeng | C77: FS FREE STATE | AB77: Fire/Ambulance Stations
B78: FS185 Nala | C78: FS FREE STATE | AB78: Testing Stations
B79: DC18 Lejweleputswa | C79: FS FREE STATE | AB79: Museums
B80: FS191 Setsoto | C80: FS FREE STATE | AB80: Galleries
B81: FS192 Dihlabeng | C81: FS FREE STATE | AB81: Theatres
B82: FS193 Nketoana | C82: FS FREE STATE | AB82: Libraries
B83: FS194 Maluti-a-Phofung | C83: FS FREE STATE | AB83: Cemeteries/Crematoria
B84: FS195 Phumelela | C84: FS FREE STATE | AB84: Police
B85: FS196 Mantsopa | C85: FS FREE STATE | AB85: Purls
B86: DC19 Thabo Mofutsanyana | C86: FS FREE STATE | AB86: Public Open Space
B87: FS201 Moqhaka | C87: FS FREE STATE | AB87: Nature Reserves
B88: FS203 Ngwathe | C88: FS FREE STATE | AB88: Public Ablution Facilities
B89: FS204 Metsimaholo | C89: FS FREE STATE | AB89: Markets
B90: FS205 Mafube | C90: FS FREE STATE | AB90: Stalls
B91: DC20 Fezile Dabi | C91: FS FREE STATE | AB91: Abattoirs
B92: EKU City of Ekurhuleni | C92: GT GAUTENG | AB92: Airports
B93: JHB City Of Johannesburg | C93: GT GAUTENG | AB93: Taxi Ranks/Bus Terminals
B94: TSH City Of Tshwane | C94: GT GAUTENG | AB94: Capital Spares
B95: GT421 Emfuleni | C95: GT GAUTENG | AB95: Indoor Facilities
B96: GT422 Midvaal | C96: GT GAUTENG | AB96: Outdoor Facilities
B97: GT423 Lesedi | C97: GT GAUTENG | AB97: Capital Spares
B98: DC42 Sedibeng | C98: GT GAUTENG | AB98: Monuments
B99: GT481 Mogale City | C99: GT GAUTENG | AB99: Historic Buildings
B100: GT484 Merafong City | C100: GT GAUTENG | AB100: Works of Art
B101: GT485 Rand West City | C101: GT GAUTENG | AB101: Conservation Areas
B102: DC48 West Rand | C102: GT GAUTENG | AB102: Other Heritage
B103: ETH eThekwini | C103: KZN KWAZULU-NATAL | AB103: Improved Property
B104: KZN212 Umdoni | C104: KZN KWAZULU-NATAL | AB104: Unimproved Property
B105: KZN213 Umzumbe | C105: KZN KWAZULU-NATAL | AB105: Municipal Offices
B106: KZN214 uMuziwabantu | C106: KZN KWAZULU-NATAL | AB106: Pay/Enquiry Points
B107: KZN216 Ray Nkonyeni | C107: KZN KWAZULU-NATAL | AB107: Building Plan Offices
B108: DC21 Ugu | C108: KZN KWAZULU-NATAL | AB108: Workshops
B109: KZN221 uMshwathi | C109: KZN KWAZULU-NATAL | AB109: Yards
B110: KZN222 uMngeni | C110: KZN KWAZULU-NATAL | AB110: Stores
B111: KZN223 Mpofana | C111: KZN KWAZULU-NATAL | AB111: Laboratories
B112: KZN224 Impendle | C112: KZN KWAZULU-NATAL | AB112: Training Centres
B113: KZN225 Msunduzi | C113: KZN KWAZULU-NATAL | AB113: Manufacturing Plant
B114: KZN226 Mkhambathini | C114: KZN KWAZULU-NATAL | AB114: Depots
B115: KZN227 Richmond | C115: KZN KWAZULU-NATAL | AB115: Capital Spares
B116: DC22 uMgungundlovu | C116: KZN KWAZULU-NATAL | AB116: Staff Housing
B117: KZN235 Okhahlamba | C117: KZN KWAZULU-NATAL | AB117: Social Housing
B118: KZN237 Inkosi Langalibalele | C118: KZN KWAZULU-NATAL | AB118: Capital Spares
B119: KZN238 Alfred Duma | C119: KZN KWAZULU-NATAL | AB119: Water Rights
B120: DC23 Uthukela | C120: KZN KWAZULU-NATAL | AB120: Effluent Licenses
B121: KZN241 Endumeni | C121: KZN KWAZULU-NATAL | AB121: Solid Waste Licenses
B122: KZN242 Nquthu | C122: KZN KWAZULU-NATAL | AB122: Computer Software and Applications
B123: KZN244 Msinga | C123: KZN KWAZULU-NATAL | AB123: Load Settlement Software Applications
B124: KZN245 Umvoti | C124: KZN KWAZULU-NATAL | AB124: Unspecified
B125: DC24 Umzinyathi | C125: KZN KWAZULU-NATAL
B126: KZN252 Newcastle | C126: KZN KWAZULU-NATAL
B127: KZN253 Emadlangeni | C127: KZN KWAZULU-NATAL
B128: KZN254 Dannhauser | C128: KZN KWAZULU-NATAL
B129: DC25 Amajuba | C129: KZN KWAZULU-NATAL
B130: KZN261 eDumbe | C130: KZN KWAZULU-NATAL
B131: KZN262 uPhongolo | C131: KZN KWAZULU-NATAL
B132: KZN263 Abaqulusi | C132: KZN KWAZULU-NATAL
B133: KZN265 Nongoma | C133: KZN KWAZULU-NATAL
B134: KZN266 Ulundi | C134: KZN KWAZULU-NATAL
B135: DC26 Zululand | C135: KZN KWAZULU-NATAL
B136: KZN271 Umhlabuyalingana | C136: KZN KWAZULU-NATAL
B137: KZN272 Jozini | C137: KZN KWAZULU-NATAL
B138: KZN275 Mtubatuba | C138: KZN KWAZULU-NATAL
B139: KZN276 Hlabisa Big Five | C139: KZN KWAZULU-NATAL
B140: DC27 Umkhanyakude | C140: KZN KWAZULU-NATAL
B141: KZN281 Mfolozi | C141: KZN KWAZULU-NATAL
B142: KZN282 uMhlathuze | C142: KZN KWAZULU-NATAL
B143: KZN284 uMlalazi | C143: KZN KWAZULU-NATAL
B144: KZN285 Mthonjaneni | C144: KZN KWAZULU-NATAL
B145: KZN286 Nkandla | C145: KZN KWAZULU-NATAL
B146: DC28 King Cetshwayo | C146: KZN KWAZULU-NATAL
B147: KZN291 Mandeni | C147: KZN KWAZULU-NATAL
B148: KZN292 KwaDukuza | C148: KZN KWAZULU-NATAL
B149: KZN293 Ndwedwe | C149: KZN KWAZULU-NATAL
B150: KZN294 Maphumulo | C150: KZN KWAZULU-NATAL
B151: DC29 iLembe | C151: KZN KWAZULU-NATAL
B152: KZN433 Greater Kokstad | C152: KZN KWAZULU-NATAL
B153: KZN434 Ubuhlebezwe | C153: KZN KWAZULU-NATAL
B154: KZN435 Umzimkhulu | C154: KZN KWAZULU-NATAL
B155: KZN436 Dr Nkosazana Dlamini Zuma | C155: KZN KWAZULU-NATAL
B156: DC43 Harry Gwala | C156: KZN KWAZULU-NATAL
B157: LIM331 Greater Giyani | C157: LIM LIMPOPO
B158: LIM332 Greater Letaba | C158: LIM LIMPOPO
B159: LIM333 Greater Tzaneen | C159: LIM LIMPOPO
B160: LIM334 Ba-Phalaborwa | C160: LIM LIMPOPO
B161: LIM335 Maruleng | C161: LIM LIMPOPO
B162: DC33 Mopani | C162: LIM LIMPOPO
B163: LIM341 Musina | C163: LIM LIMPOPO
B164: LIM343 Thulamela | C164: LIM LIMPOPO
B165: LIM344 Makhado | C165: LIM LIMPOPO
B166: LIM345 Collins Chabane | C166: LIM LIMPOPO
B167: DC34 Vhembe | C167: LIM LIMPOPO
B168: LIM351 Blouberg | C168: LIM LIMPOPO
B169: LIM353 Molemole | C169: LIM LIMPOPO
B170: LIM354 Polokwane | C170: LIM LIMPOPO
B171: LIM355 Lepelle-Nkumpi | C171: LIM LIMPOPO
B172: DC35 Capricorn | C172: LIM LIMPOPO
B173: LIM361 Thabazimbi | C173: LIM LIMPOPO
B174: LIM362 Lephalale | C174: LIM LIMPOPO
B175: LIM366 Bela Bela | C175: LIM LIMPOPO
B176: LIM367 Mogalakwena | C176: LIM LIMPOPO
B177: LIM368 Modimolle-Mookgopong | C177: LIM LIMPOPO
B178: DC36 Waterberg | C178: LIM LIMPOPO
B179: LIM471 Ephraim Mogale | C179: LIM LIMPOPO
B180: LIM472 Elias Motsoaledi | C180: LIM LIMPOPO
B181: LIM473 Makhuduthamaga | C181: LIM LIMPOPO
B182: LIM476 Tubatse Fetakgomo | C182: LIM LIMPOPO
B183: DC47 Sekhukhune | C183: LIM LIMPOPO
B184: MP301 Albert Luthuli | C184: MP MPUMALANGA
B185: MP302 Msukaligwa | C185: MP MPUMALANGA
B186: MP303 Mkhondo | C186: MP MPUMALANGA
B187: MP304 Pixley Ka Seme (MP) | C187: MP MPUMALANGA
B188: MP305 Lekwa | C188: MP MPUMALANGA
B189: MP306 Dipaleseng | C189: MP MPUMALANGA
B190: MP307 Govan Mbeki | C190: MP MPUMALANGA
B191: DC30 Gert Sibande | C191: MP MPUMALANGA
B192: MP311 Victor Khanye | C192: MP MPUMALANGA
B193: MP312 Emalahleni (Mp) | C193: MP MPUMALANGA
B194: MP313 Steve Tshwete | C194: MP MPUMALANGA
B195: MP314 Emakhazeni | C195: MP MPUMALANGA
B196: MP315 Thembisile Hani | C196: MP MPUMALANGA
B197: MP316 Dr J.S. Moroka | C197: MP MPUMALANGA
B198: DC31 Nkangala | C198: MP MPUMALANGA
B199: MP321 Thaba Chweu | C199: MP MPUMALANGA
B200: MP324 Nkomazi | C200: MP MPUMALANGA
... 87 more rows

Sheet Org structure
A1: Organisational Structure Votes | C1: Organisational Structure Sub-Votes | E1: Display Sub-Votes
A2: =B2&" - "&C2 -> Vote 01 - Council Summary | B2: Vote 01 | C2: Council Summary
A3: =B8&" - "&C8 -> Vote 02 - Corporate Services & Municipal Relations | B3: 01.1 | C3: Office Of The Executive Mayor | D3: =CONCATENATE(B3, " - ", C3) -> 01.1 - Office Of The Executive Mayor | E3: 01.1 - Office Of The Executive Mayor
A4: =B14&" - "&C14 -> Vote 03 - Finance And Procurement | B4: 01.2 | C4: Office Of The Speaker | D4: =CONCATENATE(B4, " - ", C4) -> 01.2 - Office Of The Speaker | E4: 01.2 - Office Of The Speaker
A5: =B23&" - "&C23 -> Vote 04 - Local Economic Development; Tourism And Rural Devevelopment | B5: 01.3 | C5: Office Of The Chief Whip | D5: =CONCATENATE(B5, " - ", C5) -> 01.3 - Office Of The Chief Whip | E5: 01.3 - Office Of The Chief Whip
A6: =B27&" - "&C27 -> Vote 05 - Municipal Health & Environmental Management | B6: 01.4 | C6: Chairperson: Mpac | D6: =CONCATENATE(B6, " - ", C6) -> 01.4 - Chairperson: Mpac | E6: 01.4 - Chairperson: Mpac
A7: =B32&" - "&C32 -> Vote 06 - Office Of The Municipal Manager | B7: 01.5 | C7: Mayoral Committee | D7: =CONCATENATE(B7, " - ", C7) -> 01.5 - Mayoral Committee | E7: 01.5 - Mayoral Committee
A8: =B42&" - "&C42 -> Vote 07 - Social Services & Disaster Management | B8: Vote 02 | C8: Corporate Services & Municipal Relations
A9: =B47&" - "&C47 -> Vote 08 - Technical Services | B9: 02.1 | C9: Administration | D9: =CONCATENATE(B9, " - ", C9) -> 02.1 - Administration | E9: 02.1 - Administration
A10: =B53&" - "&C53 -> Vote 09 - | B10: 02.2 | C10: Igr | D10: =CONCATENATE(B10, " - ", C10) -> 02.2 - Igr | E10: 02.2 - Igr
A11: Vote 10 - | B11: 02.3 | C11: Human Resources | D11: =CONCATENATE(B11, " - ", C11) -> 02.3 - Human Resources | E11: 02.3 - Human Resources
A12: Vote 11 - | B12: 02.4 | C12: Communications; Marketing And Events | D12: =CONCATENATE(B12, " - ", C12) -> 02.4 - Communications; Marketing And Events | E12: 02.4 - Communications; Marketing And Events
A13: Vote 12 - | B13: 02.5 | C13: Electricity Reporting Function | D13: =CONCATENATE(B13, " - ", C13) -> 02.5 - Electricity Reporting Function | E13: 02.5 - Electricity Reporting Function
A14: Vote 13 - | B14: Vote 03 | C14: Finance And Procurement
A15: Vote 14 - | B15: 03.1 | C15: Administration | D15: =CONCATENATE(B15, " - ", C15) -> 03.1 - Administration | E15: 03.1 - Administration
A16: Vote 15 - Other | B16: 03.2 | C16: Cfo Office | D16: 03.2 - Cfo Office | E16: 03.2 - Cfo Office
B17: 03.3 | C17: Information Technology | D17: 03.3 - Information Technology | E17: 03.3 - Information Technology
B18: 03.4 | C18: Supply Chain Management | D18: 03.4 - Supply Chain Management | E18: 03.4 - Supply Chain Management
B19: 03.5 | C19: Budget And Reporting | D19: 03.5 - Budget And Reporting | E19: 03.5 - Budget And Reporting
B20: 03.6 | C20: Budget And Reporting | D20: 03.6 - Budget And Reporting | E20: 03.6 - Budget And Reporting
B21: 03.7 | C21: Treasury | D21: 03.7 - Treasury | E21: 03.7 - Treasury
B22: 03.8 | C22: Treasury | D22: 03.8 - Treasury | E22: 03.8 - Treasury
B23: Vote 04 | C23: Local Economic Development; Tourism And Rural Devevelopment
B24: 04.1 | C24: Administration | D24: =CONCATENATE(B24, " - ", C24) -> 04.1 - Administration | E24: 04.1 - Administration
B25: 04.2 | C25: Rural Development | D25: =CONCATENATE(B25, " - ", C25) -> 04.2 - Rural Development | E25: 04.2 - Rural Development
B26: 04.3 | C26: Led & Tourism | D26: =CONCATENATE(B26, " - ", C26) -> 04.3 - Led & Tourism | E26: 04.3 - Led & Tourism
B27: Vote 05 | C27: Municipal Health & Environmental Management
B28: 05.1 | C28: Administration | D28: =CONCATENATE(B28, " - ", C28) -> 05.1 - Administration | E28: 05.1 - Administration
B29: 05.2 | C29: Municipal Health | D29: =CONCATENATE(B29, " - ", C29) -> 05.2 - Municipal Health | E29: 05.2 - Municipal Health
B30: 05.3 | C30: Laboratory Services | D30: =CONCATENATE(B30, " - ", C30) -> 05.3 - Laboratory Services | E30: 05.3 - Laboratory Services
B31: 05.4 | C31: Environmental Services | D31: =CONCATENATE(B31, " - ", C31) -> 05.4 - Environmental Services | E31: 05.4 - Environmental Services
B32: Vote 06 | C32: Office Of The Municipal Manager
B33: 06.1 | C33: Administration | D33: =CONCATENATE(B33, " - ", C33) -> 06.1 - Administration | E33: 06.1 - Administration
B34: 06.2 | C34: Internal Audit | D34: 06.2 - Internal Audit | E34: 06.2 - Internal Audit
B35: 06.3 | C35: Risk Management | D35: 06.3 - Risk Management | E35: 06.3 - Risk Management
B36: 06.4 | C36: Administration | D36: 06.4 - Administration | E36: 06.4 - Administration
B37: 06.5 | C37: M&E | D37: 06.5 - M&E | E37: 06.5 - M&E
B38: 06.6 | C38: Performance Management | D38: 06.6 - Performance Management | E38: 06.6 - Performance Management
B39: 06.7 | C39: Strategic Planning | D39: 06.7 - Strategic Planning | E39: 06.7 - Strategic Planning
B40: 06.8 | C40: Geographical Information Management | D40: 06.8 - Geographical Information Management | E40: 06.8 - Geographical Information Management
B41: 06.9 | C41: Spatial Planning | D41: 06.9 - Spatial Planning | E41: 06.9 - Spatial Planning
B42: Vote 07 | C42: Social Services & Disaster Management
B43: 07.1 | C43: Administration | D43: =CONCATENATE(B43, " - ", C43) -> 07.1 - Administration | E43: 07.1 - Administration
B44: 07.2 | C44: Social Services | D44: =CONCATENATE(B44, " - ", C44) -> 07.2 - Social Services | E44: 07.2 - Social Services
B45: 07.3 | C45: Transversal Programmes | D45: =CONCATENATE(B45, " - ", C45) -> 07.3 - Transversal Programmes | E45: 07.3 - Transversal Programmes
B46: 07.4 | C46: Disaster Management | D46: =CONCATENATE(B46, " - ", C46) -> 07.4 - Disaster Management | E46: 07.4 - Disaster Management
B47: Vote 08 | C47: Technical Services
B48: 08.1 | C48: Administration | D48: =CONCATENATE(B48, " - ", C48) -> 08.1 - Administration | E48: 08.1 - Administration
B49: 08.2 | C49: Water | D49: =CONCATENATE(B49, " - ", C49) -> 08.2 - Water | E49: 08.2 - Water
B50: 08.3 | C50: Sanitation | D50: =CONCATENATE(B50, " - ", C50) -> 08.3 - Sanitation | E50: 08.3 - Sanitation
B51: 08.4 | C51: Roads And Transport | D51: =CONCATENATE(B51, " - ", C51) -> 08.4 - Roads And Transport | E51: 08.4 - Roads And Transport
B52: 08.5 | C52: Civil Services | D52: =CONCATENATE(B52, " - ", C52) -> 08.5 - Civil Services | E52: 08.5 - Civil Services
B53: Vote 09
B54: Vote 10
B55: Vote 11
B56: Vote 12
B57: Vote 13
B58: Vote 14
B59: Vote 15 | C59: Other

Sheet Contacts
A1: =muni&" - "&" Contact Information" -> DC32 Ehlanzeni - Contact Information
A3: A. GENERAL INFORMATION
A4: Municipality | B4: =muni -> DC32 Ehlanzeni | C4: =IF(B4="Choose name from List","Set name on 'Instructions' sheet", "") -> 
A6: Grade | B6: 5 | C6: 1 Grade in terms of the Remuneration of Public Office Bearers Act.
A8: Province | B8: =IF(B4>" ",VLOOKUP(B4,'Lookup and lists'!B29:C307,2, FALSE)," ") -> MP MPUMALANGA
A10: Web Address | B10: www.ehlanzeni.co.za
A12: e-mail Address | B12: www.ehlanzeni.gov.za
A14: B. CONTACT INFORMATION
A15: Postal address:
A16: P.O. Box | B16: 3333
A17: City / Town | B17: Mbombela
A18: Postal Code | B18: 1200
A20: Street address
A21: Building | B21: Ehlanzeni District Municipality
A22: Street No. & Name | B22: 8 Van Niekerk Street
A23: City / Town | B23: Mbombela
A24: Postal Code | B24: 1200
A26: General Contacts
A27: Telephone number | B27: 013 759 8500
A28: Fax number | B28: 013 755 3157
A30: C. POLITICAL LEADERSHIP
A31: Speaker: | C31: Secretary/PA to the Speaker:
A32: ID Number | B32: 6606155718081 | C32: ID Number | D32: 811260222081
A33: Title | B33: Mr | C33: Title | D33: Ms
A34: Name | B34: R E KHUMALO | C34: Name | D34: Z KHOZA
A35: Telephone number | B35: 013 759 8550 | C35: Telephone number | D35: 013 759 8611
A36: Cell number | B36: 079 874 3306 | C36: Cell number | D36: 072 395 4551
A37: Fax number | B37: 013 759 8585 | C37: Fax number | D37: 013 759 8585
A38: E-mail address | B38: rkhumalo@ehlanzeni.gov.za | C38: E-mail address | D38: zkhoza@ehlanzeni.gov.za
A40: Mayor/Executive Mayor: | C40: Secretary/PA to the Mayor/Executive Mayor:
A41: ID Number | B41: 7711010251085 | C41: ID Number | D41: 8105180760083
A42: Title | B42: Ms | C42: Title | D42: Ms
A43: Name | B43: J SIDELL | C43: Name | D43: S MAZIBUKO
A44: Telephone number | B44: 013 759 8547 | C44: Telephone number | D44: 013 759 8615
A45: Cell number | B45: 072 249 9358 | C45: Cell number | D45: 082 698 4819
A46: Fax number | B46: 013 752 4672 | C46: Fax number | D46: 013 759 8585
A47: E-mail address | B47: smazibuko@ehlanzeni.gov.za | C47: E-mail address | D47: smazibuko@ehlanzeni.gov.za
A49: Deputy Mayor/Executive Mayor: | C49: Secretary/PA to the Deputy Mayor/Executive Mayor:
A50: ID Number | C50: ID Number
A51: Title | C51: Title
A52: Name | C52: Name
A53: Telephone number | C53: Telephone number
A54: Cell number | C54: Cell number
A55: Fax number | C55: Fax number
A56: E-mail address | C56: E-mail address
A58: D. MANAGEMENT LEADERSHIP
A59: Municipal Manager: | C59: Secretary/PA to the Municipal Manager:
A60: ID Number | B60: 6303055624086 | C60: ID Number | D60: 8311240295082
A61: Title | B61: Mr | C61: Title | D61: Ms
A62: Name | B62: S F SIBOZA | C62: Name | D62: N FAKUDE
A63: Telephone number | B63: 013 759 8525 | C63: Telephone number | D63: 013 759 8531
A64: Cell number | B64: 064 755 4617 | C64: Cell number | D64: 064 757 4649
A65: Fax number | B65: 013 759 8570 | C65: Fax number | D65: 013 759 8570
A66: E-mail address | B66: 064 755 4617 | C66: E-mail address | D66: nfakude@ehlanzeni.gov.za
A68: Chief Financial Officer | C68: Secretary/PA to the Chief Financial Officer
A69: ID Number | B69: 7202110922080 | C69: ID Number | D69: 6605270294085
A70: Title | B70: Ms | C70: Title | D70: Ms
A71: Name | B71: G DUBE | C71: Name | D71: N C MONDLANE
A72: Telephone number | B72: 013 759 8512 | C72: Telephone number | D72: 013 759 8548
A73: Cell number | B73: 079 504 0733 | C73: Cell number | D73: 073 297 9147
A74: Fax number | B74: 086 695 4049 | C74: Fax number | D74: 086 695 4049
A75: E-mail address | B75: gdube@ehlanzeni.gov.za | C75: E-mail address | D75: cmondlane@ehlanzeni.gov.za
A77: Official responsible for submitting financial information | C77: Official responsible for submitting financial information
A78: ID Number | B78: 7612055404086 | C78: ID Number | D78: 8204275002087
A79: Title | B79: Mr | C79: Title | D79: Mr
A80: Name | B80: M MABASO | C80: Name | D80: D VAN DER MERWE
A81: Telephone number | B81: 013 759 8536 | C81: Telephone number | D81: 013 759 8532
A82: Cell number | B82: 072 080 1160 | C82: Cell number | D82: 082 885 9035
A83: Fax number | C83: Fax number
A84: E-mail address | B84: mmabaso@ehlanzeni.gov.za | C84: E-mail address | D84: dvdmerwe@ehlanzeni.gov.za
A85: Official responsible for submitting financial information | C85: Official responsible for submitting financial information
A86: ID Number | B86: 8006270321085 | C86: ID Number
A87: Title | B87: Mrs | C87: Title
A88: Name | B88: PP MASHABA | C88: Name
A89: Telephone number | B89: 013 759 8664 | C89: Telephone number
A90: Cell number | B90: 082 445 9124 | C90: Cell number
A91: Fax number | C91: Fax number
A92: E-mail address | B92: pfakude@ehlanzeni.gov.za | C92: E-mail address
A93: Official responsible for submitting financial information | C93: Official responsible for submitting financial information
A94: ID Number | C94: ID Number
A95: Title | C95: Title
A96: Name | C96: Name
A97: Telephone number | C97: Telephone number
A98: Cell number | C98: Cell number
A99: Fax number | C99: Fax number
A100: E-mail address | C100: E-mail address
A101: Official responsible for submitting financial information | C101: Official responsible for submitting financial information
A102: ID Number | C102: ID Number
A103: Title | C103: Title
A104: Name | C104: Name
A105: Telephone number | C105: Telephone number
A106: Cell number | C106: Cell number
A107: Fax number | C107: Fax number
A108: E-mail address | C108: E-mail address
A109: Official responsible for submitting financial information | C109: Official responsible for submitting financial information
A110: ID Number | C110: ID Number
A111: Title | C111: Title
A112: Name | C112: Name
A113: Telephone number | C113: Telephone number
A114: Cell number | C114: Cell number
A115: Fax number | C115: Fax number
A116: E-mail address | C116: E-mail address
A117: Official responsible for submitting financial information | C117: Official responsible for submitting financial information
A118: ID Number | C118: ID Number
A119: Title | C119: Title
A120: Name | C120: Name
A121: Telephone number | C121: Telephone number
A122: Cell number | C122: Cell number
A123: Fax number | C123: Fax number
A124: E-mail address | C124: E-mail address
A125: Official responsible for submitting financial information | C125: Official responsible for submitting financial information
A126: ID Number | C126: ID Number
A127: Title | C127: Title
A128: Name | C128: Name
A129: Telephone number | C129: Telephone number
A130: Cell number | C130: Cell number
A131: Fax number | C131: Fax number
A132: E-mail address | C132: E-mail address
A133: Official responsible for submitting financial information
A134: ID Number
A135: Title
A136: Name
A137: Telephone number
A138: Cell number
A139: Fax number
A140: E-mail address

Sheet A1-Sum
A1: =muni&" - "&Approve1 -> DC32 Ehlanzeni - Table A1 Budget Summary
A2: =desc -> Description | B2: =head1b -> 2016/17 | C2: =head1A -> 2017/18 | D2: =Head1 -> 2018/19 | E2: =Head2 -> Current Year 2019/20 | I2: =Head3 -> 2020/21 Medium Term Revenue & Expenditure Framework
A3: R thousands | B3: =Head5 -> Audited Outcome | C3: =Head5 -> Audited Outcome | D3: =Head5 -> Audited Outcome | E3: =Head6 -> Original Budget | F3: =Head7 -> Adjusted Budget | G3: =Head8 -> Full Year Forecast | H3: =Head5b -> Pre-audit outcome | I3: =Head9 -> Budget Year 2020/21 | J3: =Head10 -> Budget Year +1 2021/22 | K3: =Head11 -> Budget Year +2 2022/23
A4: Financial Performance
A5: Property rates | B5: ='A4-FinPerf RE'!C5 -> 0 | C5: ='A4-FinPerf RE'!D5 -> 0 | D5: ='A4-FinPerf RE'!E5 -> 0 | E5: ='A4-FinPerf RE'!F5 -> 0 | F5: ='A4-FinPerf RE'!G5 -> 0 | G5: ='A4-FinPerf RE'!H5 -> 0 | H5: ='A4-FinPerf RE'!I5 -> 0 | I5: ='A4-FinPerf RE'!J5 -> 0 | J5: ='A4-FinPerf RE'!K5 -> 0 | K5: ='A4-FinPerf RE'!L5 -> 0
A6: Service charges | B6: =SUM('A4-FinPerf RE'!C6:C9) -> 0 | C6: =SUM('A4-FinPerf RE'!D6:D9) -> 0 | D6: =SUM('A4-FinPerf RE'!E6:E9) -> 0 | E6: =SUM('A4-FinPerf RE'!F6:F9) -> 0 | F6: =SUM('A4-FinPerf RE'!G6:G9) -> 0 | G6: =SUM('A4-FinPerf RE'!H6:H9) -> 0 | H6: =SUM('A4-FinPerf RE'!I6:I9) -> 0 | I6: =SUM('A4-FinPerf RE'!J6:J9) -> 0 | J6: =SUM('A4-FinPerf RE'!K6:K9) -> 0 | K6: =SUM('A4-FinPerf RE'!L6:L9) -> 0
A7: Investment revenue | B7: ='A4-FinPerf RE'!C12 -> 8443966 | C7: ='A4-FinPerf RE'!D12 -> 9288323.1 | D7: ='A4-FinPerf RE'!E12 -> 8568988.59 | E7: ='A4-FinPerf RE'!F12 -> 6500000 | F7: ='A4-FinPerf RE'!G12 -> 7250000 | G7: ='A4-FinPerf RE'!H12 -> 7250000 | H7: ='A4-FinPerf RE'!I12 -> 6368900.8 | I7: ='A4-FinPerf RE'!J12 -> 8000000 | J7: ='A4-FinPerf RE'!K12 -> 8400000 | K7: ='A4-FinPerf RE'!L12 -> 8500000
A8: Transfers recognised - operational | B8: ='A4-FinPerf RE'!C18 -> 227282239 | C8: ='A4-FinPerf RE'!D18 -> 71743607 | D8: ='A4-FinPerf RE'!E18 -> 78926184 | E8: ='A4-FinPerf RE'!F18 -> 88353000 | F8: ='A4-FinPerf RE'!G18 -> 88353000 | G8: ='A4-FinPerf RE'!H18 -> 88353000 | H8: ='A4-FinPerf RE'!I18 -> 88349242 | I8: ='A4-FinPerf RE'!J18 -> 268972000 | J8: ='A4-FinPerf RE'!K18 -> 277019000 | K8: ='A4-FinPerf RE'!L18 -> 287319000
A9: Other own revenue | B9: ='A4-FinPerf RE'!C11+'A4-FinPerf RE'!C13+'A4-FinPerf RE'!C14+'A4-FinPerf RE'!C15+'A4-FinPerf RE'!C16+'A4-FinPerf RE'!C17+'A4-FinPerf RE'!C19+'A4-FinPerf RE'!C20 -> 6444716 | C9: ='A4-FinPerf RE'!D11+'A4-FinPerf RE'!D13+'A4-FinPerf RE'!D14+'A4-FinPerf RE'!D15+'A4-FinPerf RE'!D16+'A4-FinPerf RE'!D17+'A4-FinPerf RE'!D19+'A4-FinPerf RE'!D20 -> 161076347.3 | D9: ='A4-FinPerf RE'!E11+'A4-FinPerf RE'!E13+'A4-FinPerf RE'!E14+'A4-FinPerf RE'!E15+'A4-FinPerf RE'!E16+'A4-FinPerf RE'!E17+'A4-FinPerf RE'!E19+'A4-FinPerf RE'!E20 -> 167526794.4 | E9: ='A4-FinPerf RE'!F11+'A4-FinPerf RE'!F13+'A4-FinPerf RE'!F14+'A4-FinPerf RE'!F15+'A4-FinPerf RE'!F16+'A4-FinPerf RE'!F17+'A4-FinPerf RE'!F19+'A4-FinPerf RE'!F20 -> 171096451 | F9: ='A4-FinPerf RE'!G11+'A4-FinPerf RE'!G13+'A4-FinPerf RE'!G14+'A4-FinPerf RE'!G15+'A4-FinPerf RE'!G16+'A4-FinPerf RE'!G17+'A4-FinPerf RE'!G19+'A4-FinPerf RE'!G20 -> 171599000 | G9: ='A4-FinPerf RE'!H11+'A4-FinPerf RE'!H13+'A4-FinPerf RE'!H14+'A4-FinPerf RE'!H15+'A4-FinPerf RE'!H16+'A4-FinPerf RE'!H17+'A4-FinPerf RE'!H19+'A4-FinPerf RE'!H20 -> 171599000 | H9: ='A4-FinPerf RE'!I11+'A4-FinPerf RE'!I13+'A4-FinPerf RE'!I14+'A4-FinPerf RE'!I15+'A4-FinPerf RE'!I16+'A4-FinPerf RE'!I17+'A4-FinPerf RE'!I19+'A4-FinPerf RE'!I20 -> 171148022.4 | I9: ='A4-FinPerf RE'!J11+'A4-FinPerf RE'!J13+'A4-FinPerf RE'!J14+'A4-FinPerf RE'!J15+'A4-FinPerf RE'!J16+'A4-FinPerf RE'!J17+'A4-FinPerf RE'!J19+'A4-FinPerf RE'!J20 -> 2700000 | J9: ='A4-FinPerf RE'!K11+'A4-FinPerf RE'!K13+'A4-FinPerf RE'!K14+'A4-FinPerf RE'!K15+'A4-FinPerf RE'!K16+'A4-FinPerf RE'!K17+'A4-FinPerf RE'!K19+'A4-FinPerf RE'!K20 -> 2952000 | K9: ='A4-FinPerf RE'!L11+'A4-FinPerf RE'!L13+'A4-FinPerf RE'!L14+'A4-FinPerf RE'!L15+'A4-FinPerf RE'!L16+'A4-FinPerf RE'!L17+'A4-FinPerf RE'!L19+'A4-FinPerf RE'!L20 -> 3331100
A10: ='A4-FinPerf RE'!A21 -> Total Revenue (excluding capital transfers and contributions) | B10: =SUM(B5:B9) -> 242170921 | C10: 242108277.4 | D10: 255021967 | E10: 265949451 | F10: 267202000 | G10: 267202000 | H10: 265866165.2 | I10: 279672000 | J10: 288371000 | K10: 299150100
A11: Employee costs | B11: ='A4-FinPerf RE'!C24 -> 106741216 | C11: ='A4-FinPerf RE'!D24 -> 114368249.3 | D11: ='A4-FinPerf RE'!E24 -> 127460165.8 | E11: ='A4-FinPerf RE'!F24 -> 140828854 | F11: ='A4-FinPerf RE'!G24 -> 141680817 | G11: ='A4-FinPerf RE'!H24 -> 141680817 | H11: ='A4-FinPerf RE'!I24 -> 121524283.2 | I11: ='A4-FinPerf RE'!J24 -> 154919418 | J11: ='A4-FinPerf RE'!K24 -> 159512797 | K11: ='A4-FinPerf RE'!L24 -> 165434349
A12: Remuneration of councillors | B12: ='A4-FinPerf RE'!C25 -> 14314000 | C12: ='A4-FinPerf RE'!D25 -> 15543876.44 | D12: ='A4-FinPerf RE'!E25 -> 15973839.42 | E12: ='A4-FinPerf RE'!F25 -> 16969467 | F12: ='A4-FinPerf RE'!G25 -> 16969467 | G12: ='A4-FinPerf RE'!H25 -> 16969467 | H12: ='A4-FinPerf RE'!I25 -> 15058774.45 | I12: ='A4-FinPerf RE'!J25 -> 17825222 | J12: ='A4-FinPerf RE'!K25 -> 18628134 | K12: ='A4-FinPerf RE'!L25 -> 19485032
A13: Depreciation & asset impairment | B13: ='A4-FinPerf RE'!C27 -> 10184194 | C13: ='A4-FinPerf RE'!D27 -> 9204376.23 | D13: ='A4-FinPerf RE'!E27 -> 9716266.88 | E13: ='A4-FinPerf RE'!F27 -> 11847425 | F13: ='A4-FinPerf RE'!G27 -> 8147425 | G13: ='A4-FinPerf RE'!H27 -> 8147425 | H13: ='A4-FinPerf RE'!I27 -> 9401991.2 | I13: ='A4-FinPerf RE'!J27 -> 8147426 | J13: ='A4-FinPerf RE'!K27 -> 8147426 | K13: ='A4-FinPerf RE'!L27 -> 8147426
A14: Finance charges | B14: ='A4-FinPerf RE'!C28 -> 19416000 | C14: ='A4-FinPerf RE'!D28 -> 15687950.72 | D14: ='A4-FinPerf RE'!E28 -> 15165478.57 | E14: ='A4-FinPerf RE'!F28 -> 21395905 | F14: ='A4-FinPerf RE'!G28 -> 14573845 | G14: ='A4-FinPerf RE'!H28 -> 14573845 | H14: ='A4-FinPerf RE'!I28 -> 7337841.97 | I14: ='A4-FinPerf RE'!J28 -> 15045905 | J14: ='A4-FinPerf RE'!K28 -> 15045905 | K14: ='A4-FinPerf RE'!L28 -> 15045905
A15: Materials and bulk purchases | B15: ='A4-FinPerf RE'!C29+'A4-FinPerf RE'!C30 -> 0 | C15: ='A4-FinPerf RE'!D29+'A4-FinPerf RE'!D30 -> 13558027.66 | D15: ='A4-FinPerf RE'!E29+'A4-FinPerf RE'!E30 -> 2611940.62 | E15: ='A4-FinPerf RE'!F29+'A4-FinPerf RE'!F30 -> 3285537 | F15: ='A4-FinPerf RE'!G29+'A4-FinPerf RE'!G30 -> 2377157 | G15: ='A4-FinPerf RE'!H29+'A4-FinPerf RE'!H30 -> 2377157 | H15: ='A4-FinPerf RE'!I29+'A4-FinPerf RE'!I30 -> 1570512.36 | I15: ='A4-FinPerf RE'!J29+'A4-FinPerf RE'!J30 -> 2723956 | J15: ='A4-FinPerf RE'!K29+'A4-FinPerf RE'!K30 -> 2885798 | K15: ='A4-FinPerf RE'!L29+'A4-FinPerf RE'!L30 -> 3052336
A16: Transfers and grants | B16: ='A4-FinPerf RE'!C32 -> 23930281 | C16: ='A4-FinPerf RE'!D32 -> 24163416.91 | D16: ='A4-FinPerf RE'!E32 -> 15966905.45 | E16: ='A4-FinPerf RE'!F32 -> 0 | F16: ='A4-FinPerf RE'!G32 -> 0 | G16: ='A4-FinPerf RE'!H32 -> 0 | H16: ='A4-FinPerf RE'!I32 -> 0 | I16: ='A4-FinPerf RE'!J32 -> 0 | J16: ='A4-FinPerf RE'!K32 -> 0 | K16: ='A4-FinPerf RE'!L32 -> 0
A17: Other expenditure | B17: ='A4-FinPerf RE'!C26+'A4-FinPerf RE'!C31+'A4-FinPerf RE'!C33+'A4-FinPerf RE'!C34 -> 49117327 | C17: ='A4-FinPerf RE'!D26+'A4-FinPerf RE'!D31+'A4-FinPerf RE'!D33+'A4-FinPerf RE'!D34 -> 37512243.13 | D17: ='A4-FinPerf RE'!E26+'A4-FinPerf RE'!E31+'A4-FinPerf RE'!E33+'A4-FinPerf RE'!E34 -> 58716418.47 | E17: ='A4-FinPerf RE'!F26+'A4-FinPerf RE'!F31+'A4-FinPerf RE'!F33+'A4-FinPerf RE'!F34 -> 72869586 | F17: ='A4-FinPerf RE'!G26+'A4-FinPerf RE'!G31+'A4-FinPerf RE'!G33+'A4-FinPerf RE'!G34 -> 71094218 | G17: ='A4-FinPerf RE'!H26+'A4-FinPerf RE'!H31+'A4-FinPerf RE'!H33+'A4-FinPerf RE'!H34 -> 71094218 | H17: ='A4-FinPerf RE'!I26+'A4-FinPerf RE'!I31+'A4-FinPerf RE'!I33+'A4-FinPerf RE'!I34 -> 54047920.96 | I17: ='A4-FinPerf RE'!J26+'A4-FinPerf RE'!J31+'A4-FinPerf RE'!J33+'A4-FinPerf RE'!J34 -> 70531402 | J17: ='A4-FinPerf RE'!K26+'A4-FinPerf RE'!K31+'A4-FinPerf RE'!K33+'A4-FinPerf RE'!K34 -> 70958322 | K17: ='A4-FinPerf RE'!L26+'A4-FinPerf RE'!L31+'A4-FinPerf RE'!L33+'A4-FinPerf RE'!L34 -> 72047219
A18: ='A4-FinPerf RE'!A35 -> Total Expenditure | B18: =SUM(B11:B17) -> 223703018 | C18: =SUM(C11:C17) -> 230038140.4 | D18: 245611015.3 | E18: 267196774 | F18: 254842929 | G18: 254842929 | H18: 208941324.1 | I18: 269193329 | J18: 275178382 | K18: 283212267
A19: ='A4-FinPerf RE'!A37 -> Surplus/(Deficit) | B19: =B10-B18 -> 18467903 | C19: 12070137.05 | D19: 9410951.75 | E19: -1247323 | F19: 12359071 | G19: 12359071 | H19: 56924841.06 | I19: 10478671 | J19: 13192618 | K19: 15937833
A20: ='A4-FinPerf RE'!A38 -> Transfers and subsidies - capital (monetary allocations) (National / Provincial and District) | B20: ='A4-FinPerf RE'!C38 -> 0 | C20: ='A4-FinPerf RE'!D38 -> 6702000 | D20: ='A4-FinPerf RE'!E38 -> 2352000 | E20: ='A4-FinPerf RE'!F38 -> 2491000 | F20: ='A4-FinPerf RE'!G38 -> 2491000 | G20: ='A4-FinPerf RE'!H38 -> 2491000 | H20: ='A4-FinPerf RE'!I38 -> 0 | I20: ='A4-FinPerf RE'!J38 -> 2371000 | J20: ='A4-FinPerf RE'!K38 -> 2501000 | K20: ='A4-FinPerf RE'!L38 -> 2646000
A21: ='A4-FinPerf RE'!A39&" & "&'A4-FinPerf RE'!A40 -> Transfers and subsidies - capital (monetary allocations) (National / Provincial Departmental Agencies, Households, Non-profit Institutions, Private Enterprises, Public Corporatons, Higher Educational Institutions) & Transfers and subsidies - capital (in-kind - all) | B21: ='A4-FinPerf RE'!C39+'A4-FinPerf RE'!C40 -> 0 | C21: ='A4-FinPerf RE'!D39+'A4-FinPerf RE'!D40 -> 0 | D21: ='A4-FinPerf RE'!E39+'A4-FinPerf RE'!E40 -> 0 | E21: ='A4-FinPerf RE'!F39+'A4-FinPerf RE'!F40 -> 0 | F21: ='A4-FinPerf RE'!G39+'A4-FinPerf RE'!G40 -> 0 | G21: ='A4-FinPerf RE'!H39+'A4-FinPerf RE'!H40 -> 0 | H21: ='A4-FinPerf RE'!I39+'A4-FinPerf RE'!I40 -> 0 | I21: ='A4-FinPerf RE'!J39+'A4-FinPerf RE'!J40 -> 0 | J21: ='A4-FinPerf RE'!K39+'A4-FinPerf RE'!K40 -> 0 | K21: ='A4-FinPerf RE'!L39+'A4-FinPerf RE'!L40 -> 0
A22: ='A4-FinPerf RE'!A41 -> Surplus/(Deficit) after capital transfers & contributions | B22: =B19+SUM(B20:B21) -> 18467903 | C22: =C19+SUM(C20:C21) -> 18772137.05 | D22: 11762951.75 | E22: 1243677 | F22: 14850071 | G22: 14850071 | H22: 56924841.06 | I22: 12849671 | J22: 15693618 | K22: 18583833
A23: ='A4-FinPerf RE'!A46 -> Share of surplus/ (deficit) of associate | B23: ='A4-FinPerf RE'!C46 -> 0 | C23: ='A4-FinPerf RE'!D46 -> 0 | D23: ='A4-FinPerf RE'!E46 -> 0 | E23: ='A4-FinPerf RE'!F46 -> 0 | F23: ='A4-FinPerf RE'!G46 -> 0 | G23: ='A4-FinPerf RE'!H46 -> 0 | H23: ='A4-FinPerf RE'!I46 -> 0 | I23: ='A4-FinPerf RE'!J46 -> 0 | J23: ='A4-FinPerf RE'!K46 -> 0 | K23: ='A4-FinPerf RE'!L46 -> 0
A24: ='A4-FinPerf RE'!A47 -> Surplus/(Deficit) for the year | B24: =B22+B23 -> 18467903 | C24: =C22+C23 -> 18772137.05 | D24: 11762951.75 | E24: 1243677 | F24: 14850071 | G24: 14850071 | H24: 56924841.06 | I24: 12849671 | J24: 15693618 | K24: 18583833
A26: Capital expenditure & funds sources
A27: Capital expenditure | B27: ='A5-Capex'!C63 -> 23929596 | C27: ='A5-Capex'!D63 -> 2943691.63 | D27: ='A5-Capex'!E63 -> 3898129.72 | E27: ='A5-Capex'!F63 -> 17591000 | F27: ='A5-Capex'!G63 -> 22546219 | G27: ='A5-Capex'!H63 -> 22546219 | H27: ='A5-Capex'!I63 -> 15521331.57 | I27: ='A5-Capex'!J63 -> 17662000 | J27: ='A5-Capex'!K63 -> 14687616 | K27: ='A5-Capex'!L63 -> 16710742
A28: Transfers recognised - capital | B28: ='A5-Capex'!C70 -> 1958000 | C28: ='A5-Capex'!D70 -> 0 | D28: ='A5-Capex'!E70 -> 0 | E28: ='A5-Capex'!F70 -> 0 | F28: ='A5-Capex'!G70 -> 2491000 | G28: ='A5-Capex'!H70 -> 2491000 | H28: ='A5-Capex'!I70 -> 0 | I28: ='A5-Capex'!J70 -> 2371000 | J28: ='A5-Capex'!K70 -> 2501000 | K28: ='A5-Capex'!L70 -> 2646000
A30: ='A5-Capex'!A72 -> Borrowing | B30: ='A5-Capex'!C72 -> 0 | C30: ='A5-Capex'!D72 -> 0 | D30: ='A5-Capex'!E72 -> 0 | E30: ='A5-Capex'!F72 -> 0 | F30: ='A5-Capex'!G72 -> 0 | G30: ='A5-Capex'!H72 -> 0 | H30: ='A5-Capex'!I72 -> 0 | I30: ='A5-Capex'!J72 -> 0 | J30: ='A5-Capex'!K72 -> 0 | K30: ='A5-Capex'!L72 -> 0
A31: ='A5-Capex'!A73 -> Internally generated funds | B31: ='A5-Capex'!C73 -> 21972000 | C31: ='A5-Capex'!D73 -> 0 | D31: ='A5-Capex'!E73 -> 3898129.72 | E31: ='A5-Capex'!F73 -> 17591000 | F31: ='A5-Capex'!G73 -> 20055219 | G31: ='A5-Capex'!H73 -> 20055219 | H31: ='A5-Capex'!I73 -> 15521331.57 | I31: ='A5-Capex'!J73 -> 15291000 | J31: ='A5-Capex'!K73 -> 12186616 | K31: ='A5-Capex'!L73 -> 14064742
A32: Total sources of capital funds | B32: =+B28+B30+B31 -> 23930000 | C32: =+C28+C30+C31 -> 0 | D32: 3898129.72 | E32: 17591000 | F32: 22546219 | G32: 22546219 | H32: 15521331.57 | I32: 17662000 | J32: 14687616 | K32: 16710742
A34: Financial position
A35: ='A6-FinPos'!A12 -> Total current assets | B35: ='A6-FinPos'!C12 -> 85022567 | C35: ='A6-FinPos'!D12 -> 99915642.69 | D35: ='A6-FinPos'!E12 -> 118720736.8 | E35: ='A6-FinPos'!F12 -> 82747726 | F35: ='A6-FinPos'!G12 -> 76951562 | G35: ='A6-FinPos'!H12 -> 76951562 | H35: ='A6-FinPos'!I12 -> 158686218.2 | I35: ='A6-FinPos'!J12 -> 69919919 | J35: ='A6-FinPos'!K12 -> 72410634 | K35: ='A6-FinPos'!L12 -> 75748634
A36: ='A6-FinPos'!A24 -> Total non current assets | B36: ='A6-FinPos'!C24 -> 223448522 | C36: ='A6-FinPos'!D24 -> 218427170.7 | D36: ='A6-FinPos'!E24 -> 212963271.8 | E36: ='A6-FinPos'!F24 -> 236268164 | F36: ='A6-FinPos'!G24 -> 241223383 | G36: ='A6-FinPos'!H24 -> 241223383 | H36: ='A6-FinPos'!I24 -> 219082612.1 | I36: ='A6-FinPos'!J24 -> 233326220 | J36: ='A6-FinPos'!K24 -> 230351836 | K36: ='A6-FinPos'!L24 -> 232374962
A37: ='A6-FinPos'!A34 -> Total current liabilities | B37: ='A6-FinPos'!C34 -> 42624539 | C37: ='A6-FinPos'!D34 -> 68604429.14 | D37: ='A6-FinPos'!E34 -> 76393877.8 | E37: ='A6-FinPos'!F34 -> 61990531 | F37: ='A6-FinPos'!G34 -> 46184120 | G37: ='A6-FinPos'!H34 -> 46184120 | H37: ='A6-FinPos'!I34 -> 69249424.49 | I37: ='A6-FinPos'!J34 -> 32126593 | J37: ='A6-FinPos'!K34 -> 32126593 | K37: ='A6-FinPos'!L34 -> 32126593
A38: ='A6-FinPos'!A39 -> Total non current liabilities | B38: ='A6-FinPos'!C39 -> 165090000 | C38: ='A6-FinPos'!D39 -> 130355083.2 | D38: ='A6-FinPos'!E39 -> 124034622.6 | E38: ='A6-FinPos'!F39 -> 124029223 | F38: ='A6-FinPos'!G39 -> 124029223 | G38: ='A6-FinPos'!H39 -> 124029223 | H38: ='A6-FinPos'!I39 -> 120662434.2 | I38: ='A6-FinPos'!J39 -> 142075107 | J38: ='A6-FinPos'!K39 -> 142075107 | K38: ='A6-FinPos'!L39 -> 142075107
A39: Community wealth/Equity | B39: ='A6-FinPos'!C48 -> 100756550 | C39: ='A6-FinPos'!D48 -> 119383301 | D39: ='A6-FinPos'!E48 -> 131255508.1 | E39: ='A6-FinPos'!F48 -> 132996136 | F39: ='A6-FinPos'!G48 -> 147961602 | G39: ='A6-FinPos'!H48 -> 147961602 | H39: ='A6-FinPos'!I48 -> 187856971.7 | I39: ='A6-FinPos'!J48 -> 129044439 | J39: ='A6-FinPos'!K48 -> 128560770 | K39: ='A6-FinPos'!L48 -> 133921896
A41: Cash flows
A42: Net cash from (used) operating | B42: ='A7-CFlow'!C17 -> 23412904 | C42: ='A7-CFlow'!D17 -> 13717623 | D42: ='A7-CFlow'!E17 -> 14061614 | E42: ='A7-CFlow'!F17 -> 19417451 | F42: ='A7-CFlow'!G17 -> 16275000 | G42: ='A7-CFlow'!H17 -> 16275000 | H42: ='A7-CFlow'!I17 -> 44317156.64 | I42: ='A7-CFlow'!J17 -> 20935822 | J42: ='A7-CFlow'!K17 -> 23760971 | K42: ='A7-CFlow'!L17 -> 26630606
A43: Net cash from (used) investing | B43: ='A7-CFlow'!C27 -> -78234839 | C43: ='A7-CFlow'!D27 -> 68233059 | D43: ='A7-CFlow'!E27 -> -2251007 | E43: ='A7-CFlow'!F27 -> -17591000 | F43: ='A7-CFlow'!G27 -> -25817000 | G43: ='A7-CFlow'!H27 -> -25817000 | H43: ='A7-CFlow'!I27 -> 0 | I43: ='A7-CFlow'!J27 -> -17662000 | J43: ='A7-CFlow'!K27 -> -14687616 | K43: ='A7-CFlow'!L27 -> -16710742
A44: Net cash from (used) financing | B44: ='A7-CFlow'!C36 -> -5092429 | C44: ='A7-CFlow'!D36 -> -5677704 | D44: ='A7-CFlow'!E36 -> -6703804 | E44: ='A7-CFlow'!F36 -> -6326000 | F44: ='A7-CFlow'!G36 -> -6326000 | G44: ='A7-CFlow'!H36 -> -6326000 | H44: ='A7-CFlow'!I36 -> 0 | I44: ='A7-CFlow'!J36 -> -6581931 | J44: ='A7-CFlow'!K36 -> -6581931 | K44: ='A7-CFlow'!L36 -> -6581931
A45: =LEFT('A7-CFlow'!A40,37) -> Cash/cash equivalents at the year end | B45: ='A7-CFlow'!C40 -> 8217482 | C45: ='A7-CFlow'!D40 -> 84490460 | D45: ='A7-CFlow'!E40 -> 89597263 | E45: ='A7-CFlow'!F40 -> 67991451 | F45: ='A7-CFlow'!G40 -> 68622460 | G45: ='A7-CFlow'!H40 -> 68622460 | H45: ='A7-CFlow'!I40 -> 128807616.6 | I45: ='A7-CFlow'!J40 -> 65107891 | J45: ='A7-CFlow'!K40 -> 67599315 | K45: ='A7-CFlow'!L40 -> 70937248
A47: Cash backing/surplus reconciliation
A48: ='A8-ResRecon'!A4 -> Cash and investments available | B48: ='A8-ResRecon'!C8 -> 83135170 | C48: ='A8-ResRecon'!D8 -> 89122601.17 | D48: ='A8-ResRecon'!E8 -> 94535788.09 | E48: ='A8-ResRecon'!F8 -> 72874094 | F48: ='A8-ResRecon'!G8 -> 67077930 | G48: ='A8-ResRecon'!H8 -> 67077930 | H48: ='A8-ResRecon'!I8 -> 140618323.9 | I48: ='A8-ResRecon'!J8 -> 69837810 | J48: ='A8-ResRecon'!K8 -> 72328525 | K48: ='A8-ResRecon'!L8 -> 75666525
A49: ='A8-ResRecon'!A10 -> Application of cash and investments | B49: ='A8-ResRecon'!C18 -> -1057500 | C49: ='A8-ResRecon'!D18 -> 26105979.15 | D49: ='A8-ResRecon'!E18 -> 15182199.12 | E49: ='A8-ResRecon'!F18 -> 22772979 | F49: ='A8-ResRecon'!G18 -> 6966568 | G49: ='A8-ResRecon'!H18 -> 6966568 | H49: ='A8-ResRecon'!I18 -> 20832234.11 | I49: ='A8-ResRecon'!J18 -> 21242662 | J49: ='A8-ResRecon'!K18 -> 21242662 | K49: ='A8-ResRecon'!L18 -> 21242662
A50: Balance - surplus (shortfall) | B50: =B48-B49 -> 84192670 | C50: =C48-C49 -> 63016622.02 | D50: 79353588.97 | E50: 50101115 | F50: 60111362 | G50: 60111362 | H50: 119786089.8 | I50: 48595148 | J50: 51085863 | K50: 54423863
A52: Asset management
A53: Asset register summary (WDV) | B53: ='A9-Asset'!C165 -> 214517107 | C53: ='A9-Asset'!D165 -> 214411459 | D53: ='A9-Asset'!E165 -> 208483922.2 | E53: ='A9-Asset'!F165 -> 232002452 | F53: ='A9-Asset'!G165 -> 236957671 | G53: ='A9-Asset'!H165 -> 236957671 | H53: ='A9-Asset'!H165 -> 236957671 | I53: ='A9-Asset'!I165 -> 228596870 | J53: ='A9-Asset'!J165 -> 225622486 | K53: ='A9-Asset'!K165 -> 227645612
A54: ='A9-Asset'!A168 -> Depreciation | B54: ='A9-Asset'!C168 -> 10184203 | C54: ='A9-Asset'!D168 -> 9204376.23 | D54: ='A9-Asset'!E168 -> 9716266.88 | E54: ='A9-Asset'!F168 -> 11847425 | F54: ='A9-Asset'!G168 -> 8147425 | G54: ='A9-Asset'!H168 -> 8147425 | H54: ='A9-Asset'!H168 -> 8147425 | I54: ='A9-Asset'!I168 -> 8147426 | J54: ='A9-Asset'!J168 -> 8147426 | K54: ='A9-Asset'!K168 -> 8147426
A55: Renewal and Upgrading of Existing Assets | B55: ='A9-Asset'!C37+'A9-Asset'!C69 -> 0 | C55: ='A9-Asset'!D37+'A9-Asset'!D69 -> 0 | D55: ='A9-Asset'!E37+'A9-Asset'!E69 -> 0 | E55: ='A9-Asset'!F37+'A9-Asset'!F69 -> 7000000 | F55: ='A9-Asset'!G37+'A9-Asset'!G69 -> 1814026 | G55: ='A9-Asset'!H37+'A9-Asset'!H69 -> 1814026 | H55: ='A9-Asset'!H37+'A9-Asset'!H69 -> 1814026 | I55: ='A9-Asset'!I37+'A9-Asset'!I69 -> 9299000 | J55: ='A9-Asset'!J37+'A9-Asset'!J69 -> 1400000 | K55: ='A9-Asset'!K37+'A9-Asset'!K69 -> 1000000
A56: Repairs and Maintenance | B56: ='A9-Asset'!C169 -> 1800523 | C56: ='A9-Asset'!D169 -> 6424089.68 | D56: ='A9-Asset'!E169 -> 7293579.78 | E56: ='A9-Asset'!F169 -> 9945000 | F56: ='A9-Asset'!G169 -> 11420100 | G56: ='A9-Asset'!H169 -> 11420100 | H56: ='A9-Asset'!H169 -> 11420100 | I56: ='A9-Asset'!I169 -> 9869850 | J56: ='A9-Asset'!J169 -> 10104819 | K56: ='A9-Asset'!K169 -> 10378599
A58: Free services
A59: Cost of Free Basic Services provided | B59: ='A10-SerDel'!C60 -> 0 | C59: ='A10-SerDel'!D60 -> 0 | D59: ='A10-SerDel'!E60 -> 0 | E59: ='A10-SerDel'!F60 -> 0 | F59: ='A10-SerDel'!G60 -> 0 | G59: ='A10-SerDel'!H60 -> 0 | H59: ='A10-SerDel'!I60 -> 0 | I59: ='A10-SerDel'!I60 -> 0 | J59: ='A10-SerDel'!J60 -> 0 | K59: ='A10-SerDel'!K60 -> 0
A60: Revenue cost of free services provided | B60: ='A10-SerDel'!C79 -> 0 | C60: ='A10-SerDel'!D79 -> 0 | D60: ='A10-SerDel'!E79 -> 0 | E60: ='A10-SerDel'!F79 -> 0 | F60: ='A10-SerDel'!G79 -> 0 | G60: ='A10-SerDel'!H79 -> 0 | H60: ='A10-SerDel'!I79 -> 0 | I60: ='A10-SerDel'!I79 -> 0 | J60: ='A10-SerDel'!J79 -> 0 | K60: ='A10-SerDel'!K79 -> 0
A61: Households below minimum service level
A62: ='A10-SerDel'!A5 -> Water: | B62: ='A10-SerDel'!C14 -> 0 | C62: ='A10-SerDel'!D14 -> 0 | D62: ='A10-SerDel'!E14 -> 0 | E62: ='A10-SerDel'!F14 -> 0 | F62: ='A10-SerDel'!G14 -> 0 | G62: ='A10-SerDel'!H14 -> 0 | H62: ='A10-SerDel'!I14 -> 0 | I62: ='A10-SerDel'!I14 -> 0 | J62: ='A10-SerDel'!J14 -> 0 | K62: ='A10-SerDel'!K14 -> 0
A63: ='A10-SerDel'!A16 -> Sanitation/sewerage: | B63: ='A10-SerDel'!C26 -> 0 | C63: ='A10-SerDel'!D26 -> 0 | D63: ='A10-SerDel'!E26 -> 0 | E63: ='A10-SerDel'!F26 -> 0 | F63: ='A10-SerDel'!G26 -> 0 | G63: ='A10-SerDel'!H26 -> 0 | H63: ='A10-SerDel'!I26 -> 0 | I63: ='A10-SerDel'!I26 -> 0 | J63: ='A10-SerDel'!J26 -> 0 | K63: ='A10-SerDel'!K26 -> 0
A64: ='A10-SerDel'!A28 -> Energy: | B64: ='A10-SerDel'!C35 -> 0 | C64: ='A10-SerDel'!D35 -> 0 | D64: ='A10-SerDel'!E35 -> 0 | E64: ='A10-SerDel'!F35 -> 0 | F64: ='A10-SerDel'!G35 -> 0 | G64: ='A10-SerDel'!H35 -> 0 | H64: ='A10-SerDel'!I35 -> 0 | I64: ='A10-SerDel'!I35 -> 0 | J64: ='A10-SerDel'!J35 -> 0 | K64: ='A10-SerDel'!K35 -> 0
A65: ='A10-SerDel'!A37 -> Refuse: | B65: ='A10-SerDel'!C45 -> 0 | C65: ='A10-SerDel'!D45 -> 0 | D65: ='A10-SerDel'!E45 -> 0 | E65: ='A10-SerDel'!F45 -> 0 | F65: ='A10-SerDel'!G45 -> 0 | G65: ='A10-SerDel'!H45 -> 0 | H65: ='A10-SerDel'!I45 -> 0 | I65: ='A10-SerDel'!I45 -> 0 | J65: ='A10-SerDel'!J45 -> 0 | K65: ='A10-SerDel'!K45 -> 0

Sheet A2-FinPerf SC
A1: =muni&" - "&Approve3 -> DC32 Ehlanzeni - Table A2 Budgeted Financial Performance (revenue and expenditure by functional classification)
A2: ="Functional Classification "&desc -> Functional Classification Description | B2: =head27 -> Ref | C2: =head1b -> 2016/17 | D2: =head1A -> 2017/18 | E2: =Head1 -> 2018/19 | F2: =Head2 -> Current Year 2019/20 | I2: =Head3 -> 2020/21 Medium Term Revenue & Expenditure Framework
A3: R thousand | B3: 1 | C3: =Head5 -> Audited Outcome | D3: =Head5 -> Audited Outcome | E3: =Head5 -> Audited Outcome | F3: =Head6 -> Original Budget | G3: =Head7 -> Adjusted Budget | H3: =Head8 -> Full Year Forecast | I3: =Head9 -> Budget Year 2020/21 | J3: =Head10 -> Budget Year +1 2021/22 | K3: =Head11 -> Budget Year +2 2022/23
A4: Revenue - Functional
A5: Governance and administration | C5: =SUM(C6:C8) -> 242171196 | D5: =SUM(D6:D8) -> 248775425.9 | E5: 257373967 | F5: 268440451 | G5: 269693000 | H5: 269693000 | I5: 282043000 | J5: 290872000 | K5: 301796100
A6: Executive and council | C6: =A2A!C6 -> 0 | D6: =A2A!D6 -> 0 | E6: =A2A!E6 -> 6362.11 | F6: =A2A!F6 -> 0 | G6: =A2A!G6 -> 0 | H6: =A2A!H6 -> 0 | I6: =A2A!I6 -> 0 | J6: =A2A!J6 -> 0 | K6: =A2A!K6 -> 0
A7: Finance and administration | C7: =A2A!C9 -> 242171196 | D7: =A2A!D9 -> 248775425.9 | E7: =A2A!E9 -> 257367604.9 | F7: =A2A!F9 -> 268440451 | G7: =A2A!G9 -> 269693000 | H7: =A2A!H9 -> 269693000 | I7: =A2A!I9 -> 282043000 | J7: =A2A!J9 -> 290872000 | K7: =A2A!K9 -> 301796100
A8: Internal audit | C8: =A2A!C23 -> 0 | D8: =A2A!D23 -> 0 | E8: =A2A!E23 -> 0 | F8: =A2A!F23 -> 0 | G8: =A2A!G23 -> 0 | H8: =A2A!H23 -> 0 | I8: =A2A!I23 -> 0 | J8: =A2A!J23 -> 0 | K8: =A2A!K23 -> 0
A9: Community and public safety | C9: =SUM(C10:C14) -> 0 | D9: =SUM(D10:D14) -> 34851.53 | E9: 0 | F9: 0 | G9: 0 | H9: 0 | I9: 0 | J9: 0 | K9: 0
A10: Community and social services | C10: =A2A!C26 -> 0 | D10: =A2A!D26 -> 0 | E10: =A2A!E26 -> 0 | F10: =A2A!F26 -> 0 | G10: =A2A!G26 -> 0 | H10: =A2A!H26 -> 0 | I10: =A2A!I26 -> 0 | J10: =A2A!J26 -> 0 | K10: =A2A!K26 -> 0
A11: Sport and recreation | C11: =A2A!C48 -> 0 | D11: =A2A!D48 -> 0 | E11: =A2A!E48 -> 0 | F11: =A2A!F48 -> 0 | G11: =A2A!G48 -> 0 | H11: =A2A!H48 -> 0 | I11: =A2A!I48 -> 0 | J11: =A2A!J48 -> 0 | K11: =A2A!K48 -> 0
A12: Public safety | C12: =A2A!C54 -> 0 | D12: =A2A!D54 -> 0 | E12: =A2A!E54 -> 0 | F12: =A2A!F54 -> 0 | G12: =A2A!G54 -> 0 | H12: =A2A!H54 -> 0 | I12: =A2A!I54 -> 0 | J12: =A2A!J54 -> 0 | K12: =A2A!K54 -> 0
A13: Housing | C13: =A2A!C63 -> 0 | D13: =A2A!D63 -> 0 | E13: =A2A!E63 -> 0 | F13: =A2A!F63 -> 0 | G13: =A2A!G63 -> 0 | H13: =A2A!H63 -> 0 | I13: =A2A!I63 -> 0 | J13: =A2A!J63 -> 0 | K13: =A2A!K63 -> 0
A14: Health | C14: =A2A!C66 -> 0 | D14: =A2A!D66 -> 34851.53 | E14: =A2A!E66 -> 0 | F14: =A2A!F66 -> 0 | G14: =A2A!G66 -> 0 | H14: =A2A!H66 -> 0 | I14: =A2A!I66 -> 0 | J14: =A2A!J66 -> 0 | K14: =A2A!K66 -> 0
A15: Economic and environmental services | C15: =SUM(C16:C18) -> 0 | D15: =SUM(D16:D18) -> 0 | E15: 0 | F15: 0 | G15: 0 | H15: 0 | I15: 0 | J15: 0 | K15: 0
A16: Planning and development | C16: =A2A!C75 -> 0 | D16: =A2A!D75 -> 0 | E16: =A2A!E75 -> 0 | F16: =A2A!F75 -> 0 | G16: =A2A!G75 -> 0 | H16: =A2A!H75 -> 0 | I16: =A2A!I75 -> 0 | J16: =A2A!J75 -> 0 | K16: =A2A!K75 -> 0
A17: Road transport | C17: =A2A!C86 -> 0 | D17: =A2A!D86 -> 0 | E17: =A2A!E86 -> 0 | F17: =A2A!F86 -> 0 | G17: =A2A!G86 -> 0 | H17: =A2A!H86 -> 0 | I17: =A2A!I86 -> 0 | J17: =A2A!J86 -> 0 | K17: =A2A!K86 -> 0
A18: Environmental protection | C18: =A2A!C91 -> 0 | D18: =A2A!D91 -> 0 | E18: =A2A!E91 -> 0 | F18: =A2A!F91 -> 0 | G18: =A2A!G91 -> 0 | H18: =A2A!H91 -> 0 | I18: =A2A!I91 -> 0 | J18: =A2A!J91 -> 0 | K18: =A2A!K91 -> 0
A19: Trading services | C19: =SUM(C20:C23) -> 0 | D19: =SUM(D20:D23) -> 0 | E19: 0 | F19: 0 | G19: 0 | H19: 0 | I19: 0 | J19: =SUM(J20:J23) -> 0 | K19: 0
A20: Energy sources | C20: =A2A!C99 -> 0 | D20: =A2A!D99 -> 0 | E20: =A2A!E99 -> 0 | F20: =A2A!F99 -> 0 | G20: =A2A!G99 -> 0 | H20: =A2A!H99 -> 0 | I20: =A2A!I99 -> 0 | J20: =A2A!J99 -> 0 | K20: =A2A!K99 -> 0
A21: Water management | C21: =A2A!C103 -> 0 | D21: =A2A!D103 -> 0 | E21: =A2A!E103 -> 0 | F21: =A2A!F103 -> 0 | G21: =A2A!G103 -> 0 | H21: =A2A!H103 -> 0 | I21: =A2A!I103 -> 0 | J21: =A2A!J103 -> 0 | K21: =A2A!K103 -> 0
A22: Waste water management | C22: =A2A!C107 -> 0 | D22: =A2A!D107 -> 0 | E22: =A2A!E107 -> 0 | F22: =A2A!F107 -> 0 | G22: =A2A!G107 -> 0 | H22: =A2A!H107 -> 0 | I22: =A2A!I107 -> 0 | J22: =A2A!J107 -> 0 | K22: =A2A!K107 -> 0
A23: Waste management | C23: =A2A!C112 -> 0 | D23: =A2A!D112 -> 0 | E23: =A2A!E112 -> 0 | F23: =A2A!F112 -> 0 | G23: =A2A!G112 -> 0 | H23: =A2A!H112 -> 0 | I23: =A2A!I112 -> 0 | J23: =A2A!J112 -> 0 | K23: =A2A!K112 -> 0
A24: Other | B24: 4 | C24: =A2A!C117 -> 0 | D24: =A2A!D117 -> 0 | E24: =A2A!E117 -> 0 | F24: =A2A!F117 -> 0 | G24: =A2A!G117 -> 0 | H24: =A2A!H117 -> 0 | I24: =A2A!I117 -> 0 | J24: =A2A!J117 -> 0 | K24: =A2A!K117 -> 0
A25: ="Total "&A4 -> Total Revenue - Functional | B25: 2 | C25: =C5+C9+C15+C19+C24 -> 242171196 | D25: =D5+D9+D15+D19+D24 -> 248810277.4 | E25: =E5+E9+E15+E19+E24 -> 257373967 | F25: 268440451 | G25: 269693000 | H25: 269693000 | I25: =I5+I9+I15+I19+I24 -> 282043000 | J25: 290872000 | K25: 301796100
A27: Expenditure - Functional
A28: Governance and administration | C28: =SUM(C29:C31) -> 164571000 | D28: =SUM(D29:D31) -> 149905782.1 | E28: 161466806.6 | F28: 170437031 | G28: 160961702 | H28: 160961702 | I28: 163335758 | J28: 170177874 | K28: 176399879
A29: Executive and council | C29: =A2A!C128 -> 47937000 | D29: =A2A!D128 -> 35225118.93 | E29: =A2A!E128 -> 41081670.27 | F29: =A2A!F128 -> 48727584 | G29: =A2A!G128 -> 45671689 | H29: =A2A!H128 -> 45671689 | I29: =A2A!I128 -> 46831328 | J29: =A2A!J128 -> 51122456 | K29: =A2A!K128 -> 53311309
A30: Finance and administration | C30: =A2A!C131 -> 116634000 | D30: =A2A!D131 -> 111774317 | E30: =A2A!E131 -> 117407502.1 | F30: =A2A!F131 -> 118504627 | G30: =A2A!G131 -> 112190193 | H30: =A2A!H131 -> 112190193 | I30: =A2A!I131 -> 112907171 | J30: =A2A!J131 -> 115391561 | K30: =A2A!K131 -> 119230843
A31: Internal audit | C31: =A2A!C145 -> 0 | D31: =A2A!D145 -> 2906346.19 | E31: =A2A!E145 -> 2977634.18 | F31: =A2A!F145 -> 3204820 | G31: =A2A!G145 -> 3099820 | H31: =A2A!H145 -> 3099820 | I31: =A2A!I145 -> 3597259 | J31: =A2A!J145 -> 3663857 | K31: =A2A!K145 -> 3857727
A32: Community and public safety | C32: =SUM(C33:C37) -> 32735000 | D32: =SUM(D33:D37) -> 35334362.85 | E32: 39385613.8 | F32: 43739264 | G32: 42572727 | H32: 42572727 | I32: 48595975 | J32: 49848246 | K32: 52354386
A33: Community and social services | C33: =A2A!C148 -> 20693000 | D33: =A2A!D148 -> 14507369.73 | E33: =A2A!E148 -> 14843890.29 | F33: =A2A!F148 -> 16265729 | G33: =A2A!G148 -> 15985729 | H33: =A2A!H148 -> 15985729 | I33: =A2A!I148 -> 18583506 | J33: =A2A!J148 -> 18048142 | K33: =A2A!K148 -> 18902382
A34: Sport and recreation | C34: =A2A!C170 -> 0 | D34: =A2A!D170 -> 0 | E34: =A2A!E170 -> 0 | F34: =A2A!F170 -> 0 | G34: =A2A!G170 -> 0 | H34: =A2A!H170 -> 0 | I34: =A2A!I170 -> 0 | J34: =A2A!J170 -> 0 | K34: =A2A!K170 -> 0
A35: Public safety | C35: =A2A!C176 -> 0 | D35: =A2A!D176 -> 0 | E35: =A2A!E176 -> 0 | F35: =A2A!F176 -> 0 | G35: =A2A!G176 -> 0 | H35: =A2A!H176 -> 0 | I35: =A2A!I176 -> 0 | J35: =A2A!J176 -> 0 | K35: =A2A!K176 -> 0
A36: Housing | C36: =A2A!C185 -> 0 | D36: =A2A!D185 -> 0 | E36: =A2A!E185 -> 0 | F36: =A2A!F185 -> 0 | G36: =A2A!G185 -> 0 | H36: =A2A!H185 -> 0 | I36: =A2A!I185 -> 0 | J36: =A2A!J185 -> 0 | K36: =A2A!K185 -> 0
A37: Health | C37: =A2A!C188 -> 12042000 | D37: =A2A!D188 -> 20826993.12 | E37: =A2A!E188 -> 24541723.51 | F37: =A2A!F188 -> 27473535 | G37: =A2A!G188 -> 26586998 | H37: =A2A!H188 -> 26586998 | I37: =A2A!I188 -> 30012469 | J37: =A2A!J188 -> 31800104 | K37: =A2A!K188 -> 33452004
A38: Economic and environmental services | C38: =SUM(C39:C41) -> 26397061 | D38: =SUM(D39:D41) -> 43108960.72 | E38: 42932378.27 | F38: 50774756 | G38: 49237777 | H38: 49237777 | I38: 54964604 | J38: 52635697 | K38: 51795488
A39: Planning and development | C39: =A2A!C197 -> 26397061 | D39: =A2A!D197 -> 39793868.99 | E39: =A2A!E197 -> 39593189.93 | F39: =A2A!F197 -> 46140310 | G39: =A2A!G197 -> 44919603 | H39: =A2A!H197 -> 44919603 | I39: =A2A!I197 -> 49941673 | J39: =A2A!J197 -> 47515730 | K39: =A2A!K197 -> 46396729
A40: Road transport | C40: =A2A!C208 -> 0 | D40: =A2A!D208 -> 1822808.72 | E40: =A2A!E208 -> 1944044.57 | F40: =A2A!F208 -> 2086725 | G40: =A2A!G208 -> 2086725 | H40: =A2A!H208 -> 2086725 | I40: =A2A!I208 -> 2648728 | J40: =A2A!J208 -> 2590072 | K40: =A2A!K208 -> 2740404
A41: Environmental protection | C41: =A2A!C213 -> 0 | D41: =A2A!D213 -> 1492283.01 | E41: =A2A!E213 -> 1395143.77 | F41: =A2A!F213 -> 2547721 | G41: =A2A!G213 -> 2231449 | H41: =A2A!H213 -> 2231449 | I41: =A2A!I213 -> 2374203 | J41: =A2A!J213 -> 2529895 | K41: =A2A!K213 -> 2658355
A42: Trading services | C42: =SUM(C43:C46) -> 0 | D42: =SUM(D43:D46) -> 1689034.73 | E42: 1826216.6 | F42: =SUM(F43:F46) -> 2245723 | G42: 2070723 | H42: 2070723 | I42: 2296992 | J42: 2516565 | K42: =SUM(K43:K46) -> 2662514
A43: Energy sources | C43: =A2A!C221 -> 0 | D43: =A2A!D221 -> 0 | E43: =A2A!E221 -> 0 | F43: =A2A!F221 -> 0 | G43: =A2A!G221 -> 0 | H43: =A2A!H221 -> 0 | I43: =A2A!I221 -> 0 | J43: =A2A!J221 -> 0 | K43: =A2A!K221 -> 0
A44: Water management | C44: =A2A!C225 -> 0 | D44: =A2A!D225 -> 1689034.73 | E44: =A2A!E225 -> 1826216.6 | F44: =A2A!F225 -> 2245723 | G44: =A2A!G225 -> 2070723 | H44: =A2A!H225 -> 2070723 | I44: =A2A!I225 -> 2296992 | J44: =A2A!J225 -> 2516565 | K44: =A2A!K225 -> 2662514
A45: Waste water management | C45: =A2A!C229 -> 0 | D45: =A2A!D229 -> 0 | E45: =A2A!E229 -> 0 | F45: =A2A!F229 -> 0 | G45: =A2A!G229 -> 0 | H45: =A2A!H229 -> 0 | I45: =A2A!I229 -> 0 | J45: =A2A!J229 -> 0 | K45: =A2A!K229 -> 0
A46: Waste management | C46: =A2A!C234 -> 0 | D46: =A2A!D234 -> 0 | E46: =A2A!E234 -> 0 | F46: =A2A!F234 -> 0 | G46: =A2A!G234 -> 0 | H46: =A2A!H234 -> 0 | I46: =A2A!I234 -> 0 | J46: =A2A!J234 -> 0 | K46: =A2A!K234 -> 0
A47: Other | B47: 4 | C47: =A2A!C239 -> 0 | D47: =A2A!D239 -> 0 | E47: =A2A!E239 -> 0 | F47: =A2A!F239 -> 0 | G47: =A2A!G239 -> 0 | H47: =A2A!H239 -> 0 | I47: =A2A!I239 -> 0 | J47: =A2A!J239 -> 0 | K47: =A2A!K239 -> 0
A48: ="Total "&A27 -> Total Expenditure - Functional | B48: 3 | C48: =C28+C32+C38+C42+C47 -> 223703061 | D48: =D28+D32+D38+D42+D47 -> 230038140.4 | E48: =E28+E32+E38+E42+E47 -> 245611015.3 | F48: =F28+F32+F38+F42+F47 -> 267196774 | G48: 254842929 | H48: 254842929 | I48: 269193329 | J48: 275178382 | K48: 283212267
A49: =result -> Surplus/(Deficit) for the year | C49: =C25-C48 -> 18468135 | D49: =D25-D48 -> 18772137.05 | E49: 11762951.75 | F49: 1243677 | G49: 14850071 | H49: 14850071 | I49: 12849671 | J49: 15693618 | K49: 18583833
A50: =head27a -> References
A51: 1. Government Finance Statistics Functions and Sub-functions are standardised to assist the compilation of national and international accounts for comparison purposes
A52: 2. Total Revenue by functional classification must reconcile to Total Operating Revenue shown in Budgeted Financial Performance (revenue and expenditure)
A53: 3. Total Expenditure by Functional Classification must reconcile to Total Operating Expenditure shown in Budgeted Financial Performance (revenue and expenditure)
A54: 4. All amounts must be classified under a functional classification . The GFS function 'Other' is only for Abbatoirs, Air Transport, Forestry, Licensing and Regulation, Markets and Tourism - and if used must be supported by footnotes. Nothing else may be placed under 'Other'. Assign associate share to relevant classification.
A57: check oprev balance | C57: =C25-'A4-FinPerf RE'!C59 -> 275 | D57: =D25-'A4-FinPerf RE'!D59 -> 0 | E57: =E25-'A4-FinPerf RE'!E59 -> 0 | F57: =F25-'A4-FinPerf RE'!F59 -> 0 | G57: =G25-'A4-FinPerf RE'!G59 -> 0 | H57: =H25-'A4-FinPerf RE'!H59 -> 0 | I57: =I25-'A4-FinPerf RE'!J59 -> 0 | J57: =J25-'A4-FinPerf RE'!K59 -> 0 | K57: =K25-'A4-FinPerf RE'!L59 -> 0
A58: check opexp balance | C58: =C48-'A4-FinPerf RE'!C35 -> 43 | D58: =D48-'A4-FinPerf RE'!D35 -> 0 | E58: =E48-'A4-FinPerf RE'!E35 -> 0 | F58: =F48-'A4-FinPerf RE'!F35 -> 0 | G58: =G48-'A4-FinPerf RE'!G35 -> 0 | H58: =H48-'A4-FinPerf RE'!H35 -> 0 | I58: =I48-'A4-FinPerf RE'!J35 -> 0 | J58: =J48-'A4-FinPerf RE'!K35 -> 0 | K58: =K48-'A4-FinPerf RE'!L35 -> 0

Sheet A2A
A1: =muni&" - "&Approve3 -> DC32 Ehlanzeni - Table A2 Budgeted Financial Performance (revenue and expenditure by functional classification)
A2: ="Functional Classification "&desc -> Functional Classification Description | B2: =head27 -> Ref | C2: =head1b -> 2016/17 | D2: =head1A -> 2017/18 | E2: =Head1 -> 2018/19 | F2: =Head2 -> Current Year 2019/20 | I2: =Head3 -> 2020/21 Medium Term Revenue & Expenditure Framework
A3: R thousand | B3: 1 | C3: =Head5 -> Audited Outcome | D3: =Head5 -> Audited Outcome | E3: =Head5 -> Audited Outcome | F3: =Head6 -> Original Budget | G3: =Head7 -> Adjusted Budget | H3: =Head8 -> Full Year Forecast | I3: =Head9 -> Budget Year 2020/21 | J3: =Head10 -> Budget Year +1 2021/22 | K3: =Head11 -> Budget Year +2 2022/23
A4: Revenue - Functional
A5: Municipal governance and administration | C5: =C6+C9+C23 -> 242171196 | D5: 248775425.9 | E5: 257373967 | F5: 268440451 | G5: 269693000 | H5: 269693000 | I5: 282043000 | J5: 290872000 | K5: 301796100
A6: Executive and council | C6: =SUM(C7:C8) -> 0 | D6: =SUM(D7:D8) -> 0 | E6: 6362.11 | F6: 0 | G6: 0 | H6: 0 | I6: 0 | J6: 0 | K6: 0
A7: Mayor and Council | C7: 0 | D7: 0 | E7: 0 | F7: 0 | G7: 0 | H7: 0 | I7: 0 | J7: 0 | K7: 0
A8: Municipal Manager, Town Secretary and Chief Executive | C8: 0 | D8: 0 | E8: 6362.11 | F8: 0 | G8: 0 | H8: 0 | I8: 0 | J8: 0 | K8: 0
A9: Finance and administration | C9: =SUM(C10:C22) -> 242171196 | D9: 248775425.9 | E9: 257367604.9 | F9: 268440451 | G9: 269693000 | H9: 269693000 | I9: 282043000 | J9: 290872000 | K9: 301796100
A10: Administrative and Corporate Support | C10: 0 | D10: 0 | E10: 0 | F10: 0 | G10: 0 | H10: 0 | I10: 0 | J10: 0 | K10: 0
A11: Asset Management
A12: Finance | C12: 242171196 | D12: 248775425.9 | E12: 257367604.9 | F12: 268440451 | G12: 269693000 | H12: 269693000 | I12: 282043000 | J12: 290872000 | K12: 301796100
A13: Fleet Management
A14: Human Resources | C14: 0 | D14: 0 | E14: 0 | F14: 0 | G14: 0 | H14: 0 | I14: 0 | J14: 0 | K14: 0
A15: Information Technology | C15: 0 | D15: 0 | E15: 0 | F15: 0 | G15: 0 | H15: 0 | I15: 0 | J15: 0 | K15: 0
A16: Legal Services
A17: Marketing, Customer Relations, Publicity and Media Co-ordination | C17: 0 | D17: 0 | E17: 0 | F17: 0 | G17: 0 | H17: 0 | I17: 0 | J17: 0 | K17: 0
A18: Property Services
A19: Risk Management | C19: 0 | D19: 0 | E19: 0 | F19: 0 | G19: 0 | H19: 0 | I19: 0 | J19: 0 | K19: 0
A20: Security Services
A21: Supply Chain Management | C21: 0 | D21: 0 | E21: 0 | F21: 0 | G21: 0 | H21: 0 | I21: 0 | J21: 0 | K21: 0
A22: Valuation Service
A23: Internal audit | C23: =SUM(C24:C24) -> 0 | D23: 0 | E23: 0 | F23: 0 | G23: 0 | H23: 0 | I23: 0 | J23: 0 | K23: 0
A24: Governance Function | C24: 0 | D24: 0 | E24: 0 | F24: 0 | G24: 0 | H24: 0 | I24: 0 | J24: 0 | K24: 0
A25: Community and public safety | C25: =C26+C48+C54+C63+C66 -> 0 | D25: 34851.53 | E25: 0 | F25: 0 | G25: 0 | H25: 0 | I25: 0 | J25: 0 | K25: 0
A26: Community and social services | C26: =SUM(C27:C47) -> 0 | D26: =SUM(D27:D47) -> 0 | E26: 0 | F26: 0 | G26: 0 | H26: 0 | I26: 0 | J26: 0 | K26: 0
A27: Aged Care
A28: Agricultural
A29: Animal Care and Diseases
A30: Cemeteries, Funeral Parlours and Crematoriums
A31: Child Care Facilities
A32: Community Halls and Facilities
A33: Consumer Protection
A34: Cultural Matters | C34: 0 | D34: 0 | E34: 0 | F34: 0 | G34: 0 | H34: 0 | I34: 0 | J34: 0 | K34: 0
A35: Disaster Management | C35: 0 | D35: 0 | E35: 0 | F35: 0 | G35: 0 | H35: 0 | I35: 0 | J35: 0 | K35: 0
A36: Education
A37: Indigenous and Customary Law
A38: Industrial Promotion
A39: Language Policy
A40: Libraries and Archives
A41: Literacy Programmes
A42: Media Services
A43: Museums and Art Galleries
A44: Population Development
A45: Provincial Cultural Matters
A46: Theatres
A47: Zoo's
A48: Sport and recreation | C48: =SUM(C49:C53) -> 0 | D48: =SUM(D49:D53) -> 0 | E48: 0 | F48: 0 | G48: 0 | H48: 0 | I48: 0 | J48: 0 | K48: 0
A49: Beaches and Jetties
A50: Casinos, Racing, Gambling, Wagering
A51: Community Parks (including Nurseries)
A52: Recreational Facilities
A53: Sports Grounds and Stadiums
A54: Public safety | C54: =SUM(C55:C62) -> 0 | D54: 0 | E54: 0 | F54: 0 | G54: 0 | H54: 0 | I54: 0 | J54: 0 | K54: 0
A55: Civil Defence
A56: Cleansing
A57: Control of Public Nuisances
A58: Fencing and Fences
A59: Fire Fighting and Protection
A60: Licensing and Control of Animals
A61: Police Forces, Traffic and Street Parking Control
A62: Pounds
A63: Housing | C63: =SUM(C64:C65) -> 0 | D63: =SUM(D64:D65) -> 0 | E63: 0 | F63: 0 | G63: 0 | H63: 0 | I63: 0 | J63: 0 | K63: 0
A64: Housing
A65: Informal Settlements
A66: Health | C66: =SUM(C67:C73) -> 0 | D66: =SUM(D67:D73) -> 34851.53 | E66: 0 | F66: 0 | G66: 0 | H66: 0 | I66: 0 | J66: 0 | K66: 0
A67: Ambulance
A68: Health Services | C68: 0 | D68: 34851.53 | E68: 0 | F68: 0 | G68: 0 | H68: 0 | I68: 0 | J68: 0 | K68: 0
A69: Laboratory Services | C69: 0 | D69: 0 | E69: 0 | F69: 0 | G69: 0 | H69: 0 | I69: 0 | J69: 0 | K69: 0
A70: Food Control
A71: Health Surveillance and Prevention of Communicable Diseases including immunizations | C71: 0 | D71: 0 | E71: 0 | F71: 0 | G71: 0 | H71: 0 | I71: 0 | J71: 0 | K71: 0
A72: Vector Control
A73: Chemical Safety
A74: Economic and environmental services | C74: =C75+C86+C91 -> 0 | D74: 0 | E74: 0 | F74: 0 | G74: 0 | H74: 0 | I74: 0 | J74: 0 | K74: 0
A75: Planning and development | C75: =SUM(C76:C85) -> 0 | D75: =SUM(D76:D85) -> 0 | E75: 0 | F75: 0 | G75: 0 | H75: 0 | I75: 0 | J75: 0 | K75: 0
A76: Billboards
A77: Corporate Wide Strategic Planning (IDPs, LEDs) | C77: 0 | D77: 0 | E77: 0 | F77: 0 | G77: 0 | H77: 0 | I77: 0 | J77: 0 | K77: 0
A78: Central City Improvement District | C78: 0 | D78: 0 | E78: 0 | F78: 0 | G78: 0 | H78: 0 | I78: 0 | J78: 0 | K78: 0
A79: Development Facilitation
A80: Economic Development/Planning | C80: 0 | D80: 0 | E80: 0 | F80: 0 | G80: 0 | H80: 0 | I80: 0 | J80: 0 | K80: 0
A81: Regional Planning and Development
A82: Town Planning, Building Regulations and Enforcement, and City Engineer | C82: 0 | D82: 0 | E82: 0 | F82: 0 | G82: 0 | H82: 0 | I82: 0 | J82: 0 | K82: 0
A83: Project Management Unit | C83: 0 | D83: 0 | E83: 0 | F83: 0 | G83: 0 | H83: 0 | I83: 0 | J83: 0 | K83: 0
A84: Provincial Planning
A85: Support to Local Municipalities | C85: 0 | D85: 0 | E85: 0 | F85: 0 | G85: 0 | H85: 0 | I85: 0 | J85: 0 | K85: 0
A86: Road transport | C86: =SUM(C87:C90) -> 0 | D86: 0 | E86: 0 | F86: 0 | G86: 0 | H86: 0 | I86: 0 | J86: 0 | K86: 0
A87: Public Transport
A88: Road and Traffic Regulation
A89: Roads | C89: 0 | D89: 0 | E89: 0 | F89: 0 | G89: 0 | H89: 0 | I89: 0 | J89: 0 | K89: 0
A90: Taxi Ranks
A91: Environmental protection | C91: =SUM(C92:C97) -> 0 | D91: =SUM(D92:D97) -> 0 | E91: 0 | F91: 0 | G91: 0 | H91: 0 | I91: 0 | J91: 0 | K91: 0
A92: Biodiversity and Landscape | C92: 0 | D92: 0 | E92: 0 | F92: 0 | G92: 0 | H92: 0 | I92: 0 | J92: 0 | K92: 0
A93: Coastal Protection
A94: Indigenous Forests
A95: Nature Conservation
A96: Pollution Control
A97: Soil Conservation
A98: Trading services | C98: =C99+C103+C107+C112 -> 0 | D98: =D99+D103+D107+D112 -> 0 | E98: 0 | F98: 0 | G98: 0 | H98: 0 | I98: 0 | J98: 0 | K98: =K99+K103+K107+K112 -> 0
A99: Energy sources | C99: =SUM(C100:C102) -> 0 | D99: =SUM(D100:D102) -> 0 | E99: 0 | F99: 0 | G99: 0 | H99: 0 | I99: 0 | J99: 0 | K99: 0
A100: Electricity
A101: Street Lighting and Signal Systems
A102: Nonelectric Energy
A103: Water management | C103: =SUM(C104:C106) -> 0 | D103: =SUM(D104:D106) -> 0 | E103: 0 | F103: 0 | G103: 0 | H103: 0 | I103: 0 | J103: 0 | K103: 0
A104: Water Treatment
A105: Water Distribution | C105: 0 | D105: 0 | E105: 0 | F105: 0 | G105: 0 | H105: 0 | I105: 0 | J105: 0 | K105: 0
A106: Water Storage
A107: Waste water management | C107: =SUM(C108:C111) -> 0 | D107: =SUM(D108:D111) -> 0 | E107: 0 | F107: 0 | G107: 0 | H107: 0 | I107: 0 | J107: 0 | K107: 0
A108: Public Toilets
A109: Sewerage | C109: 0 | D109: 0 | E109: 0 | F109: 0 | G109: 0 | H109: 0 | I109: 0 | J109: 0 | K109: 0
A110: Storm Water Management
A111: Waste Water Treatment
A112: Waste management | C112: =SUM(C113:C116) -> 0 | D112: =SUM(D113:D116) -> 0 | E112: 0 | F112: 0 | G112: 0 | H112: 0 | I112: 0 | J112: 0 | K112: 0
A113: Recycling
A114: Solid Waste Disposal (Landfill Sites)
A115: Solid Waste Removal
A116: Street Cleaning
A117: Other | C117: =SUM(C118:C123) -> 0 | D117: =SUM(D118:D123) -> 0 | E117: 0 | F117: 0 | G117: 0 | H117: 0 | I117: 0 | J117: 0 | K117: 0
A118: Abattoirs
A119: Air Transport
A120: Forestry
A121: Licensing and Regulation
A122: Markets
A123: Tourism
A124: ="Total "&A4 -> Total Revenue - Functional | B124: 2 | C124: =C5+C25+C74+C98+C117 -> 242171196 | D124: 248810277.4 | E124: 257373967 | F124: 268440451 | G124: 269693000 | H124: 269693000 | I124: 282043000 | J124: 290872000 | K124: 301796100
A126: Expenditure - Functional
A127: =A5 -> Municipal governance and administration | C127: =C128+C131+C145 -> 164571000 | D127: 149905782.1 | E127: 161466806.6 | F127: 170437031 | G127: 160961702 | H127: 160961702 | I127: 163335758 | J127: 170177874 | K127: 176399879
A128: Executive and council | C128: =SUM(C129:C130) -> 47937000 | D128: 35225118.93 | E128: 41081670.27 | F128: 48727584 | G128: 45671689 | H128: 45671689 | I128: 46831328 | J128: 51122456 | K128: 53311309
A129: Mayor and Council | C129: 47937000 | D129: 31721790.88 | E129: 36703570.67 | F129: 42627575 | G129: 40524575 | H129: 40524575 | I129: 40780079 | J129: 45042993 | K129: 46979687
A130: Municipal Manager, Town Secretary and Chief Executive | C130: 0 | D130: 3503328.05 | E130: 4378099.6 | F130: 6100009 | G130: 5147114 | H130: 5147114 | I130: 6051249 | J130: 6079463 | K130: 6331622
A131: Finance and administration | C131: =SUM(C132:C144) -> 116634000 | D131: 111774317 | E131: 117407502.1 | F131: 118504627 | G131: 112190193 | H131: 112190193 | I131: 112907171 | J131: 115391561 | K131: 119230843
A132: Administrative and Corporate Support | C132: 2599000 | D132: 33386745 | E132: 39861871.07 | F132: 48329549 | G132: 46614839 | H132: 46614839 | I132: 44953661 | J132: 45666761 | K132: 46896714
A133: Asset Management
A134: Finance | C134: 114035000 | D134: 60774835.19 | E134: 57850726.94 | F134: 47319733 | G134: 42882773 | H134: 42882773 | I134: 43649427 | J134: 43827476 | K134: 45033426
A135: Fleet Management
A136: Human Resources | C136: 0 | D136: 6856393.91 | E136: 7366608.46 | F136: 8158295 | G136: 8303895 | H136: 8303895 | I136: 8752085 | J136: 9225415 | K136: 9629029
A137: Information Technology | C137: 0 | D137: 1347608.39 | E137: 1890085.76 | F137: 3051041 | G137: 2951041 | H137: 2951041 | I137: 3144828 | J137: 3411050 | K137: 3619943
A138: Legal Services
A139: Marketing, Customer Relations, Publicity and Media Co-ordination | C139: 0 | D139: 3470095.6 | E139: 3623896.91 | F139: 3887406 | G139: 3869042 | H139: 3869042 | I139: 4112313 | J139: 4427249 | K139: 4684732
A140: Property Services
A141: Risk Management | C141: 0 | D141: 872353.32 | E141: 1125134.9 | F141: 1307248 | G141: 1117248 | H141: 1117248 | I141: 1352240 | J141: 1457079 | K141: 1529434
A142: Security Services
A143: Supply Chain Management | C143: 0 | D143: 5066285.57 | E143: 5689178.1 | F143: 6451355 | G143: 6451355 | H143: 6451355 | I143: 6942617 | J143: 7376531 | K143: 7837565
A144: Valuation Service
A145: Internal audit | C145: =SUM(C146:C146) -> 0 | D145: 2906346.19 | E145: 2977634.18 | F145: 3204820 | G145: 3099820 | H145: 3099820 | I145: 3597259 | J145: 3663857 | K145: 3857727
A146: Governance Function | C146: 0 | D146: 2906346.19 | E146: 2977634.18 | F146: 3204820 | G146: 3099820 | H146: 3099820 | I146: 3597259 | J146: 3663857 | K146: 3857727
A147: Community and public safety | C147: =C148+C170+C176+C185+C188 -> 32735000 | D147: 35334362.85 | E147: 39385613.8 | F147: 43739264 | G147: 42572727 | H147: 42572727 | I147: 48595975 | J147: 49848246 | K147: 52354386
A148: Community and social services | C148: =SUM(C149:C169) -> 20693000 | D148: =SUM(D149:D169) -> 14507369.73 | E148: 14843890.29 | F148: 16265729 | G148: 15985729 | H148: 15985729 | I148: 18583506 | J148: 18048142 | K148: 18902382
A149: Aged Care
A150: Agricultural
A151: Animal Care and Diseases
A152: Cemeteries, Funeral Parlours and Crematoriums
A153: Child Care Facilities
A154: Community Halls and Facilities
A155: Consumer Protection
A156: Cultural Matters | C156: 20693000 | D156: 2940379.62 | E156: 3127839.56 | F156: 4200578 | G156: 4180578 | H156: 4180578 | I156: 4325217 | J156: 4573575 | K156: 4837849
A157: Disaster Management | C157: 0 | D157: 11566990.11 | E157: 11716050.73 | F157: 12065151 | G157: 11805151 | H157: 11805151 | I157: 14258289 | J157: 13474567 | K157: 14064533
A158: Education
A159: =A37 -> Indigenous and Customary Law
A160: Industrial Promotion
A161: Language Policy
A162: Libraries and Archives
A163: Literacy Programmes
A164: Media Services
A165: Museums and Art Galleries
A166: Population Development
A167: Provincial Cultural Matters
A168: Theatres
A169: Zoo's
A170: Sport and recreation | C170: =SUM(C171:C175) -> 0 | D170: 0 | E170: 0 | F170: 0 | G170: 0 | H170: 0 | I170: 0 | J170: 0 | K170: 0
A171: Beaches and Jetties
A172: Casinos, Racing, Gambling, Wagering
A173: Community Parks (including Nurseries)
A174: Recreational Facilities
A175: Sports Grounds and Stadiums
A176: Public safety | C176: =SUM(C177:C184) -> 0 | D176: 0 | E176: 0 | F176: 0 | G176: 0 | H176: 0 | I176: 0 | J176: 0 | K176: 0
A177: Civil Defence
A178: Cleansing
A179: =A57 -> Control of Public Nuisances
A180: Fencing and Fences
A181: Fire Fighting and Protection
A182: Licensing and Control of Animals
A183: Police Forces, Traffic and Street Parking Control
A184: Pounds
A185: =A63 -> Housing | C185: =SUM(C186:C187) -> 0 | D185: 0 | E185: 0 | F185: 0 | G185: 0 | H185: 0 | I185: 0 | J185: 0 | K185: 0
A186: Housing
A187: Informal Settlements
A188: Health | C188: =SUM(C189:C195) -> 12042000 | D188: =SUM(D189:D195) -> 20826993.12 | E188: 24541723.51 | F188: 27473535 | G188: 26586998 | H188: 26586998 | I188: 30012469 | J188: 31800104 | K188: 33452004
A189: Ambulance
A190: Health Services | C190: 12042000 | D190: 14878380.83 | E190: 17683654.71 | F190: 18508840 | G190: 18768580 | H190: 18768580 | I190: 22687581 | J190: 22334855 | K190: 23582003
A191: Laboratory Services | C191: 0 | D191: 905281.6 | E191: 567053.35 | F191: 2041889 | G191: 2041889 | H191: 2041889 | I191: 2145042 | J191: 2273745 | K191: 2410169
A192: Food Control
A193: Health Surveillance and Prevention of Communicable Diseases including immunizations | C193: 0 | D193: 5043330.69 | E193: 6291015.45 | F193: 6922806 | G193: 5776529 | H193: 5776529 | I193: 5179846 | J193: 7191504 | K193: 7459832
A194: Vector Control
A195: Chemical Safety
A196: Economic and environmental services | C196: =C197+C208+C213 -> 26397061 | D196: 43108960.72 | E196: 42932378.27 | F196: 50774756 | G196: 49237777 | H196: 49237777 | I196: 54964604 | J196: 52635697 | K196: 51795488
A197: Planning and development | C197: =SUM(C198:C207) -> 26397061 | D197: =SUM(D198:D207) -> 39793868.99 | E197: 39593189.93 | F197: 46140310 | G197: 44919603 | H197: 44919603 | I197: 49941673 | J197: 47515730 | K197: 46396729
A198: Billboards
A199: Corporate Wide Strategic Planning (IDPs, LEDs) | C199: 0 | D199: 10548023.6 | E199: 9185741.81 | F199: 10956189 | G199: 10906189 | H199: 10906189 | I199: 11928056 | J199: 12646567 | K199: 13403355
A200: Central City Improvement District | C200: 0 | D200: 2832109.31 | E200: 2707441.59 | F200: 2945209 | G200: 2945209 | H200: 2945209 | I200: 3225406 | J200: 3418931 | K200: 3624066
A201: Development Facilitation
... 53 more rows

Sheet A3-FinPerf V
A1: =muni&" - "&Approve2 -> DC32 Ehlanzeni - Table A3 Budgeted Financial Performance (revenue and expenditure by municipal vote)
A2: =Vdesc -> Vote Description | B2: =head27 -> Ref | C2: =head1b -> 2016/17 | D2: =head1A -> 2017/18 | E2: =Head1 -> 2018/19 | F2: =Head2 -> Current Year 2019/20 | I2: =Head3 -> 2020/21 Medium Term Revenue & Expenditure Framework | L2: =Head4 -> LTFS
A3: R thousand | C3: =Head5 -> Audited Outcome | D3: =Head5 -> Audited Outcome | E3: =Head5 -> Audited Outcome | F3: =Head6 -> Original Budget | G3: =Head7 -> Adjusted Budget | H3: =Head8 -> Full Year Forecast | I3: =Head9 -> Budget Year 2020/21 | J3: =Head10 -> Budget Year +1 2021/22 | K3: =Head11 -> Budget Year +2 2022/23 | L3: =Head12 -> Forecast 2023/24 | M3: =Head13 -> Forecast 2024/25 | N3: =Head14 -> Forecast 2025/26 | O3: =Head15 -> Forecast 2026/27 | P3: =Head16 -> Forecast 2027/28 | Q3: =Head17 -> Forecast 2028/29 | R3: =Head18 -> Forecast 2029/30 | S3: =Head19 -> Forecast 2030/31 | T3: =Head20 -> Forecast 2031/32 | U3: =Head21 -> Forecast 2032/33 | V3: =Head22 -> Forecast 2033/34 | W3: =Head23 -> Forecast 2034/35
A4: Revenue by Vote | B4: 1
A5: =A3A!A5 -> Vote 01 - Council Summary | C5: =A3A!C5 -> 0 | D5: =A3A!D5 -> 0 | E5: =A3A!E5 -> 0 | F5: =A3A!F5 -> 0 | G5: =A3A!G5 -> 0 | H5: =A3A!H5 -> 0 | I5: =A3A!I5 -> 0 | J5: =A3A!J5 -> 0 | K5: =A3A!K5 -> 0
A6: =A3A!A11 -> Vote 02 - Corporate Services & Municipal Relations | C6: =A3A!C11 -> 0 | D6: =A3A!D11 -> 0 | E6: =A3A!E11 -> 0 | F6: =A3A!F11 -> 0 | G6: =A3A!G11 -> 0 | H6: =A3A!H11 -> 0 | I6: =A3A!I11 -> 0 | J6: =A3A!J11 -> 0 | K6: =A3A!K11 -> 0
A7: =A3A!A17 -> Vote 03 - Finance And Procurement | C7: =A3A!C17 -> 242171196 | D7: =A3A!D17 -> 248775425.9 | E7: =A3A!E17 -> 257367604.9 | F7: =A3A!F17 -> 268440451 | G7: =A3A!G17 -> 269693000 | H7: =A3A!H17 -> 269693000 | I7: =A3A!I17 -> 282043000 | J7: =A3A!J17 -> 290872000 | K7: =A3A!K17 -> 301796100
A8: =A3A!A26 -> Vote 04 - Local Economic Development; Tourism And Rural Devevelopment | C8: =A3A!C26 -> 0 | D8: =A3A!D26 -> 0 | E8: =A3A!E26 -> 0 | F8: =A3A!F26 -> 0 | G8: =A3A!G26 -> 0 | H8: =A3A!H26 -> 0 | I8: =A3A!I26 -> 0 | J8: =A3A!J26 -> 0 | K8: =A3A!K26 -> 0
A9: =A3A!A30 -> Vote 05 - Municipal Health & Environmental Management | C9: =A3A!C30 -> 0 | D9: =A3A!D30 -> 34851.53 | E9: =A3A!E30 -> 0 | F9: =A3A!F30 -> 0 | G9: =A3A!G30 -> 0 | H9: =A3A!H30 -> 0 | I9: =A3A!I30 -> 0 | J9: =A3A!J30 -> 0 | K9: =A3A!K30 -> 0
A10: =A3A!A35 -> Vote 06 - Office Of The Municipal Manager | C10: =A3A!C35 -> 0 | D10: =A3A!D35 -> 0 | E10: =A3A!E35 -> 6362.11 | F10: =A3A!F35 -> 0 | G10: =A3A!G35 -> 0 | H10: =A3A!H35 -> 0 | I10: =A3A!I35 -> 0 | J10: =A3A!J35 -> 0 | K10: =A3A!K35 -> 0
A11: =A3A!A45 -> Vote 07 - Social Services & Disaster Management | C11: =A3A!C45 -> 0 | D11: =A3A!D45 -> 0 | E11: =A3A!E45 -> 0 | F11: =A3A!F45 -> 0 | G11: =A3A!G45 -> 0 | H11: =A3A!H45 -> 0 | I11: =A3A!I45 -> 0 | J11: =A3A!J45 -> 0 | K11: =A3A!K45 -> 0
A12: =A3A!A50 -> Vote 08 - Technical Services | C12: =A3A!C50 -> 0 | D12: =A3A!D50 -> 0 | E12: =A3A!E50 -> 0 | F12: =A3A!F50 -> 0 | G12: =A3A!G50 -> 0 | H12: =A3A!H50 -> 0 | I12: =A3A!I50 -> 0 | J12: =A3A!J50 -> 0 | K12: =A3A!K50 -> 0
A13: ='Org structure'!A10 -> Vote 09 - | C13: =A3A!C56 -> 0 | D13: =A3A!D56 -> 0 | E13: =A3A!E56 -> 0 | F13: =A3A!F56 -> 0 | G13: =A3A!G56 -> 0 | H13: =A3A!H56 -> 0 | I13: =A3A!I56 -> 0 | J13: =A3A!J56 -> 0 | K13: =A3A!K56 -> 0
A14: ='Org structure'!A11 -> Vote 10 - | C14: =A3A!C57 -> 0 | D14: =A3A!D57 -> 0 | E14: =A3A!E57 -> 0 | F14: =A3A!F57 -> 0 | G14: =A3A!G57 -> 0 | H14: =A3A!H57 -> 0 | I14: =A3A!I57 -> 0 | J14: =A3A!J57 -> 0 | K14: =A3A!K57 -> 0
A15: ='Org structure'!A12 -> Vote 11 - | C15: =A3A!C58 -> 0 | D15: =A3A!D58 -> 0 | E15: =A3A!E58 -> 0 | F15: =A3A!F58 -> 0 | G15: =A3A!G58 -> 0 | H15: =A3A!H58 -> 0 | I15: =A3A!I58 -> 0 | J15: =A3A!J58 -> 0 | K15: =A3A!K58 -> 0 | L15: =A5A!#REF! -> 
A16: ='Org structure'!A13 -> Vote 12 - | C16: =A3A!C59 -> 0 | D16: =A3A!D59 -> 0 | E16: =A3A!E59 -> 0 | F16: =A3A!F59 -> 0 | G16: =A3A!G59 -> 0 | H16: =A3A!H59 -> 0 | I16: =A3A!I59 -> 0 | J16: =A3A!J59 -> 0 | K16: =A3A!K59 -> 0 | L16: =A5A!#REF! -> 
A17: ='Org structure'!A14 -> Vote 13 - | C17: =A3A!C60 -> 0 | D17: =A3A!D60 -> 0 | E17: =A3A!E60 -> 0 | F17: =A3A!F60 -> 0 | G17: =A3A!G60 -> 0 | H17: =A3A!H60 -> 0 | I17: =A3A!I60 -> 0 | J17: =A3A!J60 -> 0 | K17: =A3A!K60 -> 0 | L17: =A5A!#REF! -> 
A18: ='Org structure'!A15 -> Vote 14 - | C18: =A3A!C61 -> 0 | D18: =A3A!D61 -> 0 | E18: =A3A!E61 -> 0 | F18: =A3A!F61 -> 0 | G18: =A3A!G61 -> 0 | H18: =A3A!H61 -> 0 | I18: =A3A!I61 -> 0 | J18: =A3A!J61 -> 0 | K18: =A3A!K61 -> 0 | L18: =A5A!#REF! -> 
A19: ='Org structure'!A16 -> Vote 15 - Other | C19: =A3A!C62 -> 0 | D19: =A3A!D62 -> 0 | E19: =A3A!E62 -> 0 | F19: =A3A!F62 -> 0 | G19: =A3A!G62 -> 0 | H19: =A3A!H62 -> 0 | I19: =A3A!I62 -> 0 | J19: =A3A!J62 -> 0 | K19: =A3A!K62 -> 0 | L19: =A5A!#REF! -> 
A20: Total Revenue by Vote | B20: 2 | C20: =SUM(C5:C19) -> 242171196 | D20: =SUM(D5:D19) -> 248810277.4 | E20: 257373967 | F20: 268440451 | G20: 269693000 | H20: 269693000 | I20: 282043000 | J20: 290872000 | K20: 301796100
A22: Expenditure by Vote to be appropriated | B22: 1
A23: =A3A!A66 -> Vote 01 - Council Summary | C23: =A3A!C66 -> 0 | D23: =A3A!D66 -> 31721790.88 | E23: =A3A!E66 -> 36703570.67 | F23: =A3A!F66 -> 42627575 | G23: =A3A!G66 -> 40524575 | H23: =A3A!H66 -> 40524575 | I23: =A3A!I66 -> 40780079 | J23: =A3A!J66 -> 45042993 | K23: =A3A!K66 -> 46979687
A24: =A3A!A72 -> Vote 02 - Corporate Services & Municipal Relations | C24: =A3A!C72 -> 0 | D24: =A3A!D72 -> 39422947.44 | E24: =A3A!E72 -> 40933643.77 | F24: =A3A!F72 -> 47267479 | G24: =A3A!G72 -> 47817859 | H24: =A3A!H72 -> 47817859 | I24: =A3A!I72 -> 48602679 | J24: =A3A!J72 -> 49992025 | K24: =A3A!K72 -> 51874329
A25: =A3A!A78 -> Vote 03 - Finance And Procurement | C25: =A3A!C78 -> 0 | D25: =A3A!D78 -> 73024041.89 | E25: =A3A!E78 -> 77150285.52 | F25: =A3A!F78 -> 72192793 | G25: =A3A!G78 -> 65090997 | H25: =A3A!H78 -> 65090997 | I25: =A3A!I78 -> 64944502 | J25: =A3A!J78 -> 66095169 | K25: =A3A!K78 -> 68104062
A26: =A3A!A87 -> Vote 04 - Local Economic Development; Tourism And Rural Devevelopment | C26: =A3A!C87 -> 0 | D26: =A3A!D87 -> 20222410.98 | E26: =A3A!E87 -> 21745161.84 | F26: =A3A!F87 -> 23089442 | G26: =A3A!G87 -> 22484442 | H26: =A3A!H87 -> 22484442 | I26: =A3A!I87 -> 25718459 | J26: =A3A!J87 -> 21660172 | K26: =A3A!K87 -> 19018381
A27: =A3A!A91 -> Vote 05 - Municipal Health & Environmental Management | C27: =A3A!C91 -> 0 | D27: =A3A!D91 -> 17308983.8 | E27: =A3A!E91 -> 19645851.83 | F27: =A3A!F91 -> 23098450 | G27: =A3A!G91 -> 23041918 | H27: =A3A!H91 -> 23041918 | I27: =A3A!I91 -> 27206826 | J27: =A3A!J91 -> 27138495 | K27: =A3A!K91 -> 28650527
A28: =A3A!A96 -> Vote 06 - Office Of The Municipal Manager | C28: =A3A!C96 -> 0 | D28: =A3A!D96 -> 21674908.04 | E28: =A3A!E96 -> 21457286.32 | F28: =A3A!F96 -> 25675986 | G28: =A3A!G96 -> 24378091 | H28: =A3A!H96 -> 24378091 | I28: =A3A!I96 -> 27448473 | J28: =A3A!J96 -> 28637815 | K28: =A3A!K96 -> 30200438
A29: =A3A!A106 -> Vote 07 - Social Services & Disaster Management | C29: =A3A!C106 -> 0 | D29: =A3A!D106 -> 20011360.1 | E29: =A3A!E106 -> 21526291.54 | F29: =A3A!F106 -> 25020377 | G29: =A3A!G106 -> 23601275 | H29: =A3A!H106 -> 23601275 | I29: =A3A!I106 -> 25636352 | J29: =A3A!J106 -> 27225026 | K29: =A3A!K106 -> 28466716
A30: =A3A!A111 -> Vote 08 - Technical Services | C30: =A3A!C111 -> 0 | D30: =A3A!D111 -> 6651697.27 | E30: =A3A!E111 -> 6448923.77 | F30: =A3A!F111 -> 8224672 | G30: =A3A!G111 -> 7903772 | H30: =A3A!H111 -> 7903772 | I30: =A3A!I111 -> 8855959 | J30: =A3A!J111 -> 9386687 | K30: =A3A!K111 -> 9918127
A31: ='Org structure'!A10 -> Vote 09 - | C31: =A3A!C117 -> 0 | D31: =A3A!D117 -> 0 | E31: =A3A!E117 -> 0 | F31: =A3A!F117 -> 0 | G31: =A3A!G117 -> 0 | H31: =A3A!H117 -> 0 | I31: =A3A!I117 -> 0 | J31: =A3A!J117 -> 0 | K31: =A3A!K117 -> 0
A32: ='Org structure'!A11 -> Vote 10 - | C32: =A3A!C118 -> 0 | D32: =A3A!D118 -> 0 | E32: =A3A!E118 -> 0 | F32: =A3A!F118 -> 0 | G32: =A3A!G118 -> 0 | H32: =A3A!H118 -> 0 | I32: =A3A!I118 -> 0 | J32: =A3A!J118 -> 0 | K32: =A3A!K118 -> 0
A33: ='Org structure'!A12 -> Vote 11 - | C33: =A3A!C119 -> 0 | D33: =A3A!D119 -> 0 | E33: =A3A!E119 -> 0 | F33: =A3A!F119 -> 0 | G33: =A3A!G119 -> 0 | H33: =A3A!H119 -> 0 | I33: =A3A!I119 -> 0 | J33: =A3A!J119 -> 0 | K33: =A3A!K119 -> 0 | L33: =A3A!#REF! -> 
A34: ='Org structure'!A13 -> Vote 12 - | C34: =A3A!C120 -> 0 | D34: =A3A!D120 -> 0 | E34: =A3A!E120 -> 0 | F34: =A3A!F120 -> 0 | G34: =A3A!G120 -> 0 | H34: =A3A!H120 -> 0 | I34: =A3A!I120 -> 0 | J34: =A3A!J120 -> 0 | K34: =A3A!K120 -> 0 | L34: =A3A!#REF! -> 
A35: ='Org structure'!A14 -> Vote 13 - | C35: =A3A!C121 -> 0 | D35: =A3A!D121 -> 0 | E35: =A3A!E121 -> 0 | F35: =A3A!F121 -> 0 | G35: =A3A!G121 -> 0 | H35: =A3A!H121 -> 0 | I35: =A3A!I121 -> 0 | J35: =A3A!J121 -> 0 | K35: =A3A!K121 -> 0 | L35: =A3A!#REF! -> 
A36: ='Org structure'!A15 -> Vote 14 - | C36: =A3A!C122 -> 0 | D36: =A3A!D122 -> 0 | E36: =A3A!E122 -> 0 | F36: =A3A!F122 -> 0 | G36: =A3A!G122 -> 0 | H36: =A3A!H122 -> 0 | I36: =A3A!I122 -> 0 | J36: =A3A!J122 -> 0 | K36: =A3A!K122 -> 0 | L36: =A3A!#REF! -> 
A37: ='Org structure'!A16 -> Vote 15 - Other | C37: =A3A!C123 -> 0 | D37: =A3A!D123 -> 0 | E37: =A3A!E123 -> 0 | F37: =A3A!F123 -> 0 | G37: =A3A!G123 -> 0 | H37: =A3A!H123 -> 0 | I37: =A3A!I123 -> 0 | J37: =A3A!J123 -> 0 | K37: =A3A!K123 -> 0 | L37: =A3A!#REF! -> 
A38: Total Expenditure by Vote | B38: 2 | C38: =SUM(C23:C37) -> 0 | D38: =SUM(D23:D37) -> 230038140.4 | E38: 245611015.3 | F38: 267196774 | G38: 254842929 | H38: 254842929 | I38: 269193329 | J38: 275178382 | K38: 283212267 | L38: =SUM(L23:L29) -> 0 | M38: 0 | N38: 0 | O38: 0 | P38: 0 | Q38: 0 | R38: 0 | S38: 0 | T38: 0 | U38: 0 | V38: 0 | W38: 0
A39: =result -> Surplus/(Deficit) for the year | B39: 2 | C39: =C20-C38 -> 242171196 | D39: 18772137.05 | E39: 11762951.75 | F39: 1243677 | G39: 14850071 | H39: 14850071 | I39: 12849671 | J39: 15693618 | K39: 18583833 | L39: 0 | M39: 0 | N39: 0 | O39: 0 | P39: 0 | Q39: 0 | R39: 0 | S39: 0 | T39: 0 | U39: 0 | V39: 0 | W39: 0
A40: =head27a -> References
A41: 1. Insert 'Vote'; e.g. department, if different to functional classification structure
A42: 2. Must reconcile to Budgeted Financial Performance (revenue and expenditure)
A43: 3. Assign share in 'associate' to relevant Vote
A45: ="check "&A39 -> check Surplus/(Deficit) for the year | C45: =C39-A3A!C126 -> 0 | D45: =D39-A3A!D126 -> 0 | E45: =E39-A3A!E126 -> 0 | F45: =F39-A3A!F126 -> 0 | G45: =G39-A3A!G126 -> 0 | H45: =H39-A3A!H126 -> 0 | I45: =I39-A3A!I126 -> 0 | J45: =J39-A3A!J126 -> 0 | K45: =K39-A3A!K126 -> 0

Sheet A3A
A1: =muni&" - "&Approve2&"A" -> DC32 Ehlanzeni - Table A3 Budgeted Financial Performance (revenue and expenditure by municipal vote)A
A2: =Vdesc -> Vote Description | B2: =head27 -> Ref | C2: =head1b -> 2016/17 | D2: =head1A -> 2017/18 | E2: =Head1 -> 2018/19 | F2: =Head2 -> Current Year 2019/20 | I2: =Head3 -> 2020/21 Medium Term Revenue & Expenditure Framework | L2: =Head4 -> LTFS
A3: R thousand | C3: =Head5 -> Audited Outcome | D3: =Head5 -> Audited Outcome | E3: =Head5 -> Audited Outcome | F3: =Head6 -> Original Budget | G3: =Head7 -> Adjusted Budget | H3: =Head8 -> Full Year Forecast | I3: =Head9 -> Budget Year 2020/21 | J3: =Head10 -> Budget Year +1 2021/22 | K3: =Head11 -> Budget Year +2 2022/23 | L3: =Head12 -> Forecast 2023/24 | M3: =Head13 -> Forecast 2024/25 | N3: =Head14 -> Forecast 2025/26 | O3: =Head15 -> Forecast 2026/27 | P3: =Head16 -> Forecast 2027/28 | Q3: =Head17 -> Forecast 2028/29 | R3: =Head18 -> Forecast 2029/30 | S3: =Head19 -> Forecast 2030/31 | T3: =Head20 -> Forecast 2031/32 | U3: =Head21 -> Forecast 2032/33 | V3: =Head22 -> Forecast 2033/34 | W3: =Head23 -> Forecast 2034/35
A4: Revenue by Vote | B4: 1
A5: ='Org structure'!A2 -> Vote 01 - Council Summary | C5: =SUM(C6:C10) -> 0 | D5: 0 | E5: 0 | F5: 0 | G5: 0 | H5: 0 | I5: 0 | J5: 0 | K5: 0
A6: ='Org structure'!E3 -> 01.1 - Office Of The Executive Mayor | C6: 0 | D6: 0 | E6: 0 | F6: 0 | G6: 0 | H6: 0 | I6: 0 | J6: 0 | K6: 0
A7: ='Org structure'!E4 -> 01.2 - Office Of The Speaker | C7: 0 | D7: 0 | E7: 0 | F7: 0 | G7: 0 | H7: 0 | I7: 0 | J7: 0 | K7: 0
A8: ='Org structure'!E5 -> 01.3 - Office Of The Chief Whip | C8: 0 | D8: 0 | E8: 0 | F8: 0 | G8: 0 | H8: 0 | I8: 0 | J8: 0 | K8: 0
A9: ='Org structure'!E6 -> 01.4 - Chairperson: Mpac | C9: 0 | D9: 0 | E9: 0 | F9: 0 | G9: 0 | H9: 0 | I9: 0 | J9: 0 | K9: 0
A10: ='Org structure'!E7 -> 01.5 - Mayoral Committee | C10: 0 | D10: 0 | E10: 0 | F10: 0 | G10: 0 | H10: 0 | I10: 0 | J10: 0 | K10: 0
A11: ='Org structure'!A3 -> Vote 02 - Corporate Services & Municipal Relations | C11: =SUM(C12:C16) -> 0 | D11: 0 | E11: 0 | F11: 0 | G11: 0 | H11: 0 | I11: 0 | J11: 0 | K11: 0
A12: ='Org structure'!E9 -> 02.1 - Administration | C12: 0 | D12: 0 | E12: 0 | F12: 0 | G12: 0 | H12: 0 | I12: 0 | J12: 0 | K12: 0
A13: ='Org structure'!E10 -> 02.2 - Igr | C13: 0 | D13: 0 | E13: 0 | F13: 0 | G13: 0 | H13: 0 | I13: 0 | J13: 0 | K13: 0
A14: ='Org structure'!E11 -> 02.3 - Human Resources | C14: 0 | D14: 0 | E14: 0 | F14: 0 | G14: 0 | H14: 0 | I14: 0 | J14: 0 | K14: 0
A15: ='Org structure'!E12 -> 02.4 - Communications; Marketing And Events | C15: 0 | D15: 0 | E15: 0 | F15: 0 | G15: 0 | H15: 0 | I15: 0 | J15: 0 | K15: 0
A16: ='Org structure'!E13 -> 02.5 - Electricity Reporting Function | C16: 0 | D16: 0 | E16: 0 | F16: 0 | G16: 0 | H16: 0 | I16: 0 | J16: 0 | K16: 0
A17: ='Org structure'!A4 -> Vote 03 - Finance And Procurement | C17: =SUM(C18:C25) -> 242171196 | D17: 248775425.9 | E17: 257367604.9 | F17: 268440451 | G17: 269693000 | H17: 269693000 | I17: 282043000 | J17: 290872000 | K17: 301796100
A18: ='Org structure'!E15 -> 03.1 - Administration | C18: 0 | D18: 0 | E18: 0 | F18: 0 | G18: 0 | H18: 0 | I18: 0 | J18: 0 | K18: 0
A19: ='Org structure'!E16 -> 03.2 - Cfo Office | C19: 242171196 | D19: 248775425.9 | E19: 257367604.9 | F19: 268440451 | G19: 269693000 | H19: 269693000 | I19: 282043000 | J19: 290872000 | K19: 301796100
A20: ='Org structure'!E17 -> 03.3 - Information Technology | C20: 0 | D20: 0 | E20: 0 | F20: 0 | G20: 0 | H20: 0 | I20: 0 | J20: 0 | K20: 0
A21: ='Org structure'!E18 -> 03.4 - Supply Chain Management | C21: 0 | D21: 0 | E21: 0 | F21: 0 | G21: 0 | H21: 0 | I21: 0 | J21: 0 | K21: 0
A22: ='Org structure'!E19 -> 03.5 - Budget And Reporting | C22: 0 | D22: 0 | E22: 0 | F22: 0 | G22: 0 | H22: 0 | I22: 0 | J22: 0 | K22: 0
A23: ='Org structure'!E20 -> 03.6 - Budget And Reporting | C23: 0 | D23: 0 | E23: 0 | F23: 0 | G23: 0 | H23: 0 | I23: 0 | J23: 0 | K23: 0
A24: ='Org structure'!E21 -> 03.7 - Treasury | C24: 0 | D24: 0 | E24: 0 | F24: 0 | G24: 0 | H24: 0 | I24: 0 | J24: 0 | K24: 0
A25: ='Org structure'!E22 -> 03.8 - Treasury | C25: 0 | D25: 0 | E25: 0 | F25: 0 | G25: 0 | H25: 0 | I25: 0 | J25: 0 | K25: 0
A26: ='Org structure'!A5 -> Vote 04 - Local Economic Development; Tourism And Rural Devevelopment | C26: =SUM(C27:C29) -> 0 | D26: 0 | E26: 0 | F26: 0 | G26: 0 | H26: 0 | I26: 0 | J26: 0 | K26: 0
A27: ='Org structure'!E24 -> 04.1 - Administration | C27: 0 | D27: 0 | E27: 0 | F27: 0 | G27: 0 | H27: 0 | I27: 0 | J27: 0 | K27: 0
A28: ='Org structure'!E25 -> 04.2 - Rural Development | C28: 0 | D28: 0 | E28: 0 | F28: 0 | G28: 0 | H28: 0 | I28: 0 | J28: 0 | K28: 0
A29: ='Org structure'!E26 -> 04.3 - Led & Tourism | C29: 0 | D29: 0 | E29: 0 | F29: 0 | G29: 0 | H29: 0 | I29: 0 | J29: 0 | K29: 0
A30: ='Org structure'!A6 -> Vote 05 - Municipal Health & Environmental Management | C30: =SUM(C31:C34) -> 0 | D30: 34851.53 | E30: 0 | F30: 0 | G30: 0 | H30: 0 | I30: 0 | J30: 0 | K30: 0
A31: ='Org structure'!E28 -> 05.1 - Administration | C31: 0 | D31: 0 | E31: 0 | F31: 0 | G31: 0 | H31: 0 | I31: 0 | J31: 0 | K31: 0
A32: ='Org structure'!E29 -> 05.2 - Municipal Health | C32: 0 | D32: 34851.53 | E32: 0 | F32: 0 | G32: 0 | H32: 0 | I32: 0 | J32: 0 | K32: 0
A33: ='Org structure'!E30 -> 05.3 - Laboratory Services | C33: 0 | D33: 0 | E33: 0 | F33: 0 | G33: 0 | H33: 0 | I33: 0 | J33: 0 | K33: 0
A34: ='Org structure'!E31 -> 05.4 - Environmental Services | C34: 0 | D34: 0 | E34: 0 | F34: 0 | G34: 0 | H34: 0 | I34: 0 | J34: 0 | K34: 0
A35: ='Org structure'!A7 -> Vote 06 - Office Of The Municipal Manager | C35: =SUM(C36:C44) -> 0 | D35: 0 | E35: 6362.11 | F35: 0 | G35: 0 | H35: 0 | I35: 0 | J35: 0 | K35: 0
A36: ='Org structure'!E33 -> 06.1 - Administration | C36: 0 | D36: 0 | E36: 6362.11 | F36: 0 | G36: 0 | H36: 0 | I36: 0 | J36: 0 | K36: 0
A37: ='Org structure'!E34 -> 06.2 - Internal Audit | C37: 0 | D37: 0 | E37: 0 | F37: 0 | G37: 0 | H37: 0 | I37: 0 | J37: 0 | K37: 0
A38: ='Org structure'!E35 -> 06.3 - Risk Management | C38: 0 | D38: 0 | E38: 0 | F38: 0 | G38: 0 | H38: 0 | I38: 0 | J38: 0 | K38: 0
A39: ='Org structure'!E36 -> 06.4 - Administration | C39: 0 | D39: 0 | E39: 0 | F39: 0 | G39: 0 | H39: 0 | I39: 0 | J39: 0 | K39: 0
A40: ='Org structure'!E37 -> 06.5 - M&E | C40: 0 | D40: 0 | E40: 0 | F40: 0 | G40: 0 | H40: 0 | I40: 0 | J40: 0 | K40: 0
A41: ='Org structure'!E38 -> 06.6 - Performance Management | C41: 0 | D41: 0 | E41: 0 | F41: 0 | G41: 0 | H41: 0 | I41: 0 | J41: 0 | K41: 0
A42: ='Org structure'!E39 -> 06.7 - Strategic Planning | C42: 0 | D42: 0 | E42: 0 | F42: 0 | G42: 0 | H42: 0 | I42: 0 | J42: 0 | K42: 0
A43: ='Org structure'!E40 -> 06.8 - Geographical Information Management | C43: 0 | D43: 0 | E43: 0 | F43: 0 | G43: 0 | H43: 0 | I43: 0 | J43: 0 | K43: 0
A44: ='Org structure'!E41 -> 06.9 - Spatial Planning | C44: 0 | D44: 0 | E44: 0 | F44: 0 | G44: 0 | H44: 0 | I44: 0 | J44: 0 | K44: 0
A45: ='Org structure'!A8 -> Vote 07 - Social Services & Disaster Management | C45: =SUM(C46:C49) -> 0 | D45: 0 | E45: 0 | F45: 0 | G45: 0 | H45: 0 | I45: 0 | J45: 0 | K45: 0
A46: ='Org structure'!E43 -> 07.1 - Administration | C46: 0 | D46: 0 | E46: 0 | F46: 0 | G46: 0 | H46: 0 | I46: 0 | J46: 0 | K46: 0
A47: ='Org structure'!E44 -> 07.2 - Social Services | C47: 0 | D47: 0 | E47: 0 | F47: 0 | G47: 0 | H47: 0 | I47: 0 | J47: 0 | K47: 0
A48: ='Org structure'!E45 -> 07.3 - Transversal Programmes | C48: 0 | D48: 0 | E48: 0 | F48: 0 | G48: 0 | H48: 0 | I48: 0 | J48: 0 | K48: 0
A49: ='Org structure'!E46 -> 07.4 - Disaster Management | C49: 0 | D49: 0 | E49: 0 | F49: 0 | G49: 0 | H49: 0 | I49: 0 | J49: 0 | K49: 0
A50: ='Org structure'!A9 -> Vote 08 - Technical Services | C50: =SUM(C51:C55) -> 0 | D50: 0 | E50: 0 | F50: 0 | G50: 0 | H50: 0 | I50: 0 | J50: 0 | K50: 0
A51: ='Org structure'!E48 -> 08.1 - Administration | C51: 0 | D51: 0 | E51: 0 | F51: 0 | G51: 0 | H51: 0 | I51: 0 | J51: 0 | K51: 0
A52: ='Org structure'!E49 -> 08.2 - Water | C52: 0 | D52: 0 | E52: 0 | F52: 0 | G52: 0 | H52: 0 | I52: 0 | J52: 0 | K52: 0
A53: ='Org structure'!E50 -> 08.3 - Sanitation | C53: 0 | D53: 0 | E53: 0 | F53: 0 | G53: 0 | H53: 0 | I53: 0 | J53: 0 | K53: 0
A54: ='Org structure'!E51 -> 08.4 - Roads And Transport | C54: 0 | D54: 0 | E54: 0 | F54: 0 | G54: 0 | H54: 0 | I54: 0 | J54: 0 | K54: 0
A55: ='Org structure'!E52 -> 08.5 - Civil Services | C55: 0 | D55: 0 | E55: 0 | F55: 0 | G55: 0 | H55: 0 | I55: 0 | J55: 0 | K55: 0
A56: ='Org structure'!A10 -> Vote 09 - | C56: 0 | D56: 0 | E56: 0 | F56: 0 | G56: 0 | H56: 0 | I56: 0 | J56: 0 | K56: 0
A57: ='Org structure'!A11 -> Vote 10 - | C57: 0 | D57: 0 | E57: 0 | F57: 0 | G57: 0 | H57: 0 | I57: 0 | J57: 0 | K57: 0
A58: ='Org structure'!A12 -> Vote 11 - | C58: 0 | D58: 0 | E58: 0 | F58: 0 | G58: 0 | H58: 0 | I58: 0 | J58: 0 | K58: 0
A59: ='Org structure'!A13 -> Vote 12 - | C59: 0 | D59: 0 | E59: 0 | F59: 0 | G59: 0 | H59: 0 | I59: 0 | J59: 0 | K59: 0
A60: ='Org structure'!A14 -> Vote 13 - | C60: 0 | D60: 0 | E60: 0 | F60: 0 | G60: 0 | H60: 0 | I60: 0 | J60: 0 | K60: 0
A61: ='Org structure'!A15 -> Vote 14 - | C61: 0 | D61: 0 | E61: 0 | F61: 0 | G61: 0 | H61: 0 | I61: 0 | J61: 0 | K61: 0
A62: ='Org structure'!A16 -> Vote 15 - Other | C62: 0 | D62: 0 | E62: 0 | F62: 0 | G62: 0 | H62: 0 | I62: 0 | J62: 0 | K62: 0
A63: Total Revenue by Vote | B63: 2 | C63: =C5+C11+C17+C26+C30+C35+C45+C50+C56+C57+C58+C59+C60+C61+C62 -> 242171196 | D63: 248810277.4 | E63: 257373967 | F63: 268440451 | G63: 269693000 | H63: 269693000 | I63: 282043000 | J63: 290872000 | K63: 301796100 | L63: =SUM(#REF!) ->  | M63: =SUM(#REF!) ->  | N63: =SUM(#REF!) ->  | O63: =SUM(#REF!) ->  | P63: =SUM(#REF!) ->  | Q63: =SUM(#REF!) ->  | R63: =SUM(#REF!) ->  | S63: =SUM(#REF!) ->  | T63: =SUM(#REF!) ->  | U63: =SUM(#REF!) ->  | V63: =SUM(#REF!) ->  | W63: =SUM(#REF!) -> 
A65: Expenditure by Vote | B65: 1
A66: ='Org structure'!A2 -> Vote 01 - Council Summary | C66: =SUM(C67:C71) -> 0 | D66: 31721790.88 | E66: 36703570.67 | F66: 42627575 | G66: 40524575 | H66: 40524575 | I66: 40780079 | J66: 45042993 | K66: 46979687
A67: ='Org structure'!E3 -> 01.1 - Office Of The Executive Mayor | C67: 0 | D67: 4148924.45 | E67: 5697885.43 | F67: 7778004 | G67: 6678004 | H67: 6678004 | I67: 7764080 | J67: 7909418 | K67: 8205954
A68: ='Org structure'!E4 -> 01.2 - Office Of The Speaker | C68: 0 | D68: 17945234.38 | E68: 20736494.98 | F68: 23381785 | G68: 22578785 | H68: 22578785 | I68: 21338474 | J68: 24655842 | K68: 25684478
A69: ='Org structure'!E5 -> 01.3 - Office Of The Chief Whip | C69: 0 | D69: 1428298.65 | E69: 1260507.14 | F69: 1454296 | G69: 1454296 | H69: 1454296 | I69: 1387742 | J69: 1475458 | K69: 1547514
A70: ='Org structure'!E6 -> 01.4 - Chairperson: Mpac | C70: 0 | D70: 1498.24 | E70: 0 | F70: 0 | G70: 0 | H70: 0 | I70: 0 | J70: 0 | K70: 0
A71: ='Org structure'!E7 -> 01.5 - Mayoral Committee | C71: 0 | D71: 8197835.16 | E71: 9008683.12 | F71: 10013490 | G71: 9813490 | H71: 9813490 | I71: 10289783 | J71: 11002275 | K71: 11541741
A72: ='Org structure'!A3 -> Vote 02 - Corporate Services & Municipal Relations | C72: =SUM(C73:C77) -> 0 | D72: 39422947.44 | E72: 40933643.77 | F72: 47267479 | G72: 47817859 | H72: 47817859 | I72: 48602679 | J72: 49992025 | K72: 51874329
A73: ='Org structure'!E9 -> 02.1 - Administration | C73: 0 | D73: 27518393.9 | E73: 28141576.35 | F73: 32958885 | G73: 33809011 | H73: 33809011 | I73: 33746031 | J73: 34186649 | K73: 35283586
A74: ='Org structure'!E10 -> 02.2 - Igr | C74: 0 | D74: 1578064.03 | E74: 1801562.05 | F74: 2262893 | G74: 1835911 | H74: 1835911 | I74: 1992250 | J74: 2152712 | K74: 2276982
A75: ='Org structure'!E11 -> 02.3 - Human Resources | C75: 0 | D75: 6856393.91 | E75: 7366608.46 | F75: 8158295 | G75: 8303895 | H75: 8303895 | I75: 8752085 | J75: 9225415 | K75: 9629029
A76: ='Org structure'!E12 -> 02.4 - Communications; Marketing And Events | C76: 0 | D76: 3470095.6 | E76: 3623896.91 | F76: 3887406 | G76: 3869042 | H76: 3869042 | I76: 4112313 | J76: 4427249 | K76: 4684732
A77: ='Org structure'!E13 -> 02.5 - Electricity Reporting Function | C77: 0 | D77: 0 | E77: 0 | F77: 0 | G77: 0 | H77: 0 | I77: 0 | J77: 0 | K77: 0
A78: ='Org structure'!A4 -> Vote 03 - Finance And Procurement | C78: =SUM(C79:C86) -> 0 | D78: 73024041.89 | E78: 77150285.52 | F78: 72192793 | G78: 65090997 | H78: 65090997 | I78: 64944502 | J78: 66095169 | K78: 68104062
A79: ='Org structure'!E15 -> 03.1 - Administration | C79: 0 | D79: 5835312.74 | E79: 11720294.72 | F79: 15370664 | G79: 12805828 | H79: 12805828 | I79: 11207630 | J79: 11480112 | K79: 11613128
A80: ='Org structure'!E16 -> 03.2 - Cfo Office | C80: 0 | D80: 29910595.25 | E80: 25759343.34 | F80: 7282693 | G80: 9182693 | H80: 9182693 | I80: 7507690 | J80: 6761989 | K80: 6962215
A81: ='Org structure'!E17 -> 03.3 - Information Technology | C81: 0 | D81: 1347608.39 | E81: 1890085.76 | F81: 3051041 | G81: 2951041 | H81: 2951041 | I81: 3144828 | J81: 3411050 | K81: 3619943
A82: ='Org structure'!E18 -> 03.4 - Supply Chain Management | C82: 0 | D82: 5066285.57 | E82: 5689178.1 | F82: 6451355 | G82: 6451355 | H82: 6451355 | I82: 6942617 | J82: 7376531 | K82: 7837565
A83: ='Org structure'!E19 -> 03.5 - Budget And Reporting | C83: 0 | D83: 0 | E83: 0 | F83: 0 | G83: 0 | H83: 0 | I83: 0 | J83: 0 | K83: 0
A84: ='Org structure'!E20 -> 03.6 - Budget And Reporting | C84: 0 | D84: 4952539.52 | E84: 5265250.19 | F84: 6197217 | G84: 5997217 | H84: 5997217 | I84: 6629945 | J84: 6983968 | K84: 7357341
A85: ='Org structure'!E21 -> 03.7 - Treasury | C85: 0 | D85: 21394360.05 | E85: 26826133.41 | F85: 33839823 | G85: 27702863 | H85: 27702863 | I85: 29511792 | J85: 30081519 | K85: 30713870
A86: ='Org structure'!E22 -> 03.8 - Treasury | C86: 0 | D86: 4517340.37 | E86: 0 | F86: 0 | G86: 0 | H86: 0 | I86: 0 | J86: 0 | K86: 0
A87: ='Org structure'!A5 -> Vote 04 - Local Economic Development; Tourism And Rural Devevelopment | C87: =SUM(C88:C90) -> 0 | D87: 20222410.98 | E87: 21745161.84 | F87: 23089442 | G87: 22484442 | H87: 22484442 | I87: 25718459 | J87: 21660172 | K87: 19018381
A88: ='Org structure'!E24 -> 04.1 - Administration | C88: 0 | D88: 1141283.63 | E88: 2627948.4 | F88: 3071894 | G88: 3261894 | H88: 3261894 | I88: 2653351 | J88: 3292652 | K88: 3444849
A89: ='Org structure'!E25 -> 04.2 - Rural Development | C89: 0 | D89: 3791959.08 | E89: 3459890.22 | F89: 4795915 | G89: 4370915 | H89: 4370915 | I89: 4860828 | J89: 5071947 | K89: 5298479
A90: ='Org structure'!E26 -> 04.3 - Led & Tourism | C90: 0 | D90: 15289168.27 | E90: 15657323.22 | F90: 15221633 | G90: 14851633 | H90: 14851633 | I90: 18204280 | J90: 13295573 | K90: 10275053
A91: ='Org structure'!A6 -> Vote 05 - Municipal Health & Environmental Management | C91: =SUM(C92:C95) -> 0 | D91: 17308983.8 | E91: 19645851.83 | F91: 23098450 | G91: 23041918 | H91: 23041918 | I91: 27206826 | J91: 27138495 | K91: 28650527
A92: ='Org structure'!E28 -> 05.1 - Administration | C92: 0 | D92: 33038.36 | E92: 0 | F92: 0 | G92: 0 | H92: 0 | I92: 0 | J92: 0 | K92: 0
A93: ='Org structure'!E29 -> 05.2 - Municipal Health | C93: 0 | D93: 14878380.83 | E93: 17683654.71 | F93: 18508840 | G93: 18768580 | H93: 18768580 | I93: 22687581 | J93: 22334855 | K93: 23582003
A94: ='Org structure'!E30 -> 05.3 - Laboratory Services | C94: 0 | D94: 905281.6 | E94: 567053.35 | F94: 2041889 | G94: 2041889 | H94: 2041889 | I94: 2145042 | J94: 2273745 | K94: 2410169
A95: ='Org structure'!E31 -> 05.4 - Environmental Services | C95: 0 | D95: 1492283.01 | E95: 1395143.77 | F95: 2547721 | G95: 2231449 | H95: 2231449 | I95: 2374203 | J95: 2529895 | K95: 2658355
A96: ='Org structure'!A7 -> Vote 06 - Office Of The Municipal Manager | C96: =SUM(C97:C105) -> 0 | D96: 21674908.04 | E96: 21457286.32 | F96: 25675986 | G96: 24378091 | H96: 24378091 | I96: 27448473 | J96: 28637815 | K96: 30200438
A97: ='Org structure'!E33 -> 06.1 - Administration | C97: 0 | D97: 3503328.05 | E97: 4378099.6 | F97: 6100009 | G97: 5147114 | H97: 5147114 | I97: 6051249 | J97: 6079463 | K97: 6331622
A98: ='Org structure'!E34 -> 06.2 - Internal Audit | C98: 0 | D98: 2906346.19 | E98: 2977634.18 | F98: 3204820 | G98: 3099820 | H98: 3099820 | I98: 3597259 | J98: 3663857 | K98: 3857727
A99: ='Org structure'!E35 -> 06.3 - Risk Management | C99: 0 | D99: 872353.32 | E99: 1125134.9 | F99: 1307248 | G99: 1117248 | H99: 1117248 | I99: 1352240 | J99: 1457079 | K99: 1529434
A100: ='Org structure'!E36 -> 06.4 - Administration | C100: 0 | D100: 3140725.52 | E100: 10194.61 | F100: 0 | G100: 0 | H100: 0 | I100: 0 | J100: 0 | K100: 0
A101: ='Org structure'!E37 -> 06.5 - M&E | C101: 0 | D101: 2686614.59 | E101: 3996012.32 | F101: 5710644 | G101: 5660644 | H101: 5660644 | I101: 6156863 | J101: 6529103 | K101: 6918842
A102: ='Org structure'!E38 -> 06.6 - Performance Management | C102: 0 | D102: 0 | E102: 0 | F102: 0 | G102: 0 | H102: 0 | I102: 0 | J102: 0 | K102: 0
A103: ='Org structure'!E39 -> 06.7 - Strategic Planning | C103: 0 | D103: 4720683.49 | E103: 5179534.88 | F103: 5245545 | G103: 5245545 | H103: 5245545 | I103: 5771193 | J103: 6117464 | K103: 6484513
A104: ='Org structure'!E40 -> 06.8 - Geographical Information Management | C104: 0 | D104: 2832109.31 | E104: 2707441.59 | F104: 2945209 | G104: 2945209 | H104: 2945209 | I104: 3225406 | J104: 3418931 | K104: 3624066
A105: ='Org structure'!E41 -> 06.9 - Spatial Planning | C105: 0 | D105: 1012747.57 | E105: 1083234.24 | F105: 1162511 | G105: 1162511 | H105: 1162511 | I105: 1294263 | J105: 1371918 | K105: 1454234
A106: ='Org structure'!A8 -> Vote 07 - Social Services & Disaster Management | C106: =SUM(C107:C110) -> 0 | D106: 20011360.1 | E106: 21526291.54 | F106: 25020377 | G106: 23601275 | H106: 23601275 | I106: 25636352 | J106: 27225026 | K106: 28466716
A107: ='Org structure'!E43 -> 07.1 - Administration | C107: 0 | D107: 460659.68 | E107: 391385.8 | F107: 1831842 | G107: 1839017 | H107: 1839017 | I107: 1873000 | J107: 1985380 | K107: 2104502
A108: ='Org structure'!E44 -> 07.2 - Social Services | C108: 0 | D108: 5043330.69 | E108: 6291015.45 | F108: 6922806 | G108: 5776529 | H108: 5776529 | I108: 5179846 | J108: 7191504 | K108: 7459832
A109: ='Org structure'!E45 -> 07.3 - Transversal Programmes | C109: 0 | D109: 2940379.62 | E109: 3127839.56 | F109: 4200578 | G109: 4180578 | H109: 4180578 | I109: 4325217 | J109: 4573575 | K109: 4837849
A110: ='Org structure'!E46 -> 07.4 - Disaster Management | C110: 0 | D110: 11566990.11 | E110: 11716050.73 | F110: 12065151 | G110: 11805151 | H110: 11805151 | I110: 14258289 | J110: 13474567 | K110: 14064533
A111: ='Org structure'!A9 -> Vote 08 - Technical Services | C111: =SUM(C112:C116) -> 0 | D111: 6651697.27 | E111: 6448923.77 | F111: 8224672 | G111: 7903772 | H111: 7903772 | I111: 8855959 | J111: 9386687 | K111: 9918127
A112: ='Org structure'!E48 -> 08.1 - Administration | C112: 0 | D112: 1455366.83 | E112: 528122.47 | F112: 1904275 | G112: 1758375 | H112: 1758375 | I112: 1705344 | J112: 1942860 | K112: 2037789
A113: ='Org structure'!E49 -> 08.2 - Water | C113: 0 | D113: 1689034.73 | E113: 1826216.6 | F113: 2245723 | G113: 2070723 | H113: 2070723 | I113: 2296992 | J113: 2516565 | K113: 2662514
A114: ='Org structure'!E50 -> 08.3 - Sanitation | C114: 0 | D114: 0 | E114: 0 | F114: 0 | G114: 0 | H114: 0 | I114: 0 | J114: 0 | K114: 0
A115: ='Org structure'!E51 -> 08.4 - Roads And Transport | C115: 0 | D115: 1822808.72 | E115: 1944044.57 | F115: 2086725 | G115: 2086725 | H115: 2086725 | I115: 2648728 | J115: 2590072 | K115: 2740404
A116: ='Org structure'!E52 -> 08.5 - Civil Services | C116: 0 | D116: 1684486.99 | E116: 2150540.13 | F116: 1987949 | G116: 1987949 | H116: 1987949 | I116: 2204895 | J116: 2337190 | K116: 2477420
A117: ='Org structure'!A10 -> Vote 09 - | C117: 0 | D117: 0 | E117: 0 | F117: 0 | G117: 0 | H117: 0 | I117: 0 | J117: 0 | K117: 0
A118: ='Org structure'!A11 -> Vote 10 - | C118: 0 | D118: 0 | E118: 0 | F118: 0 | G118: 0 | H118: 0 | I118: 0 | J118: 0 | K118: 0
A119: ='Org structure'!A12 -> Vote 11 - | C119: 0 | D119: 0 | E119: 0 | F119: 0 | G119: 0 | H119: 0 | I119: 0 | J119: 0 | K119: 0
A120: ='Org structure'!A13 -> Vote 12 - | C120: 0 | D120: 0 | E120: 0 | F120: 0 | G120: 0 | H120: 0 | I120: 0 | J120: 0 | K120: 0
A121: ='Org structure'!A14 -> Vote 13 - | C121: 0 | D121: 0 | E121: 0 | F121: 0 | G121: 0 | H121: 0 | I121: 0 | J121: 0 | K121: 0
A122: ='Org structure'!A15 -> Vote 14 - | C122: 0 | D122: 0 | E122: 0 | F122: 0 | G122: 0 | H122: 0 | I122: 0 | J122: 0 | K122: 0
A123: ='Org structure'!A16 -> Vote 15 - Other | C123: 0 | D123: 0 | E123: 0 | F123: 0 | G123: 0 | H123: 0 | I123: 0 | J123: 0 | K123: 0
A124: Total Expenditure by Vote | B124: 2 | C124: =C66+C72+C78+C87+C91+C96+C106+C111+C117+C118+C119+C120+C121+C122+C123 -> 0 | D124: 230038140.4 | E124: 245611015.3 | F124: 267196774 | G124: 254842929 | H124: 254842929 | I124: 269193329 | J124: 275178382 | K124: 283212267 | L124: =SUM(L66:L110) -> 0 | M124: 0 | N124: 0 | O124: 0 | P124: 0 | Q124: 0 | R124: 0 | S124: 0 | T124: 0 | U124: 0 | V124: 0 | W124: 0
A126: =result -> Surplus/(Deficit) for the year | B126: 2 | C126: =C63-C124 -> 242171196 | D126: 18772137.05 | E126: 11762951.75 | F126: 1243677 | G126: 14850071 | H126: 14850071 | I126: 12849671 | J126: 15693618 | K126: 18583833
A127: =head27a -> References
A128: 1. Insert 'Vote'; e.g. Department, if different to Functional structure
A129: 2. Must reconcile to Financial Performance ('Revenue and Expenditure by Functional Classification' and 'Revenue and Expenditure')
A130: 3. Assign share in 'associate' to relevant Vote
A132: check revenue | C132: =C63-'A4-FinPerf RE'!C59 -> 275 | D132: =D63-'A4-FinPerf RE'!D59 -> 0 | E132: =E63-'A4-FinPerf RE'!E59 -> 0 | F132: =F63-'A4-FinPerf RE'!F59 -> 0 | G132: =G63-'A4-FinPerf RE'!G59 -> 0 | H132: =H63-'A4-FinPerf RE'!H59 -> 0 | I132: =I63-'A4-FinPerf RE'!J59 -> 0 | J132: =J63-'A4-FinPerf RE'!K59 -> 0 | K132: =K63-'A4-FinPerf RE'!L59 -> 0
A133: check expenditure | C133: =C124-'A4-FinPerf RE'!C35 -> -223703018 | D133: =D124-'A4-FinPerf RE'!D35 -> 0 | E133: =E124-'A4-FinPerf RE'!E35 -> 0 | F133: =F124-'A4-FinPerf RE'!F35 -> 0 | G133: =G124-'A4-FinPerf RE'!G35 -> 0 | H133: =H124-'A4-FinPerf RE'!H35 -> 0 | I133: =I124-'A4-FinPerf RE'!J35 -> 0 | J133: =J124-'A4-FinPerf RE'!K35 -> 0 | K133: =K124-'A4-FinPerf RE'!L35 -> 0

Sheet A4-FinPerf RE
A1: =muni&" - "&Approve4 -> DC32 Ehlanzeni - Table A4 Budgeted Financial Performance (revenue and expenditure)
A2: =desc -> Description | B2: =head27 -> Ref | C2: =head1b -> 2016/17 | D2: =head1A -> 2017/18 | E2: =Head1 -> 2018/19 | F2: =Head2 -> Current Year 2019/20 | J2: =Head3 -> 2020/21 Medium Term Revenue & Expenditure Framework | M2: =Head4 -> LTFS
A3: R thousand | B3: 1 | C3: =Head5 -> Audited Outcome | D3: =Head5 -> Audited Outcome | E3: =Head5 -> Audited Outcome | F3: =Head6 -> Original Budget | G3: =Head7 -> Adjusted Budget | H3: =Head8 -> Full Year Forecast | I3: =Head5b -> Pre-audit outcome | J3: =Head9 -> Budget Year 2020/21 | K3: =Head10 -> Budget Year +1 2021/22 | L3: =Head11 -> Budget Year +2 2022/23 | M3: =Head12 -> Forecast 2023/24 | N3: =Head13 -> Forecast 2024/25 | O3: =Head14 -> Forecast 2025/26 | P3: =Head15 -> Forecast 2026/27 | Q3: =Head16 -> Forecast 2027/28 | R3: =Head17 -> Forecast 2028/29 | S3: =Head18 -> Forecast 2029/30 | T3: =Head19 -> Forecast 2030/31 | U3: =Head20 -> Forecast 2031/32 | V3: =Head21 -> Forecast 2032/33 | W3: =Head22 -> Forecast 2033/34 | X3: =Head23 -> Forecast 2034/35
A4: Revenue By Source
A5: Property rates | B5: 2 | C5: ='SA1'!C9 -> 0 | D5: ='SA1'!D9 -> 0 | E5: ='SA1'!E9 -> 0 | F5: ='SA1'!F9 -> 0 | G5: ='SA1'!G9 -> 0 | H5: ='SA1'!H9 -> 0 | I5: ='SA1'!I9 -> 0 | J5: ='SA1'!J9 -> 0 | K5: ='SA1'!K9 -> 0 | L5: ='SA1'!L9 -> 0
A6: Service charges - electricity revenue | B6: 2 | C6: ='SA1'!C15 -> 0 | D6: ='SA1'!D15 -> 0 | E6: ='SA1'!E15 -> 0 | F6: ='SA1'!F15 -> 0 | G6: ='SA1'!G15 -> 0 | H6: ='SA1'!H15 -> 0 | I6: ='SA1'!I15 -> 0 | J6: ='SA1'!J15 -> 0 | K6: ='SA1'!K15 -> 0 | L6: ='SA1'!L15 -> 0
A7: Service charges - water revenue | B7: 2 | C7: ='SA1'!C21 -> 0 | D7: ='SA1'!D21 -> 0 | E7: ='SA1'!E21 -> 0 | F7: ='SA1'!F21 -> 0 | G7: ='SA1'!G21 -> 0 | H7: ='SA1'!H21 -> 0 | I7: ='SA1'!I21 -> 0 | J7: ='SA1'!J21 -> 0 | K7: ='SA1'!K21 -> 0 | L7: ='SA1'!L21 -> 0
A8: Service charges - sanitation revenue | B8: 2 | C8: ='SA1'!C27 -> 0 | D8: ='SA1'!D27 -> 0 | E8: ='SA1'!E27 -> 0 | F8: ='SA1'!F27 -> 0 | G8: ='SA1'!G27 -> 0 | H8: ='SA1'!H27 -> 0 | I8: ='SA1'!I27 -> 0 | J8: ='SA1'!J27 -> 0 | K8: ='SA1'!K27 -> 0 | L8: ='SA1'!L27 -> 0
A9: Service charges - refuse revenue | B9: 2 | C9: ='SA1'!C34 -> 0 | D9: ='SA1'!D34 -> 0 | E9: ='SA1'!E34 -> 0 | F9: ='SA1'!F34 -> 0 | G9: ='SA1'!G34 -> 0 | H9: ='SA1'!H34 -> 0 | I9: ='SA1'!I34 -> 0 | J9: ='SA1'!J34 -> 0 | K9: ='SA1'!K34 -> 0 | L9: ='SA1'!L34 -> 0
A11: Rental of facilities and equipment | C11: 144843 | D11: 208291.54 | E11: 389208.92 | F11: 262451 | G11: 400000 | H11: 400000 | I11: 186279.5 | J11: 640000 | K11: 704000 | L11: 774400
A12: Interest earned - external investments | C12: 8443966 | D12: 9288323.1 | E12: 8568988.59 | F12: 6500000 | G12: 7250000 | H12: 7250000 | I12: 6368900.8 | J12: 8000000 | K12: 8400000 | L12: 8500000
A13: Interest earned - outstanding debtors | C13: 0 | D13: 57466.52 | E13: 19120.28 | F13: 0 | G13: 0 | H13: 0 | I13: 0 | J13: 0 | K13: 0 | L13: 0
A14: Dividends received | C14: 122873 | D14: 132959.2 | E14: 143045.76 | F14: 140000 | G14: 140000 | H14: 140000 | I14: 153132.32 | J14: 140000 | K14: 140000 | L14: 140000
A15: Fines, penalties and forfeits | D15: 0 | E15: 0 | F15: 0 | G15: 0 | H15: 0 | I15: 0 | J15: 0 | K15: 0 | L15: 0
A16: Licences and permits | C16: 0 | D16: 96129.77 | E16: 1203130.21 | F16: 600000 | G16: 800000 | H16: 800000 | I16: 497616.02 | J16: 920000 | K16: 1058000 | L16: 1216700
A17: Agency services | C17: 0 | D17: 371853.44 | E17: 0 | F17: 0 | G17: 0 | H17: 0 | I17: 0 | J17: 0 | K17: 0 | L17: 0
A18: Transfers and subsidies | C18: 227282239 | D18: 71743607 | E18: 78926184 | F18: 88353000 | G18: 88353000 | H18: 88353000 | I18: 88349242 | J18: 268972000 | K18: 277019000 | L18: 287319000
A19: Other revenue | B19: 2 | C19: ='SA1'!C49 -> 1788000 | D19: ='SA1'!D49 -> 159872771.7 | E19: ='SA1'!E49 -> 165282587 | F19: ='SA1'!F49 -> 170094000 | G19: ='SA1'!G49 -> 170259000 | H19: ='SA1'!H49 -> 170259000 | I19: ='SA1'!I49 -> 170297266 | J19: ='SA1'!J49 -> 1000000 | K19: ='SA1'!K49 -> 1050000 | L19: ='SA1'!L49 -> 1200000
A20: Gains | C20: 4389000 | D20: 336875.23 | E20: 489702.24 | F20: 0 | G20: 0 | H20: 0 | I20: 13728.6 | J20: 0 | K20: 0 | L20: 0
A21: Total Revenue (excluding capital transfers and contributions) | C21: =SUM(C5:C9)+SUM(C11:C20) -> 242170921 | D21: =SUM(D5:D9)+SUM(D11:D20) -> 242108277.4 | E21: 255021967 | F21: 265949451 | G21: 267202000 | H21: 267202000 | I21: 265866165.2 | J21: 279672000 | K21: 288371000 | L21: 299150100 | M21: =SUM(M5:M20) -> 0 | N21: 0 | O21: 0 | P21: 0 | Q21: 0 | R21: 0 | S21: 0 | T21: 0 | U21: 0 | V21: 0 | W21: 0 | X21: 0
A23: Expenditure By Type
A24: Employee related costs | B24: 2 | C24: ='SA1'!C67 -> 106741216 | D24: ='SA1'!D67 -> 114368249.3 | E24: ='SA1'!E67 -> 127460165.8 | F24: ='SA1'!F67 -> 140828854 | G24: ='SA1'!G67 -> 141680817 | H24: ='SA1'!H67 -> 141680817 | I24: ='SA1'!I67 -> 121524283.2 | J24: ='SA1'!J67 -> 154919418 | K24: ='SA1'!K67 -> 159512797 | L24: ='SA1'!L67 -> 165434349
A25: Remuneration of councillors | C25: 14314000 | D25: 15543876.44 | E25: 15973839.42 | F25: 16969467 | G25: 16969467 | H25: 16969467 | I25: 15058774.45 | J25: 17825222 | K25: 18628134 | L25: 19485032
A26: Debt impairment | B26: 3 | C26: 0 | D26: 0 | E26: 281242.54 | F26: 0 | G26: 0 | H26: 0 | I26: 0 | J26: 0 | K26: 0 | L26: 0
A27: Depreciation & asset impairment | B27: 2 | C27: ='SA1'!C83 -> 10184194 | D27: ='SA1'!D83 -> 9204376.23 | E27: ='SA1'!E83 -> 9716266.88 | F27: ='SA1'!F83 -> 11847425 | G27: ='SA1'!G83 -> 8147425 | H27: ='SA1'!H83 -> 8147425 | I27: ='SA1'!I83 -> 9401991.2 | J27: ='SA1'!J83 -> 8147426 | K27: ='SA1'!K83 -> 8147426 | L27: ='SA1'!L83 -> 8147426
A28: Finance charges | C28: 19416000 | D28: 15687950.72 | E28: 15165478.57 | F28: 21395905 | G28: 14573845 | H28: 14573845 | I28: 7337841.97 | J28: 15045905 | K28: 15045905 | L28: 15045905
A29: Bulk purchases | B29: 2 | C29: ='SA1'!C88 -> 0 | D29: ='SA1'!D88 -> 5755225.45 | E29: ='SA1'!E88 -> 0 | F29: ='SA1'!F88 -> 0 | G29: ='SA1'!G88 -> 0 | H29: ='SA1'!H88 -> 0 | I29: ='SA1'!I88 -> 0 | J29: ='SA1'!J88 -> 0 | K29: ='SA1'!K88 -> 0 | L29: ='SA1'!L88 -> 0
A30: Other materials | B30: 8 | C30: 0 | D30: 7802802.21 | E30: 2611940.62 | F30: 3285537 | G30: 2377157 | H30: 2377157 | I30: 1570512.36 | J30: 2723956 | K30: 2885798 | L30: 3052336
A31: Contracted services | C31: ='SA1'!C127 -> 1053109 | D31: ='SA1'!D127 -> 10330337.09 | E31: ='SA1'!E127 -> 18348271.48 | F31: ='SA1'!F127 -> 25647994 | G31: ='SA1'!G127 -> 26379560 | H31: ='SA1'!H127 -> 26379560 | I31: ='SA1'!I127 -> 20562923.26 | J31: ='SA1'!J127 -> 22390307 | K31: ='SA1'!K127 -> 24517660 | L31: ='SA1'!L127 -> 24851482
A32: Transfers and subsidies | C32: ='SA1'!C93 -> 23930281 | D32: ='SA1'!D93 -> 24163416.91 | E32: ='SA1'!E93 -> 15966905.45 | F32: ='SA1'!F93 -> 0 | G32: ='SA1'!G93 -> 0 | H32: ='SA1'!H93 -> 0 | I32: ='SA1'!I93 -> 0 | J32: ='SA1'!J93 -> 0 | K32: ='SA1'!K93 -> 0 | L32: ='SA1'!L93 -> 0
A33: Other expenditure | B33: 4, 5 | C33: ='SA1'!C157 -> 47955660 | D33: ='SA1'!D157 -> 27137148.15 | E33: ='SA1'!E157 -> 39959678.07 | F33: ='SA1'!F157 -> 47221592 | G33: ='SA1'!G157 -> 44714658 | H33: ='SA1'!H157 -> 44714658 | I33: ='SA1'!I157 -> 33476539.13 | J33: ='SA1'!J157 -> 48141095 | K33: ='SA1'!K157 -> 46440662 | L33: ='SA1'!L157 -> 47195737
A34: Losses | C34: 108558 | D34: 44757.89 | E34: 127226.38 | F34: 0 | G34: 0 | H34: 0 | I34: 8458.57 | J34: 0 | K34: 0 | L34: 0
A35: Total Expenditure | C35: =SUM(C24:C34) -> 223703018 | D35: =SUM(D24:D34) -> 230038140.4 | E35: 245611015.3 | F35: 267196774 | G35: 254842929 | H35: 254842929 | I35: 208941324.1 | J35: 269193329 | K35: 275178382 | L35: 283212267 | M35: =SUM(M24:M34) -> 0 | N35: 0 | O35: 0 | P35: 0 | Q35: 0 | R35: 0 | S35: 0 | T35: 0 | U35: 0 | V35: 0 | W35: 0 | X35: 0
A37: Surplus/(Deficit) | C37: =C21-C35 -> 18467903 | D37: 12070137.05 | E37: 9410951.75 | F37: -1247323 | G37: 12359071 | H37: 12359071 | I37: 56924841.06 | J37: 10478671 | K37: 13192618 | L37: 15937833 | M37: =M21+M35 -> 0 | N37: 0 | O37: 0 | P37: 0 | Q37: 0 | R37: 0 | S37: 0 | T37: 0 | U37: 0 | V37: 0 | W37: 0 | X37: 0
A38: Transfers and subsidies - capital (monetary allocations) (National / Provincial and District) | C38: 0 | D38: 6702000 | E38: 2352000 | F38: 2491000 | G38: 2491000 | H38: 2491000 | I38: 0 | J38: 2371000 | K38: 2501000 | L38: 2646000
A39: Transfers and subsidies - capital (monetary allocations) (National / Provincial Departmental Agencies, Households, Non-profit Institutions, Private Enterprises, Public Corporatons, Higher Educational Institutions) | B39: 6 | C39: ='SA1'!C76 -> 0
A40: Transfers and subsidies - capital (in-kind - all) | C40: 0 | D40: 0 | E40: 0 | F40: 0 | G40: 0 | H40: 0 | I40: 0 | J40: 0 | K40: 0 | L40: 0
A41: Surplus/(Deficit) after capital transfers & contributions | C41: =SUM(C37:C40) -> 18467903 | D41: 18772137.05 | E41: 11762951.75 | F41: 1243677 | G41: 14850071 | H41: 14850071 | I41: 56924841.06 | J41: 12849671 | K41: 15693618 | L41: 18583833
A42: Taxation
A43: Surplus/(Deficit) after taxation | C43: =C41-C42 -> 18467903 | D43: 18772137.05 | E43: 11762951.75 | F43: 1243677 | G43: 14850071 | H43: 14850071 | I43: 56924841.06 | J43: 12849671 | K43: 15693618 | L43: 18583833
A44: Attributable to minorities
A45: Surplus/(Deficit) attributable to municipality | C45: =SUM(C43:C44) -> 18467903 | D45: 18772137.05 | E45: 11762951.75 | F45: 1243677 | G45: 14850071 | H45: 14850071 | I45: 56924841.06 | J45: 12849671 | K45: 15693618 | L45: 18583833
A46: Share of surplus/ (deficit) of associate | B46: 7
A47: =result -> Surplus/(Deficit) for the year | C47: =SUM(C45:C46) -> 18467903 | D47: 18772137.05 | E47: 11762951.75 | F47: 1243677 | G47: 14850071 | H47: 14850071 | I47: 56924841.06 | J47: 12849671 | K47: 15693618 | L47: 18583833 | M47: =M25+M46 -> 0 | N47: 0 | O47: 0 | P47: 0 | Q47: 0 | R47: 0 | S47: 0 | T47: 0 | U47: 0 | V47: 0 | W47: 0 | X47: 0
A48: =head27a -> References
A49: 1. Classifications are revenue sources and expenditure type
A50: 2. Detail to be provided in Table SA1
A51: 3. Previously described as 'bad or doubtful debts' - amounts shown should reflect the change in the provision for debt impairment
A52: 4. Expenditure type components previously shown under repairs and maintenance should be allocated back to the originating expenditure group/item; e.g. employee costs
A53: 5. Repairs & maintenance detailed in Table A9 and Table SA34c
A54: 6. Contributions are funds provided by external organisations to assist with infrastructure development; e.g. developer contributions (detail to be provided in Table SA1)
A55: 7. Equity method ( Includes Joint Ventures)
A56: 8. All materials not part of 'bulk' e.g road making materials, pipe, cable etc.
A57: check balance | C57: =C45-'A3-FinPerf V'!C39 -> -223703293 | D57: =D45-'A3-FinPerf V'!D39 -> 0 | E57: =E45-'A3-FinPerf V'!E39 -> 2.980232239e-08 | F57: =F45-'A3-FinPerf V'!F39 -> 0 | G57: =G45-'A3-FinPerf V'!G39 -> 0 | H57: =H45-'A3-FinPerf V'!H39 -> 0 | J57: =J45-'A3-FinPerf V'!I39 -> 0 | K57: =K45-'A3-FinPerf V'!J39 -> 0 | L57: =L45-'A3-FinPerf V'!K39 -> 0
A59: Total revenue | C59: =C21+SUM(C38:C40) -> 242170921 | D59: 248810277.4 | E59: 257373967 | F59: 268440451 | G59: 269693000 | H59: 269693000 | I59: 265866165.2 | J59: 282043000 | K59: 290872000 | L59: 301796100

Sheet A5-Capex
A2: =Vdesc -> Vote Description | B2: =head27 -> Ref | C2: =head1b -> 2016/17 | D2: =head1A -> 2017/18 | E2: =Head1 -> 2018/19 | F2: =Head2 -> Current Year 2019/20 | J2: =Head3 -> 2020/21 Medium Term Revenue & Expenditure Framework
A3: R thousand | B3: 1 | C3: =Head5 -> Audited Outcome | D3: =Head5 -> Audited Outcome | E3: =Head5 -> Audited Outcome | F3: =Head6 -> Original Budget | G3: =Head7 -> Adjusted Budget | H3: =Head8 -> Full Year Forecast | I3: =Head5b -> Pre-audit outcome | J3: =Head9 -> Budget Year 2020/21 | K3: =Head10 -> Budget Year +1 2021/22 | L3: =Head11 -> Budget Year +2 2022/23
A4: Capital expenditure - Vote
A5: Multi-year expenditure to be appropriated | B5: 2
A6: =A5A!A6 -> Vote 01 - Council Summary | C6: =A5A!C6 -> 0 | D6: =A5A!D6 -> 0 | E6: =A5A!E6 -> 0 | F6: =A5A!F6 -> 0 | G6: =A5A!G6 -> 0 | H6: =A5A!H6 -> 0 | I6: =A5A!I6 -> 0 | J6: =A5A!J6 -> 0 | K6: =A5A!K6 -> 0 | L6: =A5A!L6 -> 0
A7: =A5A!A12 -> Vote 02 - Corporate Services & Municipal Relations | C7: =A5A!C12 -> 0 | D7: =A5A!D12 -> 0 | E7: =A5A!E12 -> 0 | F7: =A5A!F12 -> 0 | G7: =A5A!G12 -> 0 | H7: =A5A!H12 -> 0 | I7: =A5A!I12 -> 0 | J7: =A5A!J12 -> 0 | K7: =A5A!K12 -> 0 | L7: =A5A!L12 -> 0
A8: =A5A!A18 -> Vote 03 - Finance And Procurement | C8: =A5A!C18 -> 0 | D8: =A5A!D18 -> 0 | E8: =A5A!E18 -> 0 | F8: =A5A!F18 -> 0 | G8: =A5A!G18 -> 0 | H8: =A5A!H18 -> 0 | I8: =A5A!I18 -> 0 | J8: =A5A!J18 -> 0 | K8: =A5A!K18 -> 0 | L8: =A5A!L18 -> 0
A9: =A5A!A27 -> Vote 04 - Local Economic Development; Tourism And Rural Devevelopment | C9: =A5A!C27 -> 0 | D9: =A5A!D27 -> 0 | E9: =A5A!E27 -> 0 | F9: =A5A!F27 -> 0 | G9: =A5A!G27 -> 0 | H9: =A5A!H27 -> 0 | I9: =A5A!I27 -> 0 | J9: =A5A!J27 -> 0 | K9: =A5A!K27 -> 0 | L9: =A5A!L27 -> 0
A10: =A5A!A31 -> Vote 05 - Municipal Health & Environmental Management | C10: =A5A!C31 -> 0 | D10: =A5A!D31 -> 0 | E10: =A5A!E31 -> 0 | F10: =A5A!F31 -> 0 | G10: =A5A!G31 -> 0 | H10: =A5A!H31 -> 0 | I10: =A5A!I31 -> 0 | J10: =A5A!J31 -> 0 | K10: =A5A!K31 -> 0 | L10: =A5A!L31 -> 0
A11: =A5A!A36 -> Vote 06 - Office Of The Municipal Manager | C11: =A5A!C36 -> 0 | D11: =A5A!D36 -> 0 | E11: =A5A!E36 -> 0 | F11: =A5A!F36 -> 0 | G11: =A5A!G36 -> 0 | H11: =A5A!H36 -> 0 | I11: =A5A!I36 -> 0 | J11: =A5A!J36 -> 0 | K11: =A5A!K36 -> 0 | L11: =A5A!L36 -> 0
A12: =A5A!A46 -> Vote 07 - Social Services & Disaster Management | C12: =A5A!C46 -> 0 | D12: =A5A!D46 -> 0 | E12: =A5A!E46 -> 0 | F12: =A5A!F46 -> 0 | G12: =A5A!G46 -> 0 | H12: =A5A!H46 -> 0 | I12: =A5A!I46 -> 0 | J12: =A5A!J46 -> 0 | K12: =A5A!K46 -> 0 | L12: =A5A!L46 -> 0
A13: =A5A!A51 -> Vote 08 - Technical Services | C13: =A5A!C51 -> 0 | D13: =A5A!D51 -> 0 | E13: =A5A!E51 -> 0 | F13: =A5A!F51 -> 0 | G13: =A5A!G51 -> 0 | H13: =A5A!H51 -> 0 | I13: =A5A!I51 -> 0 | J13: =A5A!J51 -> 0 | K13: =A5A!K51 -> 0 | L13: =A5A!L51 -> 0
A14: ='Org structure'!A10 -> Vote 09 - | C14: =A5A!C57 -> 0 | D14: =A5A!D57 -> 0 | E14: =A5A!E57 -> 0 | F14: =A5A!F57 -> 0 | G14: =A5A!G57 -> 0 | H14: =A5A!H57 -> 0 | I14: =A5A!I57 -> 0 | J14: =A5A!J57 -> 0 | K14: =A5A!K57 -> 0 | L14: =A5A!L57 -> 0
A15: ='Org structure'!A11 -> Vote 10 - | C15: =A5A!C58 -> 0 | D15: =A5A!D58 -> 0 | E15: =A5A!E58 -> 0 | F15: =A5A!F58 -> 0 | G15: =A5A!G58 -> 0 | H15: =A5A!H58 -> 0 | I15: =A5A!I58 -> 0 | J15: =A5A!J58 -> 0 | K15: =A5A!K58 -> 0 | L15: =A5A!L58 -> 0
A16: ='Org structure'!A12 -> Vote 11 - | C16: =A5A!C59 -> 0 | D16: =A5A!D59 -> 0 | E16: =A5A!E59 -> 0 | F16: =A5A!F59 -> 0 | G16: =A5A!G59 -> 0 | H16: =A5A!H59 -> 0 | I16: =A5A!I59 -> 0 | J16: =A5A!J59 -> 0 | K16: =A5A!K59 -> 0 | L16: =A5A!L59 -> 0
A17: ='Org structure'!A13 -> Vote 12 - | C17: =A5A!C60 -> 0 | D17: =A5A!D60 -> 0 | E17: =A5A!E60 -> 0 | F17: =A5A!F60 -> 0 | G17: =A5A!G60 -> 0 | H17: =A5A!H60 -> 0 | I17: =A5A!I60 -> 0 | J17: =A5A!J60 -> 0 | K17: =A5A!K60 -> 0 | L17: =A5A!L60 -> 0
A18: ='Org structure'!A14 -> Vote 13 - | C18: =A5A!C61 -> 0 | D18: =A5A!D61 -> 0 | E18: =A5A!E61 -> 0 | F18: =A5A!F61 -> 0 | G18: =A5A!G61 -> 0 | H18: =A5A!H61 -> 0 | I18: =A5A!I61 -> 0 | J18: =A5A!J61 -> 0 | K18: =A5A!K61 -> 0 | L18: =A5A!L61 -> 0
A19: ='Org structure'!A15 -> Vote 14 - | C19: =A5A!C62 -> 0 | D19: =A5A!D62 -> 0 | E19: =A5A!E62 -> 0 | F19: =A5A!F62 -> 0 | G19: =A5A!G62 -> 0 | H19: =A5A!H62 -> 0 | I19: =A5A!I62 -> 0 | J19: =A5A!J62 -> 0 | K19: =A5A!K62 -> 0 | L19: =A5A!L62 -> 0
A20: ='Org structure'!A16 -> Vote 15 - Other | C20: =A5A!C63 -> 0 | D20: =A5A!D63 -> 0 | E20: =A5A!E63 -> 0 | F20: =A5A!F63 -> 0 | G20: =A5A!G63 -> 0 | H20: =A5A!H63 -> 0 | I20: =A5A!I63 -> 0 | J20: =A5A!J63 -> 0 | K20: =A5A!K63 -> 0 | L20: =A5A!L63 -> 0
A21: Capital multi-year expenditure sub-total | B21: 7 | C21: =SUM(C6:C20) -> 0 | D21: =SUM(D6:D20) -> 0 | E21: 0 | F21: 0 | G21: 0 | H21: =SUM(H6:H20) -> 0 | I21: 0 | J21: 0 | K21: 0 | L21: 0
A23: Single-year expenditure to be appropriated | B23: 2
A24: =A5A!A68 -> Vote 01 - Council Summary | C24: =A5A!C68 -> 960510 | D24: =A5A!D68 -> 1049136.88 | E24: =A5A!E68 -> 650578.42 | F24: =A5A!F68 -> 0 | G24: =A5A!G68 -> 0 | H24: =A5A!H68 -> 0 | I24: =A5A!I68 -> 0 | J24: =A5A!J68 -> 0 | K24: =A5A!K68 -> 0 | L24: =A5A!L68 -> 0
A25: =A5A!A74 -> Vote 02 - Corporate Services & Municipal Relations | C25: =A5A!C74 -> 0 | D25: =A5A!D74 -> 212152.8 | E25: =A5A!E74 -> 990372.8 | F25: =A5A!F74 -> 0 | G25: =A5A!G74 -> 0 | H25: =A5A!H74 -> 0 | I25: =A5A!I74 -> 0 | J25: =A5A!J74 -> 500000 | K25: =A5A!K74 -> 2000000 | L25: =A5A!L74 -> 300000
A26: =A5A!A80 -> Vote 03 - Finance And Procurement | C26: =A5A!C80 -> 5653454 | D26: =A5A!D80 -> 348241.21 | E26: =A5A!E80 -> 943685.23 | F26: =A5A!F80 -> 3950000 | G26: =A5A!G80 -> 4128000 | H26: =A5A!H80 -> 4128000 | I26: =A5A!I80 -> 2651155.78 | J26: =A5A!J80 -> 4092000 | K26: =A5A!K80 -> 5580000 | L26: =A5A!L80 -> 5794742
A27: =A5A!A89 -> Vote 04 - Local Economic Development; Tourism And Rural Devevelopment | C27: =A5A!C89 -> 17315632 | D27: =A5A!D89 -> 22252.35 | E27: =A5A!E89 -> 308595.67 | F27: =A5A!F89 -> 800000 | G27: =A5A!G89 -> 450000 | H27: =A5A!H89 -> 450000 | I27: =A5A!I89 -> 198110 | J27: =A5A!J89 -> 0 | K27: =A5A!K89 -> 0 | L27: =A5A!L89 -> 0
A28: =A5A!A93 -> Vote 05 - Municipal Health & Environmental Management | C28: =A5A!C93 -> 0 | D28: =A5A!D93 -> 359262.72 | E28: =A5A!E93 -> 309036.39 | F28: =A5A!F93 -> 750000 | G28: =A5A!G93 -> 131000 | H28: =A5A!H93 -> 131000 | I28: =A5A!I93 -> 0 | J28: =A5A!J93 -> 0 | K28: =A5A!K93 -> 0 | L28: =A5A!L93 -> 0
A29: =A5A!A98 -> Vote 06 - Office Of The Municipal Manager | C29: =A5A!C98 -> 0 | D29: =A5A!D98 -> 209999.43 | E29: =A5A!E98 -> 217600.58 | F29: =A5A!F98 -> 0 | G29: =A5A!G98 -> 0 | H29: =A5A!H98 -> 0 | I29: =A5A!I98 -> 0 | J29: =A5A!J98 -> 0 | K29: =A5A!K98 -> 0 | L29: =A5A!L98 -> 0
A30: =A5A!A108 -> Vote 07 - Social Services & Disaster Management | C30: =A5A!C108 -> 0 | D30: =A5A!D108 -> 720214.71 | E30: =A5A!E108 -> 287079.48 | F30: =A5A!F108 -> 0 | G30: =A5A!G108 -> 0 | H30: =A5A!H108 -> 0 | I30: =A5A!I108 -> 0 | J30: =A5A!J108 -> 0 | K30: =A5A!K108 -> 250000 | L30: =A5A!L108 -> 0
A31: =A5A!A113 -> Vote 08 - Technical Services | C31: =A5A!C113 -> 0 | D31: =A5A!D113 -> 22431.53 | E31: =A5A!E113 -> 191181.15 | F31: =A5A!F113 -> 12091000 | G31: =A5A!G113 -> 17837219 | H31: =A5A!H113 -> 17837219 | I31: =A5A!I113 -> 12672065.79 | J31: =A5A!J113 -> 13070000 | K31: =A5A!K113 -> 6857616 | L31: =A5A!L113 -> 10616000
A32: ='Org structure'!A10 -> Vote 09 - | C32: =A5A!C119 -> 0 | D32: =A5A!D119 -> 0 | E32: =A5A!E119 -> 0 | F32: =A5A!F119 -> 0 | G32: =A5A!G119 -> 0 | H32: =A5A!H119 -> 0 | I32: =A5A!I119 -> 0 | J32: =A5A!J119 -> 0 | K32: =A5A!K119 -> 0 | L32: =A5A!L119 -> 0
A33: ='Org structure'!A11 -> Vote 10 - | C33: =A5A!C120 -> 0 | D33: =A5A!D120 -> 0 | E33: =A5A!E120 -> 0 | F33: =A5A!F120 -> 0 | G33: =A5A!G120 -> 0 | H33: =A5A!H120 -> 0 | I33: =A5A!I120 -> 0 | J33: =A5A!J120 -> 0 | K33: =A5A!K120 -> 0 | L33: =A5A!L120 -> 0
A34: ='Org structure'!A12 -> Vote 11 - | C34: =A5A!C121 -> 0 | D34: =A5A!D121 -> 0 | E34: =A5A!E121 -> 0 | F34: =A5A!F121 -> 0 | G34: =A5A!G121 -> 0 | H34: =A5A!H121 -> 0 | I34: =A5A!I121 -> 0 | J34: =A5A!J121 -> 0 | K34: =A5A!K121 -> 0 | L34: =A5A!L121 -> 0
A35: ='Org structure'!A13 -> Vote 12 - | C35: =A5A!C122 -> 0 | D35: =A5A!D122 -> 0 | E35: =A5A!E122 -> 0 | F35: =A5A!F122 -> 0 | G35: =A5A!G122 -> 0 | H35: =A5A!H122 -> 0 | I35: =A5A!I122 -> 0 | J35: =A5A!J122 -> 0 | K35: =A5A!K122 -> 0 | L35: =A5A!L122 -> 0
A36: ='Org structure'!A14 -> Vote 13 - | C36: =A5A!C123 -> 0 | D36: =A5A!D123 -> 0 | E36: =A5A!E123 -> 0 | F36: =A5A!F123 -> 0 | G36: =A5A!G123 -> 0 | H36: =A5A!H123 -> 0 | I36: =A5A!I123 -> 0 | J36: =A5A!J123 -> 0 | K36: =A5A!K123 -> 0 | L36: =A5A!L123 -> 0
A37: ='Org structure'!A15 -> Vote 14 - | C37: =A5A!C124 -> 0 | D37: =A5A!D124 -> 0 | E37: =A5A!E124 -> 0 | F37: =A5A!F124 -> 0 | G37: =A5A!G124 -> 0 | H37: =A5A!H124 -> 0 | I37: =A5A!I124 -> 0 | J37: =A5A!J124 -> 0 | K37: =A5A!K124 -> 0 | L37: =A5A!L124 -> 0
A38: ='Org structure'!A16 -> Vote 15 - Other | C38: =A5A!C125 -> 0 | D38: =A5A!D125 -> 0 | E38: =A5A!E125 -> 0 | F38: =A5A!F125 -> 0 | G38: =A5A!G125 -> 0 | H38: =A5A!H125 -> 0 | I38: =A5A!I125 -> 0 | J38: =A5A!J125 -> 0 | K38: =A5A!K125 -> 0 | L38: =A5A!L125 -> 0
A39: Capital single-year expenditure sub-total | C39: =SUM(C24:C38) -> 23929596 | D39: =SUM(D24:D38) -> 2943691.63 | E39: 3898129.72 | F39: 17591000 | G39: 22546219 | H39: 22546219 | I39: 15521331.57 | J39: 17662000 | K39: 14687616 | L39: 16710742
A40: Total Capital Expenditure - Vote | C40: =C39+C21 -> 23929596 | D40: =D39+D21 -> 2943691.63 | E40: 3898129.72 | F40: 17591000 | G40: 22546219 | H40: 22546219 | I40: 15521331.57 | J40: 17662000 | K40: 14687616 | L40: 16710742
A42: Capital Expenditure - Functional
A43: Governance and administration | C43: =SUM(C44:C46) -> 6613964 | D43: =SUM(D44:D46) -> 1819530.32 | E43: 2802237.03 | F43: 3950000 | G43: 4128000 | H43: 4128000 | I43: 2651155.78 | J43: 4592000 | K43: 7580000 | L43: 6094742
A44: Executive and council | C44: 960510 | D44: 1259136.31 | E44: 868179 | F44: 0 | G44: 0 | H44: 0 | I44: 0 | J44: 0 | K44: 0 | L44: 0
A45: Finance and administration | C45: 5653454 | D45: 560394.01 | E45: 1934058.03 | F45: 3950000 | G45: 4128000 | H45: 4128000 | I45: 2651155.78 | J45: 4592000 | K45: 7580000 | L45: 6094742
A46: Internal audit | C46: 0 | D46: 0 | E46: 0 | F46: 0 | G46: 0 | H46: 0 | I46: 0 | J46: 0 | K46: 0 | L46: 0
A47: Community and public safety | C47: =SUM(C48:C52) -> 0 | D47: =SUM(D48:D52) -> 1079477.43 | E47: 596115.87 | F47: 750000 | G47: 131000 | H47: 131000 | I47: 0 | J47: 0 | K47: 250000 | L47: 0
A48: Community and social services | C48: 0 | D48: 552755.78 | E48: 263360.48 | F48: 0 | G48: 0 | H48: 0 | I48: 0 | J48: 0 | K48: 250000 | L48: 0
A49: Sport and recreation
A50: Public safety
A51: Housing
A52: Health | C52: 0 | D52: 526721.65 | E52: 332755.39 | F52: 750000 | G52: 131000 | H52: 131000 | I52: 0 | J52: 0 | K52: 0 | L52: 0
A53: Economic and environmental services | C53: =SUM(C54:C56) -> 17315632 | D53: =SUM(D54:D56) -> 44683.88 | E53: 499776.82 | F53: 5891000 | G53: 5364000 | H53: 5364000 | I53: 2485109.1 | J53: 3371000 | K53: 3501000 | L53: 5646000
A54: Planning and development | C54: 17315632 | D54: 44683.88 | E54: 499776.82 | F54: 2800000 | G54: 2237000 | H54: 2237000 | I54: 1985109.1 | J54: 1000000 | K54: 1000000 | L54: 2000000
A55: Road transport | C55: 0 | D55: 0 | E55: 0 | F55: 3091000 | G55: 3127000 | H55: 3127000 | I55: 500000 | J55: 2371000 | K55: 2501000 | L55: 3646000
A56: Environmental protection
A57: Trading services | C57: =SUM(C58:C61) -> 0 | D57: =SUM(D58:D61) -> 0 | E57: 0 | F57: 7000000 | G57: 12923219 | H57: 12923219 | I57: 10385066.69 | J57: 9699000 | K57: 3356616 | L57: 4970000
A58: Energy sources
A59: Water management | C59: 0 | D59: 0 | E59: 0 | F59: 7000000 | G59: 2914026 | H59: 2914026 | I59: 1555010.87 | J59: 7099000 | K59: 1400000 | L59: 3000000
A60: Waste water management | C60: 0 | D60: 0 | E60: 0 | F60: 0 | G60: 10009193 | H60: 10009193 | I60: 8830055.82 | J60: 2600000 | K60: 1956616 | L60: 1970000
A61: Waste management
A62: Other
A63: Total Capital Expenditure - Functional | B63: 3 | C63: =C43+C47+C53+C57+C62 -> 23929596 | D63: =D43+D47+D53+D57+D62 -> 2943691.63 | E63: 3898129.72 | F63: 17591000 | G63: 22546219 | H63: 22546219 | I63: 15521331.57 | J63: 17662000 | K63: 14687616 | L63: =L43+L47+L53+L57+L62 -> 16710742
A65: Funded by:
A66: National Government | C66: 1958000 | D66: 0 | E66: 0 | F66: 0 | G66: 2491000 | H66: 2491000 | I66: 0 | J66: 2371000 | K66: 2501000 | L66: 2646000
A67: Provincial Government
A68: District Municipality
A69: ='A4-FinPerf RE'!A39 -> Transfers and subsidies - capital (monetary allocations) (National / Provincial Departmental Agencies, Households, Non-profit Institutions, Private Enterprises, Public Corporatons, Higher Educational Institutions)
A70: Transfers recognised - capital | B70: 4 | C70: =SUM(C66:C69) -> 1958000 | D70: 0 | E70: 0 | F70: 0 | G70: 2491000 | H70: 2491000 | I70: 0 | J70: 2371000 | K70: 2501000 | L70: 2646000
A72: Borrowing | B72: 6
A73: Internally generated funds | C73: =23930000-1958000 -> 21972000 | D73: 0 | E73: 3898129.72 | F73: 17591000 | G73: 20055219 | H73: 20055219 | I73: 15521331.57 | J73: 15291000 | K73: 12186616 | L73: 14064742
A74: Total Capital Funding | B74: 7 | C74: =+C70+C72+C73 -> 23930000 | D74: =+D70+D72+D73 -> 0 | E74: 3898129.72 | F74: 17591000 | G74: 22546219 | H74: 22546219 | I74: 15521331.57 | J74: 17662000 | K74: 14687616 | L74: 16710742
A75: =head27a -> References
A76: 1. Municipalities may choose to appropriate for capital expenditure for three years or for one year (if one year appropriation projected expenditure required for yr2 and yr3).
A77: 2. Include capital component of PPP unitary payment. Note that capital transfers are only appropriated to municipalities for the budget year
A78: 3. Capital expenditure by functional classification must reconcile to the appropriations by vote
A79: 4. Must reconcile to supporting table SA20 and to Budgeted Financial Performance (revenue and expenditure)
A81: 6. Include finance leases and PPP capital funding component of unitary payment - total borrowing/repayments to reconcile to changes in Table SA17
A82: 7. Total Capital Funding must balance with Total Capital Expenditure
A83: 8. Include any capitalised interest (MFMA section 46) as part of relevant capital budget
A85: check balance | C85: =IF((C63-C74)=0,0,"Unbalanced") -> Unbalanced | D85: =IF((D63-D74)=0,0,"Unbalanced") -> Unbalanced | E85: 0 | F85: 0 | G85: 0 | H85: 0 | I85: 0 | J85: 0 | K85: 0 | L85: 0

Sheet A5A
A1: =muni&" - "&Approve5 -> DC32 Ehlanzeni - Table A5 Budgeted Capital Expenditure by vote, functional classification and funding
A2: =Vdesc -> Vote Description | B2: =head27 -> Ref | C2: =head1b -> 2016/17 | D2: =head1A -> 2017/18 | E2: =Head1 -> 2018/19 | F2: =Head2 -> Current Year 2019/20 | J2: =Head3 -> 2020/21 Medium Term Revenue & Expenditure Framework | N2: ="Multi-year appropriation for "&Head9& " in the "&Head2A&" Annual Budget" -> Multi-year appropriation for Budget Year 2020/21 in the 2019/20 Annual Budget | R2: ="Multi-year appropriation for "&RIGHT(Head10,7)& " in the "&Head2A&" Annual Budget" -> Multi-year appropriation for 2021/22 in the 2019/20 Annual Budget | V2: New multi-year appropriations (funds for new and existing projects)
A3: R thousand | B3: 1 | C3: =Head5 -> Audited Outcome | D3: =Head5 -> Audited Outcome | E3: =Head5 -> Audited Outcome | F3: =Head6 -> Original Budget | G3: =Head7 -> Adjusted Budget | H3: =Head8 -> Full Year Forecast | I3: =Head5b -> Pre-audit outcome | J3: =Head9 -> Budget Year 2020/21 | K3: =Head10 -> Budget Year +1 2021/22 | L3: =Head11 -> Budget Year +2 2022/23 | N3: ="Appropriation for "&RIGHT(Head9,7) -> Appropriation for 2020/21 | O3: ="Adjustments in "&Head2A -> Adjustments in 2019/20 | P3: ="Downward adjustments for "&RIGHT(Head9,7) -> Downward adjustments for 2020/21 | Q3: Appropriation carried forward | R3: ="Appropriation for "&RIGHT(Head9,7) -> Appropriation for 2020/21 | S3: ="Adjustments in "&Head2A -> Adjustments in 2019/20 | T3: ="Downward adjustments for "&RIGHT(Head9,7) -> Downward adjustments for 2020/21 | U3: Appropriation carried forward | V3: =Head9 -> Budget Year 2020/21 | W3: =Head10 -> Budget Year +1 2021/22 | X3: =Head11 -> Budget Year +2 2022/23
A4: Capital expenditure - Municipal Vote
A5: Multi-year expenditure appropriation | B5: 2
A6: ='Org structure'!A2 -> Vote 01 - Council Summary | C6: =SUM(C7:C11) -> 0 | D6: 0 | E6: 0 | F6: 0 | G6: 0 | H6: 0 | I6: 0 | J6: 0 | K6: 0 | L6: 0 | N6: =SUM(N7:N11) -> 0 | O6: 0 | P6: 0 | Q6: 0 | R6: 0 | S6: 0 | T6: 0 | U6: 0 | V6: 0 | W6: 0 | X6: 0
A7: ='Org structure'!E3 -> 01.1 - Office Of The Executive Mayor | C7: 0 | D7: 0 | E7: 0 | F7: 0 | G7: 0 | H7: 0 | I7: 0 | J7: =Q7+V7 -> 0 | K7: =U7+W7 -> 0 | L7: =X7 -> 0 | N7: 0 | O7: 0 | P7: 0 | Q7: =SUM(N7:P7) -> 0 | R7: 0 | S7: 0 | T7: 0 | U7: =SUM(R7:T7) -> 0 | V7: 0 | W7: 0 | X7: 0
A8: ='Org structure'!E4 -> 01.2 - Office Of The Speaker | C8: 0 | D8: 0 | E8: 0 | F8: 0 | G8: 0 | H8: 0 | I8: 0 | J8: =Q8+V8 -> 0 | K8: =U8+W8 -> 0 | L8: =X8 -> 0 | N8: 0 | O8: 0 | P8: 0 | Q8: =SUM(N8:P8) -> 0 | R8: 0 | S8: 0 | T8: 0 | U8: =SUM(R8:T8) -> 0 | V8: 0 | W8: 0 | X8: 0
A9: ='Org structure'!E5 -> 01.3 - Office Of The Chief Whip | C9: 0 | D9: 0 | E9: 0 | F9: 0 | G9: 0 | H9: 0 | I9: 0 | J9: =Q9+V9 -> 0 | K9: =U9+W9 -> 0 | L9: =X9 -> 0 | N9: 0 | O9: 0 | P9: 0 | Q9: =SUM(N9:P9) -> 0 | R9: 0 | S9: 0 | T9: 0 | U9: =SUM(R9:T9) -> 0 | V9: 0 | W9: 0 | X9: 0
A10: ='Org structure'!E6 -> 01.4 - Chairperson: Mpac | C10: 0 | D10: 0 | E10: 0 | F10: 0 | G10: 0 | H10: 0 | I10: 0 | J10: =Q10+V10 -> 0 | K10: =U10+W10 -> 0 | L10: =X10 -> 0 | N10: 0 | O10: 0 | P10: 0 | Q10: =SUM(N10:P10) -> 0 | R10: 0 | S10: 0 | T10: 0 | U10: =SUM(R10:T10) -> 0 | V10: 0 | W10: 0 | X10: 0
A11: ='Org structure'!E7 -> 01.5 - Mayoral Committee | C11: 0 | D11: 0 | E11: 0 | F11: 0 | G11: 0 | H11: 0 | I11: 0 | J11: =Q11+V11 -> 0 | K11: =U11+W11 -> 0 | L11: =X11 -> 0 | N11: 0 | O11: 0 | P11: 0 | Q11: =SUM(N11:P11) -> 0 | R11: 0 | S11: 0 | T11: 0 | U11: =SUM(R11:T11) -> 0 | V11: 0 | W11: 0 | X11: 0
A12: ='Org structure'!A3 -> Vote 02 - Corporate Services & Municipal Relations | C12: =SUM(C13:C17) -> 0 | D12: 0 | E12: 0 | F12: 0 | G12: 0 | H12: 0 | I12: 0 | J12: 0 | K12: 0 | L12: 0 | N12: =SUM(N13:N17) -> 0 | O12: 0 | P12: 0 | Q12: 0 | R12: 0 | S12: 0 | T12: 0 | U12: 0 | V12: 0 | W12: 0 | X12: 0
A13: ='Org structure'!E9 -> 02.1 - Administration | C13: 0 | D13: 0 | E13: 0 | F13: 0 | G13: 0 | H13: 0 | I13: 0 | J13: =Q13+V13 -> 0 | K13: =U13+W13 -> 0 | L13: =X13 -> 0 | N13: 0 | O13: 0 | P13: 0 | Q13: =SUM(N13:P13) -> 0 | R13: 0 | S13: 0 | T13: 0 | U13: =SUM(R13:T13) -> 0 | V13: 0 | W13: 0 | X13: 0
A14: ='Org structure'!E10 -> 02.2 - Igr | C14: 0 | D14: 0 | E14: 0 | F14: 0 | G14: 0 | H14: 0 | I14: 0 | J14: =Q14+V14 -> 0 | K14: =U14+W14 -> 0 | L14: =X14 -> 0 | N14: 0 | O14: 0 | P14: 0 | Q14: =SUM(N14:P14) -> 0 | R14: 0 | S14: 0 | T14: 0 | U14: =SUM(R14:T14) -> 0 | V14: 0 | W14: 0 | X14: 0
A15: ='Org structure'!E11 -> 02.3 - Human Resources | C15: 0 | D15: 0 | E15: 0 | F15: 0 | G15: 0 | H15: 0 | I15: 0 | J15: =Q15+V15 -> 0 | K15: =U15+W15 -> 0 | L15: =X15 -> 0 | N15: 0 | O15: 0 | P15: 0 | Q15: =SUM(N15:P15) -> 0 | R15: 0 | S15: 0 | T15: 0 | U15: =SUM(R15:T15) -> 0 | V15: 0 | W15: 0 | X15: 0
A16: ='Org structure'!E12 -> 02.4 - Communications; Marketing And Events | C16: 0 | D16: 0 | E16: 0 | F16: 0 | G16: 0 | H16: 0 | I16: 0 | J16: =Q16+V16 -> 0 | K16: =U16+W16 -> 0 | L16: =X16 -> 0 | N16: 0 | O16: 0 | P16: 0 | Q16: =SUM(N16:P16) -> 0 | R16: 0 | S16: 0 | T16: 0 | U16: =SUM(R16:T16) -> 0 | V16: 0 | W16: 0 | X16: 0
A17: ='Org structure'!E13 -> 02.5 - Electricity Reporting Function | C17: 0 | D17: 0 | E17: 0 | F17: 0 | G17: 0 | H17: 0 | I17: 0 | J17: =Q17+V17 -> 0 | K17: =U17+W17 -> 0 | L17: =X17 -> 0 | N17: 0 | O17: 0 | P17: 0 | Q17: =SUM(N17:P17) -> 0 | R17: 0 | S17: 0 | T17: 0 | U17: =SUM(R17:T17) -> 0 | V17: 0 | W17: 0 | X17: 0
A18: ='Org structure'!A4 -> Vote 03 - Finance And Procurement | C18: =SUM(C19:C26) -> 0 | D18: 0 | E18: 0 | F18: 0 | G18: 0 | H18: 0 | I18: 0 | J18: 0 | K18: 0 | L18: 0 | N18: =SUM(N19:N26) -> 0 | O18: 0 | P18: 0 | Q18: 0 | R18: 0 | S18: 0 | T18: 0 | U18: 0 | V18: 0 | W18: 0 | X18: 0
A19: ='Org structure'!E15 -> 03.1 - Administration | C19: 0 | D19: 0 | E19: 0 | F19: 0 | G19: 0 | H19: 0 | I19: 0 | J19: =Q19+V19 -> 0 | K19: =U19+W19 -> 0 | L19: =X19 -> 0 | N19: 0 | O19: 0 | P19: 0 | Q19: =SUM(N19:P19) -> 0 | R19: 0 | S19: 0 | T19: 0 | U19: =SUM(R19:T19) -> 0 | V19: 0 | W19: 0 | X19: 0
A20: ='Org structure'!E16 -> 03.2 - Cfo Office | C20: 0 | D20: 0 | E20: 0 | F20: 0 | G20: 0 | H20: 0 | I20: 0 | J20: 0 | K20: 0 | L20: 0 | N20: 0 | O20: 0 | P20: 0 | Q20: 0 | R20: 0 | S20: 0 | T20: 0 | U20: 0 | V20: 0 | W20: 0 | X20: 0
A21: ='Org structure'!E17 -> 03.3 - Information Technology | C21: 0 | D21: 0 | E21: 0 | F21: 0 | G21: 0 | H21: 0 | I21: 0 | J21: 0 | K21: 0 | L21: 0 | N21: 0 | O21: 0 | P21: 0 | Q21: 0 | R21: 0 | S21: 0 | T21: 0 | U21: 0 | V21: 0 | W21: 0 | X21: 0
A22: ='Org structure'!E18 -> 03.4 - Supply Chain Management | C22: 0 | D22: 0 | E22: 0 | F22: 0 | G22: 0 | H22: 0 | I22: 0 | J22: 0 | K22: 0 | L22: 0 | N22: 0 | O22: 0 | P22: 0 | Q22: 0 | R22: 0 | S22: 0 | T22: 0 | U22: 0 | V22: 0 | W22: 0 | X22: 0
A23: ='Org structure'!E19 -> 03.5 - Budget And Reporting | C23: 0 | D23: 0 | E23: 0 | F23: 0 | G23: 0 | H23: 0 | I23: 0 | J23: 0 | K23: 0 | L23: 0 | N23: 0 | O23: 0 | P23: 0 | Q23: 0 | R23: 0 | S23: 0 | T23: 0 | U23: 0 | V23: 0 | W23: 0 | X23: 0
A24: ='Org structure'!E20 -> 03.6 - Budget And Reporting | C24: 0 | D24: 0 | E24: 0 | F24: 0 | G24: 0 | H24: 0 | I24: 0 | J24: 0 | K24: 0 | L24: 0 | N24: 0 | O24: 0 | P24: 0 | Q24: 0 | R24: 0 | S24: 0 | T24: 0 | U24: 0 | V24: 0 | W24: 0 | X24: 0
A25: ='Org structure'!E21 -> 03.7 - Treasury | C25: 0 | D25: 0 | E25: 0 | F25: 0 | G25: 0 | H25: 0 | I25: 0 | J25: 0 | K25: 0 | L25: 0 | N25: 0 | O25: 0 | P25: 0 | Q25: 0 | R25: 0 | S25: 0 | T25: 0 | U25: 0 | V25: 0 | W25: 0 | X25: 0
A26: ='Org structure'!E22 -> 03.8 - Treasury | C26: 0 | D26: 0 | E26: 0 | F26: 0 | G26: 0 | H26: 0 | I26: 0 | J26: 0 | K26: 0 | L26: 0 | N26: 0 | O26: 0 | P26: 0 | Q26: 0 | R26: 0 | S26: 0 | T26: 0 | U26: 0 | V26: 0 | W26: 0 | X26: 0
A27: ='Org structure'!A5 -> Vote 04 - Local Economic Development; Tourism And Rural Devevelopment | C27: =SUM(C28:C30) -> 0 | D27: 0 | E27: 0 | F27: 0 | G27: 0 | H27: 0 | I27: 0 | J27: 0 | K27: 0 | L27: 0 | N27: =SUM(N28:N30) -> 0 | O27: 0 | P27: 0 | Q27: 0 | R27: 0 | S27: 0 | T27: 0 | U27: 0 | V27: 0 | W27: 0 | X27: 0
A28: ='Org structure'!E24 -> 04.1 - Administration | C28: 0 | D28: 0 | E28: 0 | F28: 0 | G28: 0 | H28: 0 | I28: 0 | J28: =Q28+V28 -> 0 | K28: =U28+W28 -> 0 | L28: =X28 -> 0 | N28: 0 | O28: 0 | P28: 0 | Q28: =SUM(N28:P28) -> 0 | R28: 0 | S28: 0 | T28: 0 | U28: =SUM(R28:T28) -> 0 | V28: 0 | W28: 0 | X28: 0
A29: ='Org structure'!E25 -> 04.2 - Rural Development | C29: 0 | D29: 0 | E29: 0 | F29: 0 | G29: 0 | H29: 0 | I29: 0 | J29: =Q29+V29 -> 0 | K29: =U29+W29 -> 0 | L29: =X29 -> 0 | N29: 0 | O29: 0 | P29: 0 | Q29: =SUM(N29:P29) -> 0 | R29: 0 | S29: 0 | T29: 0 | U29: =SUM(R29:T29) -> 0 | V29: 0 | W29: 0 | X29: 0
A30: ='Org structure'!E26 -> 04.3 - Led & Tourism | C30: 0 | D30: 0 | E30: 0 | F30: 0 | G30: 0 | H30: 0 | I30: 0 | J30: =Q30+V30 -> 0 | K30: =U30+W30 -> 0 | L30: =X30 -> 0 | N30: 0 | O30: 0 | P30: 0 | Q30: =SUM(N30:P30) -> 0 | R30: 0 | S30: 0 | T30: 0 | U30: =SUM(R30:T30) -> 0 | V30: 0 | W30: 0 | X30: 0
A31: ='Org structure'!A6 -> Vote 05 - Municipal Health & Environmental Management | C31: =SUM(C32:C35) -> 0 | D31: 0 | E31: 0 | F31: 0 | G31: 0 | H31: 0 | I31: 0 | J31: 0 | K31: 0 | L31: 0 | N31: =SUM(N32:N35) -> 0 | O31: 0 | P31: 0 | Q31: 0 | R31: 0 | S31: 0 | T31: 0 | U31: 0 | V31: 0 | W31: 0 | X31: 0
A32: ='Org structure'!E28 -> 05.1 - Administration | C32: 0 | D32: 0 | E32: 0 | F32: 0 | G32: 0 | H32: 0 | I32: 0 | J32: =Q32+V32 -> 0 | K32: =U32+W32 -> 0 | L32: =X32 -> 0 | N32: 0 | O32: 0 | P32: 0 | Q32: =SUM(N32:P32) -> 0 | R32: 0 | S32: 0 | T32: 0 | U32: =SUM(R32:T32) -> 0 | V32: 0 | W32: 0 | X32: 0
A33: ='Org structure'!E29 -> 05.2 - Municipal Health | C33: 0 | D33: 0 | E33: 0 | F33: 0 | G33: 0 | H33: 0 | I33: 0 | J33: =Q33+V33 -> 0 | K33: =U33+W33 -> 0 | L33: =X33 -> 0 | N33: 0 | O33: 0 | P33: 0 | Q33: =SUM(N33:P33) -> 0 | R33: 0 | S33: 0 | T33: 0 | U33: =SUM(R33:T33) -> 0 | V33: 0 | W33: 0 | X33: 0
A34: ='Org structure'!E30 -> 05.3 - Laboratory Services | C34: 0 | D34: 0 | E34: 0 | F34: 0 | G34: 0 | H34: 0 | I34: 0 | J34: =Q34+V34 -> 0 | K34: =U34+W34 -> 0 | L34: =X34 -> 0 | N34: 0 | O34: 0 | P34: 0 | Q34: =SUM(N34:P34) -> 0 | R34: 0 | S34: 0 | T34: 0 | U34: =SUM(R34:T34) -> 0 | V34: 0 | W34: 0 | X34: 0
A35: ='Org structure'!E31 -> 05.4 - Environmental Services | C35: 0 | D35: 0 | E35: 0 | F35: 0 | G35: 0 | H35: 0 | I35: 0 | J35: =Q35+V35 -> 0 | K35: =U35+W35 -> 0 | L35: =X35 -> 0 | N35: 0 | O35: 0 | P35: 0 | Q35: =SUM(N35:P35) -> 0 | R35: 0 | S35: 0 | T35: 0 | U35: =SUM(R35:T35) -> 0 | V35: 0 | W35: 0 | X35: 0
A36: ='Org structure'!A7 -> Vote 06 - Office Of The Municipal Manager | C36: =SUM(C37:C45) -> 0 | D36: 0 | E36: 0 | F36: 0 | G36: 0 | H36: 0 | I36: 0 | J36: 0 | K36: 0 | L36: 0 | N36: =SUM(N37:N45) -> 0 | O36: 0 | P36: 0 | Q36: 0 | R36: 0 | S36: 0 | T36: 0 | U36: 0 | V36: 0 | W36: 0 | X36: 0
A37: ='Org structure'!E33 -> 06.1 - Administration | C37: 0 | D37: 0 | E37: 0 | F37: 0 | G37: 0 | H37: 0 | I37: 0 | J37: =Q37+V37 -> 0 | K37: =U37+W37 -> 0 | L37: =X37 -> 0 | N37: 0 | O37: 0 | P37: 0 | Q37: =SUM(N37:P37) -> 0 | R37: 0 | S37: 0 | T37: 0 | U37: =SUM(R37:T37) -> 0 | V37: 0 | W37: 0 | X37: 0
A38: ='Org structure'!E34 -> 06.2 - Internal Audit | C38: 0 | D38: 0 | E38: 0 | F38: 0 | G38: 0 | H38: 0 | I38: 0 | J38: 0 | K38: 0 | L38: 0 | N38: 0 | O38: 0 | P38: 0 | Q38: 0 | R38: 0 | S38: 0 | T38: 0 | U38: 0 | V38: 0 | W38: 0 | X38: 0
A39: ='Org structure'!E35 -> 06.3 - Risk Management | C39: 0 | D39: 0 | E39: 0 | F39: 0 | G39: 0 | H39: 0 | I39: 0 | J39: 0 | K39: 0 | L39: 0 | N39: 0 | O39: 0 | P39: 0 | Q39: 0 | R39: 0 | S39: 0 | T39: 0 | U39: 0 | V39: 0 | W39: 0 | X39: 0
A40: ='Org structure'!E36 -> 06.4 - Administration | C40: 0 | D40: 0 | E40: 0 | F40: 0 | G40: 0 | H40: 0 | I40: 0 | J40: 0 | K40: 0 | L40: 0 | N40: 0 | O40: 0 | P40: 0 | Q40: 0 | R40: 0 | S40: 0 | T40: 0 | U40: 0 | V40: 0 | W40: 0 | X40: 0
A41: ='Org structure'!E37 -> 06.5 - M&E | C41: 0 | D41: 0 | E41: 0 | F41: 0 | G41: 0 | H41: 0 | I41: 0 | J41: 0 | K41: 0 | L41: 0 | N41: 0 | O41: 0 | P41: 0 | Q41: 0 | R41: 0 | S41: 0 | T41: 0 | U41: 0 | V41: 0 | W41: 0 | X41: 0
A42: ='Org structure'!E38 -> 06.6 - Performance Management | C42: 0 | D42: 0 | E42: 0 | F42: 0 | G42: 0 | H42: 0 | I42: 0 | J42: 0 | K42: 0 | L42: 0 | N42: 0 | O42: 0 | P42: 0 | Q42: 0 | R42: 0 | S42: 0 | T42: 0 | U42: 0 | V42: 0 | W42: 0 | X42: 0
A43: ='Org structure'!E39 -> 06.7 - Strategic Planning | C43: 0 | D43: 0 | E43: 0 | F43: 0 | G43: 0 | H43: 0 | I43: 0 | J43: 0 | K43: 0 | L43: 0 | N43: 0 | O43: 0 | P43: 0 | Q43: 0 | R43: 0 | S43: 0 | T43: 0 | U43: 0 | V43: 0 | W43: 0 | X43: 0
A44: ='Org structure'!E40 -> 06.8 - Geographical Information Management | C44: 0 | D44: 0 | E44: 0 | F44: 0 | G44: 0 | H44: 0 | I44: 0 | J44: 0 | K44: 0 | L44: 0 | N44: 0 | O44: 0 | P44: 0 | Q44: 0 | R44: 0 | S44: 0 | T44: 0 | U44: 0 | V44: 0 | W44: 0 | X44: 0
A45: ='Org structure'!E41 -> 06.9 - Spatial Planning | C45: 0 | D45: 0 | E45: 0 | F45: 0 | G45: 0 | H45: 0 | I45: 0 | J45: 0 | K45: 0 | L45: 0 | N45: 0 | O45: 0 | P45: 0 | Q45: 0 | R45: 0 | S45: 0 | T45: 0 | U45: 0 | V45: 0 | W45: 0 | X45: 0
A46: ='Org structure'!A8 -> Vote 07 - Social Services & Disaster Management | C46: =SUM(C47:C50) -> 0 | D46: 0 | E46: 0 | F46: 0 | G46: 0 | H46: 0 | I46: 0 | J46: 0 | K46: 0 | L46: 0 | N46: =SUM(N47:N50) -> 0 | O46: 0 | P46: 0 | Q46: 0 | R46: 0 | S46: 0 | T46: 0 | U46: 0 | V46: 0 | W46: 0 | X46: 0
A47: ='Org structure'!E43 -> 07.1 - Administration | C47: 0 | D47: 0 | E47: 0 | F47: 0 | G47: 0 | H47: 0 | I47: 0 | J47: =Q47+V47 -> 0 | K47: =U47+W47 -> 0 | L47: =X47 -> 0 | N47: 0 | O47: 0 | P47: 0 | Q47: =SUM(N47:P47) -> 0 | R47: 0 | S47: 0 | T47: 0 | U47: =SUM(R47:T47) -> 0 | V47: 0 | W47: 0 | X47: 0
A48: ='Org structure'!E44 -> 07.2 - Social Services | C48: 0 | D48: 0 | E48: 0 | F48: 0 | G48: 0 | H48: 0 | I48: 0 | J48: =Q48+V48 -> 0 | K48: =U48+W48 -> 0 | L48: =X48 -> 0 | N48: 0 | O48: 0 | P48: 0 | Q48: =SUM(N48:P48) -> 0 | R48: 0 | S48: 0 | T48: 0 | U48: =SUM(R48:T48) -> 0 | V48: 0 | W48: 0 | X48: 0
A49: ='Org structure'!E45 -> 07.3 - Transversal Programmes | C49: 0 | D49: 0 | E49: 0 | F49: 0 | G49: 0 | H49: 0 | I49: 0 | J49: =Q49+V49 -> 0 | K49: =U49+W49 -> 0 | L49: =X49 -> 0 | N49: 0 | O49: 0 | P49: 0 | Q49: =SUM(N49:P49) -> 0 | R49: 0 | S49: 0 | T49: 0 | U49: =SUM(R49:T49) -> 0 | V49: 0 | W49: 0 | X49: 0
A50: ='Org structure'!E46 -> 07.4 - Disaster Management | C50: 0 | D50: 0 | E50: 0 | F50: 0 | G50: 0 | H50: 0 | I50: 0 | J50: =Q50+V50 -> 0 | K50: =U50+W50 -> 0 | L50: =X50 -> 0 | N50: 0 | O50: 0 | P50: 0 | Q50: =SUM(N50:P50) -> 0 | R50: 0 | S50: 0 | T50: 0 | U50: =SUM(R50:T50) -> 0 | V50: 0 | W50: 0 | X50: 0
A51: ='Org structure'!A9 -> Vote 08 - Technical Services | C51: =SUM(C52:C56) -> 0 | D51: 0 | E51: 0 | F51: 0 | G51: 0 | H51: 0 | I51: 0 | J51: 0 | K51: 0 | L51: 0 | N51: =SUM(N52:N56) -> 0 | O51: 0 | P51: 0 | Q51: 0 | R51: 0 | S51: 0 | T51: 0 | U51: 0 | V51: 0 | W51: 0 | X51: 0
A52: ='Org structure'!E48 -> 08.1 - Administration | C52: 0 | D52: 0 | E52: 0 | F52: 0 | G52: 0 | H52: 0 | I52: 0 | J52: =Q52+V52 -> 0 | K52: =U52+W52 -> 0 | L52: =X52 -> 0 | N52: 0 | O52: 0 | P52: 0 | Q52: =SUM(N52:P52) -> 0 | R52: 0 | S52: 0 | T52: 0 | U52: =SUM(R52:T52) -> 0 | V52: 0 | W52: 0 | X52: 0
A53: ='Org structure'!E49 -> 08.2 - Water | C53: 0 | D53: 0 | E53: 0 | F53: 0 | G53: 0 | H53: 0 | I53: 0 | J53: =Q53+V53 -> 0 | K53: =U53+W53 -> 0 | L53: =X53 -> 0 | N53: 0 | O53: 0 | P53: 0 | Q53: =SUM(N53:P53) -> 0 | R53: 0 | S53: 0 | T53: 0 | U53: =SUM(R53:T53) -> 0 | V53: 0 | W53: 0 | X53: 0
A54: ='Org structure'!E50 -> 08.3 - Sanitation | C54: 0 | D54: 0 | E54: 0 | F54: 0 | G54: 0 | H54: 0 | I54: 0 | J54: =Q54+V54 -> 0 | K54: =U54+W54 -> 0 | L54: =X54 -> 0 | N54: 0 | O54: 0 | P54: 0 | Q54: =SUM(N54:P54) -> 0 | R54: 0 | S54: 0 | T54: 0 | U54: =SUM(R54:T54) -> 0 | V54: 0 | W54: 0 | X54: 0
A55: ='Org structure'!E51 -> 08.4 - Roads And Transport | C55: 0 | D55: 0 | E55: 0 | F55: 0 | G55: 0 | H55: 0 | I55: 0 | J55: =Q55+V55 -> 0 | K55: =U55+W55 -> 0 | L55: =X55 -> 0 | N55: 0 | O55: 0 | P55: 0 | Q55: =SUM(N55:P55) -> 0 | R55: 0 | S55: 0 | T55: 0 | U55: =SUM(R55:T55) -> 0 | V55: 0 | W55: 0 | X55: 0
A56: ='Org structure'!E52 -> 08.5 - Civil Services | C56: 0 | D56: 0 | E56: 0 | F56: 0 | G56: 0 | H56: 0 | I56: 0 | J56: =Q56+V56 -> 0 | K56: =U56+W56 -> 0 | L56: =X56 -> 0 | N56: 0 | O56: 0 | P56: 0 | Q56: =SUM(N56:P56) -> 0 | R56: 0 | S56: 0 | T56: 0 | U56: =SUM(R56:T56) -> 0 | V56: 0 | W56: 0 | X56: 0
A57: ='Org structure'!A10 -> Vote 09 - | C57: 0 | D57: 0 | E57: 0 | F57: 0 | G57: 0 | H57: 0 | I57: 0 | J57: 0 | K57: 0 | L57: 0 | N57: 0 | O57: 0 | P57: 0 | Q57: 0 | R57: 0 | S57: 0 | T57: 0 | U57: 0 | V57: 0 | W57: 0
A58: ='Org structure'!A11 -> Vote 10 - | C58: 0 | D58: 0 | E58: 0 | F58: 0 | G58: 0 | H58: 0 | I58: 0 | J58: 0 | K58: 0 | L58: 0 | N58: 0 | O58: 0 | P58: 0 | Q58: 0 | R58: 0 | S58: 0 | T58: 0 | U58: 0 | V58: 0 | W58: 0
A59: ='Org structure'!A12 -> Vote 11 - | C59: 0 | D59: 0 | E59: 0 | F59: 0 | G59: 0 | H59: 0 | I59: 0 | J59: 0 | K59: 0 | L59: 0 | N59: 0 | O59: 0 | P59: 0 | Q59: 0 | R59: 0 | S59: 0 | T59: 0 | U59: 0 | V59: 0 | W59: 0
A60: ='Org structure'!A13 -> Vote 12 - | C60: 0 | D60: 0 | E60: 0 | F60: 0 | G60: 0 | H60: 0 | I60: 0 | J60: 0 | K60: 0 | L60: 0 | N60: 0 | O60: 0 | P60: 0 | Q60: 0 | R60: 0 | S60: 0 | T60: 0 | U60: 0 | V60: 0 | W60: 0
A61: ='Org structure'!A14 -> Vote 13 - | C61: 0 | D61: 0 | E61: 0 | F61: 0 | G61: 0 | H61: 0 | I61: 0 | J61: 0 | K61: 0 | L61: 0 | N61: 0 | O61: 0 | P61: 0 | Q61: 0 | R61: 0 | S61: 0 | T61: 0 | U61: 0 | V61: 0 | W61: 0
A62: ='Org structure'!A15 -> Vote 14 - | C62: 0 | D62: 0 | E62: 0 | F62: 0 | G62: 0 | H62: 0 | I62: 0 | J62: 0 | K62: 0 | L62: 0 | N62: 0 | O62: 0 | P62: 0 | Q62: 0 | R62: 0 | S62: 0 | T62: 0 | U62: 0 | V62: 0 | W62: 0
A63: ='Org structure'!A16 -> Vote 15 - Other | C63: 0 | D63: 0 | E63: 0 | F63: 0 | G63: 0 | H63: 0 | I63: 0 | J63: 0 | K63: 0 | L63: 0 | N63: 0 | O63: 0 | P63: 0 | Q63: 0 | R63: 0 | S63: 0 | T63: 0 | U63: 0 | V63: 0 | W63: 0
A64: Capital multi-year expenditure sub-total | C64: =C6+C12+C18+C27+C31+C36+C46+C51+C57+C58+C59+C60+C61+C62+C63 -> 0 | D64: 0 | E64: 0 | F64: 0 | G64: 0 | H64: 0 | I64: 0 | J64: 0 | K64: 0 | L64: 0 | N64: =N6+N12+N18+N27+N31+N36+N46+N51+N57+N58+N59+N60+N61+N62+N63 -> 0 | O64: 0 | P64: 0 | Q64: 0 | R64: 0 | S64: 0 | T64: 0 | U64: 0 | V64: 0 | W64: 0
A66: Capital expenditure - Municipal Vote
A67: Single-year expenditure appropriation | B67: 2
A68: ='Org structure'!A2 -> Vote 01 - Council Summary | C68: =SUM(C69:C73) -> 960510 | D68: 1049136.88 | E68: 650578.42 | F68: 0 | G68: 0 | H68: 0 | I68: 0 | J68: 0 | K68: 0 | L68: 0
A69: ='Org structure'!E3 -> 01.1 - Office Of The Executive Mayor | C69: 0 | D69: 337796.03 | E69: 242606.67 | F69: 0 | G69: 0 | H69: 0 | I69: 0 | J69: 0 | K69: 0 | L69: 0
A70: ='Org structure'!E4 -> 01.2 - Office Of The Speaker | C70: 960510 | D70: 711340.85 | E70: 407971.75 | F70: 0 | G70: 0 | H70: 0 | I70: 0 | J70: 0 | K70: 0 | L70: 0
A71: ='Org structure'!E5 -> 01.3 - Office Of The Chief Whip | C71: 0 | D71: 0 | E71: 0 | F71: 0 | G71: 0 | H71: 0 | I71: 0 | J71: 0 | K71: 0 | L71: 0
A72: ='Org structure'!E6 -> 01.4 - Chairperson: Mpac | C72: 0 | D72: 0 | E72: 0 | F72: 0 | G72: 0 | H72: 0 | I72: 0 | J72: 0 | K72: 0 | L72: 0
A73: ='Org structure'!E7 -> 01.5 - Mayoral Committee | C73: 0 | D73: 0 | E73: 0 | F73: 0 | G73: 0 | H73: 0 | I73: 0 | J73: 0 | K73: 0 | L73: 0
A74: ='Org structure'!A3 -> Vote 02 - Corporate Services & Municipal Relations | C74: =SUM(C75:C79) -> 0 | D74: 212152.8 | E74: 990372.8 | F74: 0 | G74: 0 | H74: 0 | I74: 0 | J74: 500000 | K74: 2000000 | L74: 300000
A75: ='Org structure'!E9 -> 02.1 - Administration | C75: 0 | D75: 212152.8 | E75: 990372.8 | F75: 0 | G75: 0 | H75: 0 | I75: 0 | J75: 500000 | K75: 2000000 | L75: 300000
A76: ='Org structure'!E10 -> 02.2 - Igr | C76: 0 | D76: 0 | E76: 0 | F76: 0 | G76: 0 | H76: 0 | I76: 0 | J76: 0 | K76: 0 | L76: 0
A77: ='Org structure'!E11 -> 02.3 - Human Resources | C77: 0 | D77: 0 | E77: 0 | F77: 0 | G77: 0 | H77: 0 | I77: 0 | J77: 0 | K77: 0 | L77: 0
A78: ='Org structure'!E12 -> 02.4 - Communications; Marketing And Events | C78: 0 | D78: 0 | E78: 0 | F78: 0 | G78: 0 | H78: 0 | I78: 0 | J78: 0 | K78: 0 | L78: 0
A79: ='Org structure'!E13 -> 02.5 - Electricity Reporting Function | C79: 0 | D79: 0 | E79: 0 | F79: 0 | G79: 0 | H79: 0 | I79: 0 | J79: 0 | K79: 0 | L79: 0
A80: ='Org structure'!A4 -> Vote 03 - Finance And Procurement | C80: =SUM(C81:C88) -> 5653454 | D80: 348241.21 | E80: 943685.23 | F80: 3950000 | G80: 4128000 | H80: 4128000 | I80: 2651155.78 | J80: 4092000 | K80: 5580000 | L80: 5794742
A81: ='Org structure'!E15 -> 03.1 - Administration | C81: 0 | D81: 0.01 | E81: 507974.96 | F81: 2500000 | G81: 3100000 | H81: 3100000 | I81: 2096691.53 | J81: 1200000 | K81: 1400000 | L81: 1450000
A82: ='Org structure'!E16 -> 03.2 - Cfo Office | C82: 5653454 | D82: 348241.2 | E82: 435710.27 | F82: 1450000 | G82: 1028000 | H82: 1028000 | I82: 554464.25 | J82: 2892000 | K82: 4180000 | L82: 4344742
A83: ='Org structure'!E17 -> 03.3 - Information Technology | C83: 0 | D83: 0 | E83: 0 | F83: 0 | G83: 0 | H83: 0 | I83: 0 | J83: 0 | K83: 0 | L83: 0
A84: ='Org structure'!E18 -> 03.4 - Supply Chain Management | C84: 0 | D84: 0 | E84: 0 | F84: 0 | G84: 0 | H84: 0 | I84: 0 | J84: 0 | K84: 0 | L84: 0
A85: ='Org structure'!E19 -> 03.5 - Budget And Reporting | C85: 0 | D85: 0 | E85: 0 | F85: 0 | G85: 0 | H85: 0 | I85: 0 | J85: 0 | K85: 0 | L85: 0
A86: ='Org structure'!E20 -> 03.6 - Budget And Reporting | C86: 0 | D86: 0 | E86: 0 | F86: 0 | G86: 0 | H86: 0 | I86: 0 | J86: 0 | K86: 0 | L86: 0
A87: ='Org structure'!E21 -> 03.7 - Treasury | C87: 0 | D87: 0 | E87: 0 | F87: 0 | G87: 0 | H87: 0 | I87: 0 | J87: 0 | K87: 0 | L87: 0
A88: ='Org structure'!E22 -> 03.8 - Treasury | C88: 0 | D88: 0 | E88: 0 | F88: 0 | G88: 0 | H88: 0 | I88: 0 | J88: 0 | K88: 0 | L88: 0
A89: ='Org structure'!A5 -> Vote 04 - Local Economic Development; Tourism And Rural Devevelopment | C89: =SUM(C90:C92) -> 17315632 | D89: 22252.35 | E89: 308595.67 | F89: 800000 | G89: 450000 | H89: 450000 | I89: 198110 | J89: 0 | K89: 0 | L89: 0
A90: ='Org structure'!E24 -> 04.1 - Administration | C90: 17315632 | D90: 0 | E90: 0 | F90: 800000 | G90: 450000 | H90: 450000 | I90: 198110 | J90: 0 | K90: 0 | L90: 0
A91: ='Org structure'!E25 -> 04.2 - Rural Development | C91: 0 | D91: 0 | E91: 0 | F91: 0 | G91: 0 | H91: 0 | I91: 0 | J91: 0 | K91: 0 | L91: 0
A92: ='Org structure'!E26 -> 04.3 - Led & Tourism | C92: 0 | D92: 22252.35 | E92: 308595.67 | F92: 0 | G92: 0 | H92: 0 | I92: 0 | J92: 0 | K92: 0 | L92: 0
A93: ='Org structure'!A6 -> Vote 05 - Municipal Health & Environmental Management | C93: =SUM(C94:C97) -> 0 | D93: 359262.72 | E93: 309036.39 | F93: 750000 | G93: 131000 | H93: 131000 | I93: 0 | J93: 0 | K93: 0 | L93: 0
A94: ='Org structure'!E28 -> 05.1 - Administration | C94: 0 | D94: 0 | E94: 0 | F94: 0 | G94: 0 | H94: 0 | I94: 0 | J94: 0 | K94: 0 | L94: 0
A95: ='Org structure'!E29 -> 05.2 - Municipal Health | C95: 0 | D95: 359262.72 | E95: 309036.39 | F95: 750000 | G95: 131000 | H95: 131000 | I95: 0 | J95: 0 | K95: 0 | L95: 0
A96: ='Org structure'!E30 -> 05.3 - Laboratory Services | C96: 0 | D96: 0 | E96: 0 | F96: 0 | G96: 0 | H96: 0 | I96: 0 | J96: 0 | K96: 0 | L96: 0
A97: ='Org structure'!E31 -> 05.4 - Environmental Services | C97: 0 | D97: 0 | E97: 0 | F97: 0 | G97: 0 | H97: 0 | I97: 0 | J97: 0 | K97: 0 | L97: 0
A98: ='Org structure'!A7 -> Vote 06 - Office Of The Municipal Manager | C98: =SUM(C99:C107) -> 0 | D98: 209999.43 | E98: 217600.58 | F98: 0 | G98: 0 | H98: 0 | I98: 0 | J98: 0 | K98: 0 | L98: 0
A99: ='Org structure'!E33 -> 06.1 - Administration | C99: 0 | D99: 209999.43 | E99: 217600.58 | F99: 0 | G99: 0 | H99: 0 | I99: 0 | J99: 0 | K99: 0 | L99: 0
A100: ='Org structure'!E34 -> 06.2 - Internal Audit | C100: 0 | D100: 0 | E100: 0 | F100: 0 | G100: 0 | H100: 0 | I100: 0 | J100: 0 | K100: 0 | L100: 0
A101: ='Org structure'!E35 -> 06.3 - Risk Management | C101: 0 | D101: 0 | E101: 0 | F101: 0 | G101: 0 | H101: 0 | I101: 0 | J101: 0 | K101: 0 | L101: 0
A102: ='Org structure'!E36 -> 06.4 - Administration | C102: 0 | D102: 0 | E102: 0 | F102: 0 | G102: 0 | H102: 0 | I102: 0 | J102: 0 | K102: 0 | L102: 0
A103: ='Org structure'!E37 -> 06.5 - M&E | C103: 0 | D103: 0 | E103: 0 | F103: 0 | G103: 0 | H103: 0 | I103: 0 | J103: 0 | K103: 0 | L103: 0
A104: ='Org structure'!E38 -> 06.6 - Performance Management | C104: 0 | D104: 0 | E104: 0 | F104: 0 | G104: 0 | H104: 0 | I104: 0 | J104: 0 | K104: 0 | L104: 0
A105: ='Org structure'!E39 -> 06.7 - Strategic Planning | C105: 0 | D105: 0 | E105: 0 | F105: 0 | G105: 0 | H105: 0 | I105: 0 | J105: 0 | K105: 0 | L105: 0
A106: ='Org structure'!E40 -> 06.8 - Geographical Information Management | C106: 0 | D106: 0 | E106: 0 | F106: 0 | G106: 0 | H106: 0 | I106: 0 | J106: 0 | K106: 0 | L106: 0
A107: ='Org structure'!E41 -> 06.9 - Spatial Planning | C107: 0 | D107: 0 | E107: 0 | F107: 0 | G107: 0 | H107: 0 | I107: 0 | J107: 0 | K107: 0 | L107: 0
A108: ='Org structure'!A8 -> Vote 07 - Social Services & Disaster Management | C108: =SUM(C109:C112) -> 0 | D108: 720214.71 | E108: 287079.48 | F108: 0 | G108: 0 | H108: 0 | I108: 0 | J108: 0 | K108: 250000 | L108: 0
A109: ='Org structure'!E43 -> 07.1 - Administration | C109: 0 | D109: 0 | E109: 0 | F109: 0 | G109: 0 | H109: 0 | I109: 0 | J109: 0 | K109: 0 | L109: 0
A110: ='Org structure'!E44 -> 07.2 - Social Services | C110: 0 | D110: 167458.93 | E110: 23719 | F110: 0 | G110: 0 | H110: 0 | I110: 0 | J110: 0 | K110: 0 | L110: 0
A111: ='Org structure'!E45 -> 07.3 - Transversal Programmes | C111: 0 | D111: 0 | E111: 0 | F111: 0 | G111: 0 | H111: 0 | I111: 0 | J111: 0 | K111: 0 | L111: 0
A112: ='Org structure'!E46 -> 07.4 - Disaster Management | C112: 0 | D112: 552755.78 | E112: 263360.48 | F112: 0 | G112: 0 | H112: 0 | I112: 0 | J112: 0 | K112: 250000 | L112: 0
A113: ='Org structure'!A9 -> Vote 08 - Technical Services | C113: =SUM(C114:C118) -> 0 | D113: 22431.53 | E113: 191181.15 | F113: 12091000 | G113: 17837219 | H113: 17837219 | I113: 12672065.79 | J113: 13070000 | K113: 6857616 | L113: 10616000
A114: ='Org structure'!E48 -> 08.1 - Administration | C114: 0 | D114: 22431.53 | E114: 191181.15 | F114: 0 | G114: 0 | H114: 0 | I114: 0 | J114: 0 | K114: 0 | L114: 0
A115: ='Org structure'!E49 -> 08.2 - Water | C115: 0 | D115: 0 | E115: 0 | F115: 7000000 | G115: 2914026 | H115: 2914026 | I115: 1555010.87 | J115: 7099000 | K115: 1400000 | L115: 3000000
A116: ='Org structure'!E50 -> 08.3 - Sanitation | C116: 0 | D116: 0 | E116: 0 | F116: 0 | G116: 10009193 | H116: 10009193 | I116: 8830055.82 | J116: 2600000 | K116: 1956616 | L116: 1970000
A117: ='Org structure'!E51 -> 08.4 - Roads And Transport | C117: 0 | D117: 0 | E117: 0 | F117: 3091000 | G117: 3127000 | H117: 3127000 | I117: 500000 | J117: 2371000 | K117: 2501000 | L117: 3646000
A118: ='Org structure'!E52 -> 08.5 - Civil Services | C118: 0 | D118: 0 | E118: 0 | F118: 2000000 | G118: 1787000 | H118: 1787000 | I118: 1786999.1 | J118: 1000000 | K118: 1000000 | L118: 2000000
A119: ='Org structure'!A10 -> Vote 09 - | C119: 0 | D119: 0 | E119: 0 | F119: 0 | G119: 0 | H119: 0 | I119: 0 | J119: 0 | K119: 0 | L119: 0
A120: ='Org structure'!A11 -> Vote 10 - | C120: 0 | D120: 0 | E120: 0 | F120: 0 | G120: 0 | H120: 0 | I120: 0 | J120: 0 | K120: 0 | L120: 0
A121: ='Org structure'!A12 -> Vote 11 - | C121: 0 | D121: 0 | E121: 0 | F121: 0 | G121: 0 | H121: 0 | I121: 0 | J121: 0 | K121: 0 | L121: 0
A122: ='Org structure'!A13 -> Vote 12 - | C122: 0 | D122: 0 | E122: 0 | F122: 0 | G122: 0 | H122: 0 | I122: 0 | J122: 0 | K122: 0 | L122: 0
A123: ='Org structure'!A14 -> Vote 13 - | C123: 0 | D123: 0 | E123: 0 | F123: 0 | G123: 0 | H123: 0 | I123: 0 | J123: 0 | K123: 0 | L123: 0
A124: ='Org structure'!A15 -> Vote 14 - | C124: 0 | D124: 0 | E124: 0 | F124: 0 | G124: 0 | H124: 0 | I124: 0 | J124: 0 | K124: 0 | L124: 0
A125: ='Org structure'!A16 -> Vote 15 - Other | C125: 0 | D125: 0 | E125: 0 | F125: 0 | G125: 0 | H125: 0 | I125: 0 | J125: 0 | K125: 0 | L125: 0
A126: Capital single-year expenditure sub-total | C126: =C68+C74+C80+C89+C93+C98+C108+C113+C119+C120+C121+C122+C123+C124+C125 -> 23929596 | D126: 2943691.63 | E126: 3898129.72 | F126: 17591000 | G126: 22546219 | H126: 22546219 | I126: 15521331.57 | J126: 17662000 | K126: 14687616 | L126: 16710742
A127: Total Capital Expenditure | C127: =C64+C126 -> 23929596 | D127: 2943691.63 | E127: 3898129.72 | F127: 17591000 | G127: 22546219 | H127: 22546219 | I127: 15521331.57 | J127: 17662000 | K127: 14687616 | L127: 16710742

Sheet A6-FinPos
A1: =muni&" - "&Approve6 -> DC32 Ehlanzeni - Table A6 Budgeted Financial Position
A2: =desc -> Description | B2: =head27 -> Ref | C2: =head1b -> 2016/17 | D2: =head1A -> 2017/18 | E2: =Head1 -> 2018/19 | F2: =Head2 -> Current Year 2019/20 | J2: =Head3 -> 2020/21 Medium Term Revenue & Expenditure Framework
A3: R thousand | C3: =Head5 -> Audited Outcome | D3: =Head5 -> Audited Outcome | E3: =Head5 -> Audited Outcome | F3: =Head6 -> Original Budget | G3: =Head7 -> Adjusted Budget | H3: =Head8 -> Full Year Forecast | I3: =Head5b -> Pre-audit outcome | J3: =Head9 -> Budget Year 2020/21 | K3: =Head10 -> Budget Year +1 2021/22 | L3: =Head11 -> Budget Year +2 2022/23
A4: ASSETS
A5: Current assets
A6: Cash | C6: 8217482 | D6: 84490459.76 | E6: 89597263 | F6: 67991952 | G6: 62195788 | H6: 62195788 | I6: -9621023.24 | J6: 64649285 | K6: =67599000-459000 -> 67140000 | L6: =70937000-459000 -> 70478000
A7: Call investment deposits | B7: 1 | C7: 71204000 | D7: 616429.71 | E7: 459175.49 | F7: 616430 | G7: 616430 | H7: 616430 | I7: 145759997.5 | J7: 459175 | K7: 459175 | L7: 459175
A8: Consumer debtors | B8: 1 | C8: ='SA3'!C14 -> 0 | D8: ='SA3'!D14 -> 0 | E8: ='SA3'!E14 -> -200210.16 | F8: ='SA3'!F14 -> 0 | G8: ='SA3'!G14 -> 0 | H8: ='SA3'!H14 -> 0 | I8: ='SA3'!I14 -> -123285.2 | J8: ='SA3'!J14 -> 0 | K8: ='SA3'!K14 -> 0 | L8: ='SA3'!L14 -> 0
A9: Other debtors | C9: 3294793 | D9: 4084192.14 | E9: 13760079.71 | F9: 3593335 | G9: 3593335 | H9: 3593335 | I9: 6962833.53 | J9: 4302359 | K9: 4302359 | L9: 4302359
A10: Current portion of long-term receivables | C10: 0 | D10: 296009.02 | E10: 545961.65 | F10: 296009 | G10: 296009 | H10: 296009 | I10: 1125523.86 | J10: 345752 | K10: 345752 | L10: 345752
A11: Inventory | B11: 2 | C11: 2306292 | D11: 10428552.06 | E11: 14558467.06 | F11: 10250000 | G11: 10250000 | H11: 10250000 | I11: 14582171.75 | J11: 163348 | K11: 163348 | L11: 163348
A12: Total current assets | C12: =SUM(C6:C11) -> 85022567 | D12: 99915642.69 | E12: 118720736.8 | F12: 82747726 | G12: 76951562 | H12: 76951562 | I12: 158686218.2 | J12: 69919919 | K12: 72410634 | L12: 75748634
A14: Non current assets
A15: Long-term receivables | C15: 0 | D15: 0 | E15: 0 | F15: 0 | G15: 0 | H15: 0 | I15: 0 | J15: 0 | K15: 0 | L15: 0
A16: Investments | C16: 3713688 | D16: 4015711.7 | E16: 4479349.6 | F16: 4265712 | G16: 4265712 | H16: 4265712 | I16: 4479349.6 | J16: 4729350 | K16: 4729350 | L16: 4729350
A17: Investment property
A18: Investment in Associate
A19: Property, plant and equipment | B19: 3 | C19: ='SA3'!C26 -> 214517161 | D19: ='SA3'!D26 -> 209877674.9 | E19: ='SA3'!E26 -> 204594343.3 | F19: ='SA3'!F26 -> 223077670 | G19: ='SA3'!G26 -> 228612889 | H19: ='SA3'!H26 -> 228612889 | I19: ='SA3'!I26 -> 211327047.3 | J19: ='SA3'!J26 -> 211615806 | K19: ='SA3'!K26 -> 207253422 | L19: ='SA3'!L26 -> 208986806
A21: Biological
A22: Intangible | C22: 5217673 | D22: 4533784.1 | E22: 3889578.91 | F22: 8924782 | G22: 8344782 | H22: 8344782 | I22: 3276215.26 | J22: 16981064 | K22: 18369064 | L22: 18658806
A23: Other non-current assets | C23: 0 | D23: 0 | E23: 0 | F23: 0 | G23: 0 | H23: 0 | I23: 0 | J23: 0 | K23: 0 | L23: 0
A24: Total non current assets | C24: =SUM(C15:C19)+SUM(C21:C23) -> 223448522 | D24: =SUM(D15:D19)+SUM(D21:D23) -> 218427170.7 | E24: 212963271.8 | F24: 236268164 | G24: 241223383 | H24: 241223383 | I24: 219082612.1 | J24: 233326220 | K24: 230351836 | L24: 232374962
A25: TOTAL ASSETS | C25: =C12+C24 -> 308471089 | D25: =D12+D24 -> 318342813.4 | E25: =E12+E24 -> 331684008.5 | F25: =F12+F24 -> 319015890 | G25: 318174945 | H25: 318174945 | I25: 377768830.4 | J25: 303246139 | K25: 302762470 | L25: 308123596
A27: LIABILITIES
A28: Current liabilities
A29: Bank overdraft | B29: 1
A30: Borrowing | B30: 4 | C30: ='SA3'!C32 -> 5677000 | D30: ='SA3'!D32 -> 6325860.2 | E30: ='SA3'!E32 -> 7475200.89 | F30: ='SA3'!F32 -> 0 | G30: ='SA3'!G32 -> 0 | H30: ='SA3'!H32 -> 0 | I30: ='SA3'!I32 -> 7475200.89 | J30: ='SA3'!J32 -> 6581931 | K30: ='SA3'!K32 -> 6581931 | L30: ='SA3'!L32 -> 6581931
A31: Consumer deposits | C31: 0 | D31: 0 | E31: 0 | F31: 0 | G31: 0 | H31: 0 | I31: 0 | J31: 0 | K31: 0 | L31: 0
A32: Trade and other payables | B32: 4 | C32: ='SA3'!C39 -> 29486500 | D32: ='SA3'!D39 -> 26856836.33 | E32: ='SA3'!E39 -> 30870576.95 | F32: ='SA3'!F39 -> 26365979 | G32: ='SA3'!G39 -> 10559568 | H32: ='SA3'!H39 -> 10559568 | I32: ='SA3'!I39 -> 24383073.5 | J32: ='SA3'!J39 -> 16365979 | K32: ='SA3'!K39 -> 16365979 | L32: ='SA3'!L39 -> 16365979
A33: Provisions | C33: 7461039 | D33: 35421732.61 | E33: 38048099.96 | F33: 35624552 | G33: 35624552 | H33: 35624552 | I33: 37391150.1 | J33: 9178683 | K33: 9178683 | L33: 9178683
A34: Total current liabilities | C34: =SUM(C29:C33) -> 42624539 | D34: 68604429.14 | E34: 76393877.8 | F34: 61990531 | G34: 46184120 | H34: 46184120 | I34: 69249424.49 | J34: 32126593 | K34: 32126593 | L34: 32126593
A36: Non current liabilities
A37: Borrowing | C37: ='SA3'!C44 -> 136681000 | D37: ='SA3'!D44 -> 130355083.2 | E37: ='SA3'!E44 -> 124034622.6 | F37: ='SA3'!F44 -> 124029223 | G37: ='SA3'!G44 -> 124029223 | H37: ='SA3'!H44 -> 124029223 | I37: ='SA3'!I44 -> 120662434.2 | J37: ='SA3'!J44 -> 110641019 | K37: ='SA3'!K44 -> 110641019 | L37: ='SA3'!L44 -> 110641019
A38: Provisions | C38: ='SA3'!C51 -> 28409000 | D38: ='SA3'!D51 -> 0 | E38: ='SA3'!E51 -> 0 | F38: ='SA3'!F51 -> 0 | G38: ='SA3'!G51 -> 0 | H38: ='SA3'!H51 -> 0 | I38: ='SA3'!I51 -> 0 | J38: ='SA3'!J51 -> 31434088 | K38: ='SA3'!K51 -> 31434088 | L38: ='SA3'!L51 -> 31434088
A39: Total non current liabilities | C39: =SUM(C37:C38) -> 165090000 | D39: =SUM(D37:D38) -> 130355083.2 | E39: =SUM(E37:E38) -> 124034622.6 | F39: =SUM(F37:F38) -> 124029223 | G39: 124029223 | H39: 124029223 | I39: 120662434.2 | J39: 142075107 | K39: =SUM(K37:K38) -> 142075107 | L39: 142075107
A40: TOTAL LIABILITIES | C40: =C34+C39 -> 207714539 | D40: =D34+D39 -> 198959512.4 | E40: =E34+E39 -> 200428500.4 | F40: =F34+F39 -> 186019754 | G40: 170213343 | H40: 170213343 | I40: 189911858.7 | J40: 174201700 | K40: =K34+K39 -> 174201700 | L40: 174201700
A42: NET ASSETS | B42: 5 | C42: =C25-C40 -> 100756550 | D42: 119383301 | E42: 131255508.1 | F42: 132996136 | G42: 147961602 | H42: 147961602 | I42: 187856971.6 | J42: 129044439 | K42: 128560770 | L42: 133921896
A44: COMMUNITY WEALTH/EQUITY
A45: Accumulated Surplus/(Deficit) | C45: 100756550 | D45: 119383301 | E45: 131255508.1 | F45: ='SA3'!F63 -> 132996136 | G45: ='SA3'!G63 -> 147961602 | H45: ='SA3'!H63 -> 147961602 | I45: ='SA3'!I63 -> 187856971.7 | J45: ='SA3'!J63 -> 129044439 | K45: 128560770 | L45: 133921896
A46: Reserves | B46: 4 | C46: ='SA3'!C70 -> 0 | D46: ='SA3'!D70 -> 0 | E46: ='SA3'!E70 -> 0 | F46: ='SA3'!F70 -> 0 | G46: ='SA3'!G70 -> 0 | H46: ='SA3'!H70 -> 0 | I46: ='SA3'!I70 -> 0 | J46: ='SA3'!J70 -> 0 | K46: ='SA3'!K70 -> 0 | L46: ='SA3'!L70 -> 0
A48: TOTAL COMMUNITY WEALTH/EQUITY | B48: 5 | C48: =SUM(C45:C46) -> 100756550 | D48: =SUM(D45:D46) -> 119383301 | E48: 131255508.1 | F48: 132996136 | G48: 147961602 | H48: 147961602 | I48: 187856971.7 | J48: 129044439 | K48: 128560770 | L48: 133921896
A49: =head27a -> References
A50: 1. Detail to be provided in Table SA3
A51: 2. Include completed low cost housing to be transferred to beneficiaries within 12 months
A52: 3. Include 'Construction-work-in-progress' (disclosed separately in annual financial statements)
A53: 4. Detail to be provided in Table SA3. Includes reserves to be funded by statute.
A54: 5. Net assets must balance with Total Community Wealth/Equity
A55: check balance | C55: =IF((C42-C48)=0,0,"Unbalanced") -> 0 | D55: =IF((D42-D48)=0,0,"Unbalanced") -> 0 | E55: 0 | F55: 0 | G55: 0 | H55: 0 | I55: Unbalanced | J55: 0 | K55: 0 | L55: 0

Sheet A7-CFlow
A1: =muni&" - "&Approve7 -> DC32 Ehlanzeni - Table A7 Budgeted Cash Flows
A2: =desc -> Description | B2: =head27 -> Ref | C2: =head1b -> 2016/17 | D2: =head1A -> 2017/18 | E2: =Head1 -> 2018/19 | F2: =Head2 -> Current Year 2019/20 | J2: =Head3 -> 2020/21 Medium Term Revenue & Expenditure Framework
A3: R thousand | C3: =Head5 -> Audited Outcome | D3: =Head5 -> Audited Outcome | E3: =Head5 -> Audited Outcome | F3: =Head6 -> Original Budget | G3: =Head7 -> Adjusted Budget | H3: =Head8 -> Full Year Forecast | I3: =Head5b -> Pre-audit outcome | J3: =Head9 -> Budget Year 2020/21 | K3: =Head10 -> Budget Year +1 2021/22 | L3: =Head11 -> Budget Year +2 2022/23
A4: CASH FLOW FROM OPERATING ACTIVITIES
A5: Receipts
A6: Property rates | J6: ='SA30'!N5 -> 0 | K6: ='SA30'!O5 -> 0 | L6: ='SA30'!P5 -> 0
A7: Service charges | J7: ='SA30'!N6+'SA30'!N7+'SA30'!N8+'SA30'!N9 -> 0 | K7: ='SA30'!O6+'SA30'!O7+'SA30'!O8+'SA30'!O9 -> 0 | L7: ='SA30'!P6+'SA30'!P7+'SA30'!P8+'SA30'!P9 -> 0
A8: Other revenue | C8: 17918351 | D8: 10242584 | E8: 215075672 | F8: 170956451 | G8: 171459000 | H8: 171459000 | I8: 128451300.7 | J8: ='SA30'!N11+'SA30'!N15+'SA30'!N16+'SA30'!N17+'SA30'!N19 -> 2560000 | K8: ='SA30'!O11+'SA30'!O15+'SA30'!O16+'SA30'!O17+'SA30'!O19 -> 2812000 | L8: ='SA30'!P11+'SA30'!P15+'SA30'!P16+'SA30'!P17+'SA30'!P19 -> 3191100
A9: Transfers and Subsidies - Operational | B9: 1 | C9: 227952338 | D9: 238223696 | E9: 78926000 | F9: 88353000 | G9: 88353000 | H9: 88353000 | I9: 67367681 | J9: ='SA30'!N18 -> 268972000 | K9: ='SA30'!O18 -> 277019000 | L9: ='SA30'!P18 -> 287319000
A10: Transfers and Subsidies - Capital | B10: 1 | E10: 2352000 | F10: 2491000 | G10: 2491000 | H10: 2491000 | I10: 0 | J10: ='SA30'!N23 -> 2371000 | K10: ='SA30'!O23 -> 2501000 | L10: ='SA30'!P23 -> 2646000
A11: Interest | C11: 7794624 | D11: 9876644 | E11: 8536437 | F11: 6500000 | G11: 7250000 | H11: 7250000 | I11: 5417009.82 | J11: ='SA30'!N12+'SA30'!N13 -> 8000000 | K11: ='SA30'!O12+'SA30'!O13 -> 8400000 | L11: ='SA30'!P12+'SA30'!P13 -> 8500000
A12: Dividends | C12: 122873 | D12: 132959 | E12: 143046 | F12: 140000 | G12: 140000 | H12: 140000 | I12: 0 | J12: ='SA30'!N14 -> 140000 | K12: ='SA30'!O14 -> 140000 | L12: ='SA30'!P14 -> 140000
A13: Payments
A14: Suppliers and employees | C14: -214011108 | D14: -229069314 | E14: -275888121 | F14: -233953000 | G14: -238348000 | H14: -238348000 | I14: -146210603.9 | J14: =-('SA30'!N35+'SA30'!N36+'SA30'!N38+'SA30'!N39+'SA30'!N40+'SA30'!N41+'SA30'!N44+'SA30'!N50) -> -246061273 | K14: =-('SA30'!O35+'SA30'!O36+'SA30'!O38+'SA30'!O39+'SA30'!O40+'SA30'!O41+'SA30'!O44+'SA30'!O50) -> -252065124 | L14: =-('SA30'!P35+'SA30'!P36+'SA30'!P38+'SA30'!P39+'SA30'!P40+'SA30'!P41+'SA30'!P44+'SA30'!P50) -> -260119589
A15: Finance charges | C15: -16364174 | D15: -15688946 | E15: -15083420 | F15: -15070000 | G15: -15070000 | H15: -15070000 | I15: -10708230.99 | J15: =-('SA30'!N37) -> -15045905 | K15: =-('SA30'!O37) -> -15045905 | L15: =-('SA30'!P37) -> -15045905
A16: Transfers and Grants | B16: 1 | J16: =-('SA30'!N42+'SA30'!N43) -> 0 | K16: =-('SA30'!O42+'SA30'!O43) -> 0 | L16: =-('SA30'!P42+'SA30'!P43) -> 0
A17: NET CASH FROM/(USED) OPERATING ACTIVITIES | C17: =SUM(C6:C12)+SUM(C14:C16) -> 23412904 | D17: 13717623 | E17: 14061614 | F17: 19417451 | G17: 16275000 | H17: 16275000 | I17: 44317156.64 | J17: 20935822 | K17: 23760971 | L17: 26630606
A19: CASH FLOWS FROM INVESTING ACTIVITIES
A20: Receipts
A21: Proceeds on disposal of PPE | C21: 1999 | D21: 150223 | E21: 6700 | J21: ='SA30'!N24+'SA30'!N25 -> 0 | K21: ='SA30'!O24+'SA30'!O25 -> 0 | L21: ='SA30'!P24+'SA30'!P25 -> 0
A23: Decrease (increase) in non-current receivables | J23: ='SA30'!N30 -> 0 | K23: ='SA30'!O30 -> 0 | L23: ='SA30'!P30 -> 0
A24: Decrease (increase) in non-current investments | C24: -70000000 | D24: 70587525 | E24: 189799 | G24: 0 | H24: 0 | I24: 0 | J24: ='SA30'!N31 -> 0 | K24: ='SA30'!O31 -> 0 | L24: ='SA30'!P31 -> 0
A25: Payments
A26: Capital assets | C26: -8236838 | D26: -2504689 | E26: -2447506 | F26: -17591000 | G26: -25817000 | H26: -25817000 | J26: =-('SA30'!N48) -> -17662000 | K26: =-('SA30'!O48) -> -14687616 | L26: =-('SA30'!P48) -> -16710742
A27: NET CASH FROM/(USED) INVESTING ACTIVITIES | C27: =+C21+C23+C24+C26 -> -78234839 | D27: =+D21+D23+D24+D26 -> 68233059 | E27: -2251007 | F27: -17591000 | G27: -25817000 | H27: -25817000 | I27: 0 | J27: -17662000 | K27: -14687616 | L27: -16710742
A29: CASH FLOWS FROM FINANCING ACTIVITIES
A30: Receipts
A31: Short term loans | J31: ='SA30'!N26 -> 0 | K31: ='SA30'!O26 -> 0 | L31: ='SA30'!P26 -> 0
A32: Borrowing long term/refinancing | E32: -377548 | J32: ='SA30'!N27 -> 0 | K32: ='SA30'!O27 -> 0 | L32: ='SA30'!P27 -> 0
A33: Increase (decrease) in consumer deposits | C33: 0 | D33: 0 | E33: 0 | F33: 0 | G33: 0 | H33: 0 | I33: 0 | J33: ='SA30'!N28 -> 0 | K33: ='SA30'!O28 -> 0 | L33: ='SA30'!P28 -> 0
A34: Payments
A35: Repayment of borrowing | C35: -5092429 | D35: -5677704 | E35: -6326256 | F35: -6326000 | G35: -6326000 | H35: -6326000 | I35: 0 | J35: =-('SA30'!N49) -> -6581931 | K35: =-('SA30'!O49) -> -6581931 | L35: =-('SA30'!P49) -> -6581931
A36: NET CASH FROM/(USED) FINANCING ACTIVITIES | C36: =SUM(C31:C33)+C35 -> -5092429 | D36: =SUM(D31:D33)+D35 -> -5677704 | E36: -6703804 | F36: -6326000 | G36: -6326000 | H36: -6326000 | I36: 0 | J36: -6581931 | K36: -6581931 | L36: -6581931
A38: NET INCREASE/ (DECREASE) IN CASH HELD | C38: =C17+C27+C36 -> -59914364 | D38: =D17+D27+D36 -> 76272978 | E38: 5106803 | F38: -4499549 | G38: -15868000 | H38: -15868000 | I38: 44317156.64 | J38: -3308109 | K38: 2491424 | L38: 3337933
A39: Cash/cash equivalents at the year begin: | B39: 2 | C39: 68131846 | D39: 8217482 | E39: 84490460 | F39: 72491000 | G39: 84490460 | H39: 84490460 | I39: 84490460 | J39: ='SA30'!N54 -> 68416000 | K39: =J40 -> 65107891 | L39: =K40 -> 67599315
A40: Cash/cash equivalents at the year end: | B40: 2 | C40: =C38+C39 -> 8217482 | D40: =D38+D39 -> 84490460 | E40: =E38+E39 -> 89597263 | F40: =F38+F39 -> 67991451 | G40: 68622460 | H40: 68622460 | I40: 128807616.6 | J40: 65107891 | K40: 67599315 | L40: 70937248
A41: =head27a -> References
A42: 1. Local/District municipalities to include transfers from/to District/Local Municipalities
A43: 2. Cash equivalents includes investments with maturities of 3 months or less
A44: 3. The MTREF is populated directly from SA30.
A45: Total receipts | C45: =SUM(C6:C12)+SUM(C21:C23) -> 253790185 | D45: 258626106 | E45: 305039855 | F45: 268440451 | G45: 269693000 | H45: 269693000 | I45: 201235991.5 | J45: 282043000 | K45: 290872000 | L45: 301796100
A46: Total payments | C46: =SUM(C14:C16)+C26 -> -238612120 | D46: =SUM(D14:D16)+D26 -> -247262949 | E46: -293419047 | F46: -266614000 | G46: -279235000 | H46: -279235000 | I46: -156918834.9 | J46: -278769178 | K46: -281798645 | L46: -291876236
C47: =C45+C46 -> 15178065 | D47: =D45+D46 -> 11363157 | E47: 11620808 | F47: 1826451 | G47: -9542000 | H47: -9542000 | I47: 44317156.64 | J47: 3273822 | K47: 9073355 | L47: 9919864
A48: Borrowings & investments & c.deposits | C48: =C24+C32+C33 -> -70000000 | D48: =D24+D32+D33 -> 70587525 | E48: -187749 | F48: 0 | G48: 0 | H48: 0 | I48: 0 | J48: 0 | K48: 0 | L48: 0
A49: =A35 -> Repayment of borrowing | C49: =C35 -> -5092429 | D49: =D35 -> -5677704 | E49: -6326256 | F49: -6326000 | G49: -6326000 | H49: -6326000 | I49: =I35 -> 0 | J49: -6581931 | K49: -6581931 | L49: -6581931
C50: =C47+C48+C49 -> -59914364 | D50: =D47+D48+D49 -> 76272978 | E50: 5106803 | F50: -4499549 | G50: -15868000 | H50: -15868000 | I50: 44317156.64 | J50: -3308109 | K50: 2491424 | L50: 3337933
C51: =C38-C50 -> 0 | D51: 0 | E51: 0 | F51: 0 | G51: 0 | H51: 0 | I51: 0 | J51: 0 | K51: 0 | L51: 0

Sheet A8-ResRecon
A1: =muni&" - "&Approve8 -> DC32 Ehlanzeni - Table A8 Cash backed reserves/accumulated surplus reconciliation
A2: =desc -> Description | B2: =head27 -> Ref | C2: =head1b -> 2016/17 | D2: =head1A -> 2017/18 | E2: =Head1 -> 2018/19 | F2: =Head2 -> Current Year 2019/20 | J2: =Head3 -> 2020/21 Medium Term Revenue & Expenditure Framework
A3: R thousand | C3: =Head5 -> Audited Outcome | D3: =Head5 -> Audited Outcome | E3: =Head5 -> Audited Outcome | F3: =Head6 -> Original Budget | G3: =Head7 -> Adjusted Budget | H3: =Head8 -> Full Year Forecast | I3: =Head5b -> Pre-audit outcome | J3: =Head9 -> Budget Year 2020/21 | K3: =Head10 -> Budget Year +1 2021/22 | L3: =Head11 -> Budget Year +2 2022/23
A4: Cash and investments available
A5: =LEFT('A7-CFlow'!A40,37) -> Cash/cash equivalents at the year end | B5: 1 | C5: ='A7-CFlow'!C40 -> 8217482 | D5: ='A7-CFlow'!D40 -> 84490460 | E5: ='A7-CFlow'!E40 -> 89597263 | F5: ='A7-CFlow'!F40 -> 67991451 | G5: ='A7-CFlow'!G40 -> 68622460 | H5: ='A7-CFlow'!H40 -> 68622460 | I5: ='A7-CFlow'!I40 -> 128807616.6 | J5: ='A7-CFlow'!J40 -> 65107891 | K5: ='A7-CFlow'!K40 -> 67599315 | L5: ='A7-CFlow'!L40 -> 70937248
A6: Other current investments > 90 days | C6: ='A6-FinPos'!C6+'A6-FinPos'!C7-'A6-FinPos'!C29-'A8-ResRecon'!C5 -> 71204000 | D6: ='A6-FinPos'!D6+'A6-FinPos'!D7-'A6-FinPos'!D29-'A8-ResRecon'!D5 -> 616429.47 | E6: ='A6-FinPos'!E6+'A6-FinPos'!E7-'A6-FinPos'!E29-'A8-ResRecon'!E5 -> 459175.49 | F6: ='A6-FinPos'!F6+'A6-FinPos'!F7-'A6-FinPos'!F29-'A8-ResRecon'!F5 -> 616931 | G6: ='A6-FinPos'!G6+'A6-FinPos'!G7-'A6-FinPos'!G29-'A8-ResRecon'!G5 -> -5810242 | H6: ='A6-FinPos'!H6+'A6-FinPos'!H7-'A6-FinPos'!H29-'A8-ResRecon'!H5 -> -5810242 | I6: ='A6-FinPos'!I6+'A6-FinPos'!I7-'A6-FinPos'!I29-'A8-ResRecon'!I5 -> 7331357.63 | J6: ='A6-FinPos'!J6+'A6-FinPos'!J7-'A6-FinPos'!J29-'A8-ResRecon'!J5 -> 569 | K6: ='A6-FinPos'!K6+'A6-FinPos'!K7-'A6-FinPos'!K29-'A8-ResRecon'!K5 -> -140 | L6: ='A6-FinPos'!L6+'A6-FinPos'!L7-'A6-FinPos'!L29-'A8-ResRecon'!L5 -> -73
A7: ='A6-FinPos'!A14&" - "&'A6-FinPos'!A16 -> Non current assets - Investments | B7: 1 | C7: ='A6-FinPos'!C16 -> 3713688 | D7: ='A6-FinPos'!D16 -> 4015711.7 | E7: ='A6-FinPos'!E16 -> 4479349.6 | F7: ='A6-FinPos'!F16 -> 4265712 | G7: ='A6-FinPos'!G16 -> 4265712 | H7: ='A6-FinPos'!H16 -> 4265712 | I7: ='A6-FinPos'!I16 -> 4479349.6 | J7: ='A6-FinPos'!J16 -> 4729350 | K7: ='A6-FinPos'!K16 -> 4729350 | L7: ='A6-FinPos'!L16 -> 4729350
A8: Cash and investments available: | C8: =SUM(C5:C7) -> 83135170 | D8: =SUM(D5:D7) -> 89122601.17 | E8: 94535788.09 | F8: 72874094 | G8: 67077930 | H8: 67077930 | I8: 140618323.9 | J8: 69837810 | K8: 72328525 | L8: 75666525
A10: Application of cash and investments
A11: ='SA3'!A37 -> Unspent conditional transfers | C11: ='SA3'!C37 -> 0 | D11: ='SA3'!D37 -> 0.01 | E11: ='SA3'!E37 -> 8768148.57 | F11: ='SA3'!F37 -> 0 | G11: ='SA3'!G37 -> 0 | H11: ='SA3'!H37 -> 0 | I11: ='SA3'!I37 -> -7595463.67 | J11: ='SA3'!J37 -> 0 | K11: ='SA3'!K37 -> 0 | L11: ='SA3'!L37 -> 0
A12: Unspent borrowing | C12: ='SA17'!C67 -> 0 | D12: ='SA17'!D67 -> 0 | E12: ='SA17'!E67 -> 0 | F12: ='SA17'!F67 -> 0 | G12: ='SA17'!G67 -> 0 | H12: ='SA17'!H67 -> 0 | J12: ='SA17'!I67 -> 0 | K12: ='SA17'!J67 -> 0 | L12: ='SA17'!K67 -> 0
A13: Statutory requirements | B13: 2
A14: Other working capital requirements | B14: 3 | C14: =-C32 -> -1057500 | D14: =-D32 -> 26105979.14 | E14: 6414050.55 | F14: =-F32 -> 22772979 | G14: 6966568 | H14: 6966568 | I14: 28427697.78 | J14: 12063979 | K14: 12063979 | L14: 12063979
A15: Other provisions | J15: ='A6-FinPos'!J33 -> 9178683 | K15: ='A6-FinPos'!K33 -> 9178683 | L15: ='A6-FinPos'!L33 -> 9178683
A16: Long term investments committed | B16: 4 | C16: =C42 -> 0 | D16: =D42 -> 0 | E16: 0 | F16: 0 | G16: 0 | H16: 0 | I16: 0 | J16: 0 | K16: 0 | L16: 0
A17: Reserves to be backed by cash/investments | B17: 5 | C17: =SUM(C44:C48) -> 0 | D17: 0 | E17: 0 | F17: 0 | G17: 0 | H17: 0 | I17: 0 | J17: 0 | K17: 0 | L17: 0
A18: ="Total "&A10&":" -> Total Application of cash and investments: | C18: =SUM(C11:C17) -> -1057500 | D18: =SUM(D11:D17) -> 26105979.15 | E18: 15182199.12 | F18: 22772979 | G18: 6966568 | H18: 6966568 | I18: 20832234.11 | J18: 21242662 | K18: 21242662 | L18: 21242662
A19: Surplus(shortfall) | C19: =C8-C18 -> 84192670 | D19: =D8-D18 -> 63016622.02 | E19: 79353588.97 | F19: 50101115 | G19: 60111362 | H19: 60111362 | I19: 119786089.8 | J19: 48595148 | K19: 51085863 | L19: 54423863
A20: =head27a -> References
A21: 1. Must reconcile with Budgeted Cash Flows
A22: 2. For example: VAT, taxation
A23: 3. Council approval for policy required - include sufficient working capital (e.g. allowing for a % of current debtors > 90 days as uncollectable)
A24: 4. For example: sinking fund requirements for borrowing
A25: 5. Council approval required for each reserve created and basis of cash backing of reserves
A28: Other working capital requirements
A29: Debtors | C29: =IF(ISERROR(ROUND(C35*C36,-3)),0,(ROUND(C35*C36,-3))) -> 30544000 | D29: =IF(ISERROR(ROUND(D35*D36,-3)),0,(ROUND(D35*D36,-3))) -> 260000 | E29: 17475000 | F29: 3593000 | G29: 3593000 | H29: 3593000 | I29: 5138000 | J29: 4302000 | K29: 4302000 | L29: 4302000
A31: Creditors due | C31: ='SA3'!C35+'SA3'!C36 -> 29486500 | D31: ='SA3'!D35+'SA3'!D36 -> 26365979.14 | E31: ='SA3'!E35+'SA3'!E36 -> 23889050.55 | F31: ='SA3'!F35+'SA3'!F36 -> 26365979 | G31: ='SA3'!G35+'SA3'!G36 -> 10559568 | H31: ='SA3'!H35+'SA3'!H36 -> 10559568 | I31: ='SA3'!I35+'SA3'!I36 -> 33565697.78 | J31: ='SA3'!J35+'SA3'!J36 -> 16365979 | K31: ='SA3'!K35+'SA3'!K36 -> 16365979 | L31: ='SA3'!L35+'SA3'!L36 -> 16365979
A32: Total | C32: =C29-C31 -> 1057500 | D32: =D29-D31 -> -26105979.14 | E32: -6414050.55 | F32: -22772979 | G32: -6966568 | H32: -6966568 | I32: -28427697.78 | J32: -12063979 | K32: -12063979 | L32: -12063979
A34: Debtors collection assumptions
A35: Balance outstanding - debtors | C35: ='A6-FinPos'!C8+'A6-FinPos'!C9+'A6-FinPos'!C15 -> 3294793 | D35: ='A6-FinPos'!D8+'A6-FinPos'!D9+'A6-FinPos'!D15 -> 4084192.14 | E35: ='A6-FinPos'!E8+'A6-FinPos'!E9+'A6-FinPos'!E15 -> 13559869.55 | F35: ='A6-FinPos'!F8+'A6-FinPos'!F9+'A6-FinPos'!F15 -> 3593335 | G35: ='A6-FinPos'!G8+'A6-FinPos'!G9+'A6-FinPos'!G15 -> 3593335 | H35: ='A6-FinPos'!H8+'A6-FinPos'!H9+'A6-FinPos'!H15 -> 3593335 | I35: ='A6-FinPos'!I8+'A6-FinPos'!I9+'A6-FinPos'!I15 -> 6839548.33 | J35: ='A6-FinPos'!J8+'A6-FinPos'!J9+'A6-FinPos'!J15 -> 4302359 | K35: ='A6-FinPos'!K8+'A6-FinPos'!K9+'A6-FinPos'!K15 -> 4302359 | L35: ='A6-FinPos'!L8+'A6-FinPos'!L9+'A6-FinPos'!L15 -> 4302359
A36: Estimate of debtors collection rate | C36: =IF(ISERROR('SA10'!D10),0,('SA10'!D10)) -> 9.270463768 | D36: =IF(ISERROR('SA10'!E10),0,('SA10'!E10)) -> 0.06377440002 | E36: =IF(ISERROR('SA10'!F10),0,('SA10'!F10)) -> 1.288695892 | F36: =IF(ISERROR('SA10'!G10),0,('SA10'!G10)) -> 1 | G36: =IF(ISERROR('SA10'!H10),0,('SA10'!H10)) -> 1 | H36: =IF(ISERROR('SA10'!I10),0,('SA10'!I10)) -> 1 | I36: =IF(ISERROR('SA10'!J10),0,('SA10'!J10)) -> 0.7512599608 | J36: =IF(ISERROR('SA10'!K10),0,('SA10'!K10)) -> 1 | K36: =IF(ISERROR('SA10'!L10),0,('SA10'!L10)) -> 1 | L36: =IF(ISERROR('SA10'!M10),0,('SA10'!M10)) -> 1
K39: `
A40: =A16 -> Long term investments committed
A41: Balance (Insert description; eg sinking fund)
C42: =SUM(C41:C41) -> 0 | D42: 0 | E42: 0 | F42: 0 | G42: 0 | H42: 0 | I42: 0 | J42: 0 | K42: 0 | L42: 0
A43: =A17 -> Reserves to be backed by cash/investments
A44: ='SA3'!A65 -> Housing Development Fund | C44: ='SA3'!C65 -> 0 | D44: ='SA3'!D65 -> 0 | E44: ='SA3'!E65 -> 0 | F44: ='SA3'!F65 -> 0 | G44: ='SA3'!G65 -> 0 | H44: ='SA3'!H65 -> 0 | I44: ='SA3'!I65 -> 0 | J44: ='SA3'!J65 -> 0 | K44: ='SA3'!K65 -> 0 | L44: ='SA3'!L65 -> 0
A45: ='SA3'!A66 -> Capital replacement | C45: ='SA3'!C66 -> 0 | D45: ='SA3'!D66 -> 0 | E45: ='SA3'!E66 -> 0 | F45: ='SA3'!F66 -> 0 | G45: ='SA3'!G66 -> 0 | H45: ='SA3'!H66 -> 0 | I45: ='SA3'!I66 -> 0 | J45: ='SA3'!J66 -> 0 | K45: ='SA3'!K66 -> 0 | L45: ='SA3'!L66 -> 0
A46: ='SA3'!A67 -> Self-insurance | C46: ='SA3'!C67 -> 0 | D46: ='SA3'!D67 -> 0 | E46: ='SA3'!E67 -> 0 | F46: ='SA3'!F67 -> 0 | G46: ='SA3'!G67 -> 0 | H46: ='SA3'!H67 -> 0 | I46: ='SA3'!I67 -> 0 | J46: ='SA3'!J67 -> 0 | K46: ='SA3'!K67 -> 0 | L46: ='SA3'!L67 -> 0
A47: ='SA3'!A68 -> Other reserves | C47: ='SA3'!C68 -> 0 | D47: ='SA3'!D68 -> 0 | E47: ='SA3'!E68 -> 0 | F47: ='SA3'!F68 -> 0 | G47: ='SA3'!G68 -> 0 | H47: ='SA3'!H68 -> 0 | I47: ='SA3'!I68 -> 0 | J47: ='SA3'!J68 -> 0 | K47: ='SA3'!K68 -> 0 | L47: ='SA3'!L68 -> 0
A48: ='SA3'!A69 -> Revaluation | C48: ='SA3'!C69 -> 0 | D48: ='SA3'!D69 -> 0 | E48: ='SA3'!E69 -> 0 | F48: ='SA3'!F69 -> 0 | G48: ='SA3'!G69 -> 0 | H48: ='SA3'!H69 -> 0 | I48: ='SA3'!I69 -> 0 | J48: ='SA3'!J69 -> 0 | K48: ='SA3'!K69 -> 0 | L48: ='SA3'!L69 -> 0
C49: =SUM(C44:C48) -> 0 | D49: 0 | E49: 0 | F49: 0 | G49: 0 | H49: 0 | I49: 0 | J49: 0 | K49: 0 | L49: 0

Sheet A9-Asset
A1: =muni&" - "&Approve9 -> DC32 Ehlanzeni - Table A9 Asset Management
A2: =desc -> Description | B2: =head27 -> Ref | C2: =head1b -> 2016/17 | D2: =head1A -> 2017/18 | E2: =Head1 -> 2018/19 | F2: =Head2 -> Current Year 2019/20 | I2: =Head3 -> 2020/21 Medium Term Revenue & Expenditure Framework
A3: R thousand | C3: =Head5 -> Audited Outcome | D3: =Head5 -> Audited Outcome | E3: =Head5 -> Audited Outcome | F3: =Head6 -> Original Budget | G3: =Head7 -> Adjusted Budget | H3: =Head8 -> Full Year Forecast | I3: =Head9 -> Budget Year 2020/21 | J3: =Head10 -> Budget Year +1 2021/22 | K3: =Head11 -> Budget Year +2 2022/23
A4: CAPITAL EXPENDITURE
A5: Total New Assets | B5: 1 | C5: =C15+C18+C19+C22+C25+C26+SUM(C29:C35) -> 8827418 | D5: =D15+D18+D19+D22+D25+D26+SUM(D29:D35) -> 2943691.63 | E5: 3898129.72 | F5: 10591000 | G5: 20732193 | H5: 20732193 | I5: 8363000 | J5: 13287616 | K5: 15710742
A6: Roads Infrastructure | C6: =SA34a!C7 -> 0 | D6: =SA34a!D7 -> 0 | E6: =SA34a!E7 -> 0 | F6: =SA34a!F7 -> 0 | G6: =SA34a!G7 -> 0 | H6: =SA34a!H7 -> 0 | I6: =SA34a!I7 -> 0 | J6: =SA34a!J7 -> 0 | K6: =SA34a!K7 -> 0
A7: Storm water Infrastructure | C7: =SA34a!C12 -> 0 | D7: =SA34a!D12 -> 0 | E7: =SA34a!E12 -> 0 | F7: =SA34a!F12 -> 0 | G7: =SA34a!G12 -> 500000 | H7: =SA34a!H12 -> 500000 | I7: =SA34a!I12 -> 0 | J7: =SA34a!J12 -> 0 | K7: =SA34a!K12 -> 0
A8: Electrical Infrastructure | C8: =SA34a!C16 -> 0 | D8: =SA34a!D16 -> 0 | E8: =SA34a!E16 -> 0 | F8: =SA34a!F16 -> 2000000 | G8: =SA34a!G16 -> 1787000 | H8: =SA34a!H16 -> 1787000 | I8: =SA34a!I16 -> 1000000 | J8: =SA34a!J16 -> 1000000 | K8: =SA34a!K16 -> 2000000
A9: Water Supply Infrastructure | C9: =SA34a!C26 -> 0 | D9: =SA34a!D26 -> 0 | E9: =SA34a!E26 -> 0 | F9: =SA34a!F26 -> 0 | G9: =SA34a!G26 -> 1100000 | H9: =SA34a!H26 -> 1100000 | I9: =SA34a!I26 -> 400000 | J9: =SA34a!J26 -> 0 | K9: =SA34a!K26 -> 3000000
A10: Sanitation Infrastructure | C10: =SA34a!C37 -> 0 | D10: =SA34a!D37 -> 0 | E10: =SA34a!E37 -> 0 | F10: =SA34a!F37 -> 0 | G10: =SA34a!G37 -> 10009193 | H10: =SA34a!H37 -> 10009193 | I10: =SA34a!I37 -> 0 | J10: =SA34a!J37 -> 1956616 | K10: =SA34a!K37 -> 1970000
A11: Solid Waste Infrastructure | C11: =SA34a!C44 -> 0 | D11: =SA34a!D44 -> 0 | E11: =SA34a!E44 -> 0 | F11: =SA34a!F44 -> 0 | G11: =SA34a!G44 -> 0 | H11: =SA34a!H44 -> 0 | I11: =SA34a!I44 -> 0 | J11: =SA34a!J44 -> 0 | K11: =SA34a!K44 -> 0
A12: Rail Infrastructure | C12: =SA34a!C52 -> 0 | D12: =SA34a!D52 -> 0 | E12: =SA34a!E52 -> 0 | F12: =SA34a!F52 -> 0 | G12: =SA34a!G52 -> 0 | H12: =SA34a!H52 -> 0 | I12: =SA34a!I52 -> 0 | J12: =SA34a!J52 -> 0 | K12: =SA34a!K52 -> 0
A13: Coastal Infrastructure | C13: =SA34a!C62 -> 0 | D13: =SA34a!D62 -> 0 | E13: =SA34a!E62 -> 0 | F13: =SA34a!F62 -> 0 | G13: =SA34a!G62 -> 0 | H13: =SA34a!H62 -> 0 | I13: =SA34a!I62 -> 0 | J13: =SA34a!J62 -> 0 | K13: =SA34a!K62 -> 0
A14: Information and Communication Infrastructure | C14: =SA34a!C68 -> 0 | D14: =SA34a!D68 -> 0 | E14: =SA34a!E68 -> 0 | F14: =SA34a!F68 -> 0 | G14: =SA34a!G68 -> 0 | H14: =SA34a!H68 -> 0 | I14: =SA34a!I68 -> 0 | J14: =SA34a!J68 -> 0 | K14: =SA34a!K68 -> 0
A15: Infrastructure | C15: =SUM(C6:C14) -> 0 | D15: =SUM(D6:D14) -> 0 | E15: 0 | F15: 2000000 | G15: 13396193 | H15: 13396193 | I15: 1400000 | J15: 2956616 | K15: 6970000
A16: Community Facilities | C16: =SA34a!C75 -> 0 | D16: =SA34a!D75 -> 0 | E16: =SA34a!E75 -> 0 | F16: =SA34a!F75 -> 0 | G16: =SA34a!G75 -> 0 | H16: =SA34a!H75 -> 0 | I16: =SA34a!I75 -> 0 | J16: =SA34a!J75 -> 0 | K16: =SA34a!K75 -> 0
A17: Sport and Recreation Facilities | C17: =SA34a!C98 -> 0 | D17: =SA34a!D98 -> 0 | E17: =SA34a!E98 -> 0 | F17: =SA34a!F98 -> 0 | G17: =SA34a!G98 -> 0 | H17: =SA34a!H98 -> 0 | I17: =SA34a!I98 -> 0 | J17: =SA34a!J98 -> 0 | K17: =SA34a!K98 -> 0
A18: Community Assets | C18: =SUM(C16:C17) -> 0 | D18: =SUM(D16:D17) -> 0 | E18: 0 | F18: 0 | G18: 0 | H18: 0 | I18: 0 | J18: 0 | K18: 0
A19: Heritage Assets | C19: =SA34a!C103 -> 0 | D19: =SA34a!D103 -> 0 | E19: =SA34a!E103 -> 0 | F19: =SA34a!F103 -> 0 | G19: =SA34a!G103 -> 0 | H19: =SA34a!H103 -> 0 | I19: =SA34a!I103 -> 0 | J19: =SA34a!J103 -> 0 | K19: =SA34a!K103 -> 0
A20: Revenue Generating | C20: =SA34a!C111 -> 0 | D20: =SA34a!D111 -> 0 | E20: =SA34a!E111 -> 0 | F20: =SA34a!F111 -> 0 | G20: =SA34a!G111 -> 0 | H20: =SA34a!H111 -> 0 | I20: =SA34a!I111 -> 0 | J20: =SA34a!J111 -> 0 | K20: =SA34a!K111 -> 0
A21: Non-revenue Generating | C21: =SA34a!C114 -> 0 | D21: =SA34a!D114 -> 0 | E21: =SA34a!E114 -> 0 | F21: =SA34a!F114 -> 0 | G21: =SA34a!G114 -> 0 | H21: =SA34a!H114 -> 0 | I21: =SA34a!I114 -> 0 | J21: =SA34a!J114 -> 0 | K21: =SA34a!K114 -> 0
A22: Investment properties | C22: =SUM(C20:C21) -> 0 | D22: =SUM(D20:D21) -> 0 | E22: 0 | F22: 0 | G22: 0 | H22: 0 | I22: 0 | J22: 0 | K22: 0
A23: Operational Buildings | C23: =SA34a!C119 -> 37000 | D23: =SA34a!D119 -> 0 | E23: =SA34a!E119 -> 0 | F23: =SA34a!F119 -> 0 | G23: =SA34a!G119 -> 0 | H23: =SA34a!H119 -> 0 | I23: =SA34a!I119 -> 500000 | J23: =SA34a!J119 -> 2000000 | K23: =SA34a!K119 -> 300000
A24: Housing | C24: =SA34a!C131 -> 0 | D24: =SA34a!D131 -> 0 | E24: =SA34a!E131 -> 0 | F24: =SA34a!F131 -> 0 | G24: =SA34a!G131 -> 0 | H24: =SA34a!H131 -> 0 | I24: =SA34a!I131 -> 0 | J24: =SA34a!J131 -> 0 | K24: =SA34a!K131 -> 0
A25: Other Assets | C25: =SUM(C23:C24) -> 37000 | D25: =SUM(D23:D24) -> 0 | E25: 0 | F25: 0 | G25: 0 | H25: 0 | I25: 500000 | J25: 2000000 | K25: 300000
A26: Biological or Cultivated Assets | C26: =SA34a!C136 -> 0 | D26: =SA34a!D136 -> 0 | E26: =SA34a!E136 -> 0 | F26: =SA34a!F136 -> 0 | G26: =SA34a!G136 -> 0 | H26: =SA34a!H136 -> 0 | I26: =SA34a!I136 -> 0 | J26: =SA34a!J136 -> 0 | K26: =SA34a!K136 -> 0
A27: Servitudes | C27: =SA34a!C140 -> 4800763 | D27: =SA34a!D140 -> 0 | E27: =SA34a!E140 -> 0 | F27: =SA34a!F140 -> 0 | G27: =SA34a!G140 -> 0 | H27: =SA34a!H140 -> 0 | I27: =SA34a!I140 -> 0 | J27: =SA34a!J140 -> 0 | K27: =SA34a!K140 -> 0
A28: Licences and Rights | C28: =SA34a!C141 -> 0 | D28: =SA34a!D141 -> 379139.8 | E28: =SA34a!E141 -> 513881.63 | F28: =SA34a!F141 -> 4391000 | G28: =SA34a!G141 -> 3811000 | H28: =SA34a!H141 -> 3811000 | I28: =SA34a!I141 -> 4513000 | J28: =SA34a!J141 -> 5901000 | K28: =SA34a!K141 -> 6190742
A29: Intangible Assets | C29: =SUM(C27:C28) -> 4800763 | D29: =SUM(D27:D28) -> 379139.8 | E29: 513881.63 | F29: 4391000 | G29: 3811000 | H29: 3811000 | I29: 4513000 | J29: 5901000 | K29: 6190742
A30: Computer Equipment | C30: =SA34a!C149 -> 2558339 | D30: =SA34a!D149 -> 874231.1 | E30: =SA34a!E149 -> 2621952.11 | F30: =SA34a!F149 -> 2500000 | G30: =SA34a!G149 -> 3100000 | H30: =SA34a!H149 -> 3100000 | I30: =SA34a!I149 -> 1200000 | J30: =SA34a!J149 -> 1400000 | K30: =SA34a!K149 -> 1450000
A31: Furniture and Office Equipment | C31: =SA34a!C152 -> 118823 | D31: =SA34a!D152 -> 63161.92 | E31: =SA34a!E152 -> 174086.42 | F31: =SA34a!F152 -> 400000 | G31: =SA34a!G152 -> 275000 | H31: =SA34a!H152 -> 275000 | I31: =SA34a!I152 -> 200000 | J31: =SA34a!J152 -> 200000 | K31: =SA34a!K152 -> 200000
A32: Machinery and Equipment | C32: =SA34a!C155 -> 129770 | D32: =SA34a!D155 -> 2630.7 | E32: =SA34a!E155 -> 221340 | F32: =SA34a!F155 -> 1050000 | G32: =SA34a!G155 -> 150000 | H32: =SA34a!H155 -> 150000 | I32: =SA34a!I155 -> 150000 | J32: =SA34a!J155 -> 430000 | K32: =SA34a!K155 -> 200000
A33: Transport Assets | C33: =SA34a!C158 -> 1182723 | D33: =SA34a!D158 -> 1624528.11 | E33: =SA34a!E158 -> 366869.56 | F33: =SA34a!F158 -> 250000 | G33: =SA34a!G158 -> 0 | H33: =SA34a!H158 -> 0 | I33: =SA34a!I158 -> 400000 | J33: =SA34a!J158 -> 400000 | K33: =SA34a!K158 -> 400000
A34: Land | C34: =SA34a!C161 -> 0 | D34: =SA34a!D161 -> 0 | E34: =SA34a!E161 -> 0 | F34: =SA34a!F161 -> 0 | G34: =SA34a!G161 -> 0 | H34: =SA34a!H161 -> 0 | I34: =SA34a!I161 -> 0 | J34: =SA34a!J161 -> 0 | K34: =SA34a!K161 -> 0
A35: Zoo's, Marine and Non-biological Animals | C35: =SA34a!C164 -> 0 | D35: =SA34a!D164 -> 0 | E35: =SA34a!E164 -> 0 | F35: =SA34a!F164 -> 0 | G35: =SA34a!G164 -> 0 | H35: =SA34a!H164 -> 0 | I35: =SA34a!I164 -> 0 | J35: =SA34a!J164 -> 0 | K35: =SA34a!K164 -> 0
A37: Total Renewal of Existing Assets | B37: 2 | C37: =C47+C50+C51+C54+C57+C58+SUM(C61:C67) -> 0 | D37: =D47+D50+D51+D54+D57+D58+SUM(D61:D67) -> 0 | E37: 0 | F37: 7000000 | G37: 1814026 | H37: 1814026 | I37: 9299000 | J37: 1400000 | K37: 1000000
A38: Roads Infrastructure | C38: =SA34b!C7 -> 0 | D38: =SA34b!D7 -> 0 | E38: =SA34b!E7 -> 0 | F38: =SA34b!F7 -> 0 | G38: =SA34b!G7 -> 0 | H38: =SA34b!H7 -> 0 | I38: =SA34b!I7 -> 0 | J38: =SA34b!J7 -> 0 | K38: =SA34b!K7 -> 1000000
A39: Storm water Infrastructure | C39: =SA34b!C12 -> 0 | D39: =SA34b!D12 -> 0 | E39: =SA34b!E12 -> 0 | F39: =SA34b!F12 -> 0 | G39: =SA34b!G12 -> 0 | H39: =SA34b!H12 -> 0 | I39: =SA34b!I12 -> 0 | J39: =SA34b!J12 -> 0 | K39: =SA34b!K12 -> 0
A40: Electrical Infrastructure | C40: =SA34b!C16 -> 0 | D40: =SA34b!D16 -> 0 | E40: =SA34b!E16 -> 0 | F40: =SA34b!F16 -> 0 | G40: =SA34b!G16 -> 0 | H40: =SA34b!H16 -> 0 | I40: =SA34b!I16 -> 0 | J40: =SA34b!J16 -> 0 | K40: =SA34b!K16 -> 0
A41: Water Supply Infrastructure | C41: =SA34b!C26 -> 0 | D41: =SA34b!D26 -> 0 | E41: =SA34b!E26 -> 0 | F41: =SA34b!F26 -> 7000000 | G41: =SA34b!G26 -> 1814026 | H41: =SA34b!H26 -> 1814026 | I41: =SA34b!I26 -> 9299000 | J41: =SA34b!J26 -> 1400000 | K41: =SA34b!K26 -> 0
A42: Sanitation Infrastructure | C42: =SA34b!C37 -> 0 | D42: =SA34b!D37 -> 0 | E42: =SA34b!E37 -> 0 | F42: =SA34b!F37 -> 0 | G42: =SA34b!G37 -> 0 | H42: =SA34b!H37 -> 0 | I42: =SA34b!I37 -> 0 | J42: =SA34b!J37 -> 0 | K42: =SA34b!K37 -> 0
A43: Solid Waste Infrastructure | C43: =SA34b!C44 -> 0 | D43: =SA34b!D44 -> 0 | E43: =SA34b!E44 -> 0 | F43: =SA34b!F44 -> 0 | G43: =SA34b!G44 -> 0 | H43: =SA34b!H44 -> 0 | I43: =SA34b!I44 -> 0 | J43: =SA34b!J44 -> 0 | K43: =SA34b!K44 -> 0
A44: Rail Infrastructure | C44: =SA34b!C52 -> 0 | D44: =SA34b!D52 -> 0 | E44: =SA34b!E52 -> 0 | F44: =SA34b!F52 -> 0 | G44: =SA34b!G52 -> 0 | H44: =SA34b!H52 -> 0 | I44: =SA34b!I52 -> 0 | J44: =SA34b!J52 -> 0 | K44: =SA34b!K52 -> 0
A45: Coastal Infrastructure | C45: =SA34b!C62 -> 0 | D45: =SA34b!D62 -> 0 | E45: =SA34b!E62 -> 0 | F45: =SA34b!F62 -> 0 | G45: =SA34b!G62 -> 0 | H45: =SA34b!H62 -> 0 | I45: =SA34b!I62 -> 0 | J45: =SA34b!J62 -> 0 | K45: =SA34b!K62 -> 0
A46: Information and Communication Infrastructure | C46: =SA34b!C68 -> 0 | D46: =SA34b!D68 -> 0 | E46: =SA34b!E68 -> 0 | F46: =SA34b!F68 -> 0 | G46: =SA34b!G68 -> 0 | H46: =SA34b!H68 -> 0 | I46: =SA34b!I68 -> 0 | J46: =SA34b!J68 -> 0 | K46: =SA34b!K68 -> 0
A47: Infrastructure | C47: =SUM(C38:C46) -> 0 | D47: =SUM(D38:D46) -> 0 | E47: 0 | F47: 7000000 | G47: 1814026 | H47: 1814026 | I47: 9299000 | J47: 1400000 | K47: 1000000
A48: Community Facilities | C48: =SA34b!C75 -> 0 | D48: =SA34b!D75 -> 0 | E48: =SA34b!E75 -> 0 | F48: =SA34b!F75 -> 0 | G48: =SA34b!G75 -> 0 | H48: =SA34b!H75 -> 0 | I48: =SA34b!I75 -> 0 | J48: =SA34b!J75 -> 0 | K48: =SA34b!K75 -> 0
A49: Sport and Recreation Facilities | C49: =SA34b!C98 -> 0 | D49: =SA34b!D98 -> 0 | E49: =SA34b!E98 -> 0 | F49: =SA34b!F98 -> 0 | G49: =SA34b!G98 -> 0 | H49: =SA34b!H98 -> 0 | I49: =SA34b!I98 -> 0 | J49: =SA34b!J98 -> 0 | K49: =SA34b!K98 -> 0
A50: Community Assets | C50: =SUM(C48:C49) -> 0 | D50: =SUM(D48:D49) -> 0 | E50: 0 | F50: 0 | G50: 0 | H50: 0 | I50: 0 | J50: 0 | K50: 0
A51: Heritage Assets | C51: =SA34b!C103 -> 0 | D51: =SA34b!D103 -> 0 | E51: =SA34b!E103 -> 0 | F51: =SA34b!F103 -> 0 | G51: =SA34b!G103 -> 0 | H51: =SA34b!H103 -> 0 | I51: =SA34b!I103 -> 0 | J51: =SA34b!J103 -> 0 | K51: =SA34b!K103 -> 0
A52: Revenue Generating | C52: =SA34b!C111 -> 0 | D52: =SA34b!D111 -> 0 | E52: =SA34b!E111 -> 0 | F52: =SA34b!F111 -> 0 | G52: =SA34b!G111 -> 0 | H52: =SA34b!H111 -> 0 | I52: =SA34b!I111 -> 0 | J52: =SA34b!J111 -> 0 | K52: =SA34b!K111 -> 0
A53: Non-revenue Generating | C53: =SA34b!C114 -> 0 | D53: =SA34b!D114 -> 0 | E53: =SA34b!E114 -> 0 | F53: =SA34b!F114 -> 0 | G53: =SA34b!G114 -> 0 | H53: =SA34b!H114 -> 0 | I53: =SA34b!I114 -> 0 | J53: =SA34b!J114 -> 0 | K53: =SA34b!K114 -> 0
A54: Investment properties | C54: =SUM(C52:C53) -> 0 | D54: =SUM(D52:D53) -> 0 | E54: 0 | F54: 0 | G54: 0 | H54: 0 | I54: 0 | J54: 0 | K54: 0
A55: Operational Buildings | C55: =SA34b!C119 -> 0 | D55: =SA34b!D119 -> 0 | E55: =SA34b!E119 -> 0 | F55: =SA34b!F119 -> 0 | G55: =SA34b!G119 -> 0 | H55: =SA34b!H119 -> 0 | I55: =SA34b!I119 -> 0 | J55: =SA34b!J119 -> 0 | K55: =SA34b!K119 -> 0
A56: Housing | C56: =SA34b!C131 -> 0 | D56: =SA34b!D131 -> 0 | E56: =SA34b!E131 -> 0 | F56: =SA34b!F131 -> 0 | G56: =SA34b!G131 -> 0 | H56: =SA34b!H131 -> 0 | I56: =SA34b!I131 -> 0 | J56: =SA34b!J131 -> 0 | K56: =SA34b!K131 -> 0
A57: Other Assets | C57: =SUM(C55:C56) -> 0 | D57: =SUM(D55:D56) -> 0 | E57: 0 | F57: 0 | G57: 0 | H57: 0 | I57: 0 | J57: 0 | K57: 0
A58: Biological or Cultivated Assets | C58: =SA34b!C136 -> 0 | D58: =SA34b!D136 -> 0 | E58: =SA34b!E136 -> 0 | F58: =SA34b!F136 -> 0 | G58: =SA34b!G136 -> 0 | H58: =SA34b!H136 -> 0 | I58: =SA34b!I136 -> 0 | J58: =SA34b!J136 -> 0 | K58: =SA34b!K136 -> 0
A59: Servitudes | C59: =SA34b!C140 -> 0 | D59: =SA34b!D140 -> 0 | E59: =SA34b!E140 -> 0 | F59: =SA34b!F140 -> 0 | G59: =SA34b!G140 -> 0 | H59: =SA34b!H140 -> 0 | I59: =SA34b!I140 -> 0 | J59: =SA34b!J140 -> 0 | K59: =SA34b!K140 -> 0
A60: Licences and Rights | C60: =SA34b!C141 -> 0 | D60: =SA34b!D141 -> 0 | E60: =SA34b!E141 -> 0 | F60: =SA34b!F141 -> 0 | G60: =SA34b!G141 -> 0 | H60: =SA34b!H141 -> 0 | I60: =SA34b!I141 -> 0 | J60: =SA34b!J141 -> 0 | K60: =SA34b!K141 -> 0
A61: Intangible Assets | C61: =SUM(C59:C60) -> 0 | D61: =SUM(D59:D60) -> 0 | E61: 0 | F61: 0 | G61: 0 | H61: 0 | I61: 0 | J61: 0 | K61: 0
A62: Computer Equipment | C62: =SA34b!C149 -> 0 | D62: =SA34b!D149 -> 0 | E62: =SA34b!E149 -> 0 | F62: =SA34b!F149 -> 0 | G62: =SA34b!G149 -> 0 | H62: =SA34b!H149 -> 0 | I62: =SA34b!I149 -> 0 | J62: =SA34b!J149 -> 0 | K62: =SA34b!K149 -> 0
A63: Furniture and Office Equipment | C63: =SA34b!C152 -> 0 | D63: =SA34b!D152 -> 0 | E63: =SA34b!E152 -> 0 | F63: =SA34b!F152 -> 0 | G63: =SA34b!G152 -> 0 | H63: =SA34b!H152 -> 0 | I63: =SA34b!I152 -> 0 | J63: =SA34b!J152 -> 0 | K63: =SA34b!K152 -> 0
A64: Machinery and Equipment | C64: =SA34b!C155 -> 0 | D64: =SA34b!D155 -> 0 | E64: =SA34b!E155 -> 0 | F64: =SA34b!F155 -> 0 | G64: =SA34b!G155 -> 0 | H64: =SA34b!H155 -> 0 | I64: =SA34b!I155 -> 0 | J64: =SA34b!J155 -> 0 | K64: =SA34b!K155 -> 0
A65: Transport Assets | C65: =SA34b!C158 -> 0 | D65: =SA34b!D158 -> 0 | E65: =SA34b!E158 -> 0 | F65: =SA34b!F158 -> 0 | G65: =SA34b!G158 -> 0 | H65: =SA34b!H158 -> 0 | I65: =SA34b!I158 -> 0 | J65: =SA34b!J158 -> 0 | K65: =SA34b!K158 -> 0
A66: Land | C66: =SA34b!C161 -> 0 | D66: =SA34b!D161 -> 0 | E66: =SA34b!E161 -> 0 | F66: =SA34b!F161 -> 0 | G66: =SA34b!G161 -> 0 | H66: =SA34b!H161 -> 0 | I66: =SA34b!I161 -> 0 | J66: =SA34b!J161 -> 0 | K66: =SA34b!K161 -> 0
A67: Zoo's, Marine and Non-biological Animals | C67: =SA34b!C164 -> 0 | D67: =SA34b!D164 -> 0 | E67: =SA34b!E164 -> 0 | F67: =SA34b!F164 -> 0 | G67: =SA34b!G164 -> 0 | H67: =SA34b!H164 -> 0 | I67: =SA34b!I164 -> 0 | J67: =SA34b!J164 -> 0 | K67: =SA34b!K164 -> 0
A69: Total Upgrading of Existing Assets | B69: 6 | C69: =C79+C82+C83+C86+C89+C90+SUM(C93:C99) -> 0 | D69: =D79+D82+D83+D86+D89+D90+SUM(D93:D99) -> 0 | E69: 0 | F69: 0 | G69: 0 | H69: 0 | I69: 0 | J69: 0 | K69: 0
A70: Roads Infrastructure | C70: =SA34e!C7 -> 0 | D70: =SA34e!D7 -> 0 | E70: =SA34e!E7 -> 0 | F70: =SA34e!F7 -> 0 | G70: =SA34e!G7 -> 0 | H70: =SA34e!H7 -> 0 | I70: =SA34e!I7 -> 0 | J70: =SA34e!J7 -> 0 | K70: =SA34e!K7 -> 0
A71: Storm water Infrastructure | C71: =SA34e!C12 -> 0 | D71: =SA34e!D12 -> 0 | E71: =SA34e!E12 -> 0 | F71: =SA34e!F12 -> 0 | G71: =SA34e!G12 -> 0 | H71: =SA34e!H12 -> 0 | I71: =SA34e!I12 -> 0 | J71: =SA34e!J12 -> 0 | K71: =SA34e!K12 -> 0
A72: Electrical Infrastructure | C72: =SA34e!C16 -> 0 | D72: =SA34e!D16 -> 0 | E72: =SA34e!E16 -> 0 | F72: =SA34e!F16 -> 0 | G72: =SA34e!G16 -> 0 | H72: =SA34e!H16 -> 0 | I72: =SA34e!I16 -> 0 | J72: =SA34e!J16 -> 0 | K72: =SA34e!K16 -> 0
A73: Water Supply Infrastructure | C73: =SA34e!C26 -> 0 | D73: =SA34e!D26 -> 0 | E73: =SA34e!E26 -> 0 | F73: =SA34e!F26 -> 0 | G73: =SA34e!G26 -> 0 | H73: =SA34e!H26 -> 0 | I73: =SA34e!I26 -> 0 | J73: =SA34e!J26 -> 0 | K73: =SA34e!K26 -> 0
A74: Sanitation Infrastructure | C74: =SA34e!C37 -> 0 | D74: =SA34e!D37 -> 0 | E74: =SA34e!E37 -> 0 | F74: =SA34e!F37 -> 0 | G74: =SA34e!G37 -> 0 | H74: =SA34e!H37 -> 0 | I74: =SA34e!I37 -> 0 | J74: =SA34e!J37 -> 0 | K74: =SA34e!K37 -> 0
A75: Solid Waste Infrastructure | C75: =SA34e!C44 -> 0 | D75: =SA34e!D44 -> 0 | E75: =SA34e!E44 -> 0 | F75: =SA34e!F44 -> 0 | G75: =SA34e!G44 -> 0 | H75: =SA34e!H44 -> 0 | I75: =SA34e!I44 -> 0 | J75: =SA34e!J44 -> 0 | K75: =SA34e!K44 -> 0
A76: Rail Infrastructure | C76: =SA34e!C52 -> 0 | D76: =SA34e!D52 -> 0 | E76: =SA34e!E52 -> 0 | F76: =SA34e!F52 -> 0 | G76: =SA34e!G52 -> 0 | H76: =SA34e!H52 -> 0 | I76: =SA34e!I52 -> 0 | J76: =SA34e!J52 -> 0 | K76: =SA34e!K52 -> 0
A77: Coastal Infrastructure | C77: =SA34e!C62 -> 0 | D77: =SA34e!D62 -> 0 | E77: =SA34e!E62 -> 0 | F77: =SA34e!F62 -> 0 | G77: =SA34e!G62 -> 0 | H77: =SA34e!H62 -> 0 | I77: =SA34e!I62 -> 0 | J77: =SA34e!J62 -> 0 | K77: =SA34e!K62 -> 0
A78: Information and Communication Infrastructure | C78: =SA34e!C68 -> 0 | D78: =SA34e!D68 -> 0 | E78: =SA34e!E68 -> 0 | F78: =SA34e!F68 -> 0 | G78: =SA34e!G68 -> 0 | H78: =SA34e!H68 -> 0 | I78: =SA34e!I68 -> 0 | J78: =SA34e!J68 -> 0 | K78: =SA34e!K68 -> 0
A79: Infrastructure | C79: =SUM(C70:C78) -> 0 | D79: 0 | E79: 0 | F79: 0 | G79: 0 | H79: 0 | I79: 0 | J79: 0 | K79: 0
A80: Community Facilities | C80: =SA34e!C75 -> 0 | D80: =SA34e!D75 -> 0 | E80: =SA34e!E75 -> 0 | F80: =SA34e!F75 -> 0 | G80: =SA34e!G75 -> 0 | H80: =SA34e!H75 -> 0 | I80: =SA34e!I75 -> 0 | J80: =SA34e!J75 -> 0 | K80: =SA34e!K75 -> 0
A81: Sport and Recreation Facilities | C81: =SA34e!C98 -> 0 | D81: =SA34e!D98 -> 0 | E81: =SA34e!E98 -> 0 | F81: =SA34e!F98 -> 0 | G81: =SA34e!G98 -> 0 | H81: =SA34e!H98 -> 0 | I81: =SA34e!I98 -> 0 | J81: =SA34e!J98 -> 0 | K81: =SA34e!K98 -> 0
A82: Community Assets | C82: =SUM(C80:C81) -> 0 | D82: 0 | E82: 0 | F82: 0 | G82: 0 | H82: 0 | I82: 0 | J82: 0 | K82: 0
A83: Heritage Assets | C83: =SA34e!C103 -> 0 | D83: =SA34e!D103 -> 0 | E83: =SA34e!E103 -> 0 | F83: =SA34e!F103 -> 0 | G83: =SA34e!G103 -> 0 | H83: =SA34e!H103 -> 0 | I83: =SA34e!I103 -> 0 | J83: =SA34e!J103 -> 0 | K83: =SA34e!K103 -> 0
A84: Revenue Generating | C84: =SA34e!C111 -> 0 | D84: =SA34e!D111 -> 0 | E84: =SA34e!E111 -> 0 | F84: =SA34e!F111 -> 0 | G84: =SA34e!G111 -> 0 | H84: =SA34e!H111 -> 0 | I84: =SA34e!I111 -> 0 | J84: =SA34e!J111 -> 0 | K84: =SA34e!K111 -> 0
A85: Non-revenue Generating | C85: =SA34e!C114 -> 0 | D85: =SA34e!D114 -> 0 | E85: =SA34e!E114 -> 0 | F85: =SA34e!F114 -> 0 | G85: =SA34e!G114 -> 0 | H85: =SA34e!H114 -> 0 | I85: =SA34e!I114 -> 0 | J85: =SA34e!J114 -> 0 | K85: =SA34e!K114 -> 0
A86: Investment properties | C86: =SUM(C84:C85) -> 0 | D86: 0 | E86: 0 | F86: 0 | G86: 0 | H86: 0 | I86: 0 | J86: 0 | K86: 0
A87: Operational Buildings | C87: =SA34e!C119 -> 0 | D87: =SA34e!D119 -> 0 | E87: =SA34e!E119 -> 0 | F87: =SA34e!F119 -> 0 | G87: =SA34e!G119 -> 0 | H87: =SA34e!H119 -> 0 | I87: =SA34e!I119 -> 0 | J87: =SA34e!J119 -> 0 | K87: =SA34e!K119 -> 0
A88: Housing | C88: =SA34e!C131 -> 0 | D88: =SA34e!D131 -> 0 | E88: =SA34e!E131 -> 0 | F88: =SA34e!F131 -> 0 | G88: =SA34e!G131 -> 0 | H88: =SA34e!H131 -> 0 | I88: =SA34e!I131 -> 0 | J88: =SA34e!J131 -> 0 | K88: =SA34e!K131 -> 0
A89: Other Assets | C89: =SUM(C87:C88) -> 0 | D89: 0 | E89: 0 | F89: 0 | G89: 0 | H89: 0 | I89: 0 | J89: 0 | K89: 0
A90: Biological or Cultivated Assets | C90: =SA34e!C136 -> 0 | D90: =SA34e!D136 -> 0 | E90: =SA34e!E136 -> 0 | F90: =SA34e!F136 -> 0 | G90: =SA34e!G136 -> 0 | H90: =SA34e!H136 -> 0 | I90: =SA34e!I136 -> 0 | J90: =SA34e!J136 -> 0 | K90: =SA34e!K136 -> 0
A91: Servitudes | C91: =SA34e!C140 -> 0 | D91: =SA34e!D140 -> 0 | E91: =SA34e!E140 -> 0 | F91: =SA34e!F140 -> 0 | G91: =SA34e!G140 -> 0 | H91: =SA34e!H140 -> 0 | I91: =SA34e!I140 -> 0 | J91: =SA34e!J140 -> 0 | K91: =SA34e!K140 -> 0
A92: Licences and Rights | C92: =SA34e!C141 -> 0 | D92: =SA34e!D141 -> 0 | E92: =SA34e!E141 -> 0 | F92: =SA34e!F141 -> 0 | G92: =SA34e!G141 -> 0 | H92: =SA34e!H141 -> 0 | I92: =SA34e!I141 -> 0 | J92: =SA34e!J141 -> 0 | K92: =SA34e!K141 -> 0
A93: Intangible Assets | C93: =SUM(C91:C92) -> 0 | D93: 0 | E93: 0 | F93: 0 | G93: 0 | H93: 0 | I93: 0 | J93: 0 | K93: 0
A94: Computer Equipment | C94: =SA34e!C149 -> 0 | D94: =SA34e!D149 -> 0 | E94: =SA34e!E149 -> 0 | F94: =SA34e!F149 -> 0 | G94: =SA34e!G149 -> 0 | H94: =SA34e!H149 -> 0 | I94: =SA34e!I149 -> 0 | J94: =SA34e!J149 -> 0 | K94: =SA34e!K149 -> 0
A95: Furniture and Office Equipment | C95: =SA34e!C152 -> 0 | D95: =SA34e!D152 -> 0 | E95: =SA34e!E152 -> 0 | F95: =SA34e!F152 -> 0 | G95: =SA34e!G152 -> 0 | H95: =SA34e!H152 -> 0 | I95: =SA34e!I152 -> 0 | J95: =SA34e!J152 -> 0 | K95: =SA34e!K152 -> 0
A96: Machinery and Equipment | C96: =SA34e!C155 -> 0 | D96: =SA34e!D155 -> 0 | E96: =SA34e!E155 -> 0 | F96: =SA34e!F155 -> 0 | G96: =SA34e!G155 -> 0 | H96: =SA34e!H155 -> 0 | I96: =SA34e!I155 -> 0 | J96: =SA34e!J155 -> 0 | K96: =SA34e!K155 -> 0
A97: Transport Assets | C97: =SA34e!C158 -> 0 | D97: =SA34e!D158 -> 0 | E97: =SA34e!E158 -> 0 | F97: =SA34e!F158 -> 0 | G97: =SA34e!G158 -> 0 | H97: =SA34e!H158 -> 0 | I97: =SA34e!I158 -> 0 | J97: =SA34e!J158 -> 0 | K97: =SA34e!K158 -> 0
A98: Land | C98: =SA34e!C161 -> 0 | D98: =SA34e!D161 -> 0 | E98: =SA34e!E161 -> 0 | F98: =SA34e!F161 -> 0 | G98: =SA34e!G161 -> 0 | H98: =SA34e!H161 -> 0 | I98: =SA34e!I161 -> 0 | J98: =SA34e!J161 -> 0 | K98: =SA34e!K161 -> 0
A99: Zoo's, Marine and Non-biological Animals | C99: =SA34e!C164 -> 0 | D99: =SA34e!D164 -> 0 | E99: =SA34e!E164 -> 0 | F99: =SA34e!F164 -> 0 | G99: =SA34e!G164 -> 0 | H99: =SA34e!H164 -> 0 | I99: =SA34e!I164 -> 0 | J99: =SA34e!J164 -> 0 | K99: =SA34e!K164 -> 0
A101: Total Capital Expenditure | B101: 4 | C101: =+C5+C37+C69 -> 8827418 | D101: =+D5+D37+D69 -> 2943691.63 | E101: 3898129.72 | F101: 17591000 | G101: 22546219 | H101: 22546219 | I101: 17662000 | J101: 14687616 | K101: 16710742
A102: Roads Infrastructure | C102: =+C6+C38+C70 -> 0 | D102: =+D6+D38+D70 -> 0 | E102: 0 | F102: 0 | G102: 0 | H102: 0 | I102: 0 | J102: 0 | K102: 1000000
A103: Storm water Infrastructure | C103: =+C7+C39+C71 -> 0 | D103: 0 | E103: 0 | F103: 0 | G103: 500000 | H103: 500000 | I103: 0 | J103: 0 | K103: 0
A104: Electrical Infrastructure | C104: 0 | D104: 0 | E104: 0 | F104: 2000000 | G104: 1787000 | H104: 1787000 | I104: 1000000 | J104: 1000000 | K104: 2000000
A105: Water Supply Infrastructure | C105: 0 | D105: 0 | E105: 0 | F105: 7000000 | G105: 2914026 | H105: 2914026 | I105: 9699000 | J105: 1400000 | K105: 3000000
A106: Sanitation Infrastructure | C106: 0 | D106: 0 | E106: 0 | F106: 0 | G106: 10009193 | H106: 10009193 | I106: 0 | J106: 1956616 | K106: 1970000
A107: Solid Waste Infrastructure | C107: 0 | D107: 0 | E107: 0 | F107: 0 | G107: 0 | H107: 0 | I107: 0 | J107: 0 | K107: 0
A108: Rail Infrastructure | C108: 0 | D108: 0 | E108: 0 | F108: 0 | G108: 0 | H108: 0 | I108: 0 | J108: 0 | K108: 0
A109: Coastal Infrastructure | C109: 0 | D109: 0 | E109: 0 | F109: 0 | G109: 0 | H109: 0 | I109: 0 | J109: 0 | K109: 0
A110: Information and Communication Infrastructure | C110: 0 | D110: 0 | E110: 0 | F110: 0 | G110: 0 | H110: 0 | I110: 0 | J110: 0 | K110: 0
A111: Infrastructure | C111: =SUM(C102:C110) -> 0 | D111: =SUM(D102:D110) -> 0 | E111: 0 | F111: 9000000 | G111: 15210219 | H111: 15210219 | I111: 10699000 | J111: 4356616 | K111: 7970000
A112: Community Facilities | C112: =+C16+C48+C80 -> 0 | D112: =+D16+D48+D80 -> 0 | E112: 0 | F112: 0 | G112: 0 | H112: 0 | I112: 0 | J112: 0 | K112: 0
A113: Sport and Recreation Facilities | C113: =+C17+C49+C81 -> 0 | D113: =+D17+D49+D81 -> 0 | E113: 0 | F113: 0 | G113: 0 | H113: 0 | I113: 0 | J113: 0 | K113: 0
A114: Community Assets | C114: =SUM(C112:C113) -> 0 | D114: =SUM(D112:D113) -> 0 | E114: 0 | F114: 0 | G114: 0 | H114: 0 | I114: 0 | J114: 0 | K114: 0
A115: Heritage Assets | C115: =+C19+C51+C83 -> 0 | D115: =+D19+D51+D83 -> 0 | E115: 0 | F115: 0 | G115: 0 | H115: 0 | I115: 0 | J115: 0 | K115: 0
A116: Revenue Generating | C116: =+C20+C52+C84 -> 0 | D116: =+D20+D52+D84 -> 0 | E116: 0 | F116: 0 | G116: 0 | H116: 0 | I116: 0 | J116: 0 | K116: 0
A117: Non-revenue Generating | C117: =+C21+C53+C85 -> 0 | D117: =+D21+D53+D85 -> 0 | E117: 0 | F117: 0 | G117: 0 | H117: 0 | I117: 0 | J117: 0 | K117: 0
A118: Investment properties | C118: =SUM(C116:C117) -> 0 | D118: =SUM(D116:D117) -> 0 | E118: 0 | F118: 0 | G118: 0 | H118: 0 | I118: 0 | J118: 0 | K118: 0
A119: Operational Buildings | C119: =+C23+C55+C87 -> 37000 | D119: =+D23+D55+D87 -> 0 | E119: 0 | F119: 0 | G119: 0 | H119: 0 | I119: 500000 | J119: 2000000 | K119: 300000
A120: Housing | C120: =+C24+C56+C88 -> 0 | D120: =+D24+D56+D88 -> 0 | E120: 0 | F120: 0 | G120: 0 | H120: 0 | I120: 0 | J120: 0 | K120: 0
A121: Other Assets | C121: =SUM(C119:C120) -> 37000 | D121: 0 | E121: 0 | F121: 0 | G121: 0 | H121: 0 | I121: 500000 | J121: 2000000 | K121: 300000
A122: Biological or Cultivated Assets | C122: =+C26+C58+C90 -> 0 | D122: =+D26+D58+D90 -> 0 | E122: 0 | F122: 0 | G122: 0 | H122: 0 | I122: 0 | J122: 0 | K122: 0
A123: Servitudes | C123: =+C27+C59+C91 -> 4800763 | D123: =+D27+D59+D91 -> 0 | E123: 0 | F123: 0 | G123: 0 | H123: 0 | I123: 0 | J123: 0 | K123: 0
A124: Licences and Rights | C124: =+C28+C60+C92 -> 0 | D124: =+D28+D60+D92 -> 379139.8 | E124: 513881.63 | F124: 4391000 | G124: 3811000 | H124: 3811000 | I124: 4513000 | J124: 5901000 | K124: 6190742
A125: Intangible Assets | C125: =SUM(C123:C124) -> 4800763 | D125: =SUM(D123:D124) -> 379139.8 | E125: 513881.63 | F125: 4391000 | G125: 3811000 | H125: 3811000 | I125: 4513000 | J125: 5901000 | K125: 6190742
A126: Computer Equipment | C126: =+C30+C62+C94 -> 2558339 | D126: =+D30+D62+D94 -> 874231.1 | E126: 2621952.11 | F126: 2500000 | G126: 3100000 | H126: 3100000 | I126: 1200000 | J126: 1400000 | K126: 1450000
A127: Furniture and Office Equipment | C127: =+C31+C63+C95 -> 118823 | D127: 63161.92 | E127: 174086.42 | F127: 400000 | G127: 275000 | H127: 275000 | I127: 200000 | J127: 200000 | K127: 200000
A128: Machinery and Equipment | C128: 129770 | D128: 2630.7 | E128: 221340 | F128: 1050000 | G128: 150000 | H128: 150000 | I128: 150000 | J128: 430000 | K128: 200000
A129: Transport Assets | C129: 1182723 | D129: 1624528.11 | E129: 366869.56 | F129: 250000 | G129: 0 | H129: 0 | I129: 400000 | J129: 400000 | K129: 400000
A130: Land | C130: 0 | D130: 0 | E130: 0 | F130: 0 | G130: 0 | H130: 0 | I130: 0 | J130: 0 | K130: 0
A131: Zoo's, Marine and Non-biological Animals | C131: 0 | D131: 0 | E131: 0 | F131: 0 | G131: 0 | H131: 0 | I131: 0 | J131: 0 | K131: 0
A132: TOTAL CAPITAL EXPENDITURE - Asset class | C132: =+C5+C37+C69 -> 8827418 | D132: =+D5+D37+D69 -> 2943691.63 | E132: 3898129.72 | F132: 17591000 | G132: 22546219 | H132: 22546219 | I132: 17662000 | J132: 14687616 | K132: 16710742
A134: ASSET REGISTER SUMMARY - PPE (WDV) | B134: 5 | C134: =C144+C147+C148+C151+C154+C155+C158+C159+C160+C161+C162+C163+C164 -> 214517107 | D134: =D144+D147+D148+D151+D154+D155+D158+D159+D160+D161+D162+D163+D164 -> 214411459 | E134: 208483922.2 | F134: 232002452 | G134: 236957671 | H134: 236957671 | I134: 228596870 | J134: 225622486 | K134: 227645612
A135: Roads Infrastructure | C135: 0 | D135: 0 | E135: 0 | F135: 0 | G135: 0 | H135: 0 | I135: 0 | J135: 0 | K135: 1000000
A136: Storm water Infrastructure | C136: 0 | D136: 0 | E136: 0 | F136: 0 | G136: 500000 | H136: 500000 | I136: 0 | J136: 0 | K136: 0
A137: Electrical Infrastructure | C137: 0 | D137: 0 | E137: 0 | F137: 2000000 | G137: 1787000 | H137: 1787000 | I137: 1000000 | J137: 1000000 | K137: 2000000
A138: Water Supply Infrastructure | C138: 0 | D138: 0 | E138: 0 | F138: 7000000 | G138: 2914026 | H138: 2914026 | I138: 9699000 | J138: 1400000 | K138: 3000000
A139: Sanitation Infrastructure | C139: 0 | D139: 0 | E139: 0 | F139: 0 | G139: 10009193 | H139: 10009193 | I139: 0 | J139: 1956616 | K139: 1970000
A140: Solid Waste Infrastructure
A141: Rail Infrastructure
A142: Coastal Infrastructure
A143: Information and Communication Infrastructure
A144: Infrastructure | C144: =SUM(C135:C143) -> 0 | D144: =SUM(D135:D143) -> 0 | E144: 0 | F144: 9000000 | G144: 15210219 | H144: 15210219 | I144: 10699000 | J144: 4356616 | K144: 7970000
A147: Community Assets
A148: Heritage Assets | C148: 0 | D148: 0 | E148: 0 | F148: 0 | G148: 0 | H148: 0 | I148: 0 | J148: 0 | K148: 0
A151: Investment properties
A154: Other Assets | C154: 195152779 | D154: 190595040.9 | E154: 185030190.1 | F154: 190595040 | G154: 190595040 | H154: 190595040 | I154: 179965339 | J154: 181465339 | K154: 179765339
A155: Biological or Cultivated Assets
A158: Intangible Assets | C158: 0 | D158: 4533784.1 | E158: 3889578.91 | F158: 8924782 | G158: 8344782 | H158: 8344782 | I158: 16981064 | J158: 18369064 | K158: 18658806
A159: Computer Equipment | C159: 5368991 | D159: 4944339.71 | E159: 5820854.33 | F159: 7444338 | G159: 8044338 | H159: 8044338 | I159: 7888071 | J159: 8088071 | K159: 8138071
A160: Furniture and Office Equipment | C160: 2939061 | D160: 2499467.5 | E160: 2160559.53 | F160: 2899467 | G160: 2774467 | H160: 2774467 | I160: 2267287 | J160: 2267287 | K160: 2267287
A161: Machinery and Equipment | C161: =165+869426 -> 869591 | D161: 720955.81 | E161: 787329.8 | F161: 1770956 | G161: 870956 | H161: 870956 | I161: 483789 | J161: 763789 | K161: 533789
A162: Transport Assets | C162: 2083685 | D162: 3014816.92 | E162: 2692355.43 | F162: 3264815 | G162: 3014815 | H162: 3014815 | I162: 2209266 | J162: 2209266 | K162: 2209266
A163: Land | C163: 8103000 | D163: 8103054.05 | E163: 8103054.05 | F163: 8103054 | G163: 8103054 | H163: 8103054 | I163: 8103054 | J163: 8103054 | K163: 8103054
A164: Zoo's, Marine and Non-biological Animals
A165: TOTAL ASSET REGISTER SUMMARY - PPE (WDV) | B165: 5 | C165: =C144+C147+C148+C151+C154+C155+C158+C159+C160+C161+C162+C163+C164 -> 214517107 | D165: =D144+D147+D148+D151+D154+D155+D158+D159+D160+D161+D162+D163+D164 -> 214411459 | E165: 208483922.2 | F165: 232002452 | G165: 236957671 | H165: 236957671 | I165: 228596870 | J165: 225622486 | K165: 227645612
A167: EXPENDITURE OTHER ITEMS | C167: =SUM(C168:C169) -> 11984726 | D167: =SUM(D168:D169) -> 15628465.91 | E167: 17009846.66 | F167: 21792425 | G167: 19567525 | H167: 19567525 | I167: 18017276 | J167: 18252245 | K167: 18526025
A168: Depreciation | B168: 7 | C168: =SA34d!C167 -> 10184203 | D168: =SA34d!D167 -> 9204376.23 | E168: =SA34d!E167 -> 9716266.88 | F168: =SA34d!F167 -> 11847425 | G168: =SA34d!G167 -> 8147425 | H168: =SA34d!H167 -> 8147425 | I168: =SA34d!I167 -> 8147426 | J168: =SA34d!J167 -> 8147426 | K168: =SA34d!K167 -> 8147426
A169: Repairs and Maintenance by Asset Class | B169: 3 | C169: =C179+C182+C183+C186+C189+C190+SUM(C193:C199) -> 1800523 | D169: =D179+D182+D183+D186+D189+D190+SUM(D193:D199) -> 6424089.68 | E169: 7293579.78 | F169: 9945000 | G169: 11420100 | H169: 11420100 | I169: 9869850 | J169: 10104819 | K169: 10378599
A170: Roads Infrastructure | C170: =SA34c!C7 -> 0 | D170: =SA34c!D7 -> 0 | E170: =SA34c!E7 -> 0 | F170: =SA34c!F7 -> 0 | G170: =SA34c!G7 -> 0 | H170: =SA34c!H7 -> 0 | I170: =SA34c!I7 -> 0 | J170: =SA34c!J7 -> 0 | K170: =SA34c!K7 -> 0
A171: Storm water Infrastructure | C171: =SA34c!C12 -> 0 | D171: =SA34c!D12 -> 0 | E171: =SA34c!E12 -> 0 | F171: =SA34c!F12 -> 0 | G171: =SA34c!G12 -> 0 | H171: =SA34c!H12 -> 0 | I171: =SA34c!I12 -> 0 | J171: =SA34c!J12 -> 0 | K171: =SA34c!K12 -> 0
A172: Electrical Infrastructure | C172: =SA34c!C16 -> 0 | D172: =SA34c!D16 -> 0 | E172: =SA34c!E16 -> 0 | F172: =SA34c!F16 -> 0 | G172: =SA34c!G16 -> 0 | H172: =SA34c!H16 -> 0 | I172: =SA34c!I16 -> 0 | J172: =SA34c!J16 -> 0 | K172: =SA34c!K16 -> 0
A173: Water Supply Infrastructure | C173: =SA34c!C26 -> 0 | D173: =SA34c!D26 -> 0 | E173: =SA34c!E26 -> 0 | F173: =SA34c!F26 -> 0 | G173: =SA34c!G26 -> 0 | H173: =SA34c!H26 -> 0 | I173: =SA34c!I26 -> 0 | J173: =SA34c!J26 -> 0 | K173: =SA34c!K26 -> 0
A174: Sanitation Infrastructure | C174: =SA34c!C37 -> 0 | D174: =SA34c!D37 -> 0 | E174: =SA34c!E37 -> 0 | F174: =SA34c!F37 -> 0 | G174: =SA34c!G37 -> 0 | H174: =SA34c!H37 -> 0 | I174: =SA34c!I37 -> 0 | J174: =SA34c!J37 -> 0 | K174: =SA34c!K37 -> 0
A175: Solid Waste Infrastructure | C175: =SA34c!C44 -> 0 | D175: =SA34c!D44 -> 0 | E175: =SA34c!E44 -> 0 | F175: =SA34c!F44 -> 0 | G175: =SA34c!G44 -> 0 | H175: =SA34c!H44 -> 0 | I175: =SA34c!I44 -> 0 | J175: =SA34c!J44 -> 0 | K175: =SA34c!K44 -> 0
A176: Rail Infrastructure | C176: =SA34c!C52 -> 0 | D176: =SA34c!D52 -> 0 | E176: =SA34c!E52 -> 0 | F176: =SA34c!F52 -> 0 | G176: =SA34c!G52 -> 0 | H176: =SA34c!H52 -> 0 | I176: =SA34c!I52 -> 0 | J176: =SA34c!J52 -> 0 | K176: =SA34c!K52 -> 0
A177: Coastal Infrastructure | C177: =SA34c!C62 -> 0 | D177: =SA34c!D62 -> 0 | E177: =SA34c!E62 -> 0 | F177: =SA34c!F62 -> 0 | G177: =SA34c!G62 -> 0 | H177: =SA34c!H62 -> 0 | I177: =SA34c!I62 -> 0 | J177: =SA34c!J62 -> 0 | K177: =SA34c!K62 -> 0
A178: Information and Communication Infrastructure | C178: =SA34c!C68 -> 0 | D178: =SA34c!D68 -> 0 | E178: =SA34c!E68 -> 0 | F178: =SA34c!F68 -> 0 | G178: =SA34c!G68 -> 0 | H178: =SA34c!H68 -> 0 | I178: =SA34c!I68 -> 0 | J178: =SA34c!J68 -> 0 | K178: =SA34c!K68 -> 0
A179: Infrastructure | C179: =SUM(C170:C178) -> 0 | D179: =SUM(D170:D178) -> 0 | E179: 0 | F179: 0 | G179: 0 | H179: 0 | I179: 0 | J179: 0 | K179: 0
A180: Community Facilities | C180: =SA34c!C75 -> 0 | D180: =SA34c!D75 -> 0 | E180: =SA34c!E75 -> 0 | F180: =SA34c!F75 -> 0 | G180: =SA34c!G75 -> 0 | H180: =SA34c!H75 -> 0 | I180: =SA34c!I75 -> 0 | J180: =SA34c!J75 -> 0 | K180: =SA34c!K75 -> 0
A181: Sport and Recreation Facilities | C181: =SA34c!C98 -> 0 | D181: =SA34c!D98 -> 0 | E181: =SA34c!E98 -> 0 | F181: =SA34c!F98 -> 0 | G181: =SA34c!G98 -> 0 | H181: =SA34c!H98 -> 0 | I181: =SA34c!I98 -> 0 | J181: =SA34c!J98 -> 0 | K181: =SA34c!K98 -> 0
A182: Community Assets | C182: =SUM(C180:C181) -> 0 | D182: 0 | E182: 0 | F182: 0 | G182: 0 | H182: 0 | I182: 0 | J182: 0 | K182: 0
A183: Heritage Assets | C183: =SA34c!C103 -> 0 | D183: =SA34c!D103 -> 0 | E183: =SA34c!E103 -> 0 | F183: =SA34c!F103 -> 0 | G183: =SA34c!G103 -> 0 | H183: =SA34c!H103 -> 0 | I183: =SA34c!I103 -> 0 | J183: =SA34c!J103 -> 0 | K183: =SA34c!K103 -> 0
A184: Revenue Generating | C184: =SA34c!C111 -> 0 | D184: =SA34c!D111 -> 0 | E184: =SA34c!E111 -> 0 | F184: =SA34c!F111 -> 0 | G184: =SA34c!G111 -> 0 | H184: =SA34c!H111 -> 0 | I184: =SA34c!I111 -> 0 | J184: =SA34c!J111 -> 0 | K184: =SA34c!K111 -> 0
A185: Non-revenue Generating | C185: =SA34c!C114 -> 0 | D185: =SA34c!D114 -> 0 | E185: =SA34c!E114 -> 0 | F185: =SA34c!F114 -> 0 | G185: =SA34c!G114 -> 0 | H185: =SA34c!H114 -> 0 | I185: =SA34c!I114 -> 0 | J185: =SA34c!J114 -> 0 | K185: =SA34c!K114 -> 0
A186: Investment properties | C186: =SUM(C184:C185) -> 0 | D186: 0 | E186: 0 | F186: 0 | G186: 0 | H186: 0 | I186: 0 | J186: 0 | K186: 0
A187: Operational Buildings | C187: =SA34c!C119 -> 1800523 | D187: =SA34c!D119 -> 1872452.24 | E187: =SA34c!E119 -> 1475319.98 | F187: =SA34c!F119 -> 4340000 | G187: =SA34c!G119 -> 5130000 | H187: =SA34c!H119 -> 5130000 | I187: =SA34c!I119 -> 3044300 | J187: =SA34c!J119 -> 3181294 | K187: =SA34c!K119 -> 3324452
A188: Housing | C188: =SA34c!C131 -> 0 | D188: =SA34c!D131 -> 0 | E188: =SA34c!E131 -> 0 | F188: =SA34c!F131 -> 0 | G188: =SA34c!G131 -> 0 | H188: =SA34c!H131 -> 0 | I188: =SA34c!I131 -> 0 | J188: =SA34c!J131 -> 0 | K188: =SA34c!K131 -> 0
A189: Other Assets | C189: =SUM(C187:C188) -> 1800523 | D189: 1872452.24 | E189: 1475319.98 | F189: 4340000 | G189: 5130000 | H189: 5130000 | I189: 3044300 | J189: 3181294 | K189: 3324452
A190: Biological or Cultivated Assets | C190: =SA34c!C136 -> 0 | D190: =SA34c!D136 -> 0 | E190: =SA34c!E136 -> 0 | F190: =SA34c!F136 -> 0 | G190: =SA34c!G136 -> 0 | H190: =SA34c!H136 -> 0 | I190: =SA34c!I136 -> 0 | J190: =SA34c!J136 -> 0 | K190: =SA34c!K136 -> 0
A191: Servitudes | C191: =SA34c!C140 -> 0 | D191: =SA34c!D140 -> 0 | E191: =SA34c!E140 -> 0 | F191: =SA34c!F140 -> 0 | G191: =SA34c!G140 -> 0 | H191: =SA34c!H140 -> 0 | I191: =SA34c!I140 -> 0 | J191: =SA34c!J140 -> 0 | K191: =SA34c!K140 -> 0
A192: Licences and Rights | C192: =SA34c!C141 -> 0 | D192: =SA34c!D141 -> 0 | E192: =SA34c!E141 -> 0 | F192: =SA34c!F141 -> 0 | G192: =SA34c!G141 -> 0 | H192: =SA34c!H141 -> 0 | I192: =SA34c!I141 -> 0 | J192: =SA34c!J141 -> 0 | K192: =SA34c!K141 -> 0
A193: Intangible Assets | C193: =SUM(C191:C192) -> 0 | D193: 0 | E193: 0 | F193: 0 | G193: 0 | H193: 0 | I193: 0 | J193: 0 | K193: 0
A194: Computer Equipment | C194: =SA34c!C149 -> 0 | D194: =SA34c!D149 -> 4183715.75 | E194: =SA34c!E149 -> 5156274.69 | F194: =SA34c!F149 -> 5000000 | G194: =SA34c!G149 -> 5500000 | H194: =SA34c!H149 -> 5500000 | I194: =SA34c!I149 -> 6000000 | J194: =SA34c!J149 -> 6060000 | K194: =SA34c!K149 -> 6150900
A195: Furniture and Office Equipment | C195: =SA34c!C152 -> 0 | D195: =SA34c!D152 -> 34310.91 | E195: =SA34c!E152 -> 99036.9 | F195: =SA34c!F152 -> 100000 | G195: =SA34c!G152 -> 100000 | H195: =SA34c!H152 -> 100000 | I195: =SA34c!I152 -> 104500 | J195: =SA34c!J152 -> 109307 | K195: =SA34c!K152 -> 114335
A196: Machinery and Equipment | C196: =SA34c!C155 -> 0 | D196: =SA34c!D155 -> 9588 | E196: =SA34c!E155 -> 5738 | F196: =SA34c!F155 -> 15000 | G196: =SA34c!G155 -> 15000 | H196: =SA34c!H155 -> 15000 | I196: =SA34c!I155 -> 15675 | J196: =SA34c!J155 -> 16396 | K196: =SA34c!K155 -> 17150
A197: Transport Assets | C197: =SA34c!C158 -> 0 | D197: =SA34c!D158 -> 324022.78 | E197: =SA34c!E158 -> 557210.21 | F197: =SA34c!F158 -> 490000 | G197: =SA34c!G158 -> 675100 | H197: =SA34c!H158 -> 675100 | I197: =SA34c!I158 -> 705375 | J197: =SA34c!J158 -> 737822 | K197: =SA34c!K158 -> 771762
A198: Land | C198: =SA34c!C161 -> 0 | D198: =SA34c!D161 -> 0 | E198: =SA34c!E161 -> 0 | F198: =SA34c!F161 -> 0 | G198: =SA34c!G161 -> 0 | H198: =SA34c!H161 -> 0 | I198: =SA34c!I161 -> 0 | J198: =SA34c!J161 -> 0 | K198: =SA34c!K161 -> 0
A199: Zoo's, Marine and Non-biological Animals | C199: =SA34c!C164 -> 0 | D199: =SA34c!D164 -> 0 | E199: =SA34c!E164 -> 0 | F199: =SA34c!F164 -> 0 | G199: =SA34c!G164 -> 0 | H199: =SA34c!H164 -> 0 | I199: =SA34c!I164 -> 0 | J199: =SA34c!J164 -> 0 | K199: =SA34c!K164 -> 0
A201: TOTAL EXPENDITURE OTHER ITEMS | C201: =SUM(C168:C169) -> 11984726 | D201: 15628465.91 | E201: 17009846.66 | F201: 21792425 | G201: 19567525 | H201: 19567525 | I201: 18017276 | J201: 18252245 | K201: 18526025
A203: Renewal and upgrading of Existing Assets as % of total capex | C203: =IF(ISERROR((C37+C69)/C132),0,((C37+C69)/C132)) -> 0 | D203: =IF(ISERROR((D37+D69)/D132),0,((D37+D69)/D132)) -> 0 | E203: 0 | F203: 0.39793076 | G203: 0.08045810253 | H203: 0.08045810253 | I203: 0.5264975654 | J203: 0.09531839612 | K203: 0.0598417473
A204: Renewal and upgrading of Existing Assets as % of deprecn | C204: =IF(ISERROR((C37+C69)/C168),0,((C37+C69)/C168)) -> 0 | D204: =IF(ISERROR((D37+D69)/D168),0,((D37+D69)/D168)) -> 0 | E204: 0 | F204: 0.5908456901 | G204: 0.2226502238 | H204: 0.2226502238 | I204: 1.141342063 | J204: 0.1718334109 | K204: 0.1227381507
A205: R&M as a % of PPE | C205: =IF(ISERROR(ROUND(C169/'A6-FinPos'!C19,3)),0,(ROUND(C169/'A6-FinPos'!C19,3))) -> 0.008 | D205: =IF(ISERROR(ROUND(D169/'A6-FinPos'!D19,3)),0,(ROUND(D169/'A6-FinPos'!D19,3))) -> 0.031 | E205: =IF(ISERROR(ROUND(E169/'A6-FinPos'!E19,3)),0,(ROUND(E169/'A6-FinPos'!E19,3))) -> 0.036 | F205: =IF(ISERROR(ROUND(F169/'A6-FinPos'!F19,3)),0,(ROUND(F169/'A6-FinPos'!F19,3))) -> 0.045 | G205: =IF(ISERROR(ROUND(G169/'A6-FinPos'!G19,3)),0,(ROUND(G169/'A6-FinPos'!G19,3))) -> 0.05 | H205: =IF(ISERROR(ROUND(H169/'A6-FinPos'!H19,3)),0,(ROUND(H169/'A6-FinPos'!H19,3))) -> 0.05 | I205: =IF(ISERROR(ROUND(I169/'A6-FinPos'!J19,3)),0,(ROUND(I169/'A6-FinPos'!J19,3))) -> 0.047 | J205: =IF(ISERROR(ROUND(J169/'A6-FinPos'!K19,3)),0,(ROUND(J169/'A6-FinPos'!K19,3))) -> 0.049 | K205: =IF(ISERROR(ROUND(K169/'A6-FinPos'!L19,3)),0,(ROUND(K169/'A6-FinPos'!L19,3))) -> 0.05
A206: Renewal and upgrading and R&M as a % of PPE | C206: =IF(ISERROR(ROUND((C37+C69+C169)/C165,2)),0,(ROUND((C37+C69+C169)/C165,2))) -> 0.01 | D206: =IF(ISERROR(ROUND((D37+D69+D169)/D165,2)),0,(ROUND((D37+D69+D169)/D165,2))) -> 0.03 | E206: 0.03 | F206: 0.07 | G206: 0.06 | H206: 0.06 | I206: 0.08 | J206: 0.05 | K206: 0.05
A208: =head27a -> References
A209: 1. Detail of new assets provided in Table SA34a
A210: 2. Detail of renewal of existing assets provided in Table SA34b
A211: 3. Detail of Repairs and Maintenance by Asset Class provided in Table SA34c
A212: 4. Must reconcile to total capital expenditure on Budgeted Capital Expenditure
A213: 5. Must reconcile to 'Budgeted Financial Position' (written down value)
A214: 6. Detail of upgrading of existing assets provided in Table SA34e
A215: 7. Detail of depreciation provided in Table SA34d
A217: Check balance to A6 | C217: =C165-'A6-FinPos'!D17-'A6-FinPos'!D19-'A6-FinPos'!D20-'A6-FinPos'!D21-'A6-FinPos'!D22-C148 -> 105647.99 | D217: =D165-'A6-FinPos'!E17-'A6-FinPos'!E19-'A6-FinPos'!E20-'A6-FinPos'!E21-'A6-FinPos'!E22-D148 -> 5927536.83 | E217: =E165-'A6-FinPos'!F17-'A6-FinPos'!F19-'A6-FinPos'!F20-'A6-FinPos'!F21-'A6-FinPos'!F22-E148 -> -23518529.82 | F217: =F165-'A6-FinPos'!G17-'A6-FinPos'!G19-'A6-FinPos'!G20-'A6-FinPos'!G21-'A6-FinPos'!G22-F148 -> -4955219 | G217: =G165-'A6-FinPos'!H17-'A6-FinPos'!H19-'A6-FinPos'!H20-'A6-FinPos'!H21-'A6-FinPos'!H22-G148 -> 0 | H217: =H165-'A6-FinPos'!I17-'A6-FinPos'!I19-'A6-FinPos'!I20-'A6-FinPos'!I21-'A6-FinPos'!I22-H148 -> 22354408.45 | I217: =I165-'A6-FinPos'!J17-'A6-FinPos'!J19-'A6-FinPos'!J20-'A6-FinPos'!J21-'A6-FinPos'!J22-I148 -> 0 | J217: =J165-'A6-FinPos'!K17-'A6-FinPos'!K19-'A6-FinPos'!K20-'A6-FinPos'!K21-'A6-FinPos'!K22-J148 -> 0 | K217: =K165-'A6-FinPos'!L17-'A6-FinPos'!L19-'A6-FinPos'!L20-'A6-FinPos'!L21-'A6-FinPos'!L22-K148 -> 0

Sheet A10-SerDel
A1: =muni&" - "&Approve10 -> DC32 Ehlanzeni - Table A10 Basic service delivery measurement
A2: =desc -> Description | B2: =head27 -> Ref | C2: =head1b -> 2016/17 | D2: =head1A -> 2017/18 | E2: =Head1 -> 2018/19 | F2: =Head2 -> Current Year 2019/20 | I2: =Head3 -> 2020/21 Medium Term Revenue & Expenditure Framework
C3: =Head5A -> Outcome | D3: =Head5A -> Outcome | E3: =Head5A -> Outcome | F3: =Head6 -> Original Budget | G3: =Head7 -> Adjusted Budget | H3: =Head8 -> Full Year Forecast | I3: =Head9 -> Budget Year 2020/21 | J3: =Head10 -> Budget Year +1 2021/22 | K3: =Head11 -> Budget Year +2 2022/23
A4: Household service targets | B4: 1
A5: Water:
A6: Piped water inside dwelling | C6: ='SA9'!E67 -> 0 | D6: ='SA9'!F67 -> 0 | E6: ='SA9'!G67 -> 0 | F6: ='SA9'!H67 -> 0 | G6: ='SA9'!I67 -> 0 | H6: ='SA9'!J67 -> 0 | I6: ='SA9'!K67 -> 0 | J6: ='SA9'!L67 -> 0 | K6: ='SA9'!M67 -> 0
A7: Piped water inside yard (but not in dwelling) | C7: ='SA9'!E68 -> 0 | D7: ='SA9'!F68 -> 0 | E7: ='SA9'!G68 -> 0 | F7: ='SA9'!H68 -> 0 | G7: ='SA9'!I68 -> 0 | H7: ='SA9'!J68 -> 0 | I7: ='SA9'!K68 -> 0 | J7: ='SA9'!L68 -> 0 | K7: ='SA9'!M68 -> 0
A8: Using public tap (at least min.service level) | B8: 2 | C8: ='SA9'!E69 -> 0 | D8: ='SA9'!F69 -> 0 | E8: ='SA9'!G69 -> 0 | F8: ='SA9'!H69 -> 0 | G8: ='SA9'!I69 -> 0 | H8: ='SA9'!J69 -> 0 | I8: ='SA9'!K69 -> 0 | J8: ='SA9'!L69 -> 0 | K8: ='SA9'!M69 -> 0
A9: Other water supply (at least min.service level) | B9: 4 | C9: ='SA9'!E70 -> 0 | D9: ='SA9'!F70 -> 0 | E9: ='SA9'!G70 -> 0 | F9: ='SA9'!H70 -> 0 | G9: ='SA9'!I70 -> 0 | H9: ='SA9'!J70 -> 0 | I9: ='SA9'!K70 -> 0 | J9: ='SA9'!L70 -> 0 | K9: ='SA9'!M70 -> 0
A10: Minimum Service Level and Above sub-total | C10: =SUM(C6:C9) -> 0 | D10: =SUM(D6:D9) -> 0 | E10: 0 | F10: 0 | G10: 0 | H10: 0 | I10: 0 | J10: 0 | K10: 0
A11: Using public tap (< min.service level) | B11: 3 | C11: ='SA9'!E72 -> 0 | D11: ='SA9'!F72 -> 0 | E11: ='SA9'!G72 -> 0 | F11: ='SA9'!H72 -> 0 | G11: ='SA9'!I72 -> 0 | H11: ='SA9'!J72 -> 0 | I11: ='SA9'!K72 -> 0 | J11: ='SA9'!L72 -> 0 | K11: ='SA9'!M72 -> 0
A12: Other water supply (< min.service level) | B12: =B9 -> 4 | C12: ='SA9'!E73 -> 0 | D12: ='SA9'!F73 -> 0 | E12: ='SA9'!G73 -> 0 | F12: ='SA9'!H73 -> 0 | G12: ='SA9'!I73 -> 0 | H12: ='SA9'!J73 -> 0 | I12: ='SA9'!K73 -> 0 | J12: ='SA9'!L73 -> 0 | K12: ='SA9'!M73 -> 0
A13: No water supply | C13: ='SA9'!E74 -> 0 | D13: ='SA9'!F74 -> 0 | E13: ='SA9'!G74 -> 0 | F13: ='SA9'!H74 -> 0 | G13: ='SA9'!I74 -> 0 | H13: ='SA9'!J74 -> 0 | I13: ='SA9'!K74 -> 0 | J13: ='SA9'!L74 -> 0 | K13: ='SA9'!M74 -> 0
A14: Below Minimum Service Level sub-total | C14: =SUM(C11:C13) -> 0 | D14: =SUM(D11:D13) -> 0 | E14: 0 | F14: 0 | G14: 0 | H14: 0 | I14: 0 | J14: 0 | K14: 0
A15: Total number of households | B15: 5 | C15: =C10+C14 -> 0 | D15: =D10+D14 -> 0 | E15: 0 | F15: 0 | G15: 0 | H15: 0 | I15: 0 | J15: 0 | K15: 0
A16: Sanitation/sewerage:
A17: Flush toilet (connected to sewerage) | C17: ='SA9'!E78 -> 0 | D17: ='SA9'!F78 -> 0 | E17: ='SA9'!G78 -> 0 | F17: ='SA9'!H78 -> 0 | G17: ='SA9'!I78 -> 0 | H17: ='SA9'!J78 -> 0 | I17: ='SA9'!K78 -> 0 | J17: ='SA9'!L78 -> 0 | K17: ='SA9'!M78 -> 0
A18: Flush toilet (with septic tank) | C18: ='SA9'!E79 -> 0 | D18: ='SA9'!F79 -> 0 | E18: ='SA9'!G79 -> 0 | F18: ='SA9'!H79 -> 0 | G18: ='SA9'!I79 -> 0 | H18: ='SA9'!J79 -> 0 | I18: ='SA9'!K79 -> 0 | J18: ='SA9'!L79 -> 0 | K18: ='SA9'!M79 -> 0
A19: Chemical toilet | C19: ='SA9'!E80 -> 0 | D19: ='SA9'!F80 -> 0 | E19: ='SA9'!G80 -> 0 | F19: ='SA9'!H80 -> 0 | G19: ='SA9'!I80 -> 0 | H19: ='SA9'!J80 -> 0 | I19: ='SA9'!K80 -> 0 | J19: ='SA9'!L80 -> 0 | K19: ='SA9'!M80 -> 0
A20: Pit toilet (ventilated) | C20: ='SA9'!E81 -> 0 | D20: ='SA9'!F81 -> 0 | E20: ='SA9'!G81 -> 0 | F20: ='SA9'!H81 -> 0 | G20: ='SA9'!I81 -> 0 | H20: ='SA9'!J81 -> 0 | I20: ='SA9'!K81 -> 0 | J20: ='SA9'!L81 -> 0 | K20: ='SA9'!M81 -> 0
A21: Other toilet provisions (> min.service level) | C21: ='SA9'!E82 -> 0 | D21: ='SA9'!F82 -> 0 | E21: ='SA9'!G82 -> 0 | F21: ='SA9'!H82 -> 0 | G21: ='SA9'!I82 -> 0 | H21: ='SA9'!J82 -> 0 | I21: ='SA9'!K82 -> 0 | J21: ='SA9'!L82 -> 0 | K21: ='SA9'!M82 -> 0
A22: =$A$10 -> Minimum Service Level and Above sub-total | C22: =SUM(C17:C21) -> 0 | D22: =SUM(D17:D21) -> 0 | E22: 0 | F22: 0 | G22: 0 | H22: 0 | I22: 0 | J22: 0 | K22: 0
A23: Bucket toilet | C23: ='SA9'!E84 -> 0 | D23: ='SA9'!F84 -> 0 | E23: ='SA9'!G84 -> 0 | F23: ='SA9'!H84 -> 0 | G23: ='SA9'!I84 -> 0 | H23: ='SA9'!J84 -> 0 | I23: ='SA9'!K84 -> 0 | J23: ='SA9'!L84 -> 0 | K23: ='SA9'!M84 -> 0
A24: Other toilet provisions (< min.service level) | C24: ='SA9'!E85 -> 0 | D24: ='SA9'!F85 -> 0 | E24: ='SA9'!G85 -> 0 | F24: ='SA9'!H85 -> 0 | G24: ='SA9'!I85 -> 0 | H24: ='SA9'!J85 -> 0 | I24: ='SA9'!K85 -> 0 | J24: ='SA9'!L85 -> 0 | K24: ='SA9'!M85 -> 0
A25: No toilet provisions | C25: ='SA9'!E86 -> 0 | D25: ='SA9'!F86 -> 0 | E25: ='SA9'!G86 -> 0 | F25: ='SA9'!H86 -> 0 | G25: ='SA9'!I86 -> 0 | H25: ='SA9'!J86 -> 0 | I25: ='SA9'!K86 -> 0 | J25: ='SA9'!L86 -> 0 | K25: ='SA9'!M86 -> 0
A26: =$A$14 -> Below Minimum Service Level sub-total | C26: =SUM(C23:C25) -> 0 | D26: =SUM(D23:D25) -> 0 | E26: 0 | F26: 0 | G26: 0 | H26: 0 | I26: 0 | J26: 0 | K26: 0
A27: =$A$15 -> Total number of households | B27: =$B$15 -> 5 | C27: =C22+C26 -> 0 | D27: =D22+D26 -> 0 | E27: 0 | F27: 0 | G27: 0 | H27: 0 | I27: 0 | J27: 0 | K27: 0
A28: Energy:
A29: Electricity (at least min.service level) | C29: ='SA9'!E90 -> 0 | D29: ='SA9'!F90 -> 0 | E29: ='SA9'!G90 -> 0 | F29: ='SA9'!H90 -> 0 | G29: ='SA9'!I90 -> 0 | H29: ='SA9'!J90 -> 0 | I29: ='SA9'!K90 -> 0 | J29: ='SA9'!L90 -> 0 | K29: ='SA9'!M90 -> 0
A30: Electricity - prepaid (min.service level) | C30: ='SA9'!E91 -> 0 | D30: ='SA9'!F91 -> 0 | E30: ='SA9'!G91 -> 0 | F30: ='SA9'!H91 -> 0 | G30: ='SA9'!I91 -> 0 | H30: ='SA9'!J91 -> 0 | I30: ='SA9'!K91 -> 0 | J30: ='SA9'!L91 -> 0 | K30: ='SA9'!M91 -> 0
A31: =$A$10 -> Minimum Service Level and Above sub-total | C31: =SUM(C29:C30) -> 0 | D31: =SUM(D29:D30) -> 0 | E31: 0 | F31: 0 | G31: 0 | H31: 0 | I31: 0 | J31: 0 | K31: 0
A32: Electricity (< min.service level) | C32: ='SA9'!E93 -> 0 | D32: ='SA9'!F93 -> 0 | E32: ='SA9'!G93 -> 0 | F32: ='SA9'!H93 -> 0 | G32: ='SA9'!I93 -> 0 | H32: ='SA9'!J93 -> 0 | I32: ='SA9'!K93 -> 0 | J32: ='SA9'!L93 -> 0 | K32: ='SA9'!M93 -> 0
A33: Electricity - prepaid (< min. service level) | C33: ='SA9'!E94 -> 0 | D33: ='SA9'!F94 -> 0 | E33: ='SA9'!G94 -> 0 | F33: ='SA9'!H94 -> 0 | G33: ='SA9'!I94 -> 0 | H33: ='SA9'!J94 -> 0 | I33: ='SA9'!K94 -> 0 | J33: ='SA9'!L94 -> 0 | K33: ='SA9'!M94 -> 0
A34: Other energy sources | C34: ='SA9'!E95 -> 0 | D34: ='SA9'!F95 -> 0 | E34: ='SA9'!G95 -> 0 | F34: ='SA9'!H95 -> 0 | G34: ='SA9'!I95 -> 0 | H34: ='SA9'!J95 -> 0 | I34: ='SA9'!K95 -> 0 | J34: ='SA9'!L95 -> 0 | K34: ='SA9'!M95 -> 0
A35: =$A$14 -> Below Minimum Service Level sub-total | C35: =SUM(C32:C34) -> 0 | D35: =SUM(D32:D34) -> 0 | E35: 0 | F35: 0 | G35: 0 | H35: 0 | I35: 0 | J35: 0 | K35: 0
A36: =$A$15 -> Total number of households | B36: =$B$15 -> 5 | C36: =C31+C35 -> 0 | D36: =D31+D35 -> 0 | E36: 0 | F36: 0 | G36: 0 | H36: 0 | I36: 0 | J36: 0 | K36: 0
A37: Refuse:
A38: Removed at least once a week | C38: ='SA9'!E99 -> 0 | D38: ='SA9'!F99 -> 0 | E38: ='SA9'!G99 -> 0 | F38: ='SA9'!H99 -> 0 | G38: ='SA9'!I99 -> 0 | H38: ='SA9'!J99 -> 0 | I38: ='SA9'!K99 -> 0 | J38: ='SA9'!L99 -> 0 | K38: ='SA9'!M99 -> 0
A39: =$A$10 -> Minimum Service Level and Above sub-total | C39: =SUM(C38) -> 0 | D39: =SUM(D38) -> 0 | E39: 0 | F39: 0 | G39: 0 | H39: 0 | I39: 0 | J39: 0 | K39: 0
A40: Removed less frequently than once a week | C40: ='SA9'!E101 -> 0 | D40: ='SA9'!F101 -> 0 | E40: ='SA9'!G101 -> 0 | F40: ='SA9'!H101 -> 0 | G40: ='SA9'!I101 -> 0 | H40: ='SA9'!J101 -> 0 | I40: ='SA9'!K101 -> 0 | J40: ='SA9'!L101 -> 0 | K40: ='SA9'!M101 -> 0
A41: Using communal refuse dump | C41: ='SA9'!E102 -> 0 | D41: ='SA9'!F102 -> 0 | E41: ='SA9'!G102 -> 0 | F41: ='SA9'!H102 -> 0 | G41: ='SA9'!I102 -> 0 | H41: ='SA9'!J102 -> 0 | I41: ='SA9'!K102 -> 0 | J41: ='SA9'!L102 -> 0 | K41: ='SA9'!M102 -> 0
A42: Using own refuse dump | C42: ='SA9'!E103 -> 0 | D42: ='SA9'!F103 -> 0 | E42: ='SA9'!G103 -> 0 | F42: ='SA9'!H103 -> 0 | G42: ='SA9'!I103 -> 0 | H42: ='SA9'!J103 -> 0 | I42: ='SA9'!K103 -> 0 | J42: ='SA9'!L103 -> 0 | K42: ='SA9'!M103 -> 0
A43: Other rubbish disposal | C43: ='SA9'!E104 -> 0 | D43: ='SA9'!F104 -> 0 | E43: ='SA9'!G104 -> 0 | F43: ='SA9'!H104 -> 0 | G43: ='SA9'!I104 -> 0 | H43: ='SA9'!J104 -> 0 | I43: ='SA9'!K104 -> 0 | J43: ='SA9'!L104 -> 0 | K43: ='SA9'!M104 -> 0
A44: No rubbish disposal | C44: ='SA9'!E105 -> 0 | D44: ='SA9'!F105 -> 0 | E44: ='SA9'!G105 -> 0 | F44: ='SA9'!H105 -> 0 | G44: ='SA9'!I105 -> 0 | H44: ='SA9'!J105 -> 0 | I44: ='SA9'!K105 -> 0 | J44: ='SA9'!L105 -> 0 | K44: ='SA9'!M105 -> 0
A45: =$A$14 -> Below Minimum Service Level sub-total | C45: =SUM(C40:C44) -> 0 | D45: 0 | E45: 0 | F45: 0 | G45: 0 | H45: 0 | I45: 0 | J45: 0 | K45: 0
A46: =$A$15 -> Total number of households | B46: =$B$15 -> 5 | C46: =C39+C45 -> 0 | D46: =D39+D45 -> 0 | E46: 0 | F46: 0 | G46: 0 | H46: 0 | I46: 0 | J46: 0 | K46: 0
A48: Households receiving Free Basic Service | B48: 7
A49: Water (6 kilolitres per household per month) | C49: ='SA9'!E263 -> 0 | D49: ='SA9'!F263 -> 0 | E49: ='SA9'!G263 -> 0 | F49: ='SA9'!H263 -> 0 | G49: ='SA9'!I263 -> 0 | H49: ='SA9'!J263 -> 0 | I49: ='SA9'!K263 -> 0 | J49: ='SA9'!L263 -> 0 | K49: ='SA9'!M263 -> 0
A50: Sanitation (free minimum level service) | C50: ='SA9'!E275 -> 0 | D50: ='SA9'!F275 -> 0 | E50: ='SA9'!G275 -> 0 | F50: ='SA9'!H275 -> 0 | G50: ='SA9'!I275 -> 0 | H50: ='SA9'!J275 -> 0 | I50: ='SA9'!K275 -> 0 | J50: ='SA9'!L275 -> 0 | K50: ='SA9'!M275 -> 0
A51: Electricity/other energy (50kwh per household per month) | C51: ='SA9'!E251 -> 0 | D51: ='SA9'!F251 -> 0 | E51: ='SA9'!G251 -> 0 | F51: ='SA9'!H251 -> 0 | G51: ='SA9'!I251 -> 0 | H51: ='SA9'!J251 -> 0 | I51: ='SA9'!K251 -> 0 | J51: ='SA9'!L251 -> 0 | K51: ='SA9'!M251 -> 0
A52: Refuse (removed at least once a week) | C52: ='SA9'!E287 -> 0 | D52: ='SA9'!F287 -> 0 | E52: ='SA9'!G287 -> 0 | F52: ='SA9'!H287 -> 0 | G52: ='SA9'!I287 -> 0 | H52: ='SA9'!J287 -> 0 | I52: ='SA9'!K287 -> 0 | J52: ='SA9'!L287 -> 0 | K52: ='SA9'!M287 -> 0
A54: Cost of Free Basic Services provided - Formal Settlements (R'000) | B54: 8
A55: Water (6 kilolitres per indigent household per month) | C55: ='SA1'!C20 -> 0 | D55: ='SA1'!D20 -> 0 | E55: ='SA1'!E20 -> 0 | F55: ='SA1'!F20 -> 0 | G55: ='SA1'!G20 -> 0 | H55: ='SA1'!H20 -> 0 | I55: ='SA1'!J20 -> 0 | J55: ='SA1'!K20 -> 0 | K55: ='SA1'!L20 -> 0
A56: Sanitation (free sanitation service to indigent households) | C56: ='SA1'!C26 -> 0 | D56: ='SA1'!D26 -> 0 | E56: ='SA1'!E26 -> 0 | F56: ='SA1'!F26 -> 0 | G56: ='SA1'!G26 -> 0 | H56: ='SA1'!H26 -> 0 | I56: ='SA1'!J26 -> 0 | J56: ='SA1'!K26 -> 0 | K56: ='SA1'!L26 -> 0
A57: Electricity/other energy (50kwh per indigent household per month) | C57: ='SA1'!C14 -> 0 | D57: ='SA1'!D14 -> 0 | E57: ='SA1'!E14 -> 0 | F57: ='SA1'!F14 -> 0 | G57: ='SA1'!G14 -> 0 | H57: ='SA1'!H14 -> 0 | I57: ='SA1'!J14 -> 0 | J57: ='SA1'!K14 -> 0 | K57: ='SA1'!L14 -> 0
A58: Refuse (removed once a week for indigent households) | C58: ='SA1'!C33 -> 0 | D58: ='SA1'!D33 -> 0 | E58: ='SA1'!E33 -> 0 | F58: ='SA1'!F33 -> 0 | G58: ='SA1'!G33 -> 0 | H58: ='SA1'!H33 -> 0 | I58: ='SA1'!J33 -> 0 | J58: ='SA1'!K33 -> 0 | K58: ='SA1'!L33 -> 0
A59: Cost of Free Basic Services provided - Informal Formal Settlements (R'000) | C59: ='SA9'!E260+'SA9'!E272+'SA9'!E284+'SA9'!E296 -> 0 | D59: ='SA9'!F260+'SA9'!F272+'SA9'!F284+'SA9'!F296 -> 0 | E59: ='SA9'!G260+'SA9'!G272+'SA9'!G284+'SA9'!G296 -> 0 | F59: ='SA9'!H260+'SA9'!H272+'SA9'!H284+'SA9'!H296 -> 0 | G59: ='SA9'!I260+'SA9'!I272+'SA9'!I284+'SA9'!I296 -> 0 | H59: ='SA9'!J260+'SA9'!J272+'SA9'!J284+'SA9'!J296 -> 0 | I59: ='SA9'!K260+'SA9'!K272+'SA9'!K284+'SA9'!K296 -> 0 | J59: ='SA9'!L260+'SA9'!L272+'SA9'!L284+'SA9'!L296 -> 0 | K59: ='SA9'!M260+'SA9'!M272+'SA9'!M284+'SA9'!M296 -> 0
A60: Total cost of FBS provided | C60: =SUM(C55:C59) -> 0 | D60: 0 | E60: 0 | F60: 0 | G60: 0 | H60: 0 | I60: 0 | J60: 0 | K60: 0
A62: Highest level of free service provided per household
A63: Property rates (R value threshold)
A64: Water (kilolitres per household per month)
A65: Sanitation (kilolitres per household per month)
A66: Sanitation (Rand per household per month)
A67: Electricity (kwh per household per month)
A68: Refuse (average litres per week)
A69: Revenue cost of subsidised services provided (R'000) | B69: 9
A70: Property rates (tariff adjustment) ( impermissable values per section 17 of MPRA)
A71: Property rates exemptions, reductions and rebates and impermissable values in excess of section 17 of MPRA) | C71: ='SA1'!C8 -> 0 | D71: ='SA1'!D8 -> 0 | E71: ='SA1'!E8 -> 0 | F71: ='SA1'!F8 -> 0 | G71: ='SA1'!G8 -> 0 | H71: ='SA1'!H8 -> 0 | I71: ='SA1'!J8 -> 0 | J71: ='SA1'!K8 -> 0 | K71: ='SA1'!L8 -> 0
A72: Water (in excess of 6 kilolitres per indigent household per month) | C72: ='SA1'!C19 -> 0 | D72: ='SA1'!D19 -> 0 | E72: ='SA1'!E19 -> 0 | F72: ='SA1'!F19 -> 0 | G72: ='SA1'!G19 -> 0 | H72: ='SA1'!H19 -> 0 | I72: ='SA1'!J19 -> 0 | J72: ='SA1'!K19 -> 0 | K72: ='SA1'!L19 -> 0
A73: Sanitation (in excess of free sanitation service to indigent households) | C73: ='SA1'!C25 -> 0 | D73: ='SA1'!D25 -> 0 | E73: ='SA1'!E25 -> 0 | F73: ='SA1'!F25 -> 0 | G73: ='SA1'!G25 -> 0 | H73: ='SA1'!H25 -> 0 | I73: ='SA1'!J25 -> 0 | J73: ='SA1'!K25 -> 0 | K73: ='SA1'!L25 -> 0
A74: Electricity/other energy (in excess of 50 kwh per indigent household per month) | C74: ='SA1'!C13 -> 0 | D74: ='SA1'!D13 -> 0 | E74: ='SA1'!E13 -> 0 | F74: ='SA1'!F13 -> 0 | G74: ='SA1'!G13 -> 0 | H74: ='SA1'!H13 -> 0 | I74: ='SA1'!J13 -> 0 | J74: ='SA1'!K13 -> 0 | K74: ='SA1'!L13 -> 0
A75: Refuse (in excess of one removal a week for indigent households) | C75: ='SA1'!C32 -> 0 | D75: ='SA1'!D32 -> 0 | E75: ='SA1'!E32 -> 0 | F75: ='SA1'!F32 -> 0 | G75: ='SA1'!G32 -> 0 | H75: ='SA1'!H32 -> 0 | I75: ='SA1'!J32 -> 0 | J75: ='SA1'!K32 -> 0 | K75: ='SA1'!L32 -> 0
A76: Municipal Housing - rental rebates
A77: Housing - top structure subsidies | B77: 6
A78: Other
A79: Total revenue cost of subsidised services provided | C79: =SUM(C70:C78) -> 0 | D79: =SUM(D70:D78) -> 0 | E79: 0 | F79: 0 | G79: 0 | H79: 0 | I79: 0 | J79: =SUM(J70:J78) -> 0 | K79: =SUM(K70:K78) -> 0
A80: =head27a -> References
A81: 1. Include services provided by another entity; e.g. Eskom
A82: 2. Stand distance <= 200m from dwelling
A83: 3. Stand distance > 200m from dwelling
A84: 4. Borehole, spring, rain-water tank etc.
A85: 5. Must agree to total number of households in municipal area (informal settlements receiving services must be included)
A86: 6. Include value of subsidy provided by municipality above provincial subsidy level
A87: 7. Show number of households receiving at least these levels of services completely free (informal settlements must be included)
A88: 8. Must reflect the cost to the municipality of providing the Free Basic Service
A89: 9. Reflect the cost to the municipality in terms of 'revenue foregone' of providing free services (note this will not equal 'Revenue Foregone' on SA1)

Sheet SA1
A1: =muni&" - "&TableA1 -> DC32 Ehlanzeni - Supporting Table SA1 Supportinging detail to 'Budgeted Financial Performance'
A2: =desc -> Description | B2: =head27 -> Ref | C2: =head1b -> 2016/17 | D2: =head1A -> 2017/18 | E2: =Head1 -> 2018/19 | F2: =Head2 -> Current Year 2019/20 | J2: =Head3 -> 2020/21 Medium Term Revenue & Expenditure Framework
C3: =Head5 -> Audited Outcome | D3: =Head5 -> Audited Outcome | E3: =Head5 -> Audited Outcome | F3: =Head6 -> Original Budget | G3: =Head7 -> Adjusted Budget | H3: =Head8 -> Full Year Forecast | I3: =Head5b -> Pre-audit outcome | J3: =Head9 -> Budget Year 2020/21 | K3: =Head10 -> Budget Year +1 2021/22 | L3: =Head11 -> Budget Year +2 2022/23
A4: R thousand
A5: REVENUE ITEMS:
A6: ='A4-FinPerf RE'!A5 -> Property rates | B6: 6
A7: Total Property Rates
A8: less Revenue Foregone (exemptions, reductions and rebates and impermissable values in excess of section 17 of MPRA)
A9: Net Property Rates | C9: =C7-C8 -> 0 | D9: =D7-D8 -> 0 | E9: 0 | F9: 0 | G9: 0 | H9: 0 | I9: 0 | J9: 0 | K9: 0 | L9: 0
A11: ='A4-FinPerf RE'!A6 -> Service charges - electricity revenue | B11: 6
A12: ="Total "&A11 -> Total Service charges - electricity revenue
A13: less Revenue Foregone (in excess of 50 kwh per indigent household per month)
A14: less Cost of Free Basis Services (50 kwh per indigent household per month) | C14: ='SA9'!E250 -> 0 | D14: ='SA9'!F250 -> 0 | E14: ='SA9'!G250 -> 0 | F14: ='SA9'!H250 -> 0 | G14: ='SA9'!I250 -> 0 | H14: ='SA9'!J250 -> 0 | J14: ='SA9'!K250 -> 0 | K14: ='SA9'!L250 -> 0 | L14: ='SA9'!M250 -> 0
A15: ="Net "& A11 -> Net Service charges - electricity revenue | C15: =C12-C13-C14 -> 0 | D15: =D12-D13-D14 -> 0 | E15: 0 | F15: 0 | G15: 0 | H15: 0 | I15: 0 | J15: 0 | K15: 0 | L15: 0
A17: ='A4-FinPerf RE'!A7 -> Service charges - water revenue | B17: 6
A18: ="Total "&A17 -> Total Service charges - water revenue
A19: less Revenue Foregone (in excess of 6 kilolitres per indigent household per month)
A20: less Cost of Free Basis Services (6 kilolitres per indigent household per month) | C20: ='SA9'!E262 -> 0 | D20: ='SA9'!F262 -> 0 | E20: ='SA9'!G262 -> 0 | F20: ='SA9'!H262 -> 0 | G20: ='SA9'!I262 -> 0 | H20: ='SA9'!J262 -> 0 | J20: ='SA9'!K262 -> 0 | K20: ='SA9'!L262 -> 0 | L20: ='SA9'!M262 -> 0
A21: ="Net "& A17 -> Net Service charges - water revenue | C21: =C18-C19-C20 -> 0 | D21: =D18-D19-D20 -> 0 | E21: 0 | F21: 0 | G21: 0 | H21: 0 | I21: 0 | J21: 0 | K21: 0 | L21: 0
A23: ='A4-FinPerf RE'!A8 -> Service charges - sanitation revenue
A24: ="Total "&A23 -> Total Service charges - sanitation revenue
A25: less Revenue Foregone (in excess of free sanitation service to indigent households)
A26: less Cost of Free Basis Services (free sanitation service to indigent households) | C26: ='SA9'!E274 -> 0 | D26: ='SA9'!F274 -> 0 | E26: ='SA9'!G274 -> 0 | F26: ='SA9'!H274 -> 0 | G26: ='SA9'!I274 -> 0 | H26: ='SA9'!J274 -> 0 | J26: ='SA9'!K274 -> 0 | K26: ='SA9'!L274 -> 0 | L26: ='SA9'!M274 -> 0
A27: ="Net "& A23 -> Net Service charges - sanitation revenue | C27: =C24-C25-C26 -> 0 | D27: =D24-D25-D26 -> 0 | E27: 0 | F27: 0 | G27: 0 | H27: 0 | I27: 0 | J27: 0 | K27: 0 | L27: 0
A29: ='A4-FinPerf RE'!A9 -> Service charges - refuse revenue | B29: 6
A30: Total refuse removal revenue
A31: Total landfill revenue
A32: less Revenue Foregone (in excess of one removal a week to indigent households)
A33: less Cost of Free Basis Services (removed once a week to indigent households) | C33: ='SA9'!E286 -> 0 | D33: ='SA9'!F286 -> 0 | E33: ='SA9'!G286 -> 0 | F33: ='SA9'!H286 -> 0 | G33: ='SA9'!I286 -> 0 | H33: ='SA9'!J286 -> 0 | J33: ='SA9'!K286 -> 0 | K33: ='SA9'!L286 -> 0 | L33: ='SA9'!M286 -> 0
A34: ="Net "& A29 -> Net Service charges - refuse revenue | C34: =SUM(C30:C31)-C32-C33 -> 0 | D34: =SUM(D30:D31)-D32-D33 -> 0 | E34: 0 | F34: 0 | G34: 0 | H34: 0 | I34: 0 | J34: 0 | K34: 0 | L34: 0
A36: Other Revenue by source
A37: Fuel Levy
A38: Other Revenue | C38: 1788000 | D38: 159872771.7 | E38: 165282587 | F38: 170094000 | G38: 170259000 | H38: 170259000 | I38: 170297266 | J38: 1000000 | K38: 1050000 | L38: 1200000
A49: Total 'Other' Revenue | B49: 1 | C49: =SUM(C37:C38) -> 1788000 | D49: =SUM(D37:D38) -> 159872771.7 | E49: =SUM(E37:E38) -> 165282587 | F49: 170094000 | G49: 170259000 | H49: 170259000 | I49: 170297266 | J49: 1000000 | K49: 1050000 | L49: 1200000
A51: EXPENDITURE ITEMS:
A52: ='A4-FinPerf RE'!A24 -> Employee related costs
A53: Basic Salaries and Wages | B53: 2 | C53: 106741216 | D53: 76984853.22 | E53: 84680838.38 | F53: 92971406 | G53: 93845355 | H53: 93845355 | I53: 84269503.55 | J53: 97443003 | K53: 99638833 | L53: 101961350
A54: Pension and UIF Contributions | C54: 0 | D54: 13372168.98 | E54: 14576883.98 | F54: 16854428 | G54: 16856537 | H54: 16856537 | I54: 14326737.3 | J54: 19022735 | K54: 20173130 | L54: 21391457
A55: Medical Aid Contributions | C55: 0 | D55: 5399329.27 | E55: 5863278.65 | F55: 9205349 | G55: 9240953 | H55: 9240953 | I55: 5893938.78 | J55: 9933434 | K55: 10534520 | L55: 11170754
A56: Overtime | C56: 0 | D56: 301346.63 | E56: 311111.57 | F56: 750268 | G56: 750268 | H56: 750268 | I56: 369519.34 | J56: 754600 | K56: 800026 | L56: 848161
A57: Performance Bonus | C57: 0 | D57: 1000000 | E57: 2000000 | F57: 1000000 | G57: 1000000 | H57: 1000000 | I57: -19640.28 | J57: 1045000 | K57: 1093070 | L57: 1143351
A58: Motor Vehicle Allowance | C58: 0 | D58: 14109310 | E58: 15503831.56 | F58: 17225049 | G58: 17363860 | H58: 17363860 | I58: 15558648.38 | J58: 23037341 | K58: 24427469 | L58: 25901497
A59: Cellphone Allowance | C59: 0 | D59: 0 | E59: 0 | F59: 0 | G59: 0 | H59: 0 | I59: 0 | J59: 0 | K59: 0 | L59: 0
A60: Housing Allowances | C60: 0 | D60: 483236.68 | E60: 583873.45 | F60: 1567968 | G60: 1622955 | H60: 1622955 | I60: 627269.07 | J60: 1910125 | K60: 2025715 | L60: 2148062
A61: Other benefits and allowances | C61: 0 | D61: 1443449.51 | E61: 590212.66 | F61: 1254386 | G61: 1000889 | H61: 1000889 | I61: 374614.83 | J61: 1773180 | K61: 820034 | L61: 869717
A62: Payments in lieu of leave | C62: 0 | D62: 0 | E62: 0 | F62: 0 | G62: 0 | H62: 0 | I62: 123692.24 | J62: 0 | K62: 0 | L62: 0
A63: Long service awards | C63: 0 | D63: 0 | E63: 0 | F63: 0 | G63: 0 | H63: 0 | I63: 0 | J63: 0 | K63: 0 | L63: 0
A64: Post-retirement benefit obligations | B64: 4 | C64: 0 | D64: 1274555.02 | E64: 3350135.6 | F64: 0 | G64: 0 | H64: 0 | I64: 0 | J64: 0 | K64: 0 | L64: 0
A65: sub-total | B65: 5 | C65: =SUM(C53:C64) -> 106741216 | D65: =SUM(D53:D64) -> 114368249.3 | E65: 127460165.8 | F65: 140828854 | G65: 141680817 | H65: 141680817 | I65: 121524283.2 | J65: 154919418 | K65: 159512797 | L65: 165434349
A66: Less: Employees costs capitalised to PPE | C66: 0 | D66: 0 | E66: 0 | F66: 0 | G66: 0 | H66: 0 | I66: 0 | J66: 0 | K66: 0 | L66: 0
A67: ="Total "&A52 -> Total Employee related costs | B67: 1 | C67: =C65-C66 -> 106741216 | D67: =D65-D66 -> 114368249.3 | E67: 127460165.8 | F67: 140828854 | G67: 141680817 | H67: 141680817 | I67: 121524283.2 | J67: 154919418 | K67: 159512797 | L67: 165434349
A78: ='A4-FinPerf RE'!A27 -> Depreciation & asset impairment
A79: Depreciation of Property, Plant & Equipment | C79: 10184194 | D79: 8069918.7 | E79: 8565920.16 | F79: 10488675 | G79: 6788675 | H79: 6788675 | I79: 8228297.2 | J79: 8147426 | K79: 8147426 | L79: 8147426
A80: Lease amortisation | C80: 0 | D80: 1134457.53 | E80: 1150346.72 | F80: 1358750 | G80: 1358750 | H80: 1358750 | I80: 1173694 | J80: 0 | K80: 0 | L80: 0
A81: Capital asset impairment | C81: 0 | D81: 0 | E81: 0 | F81: 0 | G81: 0 | H81: 0 | I81: 0 | J81: 0 | K81: 0 | L81: 0
A83: ="Total "&LEFT(A78,35) -> Total Depreciation & asset impairment | B83: 1 | C83: =SUM(C79:C81) -> 10184194 | D83: =SUM(D79:D81) -> 9204376.23 | E83: 9716266.88 | F83: 11847425 | G83: 8147425 | H83: 8147425 | I83: 9401991.2 | J83: 8147426 | K83: 8147426 | L83: 8147426
A85: ='A4-FinPerf RE'!A29 -> Bulk purchases
A86: Electricity Bulk Purchases | C86: 0 | D86: 5755225.45 | E86: 0 | F86: 0 | G86: 0 | H86: 0 | I86: 0 | J86: 0 | K86: 0 | L86: 0
A87: Water Bulk Purchases
A88: Total bulk purchases | B88: 1 | C88: =SUM(C86:C87) -> 0 | D88: =SUM(D86:D87) -> 5755225.45 | E88: 0 | F88: 0 | G88: 0 | H88: 0 | I88: 0 | J88: 0 | K88: 0 | L88: 0
A90: Transfers and grants
A91: Cash transfers and grants | C91: ='SA21'!C32 -> 0 | D91: ='SA21'!D32 -> 0 | E91: ='SA21'!E32 -> 0 | F91: ='SA21'!F32 -> 0 | G91: ='SA21'!G32 -> 0 | H91: ='SA21'!H32 -> 0 | I91: ='SA21'!I32 -> 0 | J91: ='SA21'!J32 -> 0 | K91: ='SA21'!K32 -> 0 | L91: ='SA21'!L32 -> 0
A92: Non-cash transfers and grants | C92: ='SA21'!C73 -> 23930281 | D92: ='SA21'!D73 -> 24163416.91 | E92: ='SA21'!E73 -> 15966905.45 | F92: ='SA21'!F73 -> 0 | G92: ='SA21'!G73 -> 0 | H92: ='SA21'!H73 -> 0 | I92: ='SA21'!I73 -> 0 | J92: ='SA21'!J73 -> 0 | K92: ='SA21'!K73 -> 0 | L92: ='SA21'!L73 -> 0
A93: Total transfers and grants | B93: 1 | C93: =SUM(C91:C92) -> 23930281 | D93: =SUM(D91:D92) -> 24163416.91 | E93: 15966905.45 | F93: 0 | G93: 0 | H93: 0 | I93: 0 | J93: 0 | K93: 0 | L93: 0
A95: ='A4-FinPerf RE'!A31 -> Contracted services
A96: Outsourced Services | C96: 0 | D96: 1745429.02 | E96: 7324674.48 | F96: 9649200 | G96: 12004536 | H96: 12004536 | I96: 9864976.51 | J96: 10200193 | K96: 10311859 | L96: 10463222
A97: Consultants and Professional Services | C97: 1053109 | D97: 6051580.51 | E97: 7183650.53 | F97: 10798794 | G97: 6210325 | H97: 6210325 | I97: 3337669.12 | J97: 7530677 | K97: 8751952 | L97: 8871097
A98: Contractors | C98: 0 | D98: 2533327.56 | E98: 3839946.47 | F98: 5200000 | G98: 8164699 | H98: 8164699 | I98: 7360277.63 | J98: 4659437 | K98: 5453849 | L98: 5517163
A127: Total contracted services | C127: =SUM(C96:C98) -> 1053109 | D127: =SUM(D96:D98) -> 10330337.09 | E127: 18348271.48 | F127: 25647994 | G127: 26379560 | H127: 26379560 | I127: 20562923.26 | J127: 22390307 | K127: 24517660 | L127: 24851482
A129: Other Expenditure By Type
A130: Collection costs
A131: Contributions to 'other' provisions
A133: Audit fees | C133: 2576292 | D133: 2400114 | E133: 2820971 | F133: 3500000 | G133: 3300000 | H133: 3300000 | I133: 2742809.43 | J133: 3657500 | K133: 3825745 | L133: 4001729
C134: =43578845+1800523 -> 45379368
A136: Other Expenditure | C136: =43578845+1800523 -> 45379368 | D136: 24737034.15 | E136: 37138707.07 | F136: 43721592 | G136: 41414658 | H136: 41414658 | I136: 30733729.7 | J136: 44483595 | K136: 42614917 | L136: 43194008
A157: Total 'Other' Expenditure | B157: 1 | C157: =+C130+C131+C133+C136 -> 47955660 | D157: =+D130+D131+D133+D136 -> 27137148.15 | E157: 39959678.07 | F157: 47221592 | G157: 44714658 | H157: 44714658 | I157: 33476539.13 | J157: 48141095 | K157: 46440662 | L157: 47195737
A159: Repairs and Maintenance by Expenditure Item | B159: 8
A160: Employee related costs
A161: Other materials | C161: 0 | D161: 5638167.22 | E161: 763183.36 | F161: 1500000 | G161: 600000 | H161: 600000 | I161: 523983.16 | J161: 1044300 | K161: 1181294 | L161: 1324452
A162: Contracted Services | C162: 0 | D162: 785922.46 | E162: 6530396.42 | F162: 8445000 | G162: 10820100 | H162: 10820100 | I162: 8824933.01 | J162: 8825550 | K162: 8923525 | L162: 9054147
A163: Other Expenditure
A164: Total Repairs and Maintenance Expenditure | B164: 9 | C164: =SUM(C160:C163) -> 0 | D164: =SUM(D160:D163) -> 6424089.68 | E164: 7293579.78 | F164: 9945000 | G164: 11420100 | H164: 11420100 | I164: 9348916.17 | J164: 9869850 | K164: 10104819 | L164: 10378599
A166: check | C166: =C164-SA34c!C167 -> -1800523 | D166: =D164-SA34c!D167 -> 0 | E166: =E164-SA34c!E167 -> 0 | F166: =F164-SA34c!F167 -> 0 | G166: =G164-SA34c!G167 -> 0 | H166: =H164-SA34c!H167 -> 0 | J166: =J164-SA34c!I167 -> 0 | K166: =K164-SA34c!J167 -> 0 | L166: =L164-SA34c!K167 -> 0
A169: =head27a -> References
A170: 1. Must reconcile with 'Budgeted Financial Performance (Revenue and Expenditure)
A171: 2. Must reconcile to supporting documentation on staff salaries
A173: 4. Expenditure to meet any 'unfunded obligations'
A174: 5 This sub-total must agree with the total on SA22, but excluding councillor and board member items
A175: 6. Include a note for each revenue item that is affected by 'revenue foregone'
A176: 7. Special consideration may have to be given to including 'goodwill arising' or 'joint venture' budgets where circumstances require this (include separately under relevant notes)
A177: 8. Repairs and Maintenance is not a GRAP item. However to facilitate transparency, municipalities must provide a breakdown of the amounts included in the relevant GRAP items that will be spent on Repairs and Maintenance.
A178: 9. Must reconcile with Repairs and Maintenance by Asset Class (Total Repairs and Maintenance) on Table SA34c.
A179: 10. Only applicable to municipalities that have adopted the 'revaluation method' in GRAP 17. The aim is to prevent overstating 'depreciation and asset impairment'

Sheet SA2
A1: =muni&" - "&TableA2 -> DC32 Ehlanzeni - Supporting Table SA2 Matrix Financial Performance Budget (revenue source/expenditure type and dept.)
A2: =desc -> Description | B2: =head27 -> Ref | C2: ='A3-FinPerf V'!A5 -> Vote 01 - Council Summary | D2: ='A3-FinPerf V'!A6 -> Vote 02 - Corporate Services & Municipal Relations | E2: ='A3-FinPerf V'!A7 -> Vote 03 - Finance And Procurement | F2: ='A3-FinPerf V'!A8 -> Vote 04 - Local Economic Development; Tourism And Rural Devevelopment | G2: ='A3-FinPerf V'!A9 -> Vote 05 - Municipal Health & Environmental Management | H2: ='A3-FinPerf V'!A10 -> Vote 06 - Office Of The Municipal Manager | I2: ='A3-FinPerf V'!A11 -> Vote 07 - Social Services & Disaster Management | J2: ='A3-FinPerf V'!A12 -> Vote 08 - Technical Services | K2: ='A3-FinPerf V'!A13 -> Vote 09 - | L2: ='A3-FinPerf V'!A14 -> Vote 10 - | M2: ='A3-FinPerf V'!A15 -> Vote 11 - | N2: ='A3-FinPerf V'!A16 -> Vote 12 - | O2: ='A3-FinPerf V'!A17 -> Vote 13 - | P2: ='A3-FinPerf V'!A18 -> Vote 14 - | Q2: ='A3-FinPerf V'!A19 -> Vote 15 - Other | R2: Total
A3: R thousand | B3: 1 | R3: R'000
A4: ='A4-FinPerf RE'!A4 -> Revenue By Source
A5: ='A4-FinPerf RE'!A5 -> Property rates | C5: 0 | D5: 0 | E5: 0 | F5: 0 | G5: 0 | H5: 0 | I5: 0 | J5: 0 | K5: 0 | L5: 0 | M5: 0 | N5: 0 | O5: 0 | P5: 0 | Q5: 0 | R5: =SUM(C5:Q5) -> 0
A6: ='A4-FinPerf RE'!A6 -> Service charges - electricity revenue | C6: 0 | D6: 0 | E6: 0 | F6: 0 | G6: 0 | H6: 0 | I6: 0 | J6: 0 | K6: 0 | L6: 0 | M6: 0 | N6: 0 | O6: 0 | P6: 0 | Q6: 0 | R6: =SUM(C6:Q6) -> 0
A7: ='A4-FinPerf RE'!A7 -> Service charges - water revenue | C7: 0 | D7: 0 | E7: 0 | F7: 0 | G7: 0 | H7: 0 | I7: 0 | J7: 0 | K7: 0 | L7: 0 | M7: 0 | N7: 0 | O7: 0 | P7: 0 | Q7: 0 | R7: 0
A8: ='A4-FinPerf RE'!A8 -> Service charges - sanitation revenue | C8: 0 | D8: 0 | E8: 0 | F8: 0 | G8: 0 | H8: 0 | I8: 0 | J8: 0 | K8: 0 | L8: 0 | M8: 0 | N8: 0 | O8: 0 | P8: 0 | Q8: 0 | R8: 0
A9: ='A4-FinPerf RE'!A9 -> Service charges - refuse revenue | C9: 0 | D9: 0 | E9: 0 | F9: 0 | G9: 0 | H9: 0 | I9: 0 | J9: 0 | K9: 0 | L9: 0 | M9: 0 | N9: 0 | O9: 0 | P9: 0 | Q9: 0 | R9: 0
C10: 0 | D10: 0 | E10: 0 | F10: 0 | G10: 0 | H10: 0 | I10: 0 | J10: 0 | K10: 0 | L10: 0 | M10: 0 | N10: 0 | O10: 0 | P10: 0 | Q10: 0
A11: ='A4-FinPerf RE'!A11 -> Rental of facilities and equipment | C11: 0 | D11: 0 | E11: 640000 | F11: 0 | G11: 0 | H11: 0 | I11: 0 | J11: 0 | K11: 0 | L11: 0 | M11: 0 | N11: 0 | O11: 0 | P11: 0 | Q11: 0 | R11: 640000
A12: ='A4-FinPerf RE'!A12 -> Interest earned - external investments | C12: 0 | D12: 0 | E12: 8000000 | F12: 0 | G12: 0 | H12: 0 | I12: 0 | J12: 0 | K12: 0 | L12: 0 | M12: 0 | N12: 0 | O12: 0 | P12: 0 | Q12: 0 | R12: 8000000
A13: ='A4-FinPerf RE'!A13 -> Interest earned - outstanding debtors | C13: 0 | D13: 0 | E13: 0 | F13: 0 | G13: 0 | H13: 0 | I13: 0 | J13: 0 | K13: 0 | L13: 0 | M13: 0 | N13: 0 | O13: 0 | P13: 0 | Q13: 0 | R13: 0
A14: ='A4-FinPerf RE'!A14 -> Dividends received | C14: 0 | D14: 0 | E14: 140000 | F14: 0 | G14: 0 | H14: 0 | I14: 0 | J14: 0 | K14: 0 | L14: 0 | M14: 0 | N14: 0 | O14: 0 | P14: 0 | Q14: 0 | R14: 140000
A15: ='A4-FinPerf RE'!A15 -> Fines, penalties and forfeits | C15: 0 | D15: 0 | E15: 0 | F15: 0 | G15: 0 | H15: 0 | I15: 0 | J15: 0 | K15: 0 | L15: 0 | M15: 0 | N15: 0 | O15: 0 | P15: 0 | Q15: 0 | R15: 0
A16: ='A4-FinPerf RE'!A16 -> Licences and permits | C16: 0 | D16: 0 | E16: 920000 | F16: 0 | G16: 0 | H16: 0 | I16: 0 | J16: 0 | K16: 0 | L16: 0 | M16: 0 | N16: 0 | O16: 0 | P16: 0 | Q16: 0 | R16: 920000
A17: ='A4-FinPerf RE'!A17 -> Agency services | C17: 0 | D17: 0 | E17: 0 | F17: 0 | G17: 0 | H17: 0 | I17: 0 | J17: 0 | K17: 0 | L17: 0 | M17: 0 | N17: 0 | O17: 0 | P17: 0 | Q17: 0 | R17: 0
A18: ='A4-FinPerf RE'!A19 -> Other revenue | C18: 0 | D18: 0 | E18: 1000000 | F18: 0 | G18: 0 | H18: 0 | I18: 0 | J18: 0 | K18: 0 | L18: 0 | M18: 0 | N18: 0 | O18: 0 | P18: 0 | Q18: 0 | R18: 1000000
A19: ='A4-FinPerf RE'!A18 -> Transfers and subsidies | C19: 0 | D19: 0 | E19: 268972000 | F19: 0 | G19: 0 | H19: 0 | I19: 0 | J19: 0 | K19: 0 | L19: 0 | M19: 0 | N19: 0 | O19: 0 | P19: 0 | Q19: 0 | R19: 268972000
A20: ='A4-FinPerf RE'!A20 -> Gains | C20: 0 | D20: 0 | E20: 0 | F20: 0 | G20: 0 | H20: 0 | I20: 0 | J20: 0 | K20: 0 | L20: 0 | M20: 0 | N20: 0 | O20: 0 | P20: 0 | Q20: 0 | R20: 0
A21: ='A4-FinPerf RE'!A21 -> Total Revenue (excluding capital transfers and contributions) | C21: =SUM(C5:C9)+SUM(C11:C20) -> 0 | D21: =SUM(D5:D9)+SUM(D11:D20) -> 0 | E21: 279672000 | F21: 0 | G21: 0 | H21: 0 | I21: 0 | J21: 0 | K21: 0 | L21: 0 | M21: 0 | N21: 0 | O21: 0 | P21: 0 | Q21: 0 | R21: =SUM(R5:R9)+SUM(R11:R20) -> 279672000
A23: ='A4-FinPerf RE'!A23 -> Expenditure By Type
A24: ='A4-FinPerf RE'!A24 -> Employee related costs | C24: 14210837 | D24: 25356796 | E24: 23671425 | F24: 18639052 | G24: 22988279 | H24: 24588881 | I24: 17338017 | J24: 8126131 | R24: =SUM(C24:Q24) -> 154919418
A25: ='A4-FinPerf RE'!A25 -> Remuneration of councillors | C25: 17825222 | D25: 0 | E25: 0 | F25: 0 | G25: 0 | H25: 0 | I25: 0 | J25: 0 | K25: 0 | L25: 0 | M25: 0 | N25: 0 | O25: 0 | P25: 0 | Q25: 0 | R25: =SUM(C25:Q25) -> 17825222
A26: ='A4-FinPerf RE'!A26 -> Debt impairment | C26: 0 | D26: 0 | E26: 0 | F26: 0 | G26: 0 | H26: 0 | I26: 0 | J26: 0 | K26: 0 | L26: 0 | M26: 0 | N26: 0 | O26: 0 | P26: 0 | Q26: 0 | R26: 0
A27: ='A4-FinPerf RE'!A27 -> Depreciation & asset impairment | C27: 0 | D27: 0 | E27: 8147426 | F27: 0 | G27: 0 | H27: 0 | I27: 0 | J27: 0 | K27: 0 | L27: 0 | M27: 0 | N27: 0 | O27: 0 | P27: 0 | Q27: 0 | R27: 8147426
A28: ='A4-FinPerf RE'!A28 -> Finance charges | C28: 0 | D28: 0 | E28: 15045905 | F28: 0 | G28: 0 | H28: 0 | I28: 0 | J28: 0 | K28: 0 | L28: 0 | M28: 0 | N28: 0 | O28: 0 | P28: 0 | Q28: 0 | R28: 15045905
